Workbook

Sheet DADOS
A1: 27476 | B1: PO - Planilha Orçamentária / PLQ - Planilha de Levantamento de Quantidades / CFF - Cronograma Físico Financeiro
A2: v008
A4: INSTRUÇÕES DE USO E PREENCHIMENTO
A6: 1. Este documento somente pode ser utilizado nas versões do Excel 2003 ou superior. Não deve ser utilizado versões do BROffice. O Documento deve ser salvo SOMENTE em extensão habilitada para macros (.xls ou .xlsm). Se o documento for salvo na extensão .xlsx, o arquivo será INUTILIZADO.
A8: 2. Para funcionamento pleno desse arquivo, a Segurança de Macros do Excel deve ser habilitada.
A10: 2.1 Na Versão Excel 2003, selecione na Faixa de Opções: Ferramentas --> Macro --> Segurança --> Na aba Nível de Segurança selecione a Opção "Baixo" --> Clique em OK --> Feche e abra o Excel novamente para utilizar a Planilha.
A12: 2.2 Na Versão Excel 2007 ou superior, selecione na Faixa de Opções: Arquivo --> Opções --> Central de Confiabilidade --> Configurações da Central de Confiabilidade --> Configurações de Macro --> Habilitar todas as Macros --> Clique em OK --> Feche e abra o excel novamente para utilizar a Planilha.
A14: 3. O Preenchimento deve ser feito somente nas células em amarelo. As outras células são de preenchimento Automático.
A16: 4. Preferências de Elaboração do Orçamento
A18: 4.1. Preenchimento de Quantidades
A22: 5. Ordem de Preenchimento
A24: 5.1. na Aba DADOS
A26: 5.1.1. Preencha no Quadro abaixo os Dados do TC/CR:
A28: Nº OPERAÇÃO | C28: GESTOR | F28: PROGRAMA | J28: AÇÃO / MODALIDADE | P28: OBJETO
A29: 863113 | C29: MINISTÉRIO DO DESENVOLVIMENTO SOCIAL | F29: ESTRUTURACAO DA REDE DE SERVICOS DE PROTECAO SOCIAL BÁSICA | J29: CONSTRUÇÃO DE UM CENTRO DE REFERÊNCIA DE ASSISTÊNCIA SOCIAL | P29: CONSTRUÇÃO DE UM CENTRO DE REFERÊNCIA DE ASSISTÊNCIA SOCIAL - CRAS
A31: PROPONENTE / TOMADOR | G31: MUNICÍPIO / UF | K31: LOCALIDADE / ENDEREÇO | Q31: APELIDO DO EMPREENDIMENTO
A32: MUNICÍPIO DE CASEIROS | G32: CASEIROS/RS | K32: AV. JOSÉ FRANCISCO MENDES, 272 - CENTRO
A35: 5.1.2. Preencha no quadro abaixo as informações sobre o orçamento:
A37: DATA BASE | C37: DESON. | D37: LOCALIDADE DO SINAPI | G37: DESCRIÇÃO DO LOTE | T37: BDI 1 | U37: BDI 2 | V37: BDI 3 | W37: BDI 4 | X37: BDI 5
A38: 2018-06-01 | C38: Sim | D38: Porto Alegre / RS | G38: CONSTRUÇÃO DE UM CRAS | T38: =IF(ISERROR(INDIRECT("'BDI ("&RIGHT(T37,1)&")'!N27")),"",INDIRECT("'BDI ("&RIGHT(T37,1)&")'!N27")) -> 0.2639 | U38: =IF(ISERROR(INDIRECT("'BDI ("&RIGHT(U37,1)&")'!N27")),"",INDIRECT("'BDI ("&RIGHT(U37,1)&")'!N27")) ->  | V38: =IF(ISERROR(INDIRECT("'BDI ("&RIGHT(V37,1)&")'!N27")),"",INDIRECT("'BDI ("&RIGHT(V37,1)&")'!N27")) ->  | W38: =IF(ISERROR(INDIRECT("'BDI ("&RIGHT(W37,1)&")'!N27")),"",INDIRECT("'BDI ("&RIGHT(W37,1)&")'!N27")) ->  | X38: =IF(ISERROR(INDIRECT("'BDI ("&RIGHT(X37,1)&")'!N27")),"",INDIRECT("'BDI ("&RIGHT(X37,1)&")'!N27")) -> 
A40: 4.1.2. Preencha no quadro abaixo as informações sobre o orçamento licitado:
A42: CTEF n.º | C42: NOME DA EMPRESA | H42: DATA BASE | J42: DESON. | K42: REGIME DE EXECUÇÃO | N42: ACOMP. | O42: OBJETO CTEF | U42: DATA ASSINATURA | W42: VIGÊNCIA
A45: 5.1.3. Preencha a data de Início da Obra:
A47: DATA INÍCIO
A48: 2018-09-01
A50: 5.1.4. Preencha no(s) Quadro(s) abaixo os Dados do(s) Responsável(is) Técnico(s) pela elaboração do Orçamento:
G52: Exibir o 2° Quadro de Assinatura? | K52: NÃO
A54: Nome: | G54: Nome:
A55: =IF(OR(TipoOrçamento="BASE",TipoOrçamento="REPROGRAMADONPL"),"Título:","Cargo:") -> Cargo: | G55: =A55 -> Cargo:
A56: =IF(OR(TipoOrçamento="BASE",TipoOrçamento="REPROGRAMADONPL"),"CREA/CAU:","Empresa:") -> Empresa: | G56: =A56 -> Empresa:
A57: =IF(OR(TipoOrçamento="BASE",TipoOrçamento="REPROGRAMADONPL"),"ART/RRT:","CNPJ:") -> CNPJ: | G57: =A57 -> CNPJ:
A60: 5.2. Legenda das Abas
A62: 5.2.1. LARANJA: Aba DADOS. Preenchimento Obrigatório. Impressão Dispensada.
A63: 5.2.2. AMARELO: Abas BDI, PO, PLQ e CFF. Preenchimento e Impressão Obrigatórias. O preenchimento da Aba BDI é dispensada para os casos de Aquisição Direta de Materiais e Equipamentos. A Impressão da Aba PLQ pode ser dispensada para casos de Frente de Obra Única.
A65: 5.3. na Aba BDI (Bonificações e Despesas Indiretas):
A67: 5.3.1. Escolha o tipo de empreendimento.
A68: 5.3.2. Escolha se o BDI será do tipo desonerado ou não (aba DADOS)
A69: 5.3.3. Informe a base de cálculo do ISS (0 a 100%).
A70: 5.3.4. Informe a alíquota do ISS (Normalmente de 2 a 5%).
A71: 5.3.5. Defina na tabela os percentuais a serem adotados para cada item que compõe o BDI nos campos em amarelo.
A72: 5.3.6. Preencha o campo observações se necessário (recomendado para os orçamentos que utilizam mais de um BDI).
A74: 5.4. na Aba PO (Planilha Orçamentária):
A76: 5.4.1. Primeiramente, selecione os níveis de cada item do orçamento na coluna NÍVEL.
A77: 5.4.1.1: O nível de "Serviço" serve tanto para serviços ou insumos (mão-de-obra / material / equipamento / veículo / máquina / ferramenta / etc). Um "nível 2/3/4" é um título (é preenchida apenas a coluna descrição) utilizado para organizar melhor a planilha orçamentária e engloba (agrupa) serviços e agrupadores de nível inferior.
A78: 5.4.2. Após a seleção dos níveis, preencha, para cada serviço, as informações sobre a Fonte de Referência, (SINAPI, SICRO, SIURB, etc) e o respectivo Código de Referência.
A79: 5.4.3. Esta planilha é compatível com o arquivo REFERÊNCIA distribuído pela CAIXA. Caso o arquivo REFERÊNCIA esteja aberto, será possível buscar um código através do botão "Buscar Código". Desta forma a descrição dos serviços será preenchida automaticamente (podendo ser substituída). Caso contrário, seu preenchimento deve ser manual.
A80: 5.4.3.1. As descrições e unidades preenchidas automaticamente ficarão vinculadas ao arquivo REFERÊNCIA até que se use o botão "Fixar Descrições", que quebra a fórmula e transforma as descrições em texto.
A81: 5.4.4. Preencher o custo unitário do serviço/insumo na Coluna CUSTO UNITÁRIO. ATENÇÃO: o custo unitário adotado deve ser menor ou igual ao contido na tabela de referência ou mediana das cotações de mercado.
A82: 5.4.5. Indicar o BDI adotado para cada serviço/insumo na Coluna BDI. Preferencialmente selecione uma das opções da lista suspensa que aparecerá na célula, esta lista contém os 05 BDIs que podem ser preenchidos na Aba BDI (conforme item 5.2 das instruções). Caso seja necessária a adoção de mais de 05 valores diferentes de BDI, digite o percentual diretamente na célula.
A83: 5.4.6. Conforme selecionado no item 4.1. desta Aba, a Coluna Quantidade pode ser preenchida diretamente na PO, ou representar a soma das quantidades de cada Frente de Obra, informadas na aba PLQ (Planilha de Levantamento de Quantitativos).
A84: 5.4.7. OBSERVAÇÃO: As demais colunas (Item / Quantidade / Preço Unitário / Preço Total) são de preenchimento automático. Não tente preenche-las ou alterá-las na Aba PO.
A85: 5.4.8. Se for necessário acrescentar ou excluir linhas da Planilha Orçamentária, utilize o Botão EDITAR PLANILHA e selecione as opções no quadro. ATENÇÃO: quanto maior o número de linhas mais lento será o processamento dos dados, então acrescente apenas o número necessário ou um pouco a mais.
A86: 5.4.8.1. Evite deixar linhas em branco no corpo da Planilha Orçamentária.
A87: 5.4.9. Caso deseje importar os dados de outro arquivo utilize apenas a opção COLAR ESPECIAL ==> VALORES.
A88: 5.4.10. Clique no Botão LICITAR / REPROGRAMAR para preencher o Orçamento Licitado ou Reprogramado.
A90: 5.5. na Aba PLQ (Planilha de Levantamento de Quantitativos):
A92: 5.5.1. Preencha primeiramente as Frentes de Obra.
A93: 5.5.1.1. Exemplos de Frentes de Obra (Rua A trecho 01 / Rua A trecho 02 / Rua B ; UH 01 / UH 02 / UH 03).
A94: 5.5.2. Preencha as quantidades dos serviços por frente de obra. A soma das quantidades de todas as frentes de um determinado serviço será a quantidade exibida na Planilha Orçamentária.
A95: 5.5.3. Caso deseje incluir ou excluir frentes, utilize os botões ADICIONAR e EXCLUIR.
A97: 5.6. na Aba CFF (Cronograma Físico-Financeiro):
A99: 5.6.1. Preencha a data de início da obra na aba Dados.
A100: 5.6.2. Preencha as porcentagens previstas por parcela para cada meta ou macrosserviço.
A101: 5.6.3. Para atualizar o Cronograma conforme o Orçamento e incluir ou excluir parcelas, utilize o botão EDITAR / ATUALIZAR CRONOGRAMA.
L107: (Selecione uma Localidade)
L108: Aracaju / SE | S108: =T38 -> 0.2639
L109: Belém / PA | S109: =U38 -> 
L110: Belo Horizonte / MG | S110: =V38 -> 
L111: Boa Vista / RR | S111: =W38 -> 
L112: Brasília / DF | S112: =X38 -> 
L113: Campo Grande / MS
L114: Cuiabá / MT
L115: Curitiba / PR | P115: Empreitada Preço Global
L116: Florianópolis / SC | P116: Empreitada Preço Unitário
L117: Fortaleza / CE | P117: Empreitada Integral
L118: Goiânia / GO | P118: Tarefa
L119: João Pessoa / PB | P119: Contratação Integrada
L120: Macapá / AP | P120: Não se aplica
L121: Maceió / AL
L122: Manaus / AM | P122: BM
L123: Natal / RN | P123: PLE
L124: Palmas / TO
L125: Porto Alegre / RS
L126: Porto Velho / RO
L127: Recife / PE
L128: Rio Branco / AC
L129: Rio de Janeiro / RJ
L130: Salvador / BA
L131: São Luís / MA
L132: São Paulo / SP
L133: Teresina / PI
L134: Vitória / ES
A220: =A28 -> Nº OPERAÇÃO | C220: =C28 -> GESTOR | F220: =F28 -> PROGRAMA | J220: =J28 -> AÇÃO / MODALIDADE | P220: =P28 -> OBJETO
A221: =IF(A29="","",A29) -> 863113 | C221: =IF(C29="","",C29) -> MINISTÉRIO DO DESENVOLVIMENTO SOCIAL | F221: =IF(F29="","",F29) -> ESTRUTURACAO DA REDE DE SERVICOS DE PROTECAO SOCIAL BÁSICA | J221: =IF(J29="","",J29) -> CONSTRUÇÃO DE UM CENTRO DE REFERÊNCIA DE ASSISTÊNCIA SOCIAL | L221: =IF(#REF!="","",#REF!) ->  | N221: =IF(#REF!="","",#REF!) ->  | P221: =IF(P29="","",P29) -> CONSTRUÇÃO DE UM CENTRO DE REFERÊNCIA DE ASSISTÊNCIA SOCIAL - CRAS
A223: =A31 -> PROPONENTE / TOMADOR | G223: =G31 -> MUNICÍPIO / UF | K223: =K31 -> LOCALIDADE / ENDEREÇO | Q223: =Q31 -> APELIDO DO EMPREENDIMENTO
A224: =IF(A32="","",A32) -> MUNICÍPIO DE CASEIROS | G224: =IF(G32="","",G32) -> CASEIROS/RS | H224: =IF(I32="","",I32) ->  | J224: =IF(#REF!="","",#REF!) ->  | K224: =IF(K32="","",K32) -> AV. JOSÉ FRANCISCO MENDES, 272 - CENTRO | Q224: =IF(Q32="","",Q32) -> 
A226: =A37 -> DATA BASE | C226: =C37 -> DESON. | D226: =D37 -> LOCALIDADE DO SINAPI | G226: =G37 -> DESCRIÇÃO DO LOTE | T226: =T37 -> BDI 1 | U226: =U37 -> BDI 2 | V226: =V37 -> BDI 3 | W226: =W37 -> BDI 4 | X226: =X37 -> BDI 5
A227: =IF(A38="","",A38) -> 2018-06-01 | C227: =IF(C38="","",C38) -> Sim | D227: Porto Alegre / RS | G227: CONSTRUÇÃO DE UM CRAS | T227: 0.2639
A229: CTEF n.º | C229: NOME DA EMPRESA / CNPJ: | H229: DATA BASE | J229: DESON. | K229: REGIME DE EXECUÇÃO | N229: ACOMP. | O229: OBJETO CTEF | U229: DATA ASSINATURA | W229: VIGÊNCIA
A230: =IF(A43="","",A43) ->  | C230: =IF(C43="","",C43) ->  | E230: =IF(E43="","",E43) ->  | G230: =IF(G43="","",G43) ->  | H230: =IF(H43="","",H43) ->  | I230: =IF(I43="","",I43) ->  | J230: =IF(J43="","",J43) ->  | K230: =IF(K43="","",K43) ->  | M230: =IF(M43="","",M43) ->  | N230: =IF(N43="","",N43) ->  | O230: =IF(O43="","",O43) ->  | Q230: =IF(Q43="","",Q43) ->  | S230: =IF(S43="","",S43) ->  | U230: =IF(U43="","",U43) ->  | W230: =IF(W43="","",W43) -> 

Sheet BDI (1) (hidden)
E1: MIN | F1: MED | G1: MAX | N1: ="Quadro de Composição do BDI "&MID(CELL("nome.arquivo",N1),5+FIND("BDI (",CELL("nome.arquivo",N1)),1) -> Quadro de Composição do BDI 1
A2: Construção e Reforma de Edifícios | B2: AC | C2: =CONCATENATE(A2,"-",B2) -> Construção e Reforma de Edifícios-AC | E2: 0.03 | F2: 0.04 | G2: 0.055
A3: =A2 -> Construção e Reforma de Edifícios | B3: SG | C3: Construção e Reforma de Edifícios-SG | E3: 0.008 | F3: 0.008 | G3: 0.01
A4: =A3 -> Construção e Reforma de Edifícios | B4: R | C4: Construção e Reforma de Edifícios-R | E4: 0.0097 | F4: 0.0127 | G4: 0.0127 | I4: Nº TC/CR | K4: PROPONENTE / TOMADOR
A5: =A4 -> Construção e Reforma de Edifícios | B5: DF | C5: Construção e Reforma de Edifícios-DF | E5: 0.0059 | F5: 0.0123 | G5: 0.0139 | I5: =DADOS!A29 -> 863113 | K5: =DADOS!A32 -> MUNICÍPIO DE CASEIROS
A6: =A5 -> Construção e Reforma de Edifícios | B6: L | C6: Construção e Reforma de Edifícios-L | E6: 0.0616 | F6: 0.074 | G6: 0.0896
A7: =A6 -> Construção e Reforma de Edifícios | B7: BDI PAD | C7: Construção e Reforma de Edifícios-BDI PAD | E7: 0.2034 | F7: 0.2212 | G7: 0.25 | I7: OBJETO
A8: Construção de Praças Urbanas, Rodovias, Ferrovias e recapeamento e pavimentação de vias urbanas | B8: AC | C8: Construção de Praças Urbanas, Rodovias, Ferrovias e recapeamento e pavimentação de vias urbanas-AC | E8: 0.038 | F8: 0.0401 | G8: 0.0467 | I8: =DADOS!P29 -> CONSTRUÇÃO DE UM CENTRO DE REFERÊNCIA DE ASSISTÊNCIA SOCIAL - CRAS
A9: Construção de Praças Urbanas, Rodovias, Ferrovias e recapeamento e pavimentação de vias urbanas | B9: SG | C9: Construção de Praças Urbanas, Rodovias, Ferrovias e recapeamento e pavimentação de vias urbanas-SG | E9: 0.0032 | F9: 0.004 | G9: 0.0074
A10: Construção de Praças Urbanas, Rodovias, Ferrovias e recapeamento e pavimentação de vias urbanas | B10: R | C10: Construção de Praças Urbanas, Rodovias, Ferrovias e recapeamento e pavimentação de vias urbanas-R | E10: 0.005 | F10: 0.0056 | G10: 0.0097 | I10: TIPO DE OBRA DO EMPREENDIMENTO | Q10: DESONERAÇÃO
A11: Construção de Praças Urbanas, Rodovias, Ferrovias e recapeamento e pavimentação de vias urbanas | B11: DF | C11: Construção de Praças Urbanas, Rodovias, Ferrovias e recapeamento e pavimentação de vias urbanas-DF | E11: 0.0102 | F11: 0.0111 | G11: 0.0121 | I11: Construção e Reforma de Edifícios | Q11: =DADOS!$C$38 -> Sim
A12: Construção de Praças Urbanas, Rodovias, Ferrovias e recapeamento e pavimentação de vias urbanas | B12: L | C12: Construção de Praças Urbanas, Rodovias, Ferrovias e recapeamento e pavimentação de vias urbanas-L | E12: 0.0664 | F12: 0.073 | G12: 0.0869
A13: Construção de Praças Urbanas, Rodovias, Ferrovias e recapeamento e pavimentação de vias urbanas | B13: BDI PAD | C13: Construção de Praças Urbanas, Rodovias, Ferrovias e recapeamento e pavimentação de vias urbanas-BDI PAD | E13: 0.196 | F13: 0.2097 | G13: 0.2423 | I13: Conforme legislação tributária municipal, definir estimativa de percentual da base de cálculo para o ISS: | Q13: 1
A14: Construção de Redes de Abastecimento de Água, Coleta de Esgoto | B14: AC | C14: Construção de Redes de Abastecimento de Água, Coleta de Esgoto-AC | E14: 0.0343 | F14: 0.0493 | G14: 0.0671 | I14: Sobre a base de cálculo, definir a respectiva alíquota do ISS (entre 2% e 5%): | Q14: 0.02
A15: =A14 -> Construção de Redes de Abastecimento de Água, Coleta de Esgoto | B15: SG | C15: Construção de Redes de Abastecimento de Água, Coleta de Esgoto-SG | E15: 0.0028 | F15: 0.0049 | G15: 0.0075
I16: Itens | M16: Siglas | N16: % Adotado | O16: Situação | P16: 1º Quartil | Q16: Médio | R16: 3º Quartil | T16: =IF(V27,"Para BDI fora do intervalo estatístico, deve ser apresentado Relatório Técnico Circunstanciado justificando a adoção do percentual de cada parcela do BDI.","") -> 
A17: =A15 -> Construção de Redes de Abastecimento de Água, Coleta de Esgoto | B17: R | C17: Construção de Redes de Abastecimento de Água, Coleta de Esgoto-R | E17: 0.01 | F17: 0.0139 | G17: 0.0174
A18: =A17 -> Construção de Redes de Abastecimento de Água, Coleta de Esgoto | B18: DF | C18: Construção de Redes de Abastecimento de Água, Coleta de Esgoto-DF | E18: 0.0094 | F18: 0.0099 | G18: 0.0117 | I18: =IF($I$11=$A$59,"Encargos Sociais incidentes sobre a mão de obra","Administração Central") -> Administração Central | M18: =IF($I$11=$A$59,"K1","AC") -> AC | N18: 0.039 | O18: - | P18: =VLOOKUP(CONCATENATE(I$11,"-",M18),$C$2:$G$49,3,FALSE) -> 0.03 | Q18: =VLOOKUP(CONCATENATE(I$11,"-",M18),$C$2:$G$49,4,FALSE) -> 0.04 | R18: =VLOOKUP(CONCATENATE(I$11,"-",M18),$C$2:$G$49,5,FALSE) -> 0.055
A19: =A18 -> Construção de Redes de Abastecimento de Água, Coleta de Esgoto | B19: L | C19: Construção de Redes de Abastecimento de Água, Coleta de Esgoto-L | E19: 0.0674 | F19: 0.0804 | G19: 0.094 | I19: =IF($I$11=$A$59,"Administração Central da empresa ou consultoria - overhead","Seguro e Garantia") -> Seguro e Garantia | M19: =IF($I$11=$A$59,"K2","SG") -> SG | N19: 0.008 | O19: - | P19: =VLOOKUP(CONCATENATE(I$11,"-",M19),$C$2:$G$49,3,FALSE) -> 0.008 | Q19: =VLOOKUP(CONCATENATE(I$11,"-",M19),$C$2:$G$49,4,FALSE) -> 0.008 | R19: =VLOOKUP(CONCATENATE(I$11,"-",M19),$C$2:$G$49,5,FALSE) -> 0.01
A20: =A19 -> Construção de Redes de Abastecimento de Água, Coleta de Esgoto | B20: BDI PAD | C20: Construção de Redes de Abastecimento de Água, Coleta de Esgoto-BDI PAD | E20: 0.2076 | F20: 0.2418 | G20: 0.2644 | I20: =IF($I$11=$A$59,"","Risco") -> Risco | M20: =IF($I$11=$A$59,"","R") -> R | N20: 0.0097 | O20: - | P20: =VLOOKUP(CONCATENATE(I$11,"-",M20),$C$2:$G$49,3,FALSE) -> 0.0097 | Q20: =VLOOKUP(CONCATENATE(I$11,"-",M20),$C$2:$G$49,4,FALSE) -> 0.0127 | R20: =VLOOKUP(CONCATENATE(I$11,"-",M20),$C$2:$G$49,5,FALSE) -> 0.0127
A21: Construção e Manutenção de Estações e Redes de Distribuição de Energia Elétrica | B21: AC | C21: Construção e Manutenção de Estações e Redes de Distribuição de Energia Elétrica-AC | E21: 0.0529 | F21: 0.0592 | G21: 0.0793 | I21: =IF($I$11=$A$59,"","Despesas Financeiras") -> Despesas Financeiras | M21: =IF($I$11=$A$59,"","DF") -> DF | N21: 0.0123 | O21: - | P21: =VLOOKUP(CONCATENATE(I$11,"-",M21),$C$2:$G$49,3,FALSE) -> 0.0059 | Q21: =VLOOKUP(CONCATENATE(I$11,"-",M21),$C$2:$G$49,4,FALSE) -> 0.0123 | R21: =VLOOKUP(CONCATENATE(I$11,"-",M21),$C$2:$G$49,5,FALSE) -> 0.0139
A22: =A21 -> Construção e Manutenção de Estações e Redes de Distribuição de Energia Elétrica | B22: SG | C22: Construção e Manutenção de Estações e Redes de Distribuição de Energia Elétrica-SG | E22: 0.0025 | F22: 0.0051 | G22: 0.0056 | I22: =IF($I$11=$A$59,"Margem bruta da empresa de consultoria","Lucro") -> Lucro | M22: =IF($I$11=$A$59,"K3","L") -> L | N22: 0.0616 | O22: - | P22: =VLOOKUP(CONCATENATE(I$11,"-",M22),$C$2:$G$49,3,FALSE) -> 0.0616 | Q22: =VLOOKUP(CONCATENATE(I$11,"-",M22),$C$2:$G$49,4,FALSE) -> 0.074 | R22: =VLOOKUP(CONCATENATE(I$11,"-",M22),$C$2:$G$49,5,FALSE) -> 0.0896
A23: =A22 -> Construção e Manutenção de Estações e Redes de Distribuição de Energia Elétrica | B23: R | C23: Construção e Manutenção de Estações e Redes de Distribuição de Energia Elétrica-R | E23: 0.01 | F23: 0.0148 | G23: 0.0197 | I23: Tributos (impostos COFINS 3%, e PIS 0,65%) | M23: CP | N23: 0.0365 | O23: - | P23: 0.0365 | Q23: 0.0365 | R23: 0.0365
A24: =A23 -> Construção e Manutenção de Estações e Redes de Distribuição de Energia Elétrica | B24: DF | C24: Construção e Manutenção de Estações e Redes de Distribuição de Energia Elétrica-DF | E24: 0.0101 | F24: 0.0107 | G24: 0.0111 | I24: Tributos (ISS, variável de acordo com o município) | M24: ISS | N24: =IF($I$11<>$A$58,Q14*Q13,0) -> 0.02 | O24: - | P24: 0 | Q24: 0.025 | R24: 0.05
A25: =A24 -> Construção e Manutenção de Estações e Redes de Distribuição de Energia Elétrica | B25: L | C25: Construção e Manutenção de Estações e Redes de Distribuição de Energia Elétrica-L | E25: 0.08 | F25: 0.0831 | G25: 0.0951 | I25: Tributos (Contribuição Previdenciária sobre a Receita Bruta - 0% ou 4,5% - Desoneração) | M25: CPRB | N25: =IF(AND($I$11<>$A$58,Q11="Sim"),4.5%,0%) -> 0.045 | O25: =IF(AND(N25>=P25, N25<=R25), "OK", "Não OK") -> OK | P25: 0 | Q25: 0.045 | R25: 0.045
A26: =A25 -> Construção e Manutenção de Estações e Redes de Distribuição de Energia Elétrica | B26: BDI PAD | C26: Construção e Manutenção de Estações e Redes de Distribuição de Energia Elétrica-BDI PAD | E26: 0.24 | F26: 0.2584 | G26: 0.2786 | I26: BDI SEM desoneração (Fórmula Acórdão TCU) | M26: BDI PAD | N26: =IF($I$11=$A$58,0,ROUND((((1+N18+N19+N20)*(1+N21)*(1+N22)/(1-(N23+N24)))-1),4)) -> 0.2036 | O26: =IF(OR($I$11=$A$59,$I$11=$A$58,AND(N26>=P26, N26<=R26)), "OK", "FORA DO INTERVALO") -> OK | P26: =IF($I$11=$A$58,0,VLOOKUP(CONCATENATE($I$11,"-",$M26),$C$2:$G$49,3,FALSE)) -> 0.2034 | Q26: =IF($I$11=$A$58,0,VLOOKUP(CONCATENATE($I$11,"-",$M26),$C$2:$G$49,4,FALSE)) -> 0.2212 | R26: =IF($I$11=$A$58,0,VLOOKUP(CONCATENATE($I$11,"-",$M26),$C$2:$G$49,5,FALSE)) -> 0.25
A27: Obras Portuárias, Marítimas e Fluviais | B27: AC | C27: Obras Portuárias, Marítimas e Fluviais-AC | E27: 0.04 | F27: 0.0552 | G27: 0.0785 | I27: BDI COM desoneração | M27: BDI DES | N27: =IF($I$11=$A$58,0,ROUND((((1+N18+N19+N20)*(1+N21)*(1+N22)/(1-(N23+N24+N25)))-1),4)) -> 0.2639 | O27: =IF(Q11<>"Sim","",O26) -> OK | V27: =AND(COUNTA(N18:N23)=6,O26<>"ok",NOT(V29)) -> FALSE | W27: pedir anexo
A28: =A27 -> Obras Portuárias, Marítimas e Fluviais | B28: SG | C28: Obras Portuárias, Marítimas e Fluviais-SG | E28: 0.0081 | F28: 0.0122 | G28: 0.0199
A29: =A28 -> Obras Portuárias, Marítimas e Fluviais | B29: R | C29: Obras Portuárias, Marítimas e Fluviais-R | E29: 0.0146 | F29: 0.0232 | G29: 0.0316 | I29: =IF(V29,"X","") ->  | J29: Anexo: Relatório Técnico Circunstanciado justificando a adoção do percentual de cada parcela do BDI. | V29: FALSE | W29: anexo apresentado
I31: Os valores de BDI foram calculados com o emprego da fórmula:
A32: =A29 -> Obras Portuárias, Marítimas e Fluviais | B32: DF | C32: Obras Portuárias, Marítimas e Fluviais-DF | E32: 0.0094 | F32: 0.0102 | G32: 0.0133 | L32: =IF(Q11="Sim","BDI.DES =","BDI.PAD =") -> BDI.DES = | M32: =IF($I$11=$A$59,"(1+K1+K2)*(1+K3)","(1+AC + S + R + G)*(1 + DF)*(1+L)") -> (1+AC + S + R + G)*(1 + DF)*(1+L) | P32: - 1
A33: =A32 -> Obras Portuárias, Marítimas e Fluviais | B33: L | C33: Obras Portuárias, Marítimas e Fluviais-L | E33: 0.0714 | F33: 0.084 | G33: 0.1043 | M33: =IF(Q11="Sim","(1-CP-ISS-CRPB)","(1-CP-ISS)") -> (1-CP-ISS-CRPB)
A34: =A33 -> Obras Portuárias, Marítimas e Fluviais | B34: BDI PAD | C34: Obras Portuárias, Marítimas e Fluviais-BDI PAD | E34: 0.228 | F34: 0.2748 | G34: 0.3095
I35: =CONCATENATE("Declaro para os devidos fins que, conforme legislação tributária municipal, a base de cálculo para ",I11,", é de ",Q13*100,"%, com a respectiva alíquota de ",Q14*100,"%.") -> Declaro para os devidos fins que, conforme legislação tributária municipal, a base de cálculo para Construção e Reforma de Edifícios, é de 100%, com a respectiva alíquota de 2%.
I37: =CONCATENATE("Declaro para os devidos fins que o regime de Contribuição Previdenciária sobre a Receita Bruta adotado para elaboração do orçamento foi ",IF(Q11="Sim","COM","SEM")," Desoneração, e que esta é a alternativa mais adequada para a Administração Pública.") -> Declaro para os devidos fins que o regime de Contribuição Previdenciária sobre a Receita Bruta adotado para elaboração do orçamento foi COM Desoneração, e que esta é a alternativa mais adequada para a Administração Pública.
A38: Fornecimento de Materiais e Equipamentos (aquisição indireta - em conjunto com licitação de obras) | B38: AC | C38: Fornecimento de Materiais e Equipamentos (aquisição indireta - em conjunto com licitação de obras)-AC | E38: 0.015 | F38: 0.0345 | G38: 0.0449
A39: =A38 -> Fornecimento de Materiais e Equipamentos (aquisição indireta - em conjunto com licitação de obras) | B39: SG | C39: Fornecimento de Materiais e Equipamentos (aquisição indireta - em conjunto com licitação de obras)-SG | E39: 0.003 | F39: 0.0048 | G39: 0.0082 | I39: Observações:
A40: =A39 -> Fornecimento de Materiais e Equipamentos (aquisição indireta - em conjunto com licitação de obras) | B40: R | C40: Fornecimento de Materiais e Equipamentos (aquisição indireta - em conjunto com licitação de obras)-R | E40: 0.0056 | F40: 0.0085 | G40: 0.0089
A41: =A40 -> Fornecimento de Materiais e Equipamentos (aquisição indireta - em conjunto com licitação de obras) | B41: DF | C41: Fornecimento de Materiais e Equipamentos (aquisição indireta - em conjunto com licitação de obras)-DF | E41: 0.0085 | F41: 0.0085 | G41: 0.0111
A42: =A41 -> Fornecimento de Materiais e Equipamentos (aquisição indireta - em conjunto com licitação de obras) | B42: L | C42: Fornecimento de Materiais e Equipamentos (aquisição indireta - em conjunto com licitação de obras)-L | E42: 0.035 | F42: 0.0511 | G42: 0.0622 | I42: =PO!K377 -> CASEIROS/RS | O42: =PO!K380 -> 2018-10-30
A43: =A42 -> Fornecimento de Materiais e Equipamentos (aquisição indireta - em conjunto com licitação de obras) | B43: BDI PAD | C43: Fornecimento de Materiais e Equipamentos (aquisição indireta - em conjunto com licitação de obras)-BDI PAD | E43: 0.111 | F43: 0.1402 | G43: 0.168 | I43: Local | O43: Data
A44: Estudos e Projetos, Planos e Gerenciamento e outros correlatos | B44: K1 | C44: Estudos e Projetos, Planos e Gerenciamento e outros correlatos-K1 | E44: - | F44: - | G44: -
A45: =A44 -> Estudos e Projetos, Planos e Gerenciamento e outros correlatos | B45: K2 | C45: Estudos e Projetos, Planos e Gerenciamento e outros correlatos-K2 | E45: - | F45: 0.2 | G45: -
A46: =A45 -> Estudos e Projetos, Planos e Gerenciamento e outros correlatos | C46: Estudos e Projetos, Planos e Gerenciamento e outros correlatos- | E46: - | F46: - | G46: - | I46: Responsável Técnico | O46: Responsável Tomador
A47: =A46 -> Estudos e Projetos, Planos e Gerenciamento e outros correlatos | C47: Estudos e Projetos, Planos e Gerenciamento e outros correlatos- | E47: - | F47: - | G47: - | I47: Nome: | J47: =DADOS!B54 -> 0 | O47: Nome: | P47: LEO CESAR TESSARO
A48: =A47 -> Estudos e Projetos, Planos e Gerenciamento e outros correlatos | B48: K3 | C48: Estudos e Projetos, Planos e Gerenciamento e outros correlatos-K3 | E48: - | F48: 0.12 | G48: - | I48: Título: | J48: =DADOS!B55 -> 0 | O48: Cargo: | P48: PREFEITO MUNICIPAL
A49: =A48 -> Estudos e Projetos, Planos e Gerenciamento e outros correlatos | B49: BDI PAD | C49: Estudos e Projetos, Planos e Gerenciamento e outros correlatos-BDI PAD | E49: - | F49: - | G49: - | I49: =DADOS!A56 -> Empresa: | J49: =DADOS!B56 -> 0
I50: =DADOS!A57 -> CNPJ: | J50: =DADOS!B57 -> 0
A52: Construção e Reforma de Edifícios
A53: Construção de Praças Urbanas, Rodovias, Ferrovias e recapeamento e pavimentação de vias urbanas
A54: Construção de Redes de Abastecimento de Água, Coleta de Esgoto
A55: Construção e Manutenção de Estações e Redes de Distribuição de Energia Elétrica
A56: Obras Portuárias, Marítimas e Fluviais
A57: Fornecimento de Materiais e Equipamentos (aquisição indireta - em conjunto com licitação de obras)
A58: Fornecimento de Materiais e Equipamentos (aquisição direta)
A59: Estudos e Projetos, Planos e Gerenciamento e outros correlatos

Sheet PO
N1: PO - PLANILHA ORÇAMENTÁRIA | T1: Grau de Sigilo
B2: LOTE | C2: Meta | D2: Nível 2 | E2: Nível 3 | F2: Nível 4 | G2: Serviço | N2: =CHOOSE(1+LOG(1+2*(TipoOrçamento="BASE")+4*(TipoOrçamento="LICITADO")+8*(TipoOrçamento="REPROGRAMADOAC")+16*(TipoOrçamento="REPROGRAMADONPL"),2),"nada","Orçamento Base para Licitação","Orçamento Licitado","Orçamento Licitado Reprogramado","Orçamento Base para Licitação - Reprogramado") -> Orçamento Licitado | T2: #PUBLICO | W2: Arredondamento
W3: Quantidade | X3: TRUE
A4: Nmax | U4: ERRO GERAL | W4: Custo Unitáro | X4: TRUE
A5: =MAX($A$12:$A$366) -> 2 | U5: =IF(COUNTIF($U$12:OFFSET($U$366,-1,0),"DESCRIÇÃO")+COUNTIF($U$12:OFFSET($U$366,-1,0),"UNIDADE")+COUNTIF($U$12:OFFSET($U$366,-1,0),"SEM VALOR")>0,"NÃO OK","OK") -> NÃO OK | W5: BDI | X5: TRUE
W6: Preço Unitário | X6: TRUE
W7: Preço Total | X7: TRUE
P9: =OFFSET(PLQ!$E$12,ROW($P9)-ROW(P$12),0) -> -
A10: Nível | B10: Altura | C10: n1 | D10: n2 | E10: n3 | F10: n4 | G10: n5 | H10: Czero | I10: Cnível | J10: Nível | K10: Item | L10: Fonte | M10: Código | N10: Descrição | O10: Unidade | P10: Quantidade | Q10: =IF(OR(TipoOrçamento="LICITADO",TipoOrçamento="REPROGRAMADOAC"),"Preço Unitário (R$)","Custo Unitário (R$)") -> Preço Unitário (R$) | R10: BDI (%) | S10: Preço Unitário (R$) | T10: Preço Total (R$) | U10: Erro de Dados | V10: Lista Crono | W10: Concatenação Fonte-Código | X10: BancoRef | Y10: =IF(TipoOrçamento="LICITADO","Preço Unitário Edital (R$)","Custo Unitário Referência (R$)") -> Preço Unitário Edital (R$) | Z10: =IF(TipoOrçamento="LICITADO","Valor BDI Edital","Valor BDI") -> Valor BDI Edital
A11: =CHOOSE(1+LOG(1+2*(J11="Meta")+4*(J11="Nível 2")+8*(J11="Nível 3")+16*(J11="Nível 4")+32*(J11="Serviço"),2),0,1,2,3,4,"S") -> S | B11: =IF(OR(A11="S",A11=0),0,IF(ISERROR(I11),H11,SMALL(H11:I11,1))) -> 0 | C11: =IF($A11=1,OFFSET(C11,-1,0)+1,OFFSET(C11,-1,0)) -> n1 | D11: =IF($A11=1,0,IF($A11=2,OFFSET(D11,-1,0)+1,OFFSET(D11,-1,0))) -> n2 | E11: =IF(AND($A11<=2,$A11<>0),0,IF($A11=3,OFFSET(E11,-1,0)+1,OFFSET(E11,-1,0))) -> n3 | F11: =IF(AND($A11<=3,$A11<>0),0,IF($A11=4,OFFSET(F11,-1,0)+1,OFFSET(F11,-1,0))) -> n4 | G11: =IF(AND($A11<=4,$A11<>0),0,IF($A11="S",OFFSET(G11,-1,0)+1,OFFSET(G11,-1,0))) ->  | H11: =IF(OR($A11="S",$A11=0),0,MATCH(0,OFFSET($B11,1,$A11,ROW($A$366)-ROW($A11)),0)) -> 0 | I11: =IF(OR($A11="S",$A11=0),0,MATCH(OFFSET($B11,0,$A11)+1,OFFSET($B11,1,$A11,ROW($A$366)-ROW($A11)),0)) -> 0 | J11: Serviço | K11: =IF($A11=0,"-",CONCATENATE(C11&".",IF(AND($A$5>=2,$A11>=2),D11&".",""),IF(AND($A$5>=3,$A11>=3),E11&".",""),IF(AND($A$5>=4,$A11>=4),F11&".",""),IF($A11="S",G11&".",""))) ->  | N11: =IF($A11="S",Referencia.Descricao,"(digite a descrição aqui)") ->  | O11: =Referencia.Unidade ->  | R11: BDI 1 | S11: =IF($A11="S",IF($Q$10="Preço Unitário (R$)",PO.CustoUnitario,ROUND(PO.CustoUnitario*(1+$Z11),15-13*$X$6)),0) -> 0 | T11: =IF($A11="S",VTOTAL1,IF($A11=0,0,ROUND(SomaAgrup,15-13*$X$7))) -> 0 | U11: =IF($J11="","",IF($N11="","DESCRIÇÃO",IF(AND($J11="Serviço",$O11=""),"UNIDADE",IF($T11<=0,"SEM VALOR",IF(AND($Y11<>"",$Q11>$Y11),"ACIMA REF.",""))))) -> DESCRIÇÃO | V11: =IF(OR($A11=0,$A11="S",$A11>CFF!$A$9),"",MAX(V$12:OFFSET(V11,-1,0))+1) ->  | W11: =IF(AND($J11="Serviço",$M11<>""),IF($L11="",$M11,CONCATENATE($L11,"-",$M11))) -> FALSE | X11: =IF(AND(Fonte<>"",Código<>""),MATCH(Fonte&" "&IF(Fonte="sinapi",SUBSTITUTE(SUBSTITUTE(Código,"/00","/"),"/0","/"),Código),INDIRECT("'[Referência "&_xlnm.Database&".xls]Banco'!$a:$a"),0),"X") -> X | Y11: =IF(Import.Desoneracao="sim",Referencia.Desonerado,Referencia.NaoDesonerado) -> 0 | Z11: =ROUND(IF(ISNUMBER(R11),R11,IF(LEFT(R11,3)="BDI",HLOOKUP(R11,DADOS!$T$37:$X$38,2,FALSE),0)),15-11*$X$5) -> 0.2639
A12: 0 | B12: =COUNTA(OFFSET(B12,1,0):B$366) -> 353 | J12: =IF(OR(TipoOrçamento="LICITADO",TipoOrçamento="REPROGRAMADOAC"),"CTEF","LOTE") -> CTEF | K12: 0 | N12: =IF(TipoOrçamento="LICITADO",DADOS!O43,DADOS!G38) -> 0 | T12: =SUMIF(OFFSET($J12,1,0,ROW(T366)-ROW(T12)-1),"Serviço",OFFSET(T12,1,0,ROW(T366)-ROW(T12)-1)) -> 0 | U12: =IF($N12=0,"DESCRIÇÃO","") -> DESCRIÇÃO | V12: 0
A13: =CHOOSE(1+LOG(1+2*(J13="Meta")+4*(J13="Nível 2")+8*(J13="Nível 3")+16*(J13="Nível 4")+32*(J13="Serviço"),2),0,1,2,3,4,"S") -> 1 | B13: =IF(OR(A13="S",A13=0),0,IF(ISERROR(I13),H13,SMALL(H13:I13,1))) -> 6 | C13: =IF($A13=1,OFFSET(C13,-1,0)+1,OFFSET(C13,-1,0)) -> 1 | D13: =IF($A13=1,0,IF($A13=2,OFFSET(D13,-1,0)+1,OFFSET(D13,-1,0))) -> 0 | E13: =IF(AND($A13<=2,$A13<>0),0,IF($A13=3,OFFSET(E13,-1,0)+1,OFFSET(E13,-1,0))) -> 0 | F13: =IF(AND($A13<=3,$A13<>0),0,IF($A13=4,OFFSET(F13,-1,0)+1,OFFSET(F13,-1,0))) -> 0 | G13: =IF(AND($A13<=4,$A13<>0),0,IF($A13="S",OFFSET(G13,-1,0)+1,OFFSET(G13,-1,0))) -> 0 | H13: =IF(OR($A13="S",$A13=0),0,MATCH(0,OFFSET($B13,1,$A13,ROW($A$366)-ROW($A13)),0)) -> 353 | I13: =IF(OR($A13="S",$A13=0),0,MATCH(OFFSET($B13,0,$A13)+1,OFFSET($B13,1,$A13,ROW($A$366)-ROW($A13)),0)) -> 6 | J13: Meta | K13: =IF($A13=0,"-",CONCATENATE(C13&".",IF(AND($A$5>=2,$A13>=2),D13&".",""),IF(AND($A$5>=3,$A13>=3),E13&".",""),IF(AND($A$5>=4,$A13>=4),F13&".",""),IF($A13="S",G13&".",""))) -> 1. | N13: SERVIÇOS PRELIMINARES | P13: 0 | R13: BDI 1 | S13: =IF($A13="S",IF($Q$10="Preço Unitário (R$)",PO.CustoUnitario,ROUND(PO.CustoUnitario*(1+$Z13),15-13*$X$6)),0) -> 0 | T13: =IF($A13="S",VTOTAL1,IF($A13=0,0,ROUND(SomaAgrup,15-13*$X$7))) -> 0 | U13: =IF($J13="","",IF($N13="","DESCRIÇÃO",IF(AND($J13="Serviço",$O13=""),"UNIDADE",IF($T13<=0,"SEM VALOR",IF(AND($Y13<>"",$Q13>$Y13),"ACIMA REF.",""))))) -> SEM VALOR | V13: =IF(OR($A13=0,$A13="S",$A13>CFF!$A$9),"",MAX(V$12:OFFSET(V13,-1,0))+1) -> 1 | W13: =IF(AND($J13="Serviço",$M13<>""),IF($L13="",$M13,CONCATENATE($L13,"-",$M13))) -> FALSE | X13: =IF(AND(Fonte<>"",Código<>""),MATCH(Fonte&" "&IF(Fonte="sinapi",SUBSTITUTE(SUBSTITUTE(Código,"/00","/"),"/0","/"),Código),INDIRECT("'[Referência "&_xlnm.Database&".xls]Banco'!$a:$a"),0),"X") -> X | Y13: 0 | Z13: =ROUND(IF(ISNUMBER(R13),R13,IF(LEFT(R13,3)="BDI",HLOOKUP(R13,DADOS!$T$37:$X$38,2,FALSE),0)),15-11*$X$5) -> 0.2639
A14: S | B14: 0 | C14: 1 | D14: 0 | E14: 0 | F14: 0 | G14: 1 | H14: 0 | I14: 0 | J14: Serviço | K14: 1.0.1. | L14: SINAPI | M14: 74209/1 | N14: PLACA DE OBRA EM CHAPA DE ACO GALVANIZADO | O14: M2 | P14: 2.5 | R14: BDI 1 | S14: 0 | T14: 0 | U14: SEM VALOR | V14: =IF(OR($A14=0,$A14="S",$A14>CFF!$A$9),"",MAX(V$12:OFFSET(V14,-1,0))+1) ->  | W14: SINAPI-74209/1 | Y14: 384.1 | Z14: =ROUND(IF(ISNUMBER(R14),R14,IF(LEFT(R14,3)="BDI",HLOOKUP(R14,DADOS!$T$37:$X$38,2,FALSE),0)),15-11*$X$5) -> 0.2639
A15: S | B15: 0 | C15: 1 | D15: 0 | E15: 0 | F15: 0 | G15: 2 | H15: 0 | I15: 0 | J15: Serviço | K15: 1.0.2. | L15: COMP. | M15: 041 | N15: ENTRADA DE ENERGIA ELETRICA TRIFASICA, CONFORME PADRÃO GED 13 - RGE - FORNECIMENTO E INSTALAÇÃO | O15: UN | P15: 1 | R15: BDI 1 | S15: 0 | T15: 0 | U15: SEM VALOR | V15: =IF(OR($A15=0,$A15="S",$A15>CFF!$A$9),"",MAX(V$12:OFFSET(V15,-1,0))+1) ->  | W15: COMP.-041 | Y15: 2193.69 | Z15: =ROUND(IF(ISNUMBER(R15),R15,IF(LEFT(R15,3)="BDI",HLOOKUP(R15,DADOS!$T$37:$X$38,2,FALSE),0)),15-11*$X$5) -> 0.2639
A16: S | B16: 0 | C16: 1 | D16: 0 | E16: 0 | F16: 0 | G16: 3 | H16: 0 | I16: 0 | J16: Serviço | K16: 1.0.3. | L16: SINAPI | M16: 93584 | N16: EXECUÇÃO DE DEPÓSITO EM CANTEIRO DE OBRA EM CHAPA DE MADEIRA COMPENSADA, NÃO INCLUSO MOBILIÁRIO. AF_04/2016 | O16: M2 | P16: 12 | R16: BDI 1 | S16: 0 | T16: 0 | U16: SEM VALOR | V16: =IF(OR($A16=0,$A16="S",$A16>CFF!$A$9),"",MAX(V$12:OFFSET(V16,-1,0))+1) ->  | W16: SINAPI-93584 | Y16: 645.68 | Z16: =ROUND(IF(ISNUMBER(R16),R16,IF(LEFT(R16,3)="BDI",HLOOKUP(R16,DADOS!$T$37:$X$38,2,FALSE),0)),15-11*$X$5) -> 0.2639
A17: S | B17: 0 | C17: 1 | D17: 0 | E17: 0 | F17: 0 | G17: 4 | H17: 0 | I17: 0 | J17: Serviço | K17: 1.0.4. | L17: SINAPI | M17: 74220/1 | N17: TAPUME DE CHAPA DE MADEIRA COMPENSADA, E= 6MM, COM PINTURA A CAL E REAPROVEITAMENTO DE 2X | O17: M2 | P17: 134.2 | R17: BDI 1 | S17: 0 | T17: 0 | U17: SEM VALOR | V17: =IF(OR($A17=0,$A17="S",$A17>CFF!$A$9),"",MAX(V$12:OFFSET(V17,-1,0))+1) ->  | W17: SINAPI-74220/1 | Y17: 55.91 | Z17: =ROUND(IF(ISNUMBER(R17),R17,IF(LEFT(R17,3)="BDI",HLOOKUP(R17,DADOS!$T$37:$X$38,2,FALSE),0)),15-11*$X$5) -> 0.2639
A18: S | B18: 0 | C18: 1 | D18: 0 | E18: 0 | F18: 0 | G18: 5 | H18: 0 | I18: 0 | J18: Serviço | K18: 1.0.5. | L18: SINAPI | M18: 74077/2 | N18: LOCACAO CONVENCIONAL DE OBRA, ATRAVÉS DE GABARITO DE TABUAS CORRIDAS PONTALETADAS, COM REAPROVEITAMENTO DE 10 VEZES. | O18: M2 | P18: 200 | R18: BDI 1 | S18: 0 | T18: 0 | U18: SEM VALOR | V18: =IF(OR($A18=0,$A18="S",$A18>CFF!$A$9),"",MAX(V$12:OFFSET(V18,-1,0))+1) ->  | W18: SINAPI-74077/2 | Y18: 4.74 | Z18: =ROUND(IF(ISNUMBER(R18),R18,IF(LEFT(R18,3)="BDI",HLOOKUP(R18,DADOS!$T$37:$X$38,2,FALSE),0)),15-11*$X$5) -> 0.2639
A19: 1 | B19: 5 | C19: 2 | D19: 0 | E19: 0 | F19: 0 | G19: 0 | H19: 347 | I19: 5 | J19: Meta | K19: 2. | N19: MOVIMENTO DE TERRA | P19: 0 | R19: BDI 1 | S19: 0 | T19: 0 | U19: SEM VALOR | V19: =IF(OR($A19=0,$A19="S",$A19>CFF!$A$9),"",MAX(V$12:OFFSET(V19,-1,0))+1) -> 2 | W19: FALSE | X19: X | Y19: 0 | Z19: =ROUND(IF(ISNUMBER(R19),R19,IF(LEFT(R19,3)="BDI",HLOOKUP(R19,DADOS!$T$37:$X$38,2,FALSE),0)),15-11*$X$5) -> 0.2639
A20: S | B20: 0 | C20: 2 | D20: 0 | E20: 0 | F20: 0 | G20: 1 | H20: 0 | I20: 0 | J20: Serviço | K20: 2.0.1. | L20: SINAPI | M20: 93358 | N20: ESCAVAÇÃO MANUAL DE VALA COM PROFUNDIDADE MENOR OU IGUAL A 1,30 M. AF_03/2016 | O20: M3 | P20: 15 | R20: BDI 1 | S20: 0 | T20: 0 | U20: SEM VALOR | V20: =IF(OR($A20=0,$A20="S",$A20>CFF!$A$9),"",MAX(V$12:OFFSET(V20,-1,0))+1) ->  | W20: SINAPI-93358 | Y20: 70.59 | Z20: =ROUND(IF(ISNUMBER(R20),R20,IF(LEFT(R20,3)="BDI",HLOOKUP(R20,DADOS!$T$37:$X$38,2,FALSE),0)),15-11*$X$5) -> 0.2639
A21: S | B21: 0 | C21: 2 | D21: 0 | E21: 0 | F21: 0 | G21: 2 | H21: 0 | I21: 0 | J21: Serviço | K21: 2.0.2. | L21: SINAPI | M21: 94097 | N21: PREPARO DE FUNDO DE VALA COM LARGURA MENOR QUE 1,5 M, EM LOCAL COM NÍVEL BAIXO DE INTERFERÊNCIA. AF_06/2016 | O21: M2 | P21: 30 | R21: BDI 1 | S21: 0 | T21: 0 | U21: SEM VALOR | V21: =IF(OR($A21=0,$A21="S",$A21>CFF!$A$9),"",MAX(V$12:OFFSET(V21,-1,0))+1) ->  | W21: SINAPI-94097 | Y21: 5.18 | Z21: =ROUND(IF(ISNUMBER(R21),R21,IF(LEFT(R21,3)="BDI",HLOOKUP(R21,DADOS!$T$37:$X$38,2,FALSE),0)),15-11*$X$5) -> 0.2639
A22: S | B22: 0 | C22: 2 | D22: 0 | E22: 0 | F22: 0 | G22: 3 | H22: 0 | I22: 0 | J22: Serviço | K22: 2.0.3. | L22: SINAPI | M22: 93382 | N22: REATERRO MANUAL DE VALAS COM COMPACTAÇÃO MECANIZADA. AF_04/2016 | O22: M3 | P22: 12.91 | R22: BDI 1 | S22: 0 | T22: 0 | U22: SEM VALOR | V22: =IF(OR($A22=0,$A22="S",$A22>CFF!$A$9),"",MAX(V$12:OFFSET(V22,-1,0))+1) ->  | W22: SINAPI-93382 | Y22: 27.81 | Z22: =ROUND(IF(ISNUMBER(R22),R22,IF(LEFT(R22,3)="BDI",HLOOKUP(R22,DADOS!$T$37:$X$38,2,FALSE),0)),15-11*$X$5) -> 0.2639
A23: S | B23: 0 | C23: 2 | D23: 0 | E23: 0 | F23: 0 | G23: 4 | H23: 0 | I23: 0 | J23: Serviço | K23: 2.0.4. | L23: SINAPI | M23: 93382 | N23: REATERRO MANUAL DE VALAS COM COMPACTAÇÃO MECANIZADA. AF_04/2016 | O23: M3 | P23: 33.06 | R23: BDI 1 | S23: 0 | T23: 0 | U23: SEM VALOR | V23: =IF(OR($A23=0,$A23="S",$A23>CFF!$A$9),"",MAX(V$12:OFFSET(V23,-1,0))+1) ->  | W23: SINAPI-93382 | Y23: 27.81 | Z23: =ROUND(IF(ISNUMBER(R23),R23,IF(LEFT(R23,3)="BDI",HLOOKUP(R23,DADOS!$T$37:$X$38,2,FALSE),0)),15-11*$X$5) -> 0.2639
A24: 1 | B24: 23 | C24: 3 | D24: 0 | E24: 0 | F24: 0 | G24: 0 | H24: 342 | I24: 23 | J24: Meta | K24: 3. | N24: INFRA-ESTRUTURA: FUNDAÇÕES | P24: 0 | R24: BDI 1 | S24: 0 | T24: 0 | U24: SEM VALOR | V24: =IF(OR($A24=0,$A24="S",$A24>CFF!$A$9),"",MAX(V$12:OFFSET(V24,-1,0))+1) -> 3 | W24: FALSE | X24: X | Y24: 0 | Z24: =ROUND(IF(ISNUMBER(R24),R24,IF(LEFT(R24,3)="BDI",HLOOKUP(R24,DADOS!$T$37:$X$38,2,FALSE),0)),15-11*$X$5) -> 0.2639
A25: 2 | B25: 12 | C25: 3 | D25: 1 | E25: 0 | F25: 0 | G25: 0 | H25: 22 | I25: 12 | J25: Nível 2 | K25: 3.1. | L25: SINAPI | M25: 93358 | N25: SAPATAS E "PESCOÇO" DOS PILARES | O25: M3 | P25: 0 | R25: BDI 1 | S25: 0 | T25: 0 | U25: SEM VALOR | V25: =IF(OR($A25=0,$A25="S",$A25>CFF!$A$9),"",MAX(V$12:OFFSET(V25,-1,0))+1) -> 4 | W25: FALSE | Y25: 0 | Z25: =ROUND(IF(ISNUMBER(R25),R25,IF(LEFT(R25,3)="BDI",HLOOKUP(R25,DADOS!$T$37:$X$38,2,FALSE),0)),15-11*$X$5) -> 0.2639
A26: S | B26: 0 | C26: 3 | D26: 1 | E26: 0 | F26: 0 | G26: 1 | H26: 0 | I26: 0 | J26: Serviço | K26: 3.1.1. | L26: SINAPI | M26: 93358 | N26: ESCAVAÇÃO MANUAL DE VALA COM PROFUNDIDADE MENOR OU IGUAL A 1,30 M. AF_03/2016 | O26: M3 | P26: 24.26 | R26: BDI 1 | S26: 0 | T26: 0 | U26: SEM VALOR | V26: =IF(OR($A26=0,$A26="S",$A26>CFF!$A$9),"",MAX(V$12:OFFSET(V26,-1,0))+1) ->  | W26: SINAPI-93358 | Y26: 70.59 | Z26: =ROUND(IF(ISNUMBER(R26),R26,IF(LEFT(R26,3)="BDI",HLOOKUP(R26,DADOS!$T$37:$X$38,2,FALSE),0)),15-11*$X$5) -> 0.2639
A27: S | B27: 0 | C27: 3 | D27: 1 | E27: 0 | F27: 0 | G27: 2 | H27: 0 | I27: 0 | J27: Serviço | K27: 3.1.2. | L27: SINAPI | M27: 94098 | N27: PREPARO DE FUNDO DE VALA COM LARGURA MENOR QUE 1,5 M, EM LOCAL COM NÍVEL ALTO DE INTERFERÊNCIA. AF_06/2016 | O27: M2 | P27: 39.89 | R27: BDI 1 | S27: 0 | T27: 0 | U27: SEM VALOR | V27: =IF(OR($A27=0,$A27="S",$A27>CFF!$A$9),"",MAX(V$12:OFFSET(V27,-1,0))+1) ->  | W27: SINAPI-94098 | Y27: 5.9 | Z27: =ROUND(IF(ISNUMBER(R27),R27,IF(LEFT(R27,3)="BDI",HLOOKUP(R27,DADOS!$T$37:$X$38,2,FALSE),0)),15-11*$X$5) -> 0.2639
A28: S | B28: 0 | C28: 3 | D28: 1 | E28: 0 | F28: 0 | G28: 3 | H28: 0 | I28: 0 | J28: Serviço | K28: 3.1.3. | L28: SINAPI | M28: 96617 | N28: LASTRO DE CONCRETO MAGRO, APLICADO EM BLOCOS DE COROAMENTO OU SAPATAS, ESPESSURA DE 3 CM. AF_08/2017 | O28: M2 | P28: 39.89 | R28: BDI 1 | S28: 0 | T28: 0 | U28: SEM VALOR | V28: =IF(OR($A28=0,$A28="S",$A28>CFF!$A$9),"",MAX(V$12:OFFSET(V28,-1,0))+1) ->  | W28: SINAPI-96617 | Y28: 15.89 | Z28: =ROUND(IF(ISNUMBER(R28),R28,IF(LEFT(R28,3)="BDI",HLOOKUP(R28,DADOS!$T$37:$X$38,2,FALSE),0)),15-11*$X$5) -> 0.2639
A29: S | B29: 0 | C29: 3 | D29: 1 | E29: 0 | F29: 0 | G29: 4 | H29: 0 | I29: 0 | J29: Serviço | K29: 3.1.4. | L29: SINAPI | M29: 96535 | N29: FABRICAÇÃO, MONTAGEM E DESMONTAGEM DE FÔRMA PARA SAPATA, EM MADEIRA SERRADA, E=25 MM, 4 UTILIZAÇÕES. AF_06/2017 | O29: M2 | P29: 37.66 | R29: BDI 1 | S29: 0 | T29: 0 | U29: SEM VALOR | V29: =IF(OR($A29=0,$A29="S",$A29>CFF!$A$9),"",MAX(V$12:OFFSET(V29,-1,0))+1) ->  | W29: SINAPI-96535 | Y29: 109.69 | Z29: =ROUND(IF(ISNUMBER(R29),R29,IF(LEFT(R29,3)="BDI",HLOOKUP(R29,DADOS!$T$37:$X$38,2,FALSE),0)),15-11*$X$5) -> 0.2639
A30: =CHOOSE(1+LOG(1+2*(J30="Meta")+4*(J30="Nível 2")+8*(J30="Nível 3")+16*(J30="Nível 4")+32*(J30="Serviço"),2),0,1,2,3,4,"S") -> S | B30: =IF(OR(A30="S",A30=0),0,IF(ISERROR(I30),H30,SMALL(H30:I30,1))) -> 0 | C30: 3 | D30: 1 | E30: 0 | F30: 0 | G30: 5 | H30: 0 | I30: 0 | J30: Serviço | K30: =IF($A30=0,"-",CONCATENATE(C30&".",IF(AND($A$5>=2,$A30>=2),D30&".",""),IF(AND($A$5>=3,$A30>=3),E30&".",""),IF(AND($A$5>=4,$A30>=4),F30&".",""),IF($A30="S",G30&".",""))) -> 3.1.5. | L30: COMP. | M30: 015 | N30: CONCRETAGEM DE SAPATAS, FCK 25 MPA, COM USO DE BOMBA ? LANÇAMENTO, ADENSAMENTO E ACABAMENTO | O30: M3 | P30: 13.53 | R30: BDI 1 | S30: 0 | T30: 0 | U30: SEM VALOR | V30: =IF(OR($A30=0,$A30="S",$A30>CFF!$A$9),"",MAX(V$12:OFFSET(V30,-1,0))+1) ->  | W30: COMP.-015 | Y30: 493.63 | Z30: =ROUND(IF(ISNUMBER(R30),R30,IF(LEFT(R30,3)="BDI",HLOOKUP(R30,DADOS!$T$37:$X$38,2,FALSE),0)),15-11*$X$5) -> 0.2639
A31: S | B31: 0 | C31: 3 | D31: 1 | E31: 0 | F31: 0 | G31: 6 | H31: 0 | I31: 0 | J31: Serviço | K31: 3.1.6. | L31: SINAPI | M31: 96543 | N31: ARMAÇÃO DE BLOCO, VIGA BALDRAME E SAPATA UTILIZANDO AÇO CA-60 DE 5 MM - MONTAGEM. AF_06/2017 | O31: KG | P31: 17.1 | R31: BDI 1 | S31: 0 | T31: 0 | U31: SEM VALOR | V31: =IF(OR($A31=0,$A31="S",$A31>CFF!$A$9),"",MAX(V$12:OFFSET(V31,-1,0))+1) ->  | W31: SINAPI-96543 | Y31: 13.18 | Z31: =ROUND(IF(ISNUMBER(R31),R31,IF(LEFT(R31,3)="BDI",HLOOKUP(R31,DADOS!$T$37:$X$38,2,FALSE),0)),15-11*$X$5) -> 0.2639
A32: S | B32: 0 | C32: 3 | D32: 1 | E32: 0 | F32: 0 | G32: 7 | H32: 0 | I32: 0 | J32: Serviço | K32: 3.1.7. | L32: SINAPI | M32: 96544 | N32: ARMAÇÃO DE BLOCO, VIGA BALDRAME OU SAPATA UTILIZANDO AÇO CA-50 DE 6,3 MM - MONTAGEM. AF_06/2017 | O32: KG | P32: 18.18 | R32: BDI 1 | S32: 0 | T32: 0 | U32: SEM VALOR | V32: =IF(OR($A32=0,$A32="S",$A32>CFF!$A$9),"",MAX(V$12:OFFSET(V32,-1,0))+1) ->  | W32: SINAPI-96544 | Y32: 11.43 | Z32: =ROUND(IF(ISNUMBER(R32),R32,IF(LEFT(R32,3)="BDI",HLOOKUP(R32,DADOS!$T$37:$X$38,2,FALSE),0)),15-11*$X$5) -> 0.2639
A33: S | B33: 0 | C33: 3 | D33: 1 | E33: 0 | F33: 0 | G33: 8 | H33: 0 | I33: 0 | J33: Serviço | K33: 3.1.8. | L33: SINAPI | M33: 96545 | N33: ARMAÇÃO DE BLOCO, VIGA BALDRAME OU SAPATA UTILIZANDO AÇO CA-50 DE 8 MM - MONTAGEM. AF_06/2017 | O33: KG | P33: 121.23 | R33: BDI 1 | S33: 0 | T33: 0 | U33: SEM VALOR | V33: =IF(OR($A33=0,$A33="S",$A33>CFF!$A$9),"",MAX(V$12:OFFSET(V33,-1,0))+1) ->  | W33: SINAPI-96545 | Y33: 10.95 | Z33: =ROUND(IF(ISNUMBER(R33),R33,IF(LEFT(R33,3)="BDI",HLOOKUP(R33,DADOS!$T$37:$X$38,2,FALSE),0)),15-11*$X$5) -> 0.2639
A34: S | B34: 0 | C34: 3 | D34: 1 | E34: 0 | F34: 0 | G34: 9 | H34: 0 | I34: 0 | J34: Serviço | K34: 3.1.9. | L34: SINAPI | M34: 96546 | N34: ARMAÇÃO DE BLOCO, VIGA BALDRAME OU SAPATA UTILIZANDO AÇO CA-50 DE 10 MM - MONTAGEM. AF_06/2017 | O34: KG | P34: 356.31 | R34: BDI 1 | S34: 0 | T34: 0 | U34: SEM VALOR | V34: =IF(OR($A34=0,$A34="S",$A34>CFF!$A$9),"",MAX(V$12:OFFSET(V34,-1,0))+1) ->  | W34: SINAPI-96546 | Y34: 8.95 | Z34: =ROUND(IF(ISNUMBER(R34),R34,IF(LEFT(R34,3)="BDI",HLOOKUP(R34,DADOS!$T$37:$X$38,2,FALSE),0)),15-11*$X$5) -> 0.2639
A35: S | B35: 0 | C35: 3 | D35: 1 | E35: 0 | F35: 0 | G35: 10 | H35: 0 | I35: 0 | J35: Serviço | K35: 3.1.10. | L35: SINAPI | M35: 96547 | N35: ARMAÇÃO DE BLOCO, VIGA BALDRAME OU SAPATA UTILIZANDO AÇO CA-50 DE 12,5 MM - MONTAGEM. AF_06/2017 | O35: KG | P35: 138.78 | R35: BDI 1 | S35: 0 | T35: 0 | U35: SEM VALOR | V35: =IF(OR($A35=0,$A35="S",$A35>CFF!$A$9),"",MAX(V$12:OFFSET(V35,-1,0))+1) ->  | W35: SINAPI-96547 | Y35: 7.94 | Z35: =ROUND(IF(ISNUMBER(R35),R35,IF(LEFT(R35,3)="BDI",HLOOKUP(R35,DADOS!$T$37:$X$38,2,FALSE),0)),15-11*$X$5) -> 0.2639
A36: S | B36: 0 | C36: 3 | D36: 1 | E36: 0 | F36: 0 | G36: 11 | H36: 0 | I36: 0 | J36: Serviço | K36: 3.1.11. | L36: SINAPI | M36: 93382 | N36: REATERRO MANUAL DE VALAS COM COMPACTAÇÃO MECANIZADA. AF_04/2016 | O36: M3 | P36: 10.73 | R36: BDI 1 | S36: 0 | T36: 0 | U36: SEM VALOR | V36: =IF(OR($A36=0,$A36="S",$A36>CFF!$A$9),"",MAX(V$12:OFFSET(V36,-1,0))+1) ->  | W36: SINAPI-93382 | Y36: 27.81 | Z36: =ROUND(IF(ISNUMBER(R36),R36,IF(LEFT(R36,3)="BDI",HLOOKUP(R36,DADOS!$T$37:$X$38,2,FALSE),0)),15-11*$X$5) -> 0.2639
A37: 2 | B37: 10 | C37: 3 | D37: 2 | E37: 0 | F37: 0 | G37: 0 | H37: 10 | I37: 25 | J37: Nível 2 | K37: 3.2. | N37: VIGAS BALDRAME | P37: 0 | R37: BDI 1 | S37: 0 | T37: 0 | U37: SEM VALOR | V37: =IF(OR($A37=0,$A37="S",$A37>CFF!$A$9),"",MAX(V$12:OFFSET(V37,-1,0))+1) -> 5 | W37: FALSE | X37: X | Y37: 0 | Z37: =ROUND(IF(ISNUMBER(R37),R37,IF(LEFT(R37,3)="BDI",HLOOKUP(R37,DADOS!$T$37:$X$38,2,FALSE),0)),15-11*$X$5) -> 0.2639
A38: S | B38: 0 | C38: 3 | D38: 2 | E38: 0 | F38: 0 | G38: 1 | H38: 0 | I38: 0 | J38: Serviço | K38: 3.2.1. | L38: SINAPI | M38: 93358 | N38: ESCAVAÇÃO MANUAL DE VALA COM PROFUNDIDADE MENOR OU IGUAL A 1,30 M. AF_03/2016 | O38: M3 | P38: 16.74 | R38: BDI 1 | S38: 0 | T38: 0 | U38: SEM VALOR | V38: =IF(OR($A38=0,$A38="S",$A38>CFF!$A$9),"",MAX(V$12:OFFSET(V38,-1,0))+1) ->  | W38: SINAPI-93358 | Y38: 70.59 | Z38: =ROUND(IF(ISNUMBER(R38),R38,IF(LEFT(R38,3)="BDI",HLOOKUP(R38,DADOS!$T$37:$X$38,2,FALSE),0)),15-11*$X$5) -> 0.2639
A39: S | B39: 0 | C39: 3 | D39: 2 | E39: 0 | F39: 0 | G39: 2 | H39: 0 | I39: 0 | J39: Serviço | K39: 3.2.2. | L39: SINAPI | M39: 94098 | N39: PREPARO DE FUNDO DE VALA COM LARGURA MENOR QUE 1,5 M, EM LOCAL COM NÍVEL ALTO DE INTERFERÊNCIA. AF_06/2016 | O39: M2 | P39: 25.75 | R39: BDI 1 | S39: 0 | T39: 0 | U39: SEM VALOR | V39: =IF(OR($A39=0,$A39="S",$A39>CFF!$A$9),"",MAX(V$12:OFFSET(V39,-1,0))+1) ->  | W39: SINAPI-94098 | Y39: 5.9 | Z39: =ROUND(IF(ISNUMBER(R39),R39,IF(LEFT(R39,3)="BDI",HLOOKUP(R39,DADOS!$T$37:$X$38,2,FALSE),0)),15-11*$X$5) -> 0.2639
A40: S | B40: 0 | C40: 3 | D40: 2 | E40: 0 | F40: 0 | G40: 3 | H40: 0 | I40: 0 | J40: Serviço | K40: 3.2.3. | L40: SINAPI | M40: 96617 | N40: LASTRO DE CONCRETO MAGRO, APLICADO EM BLOCOS DE COROAMENTO OU SAPATAS, ESPESSURA DE 3 CM. AF_08/2017 | O40: M2 | P40: 25.75 | R40: BDI 1 | S40: 0 | T40: 0 | U40: SEM VALOR | V40: =IF(OR($A40=0,$A40="S",$A40>CFF!$A$9),"",MAX(V$12:OFFSET(V40,-1,0))+1) ->  | W40: SINAPI-96617 | Y40: 15.89 | Z40: =ROUND(IF(ISNUMBER(R40),R40,IF(LEFT(R40,3)="BDI",HLOOKUP(R40,DADOS!$T$37:$X$38,2,FALSE),0)),15-11*$X$5) -> 0.2639
A41: S | B41: 0 | C41: 3 | D41: 2 | E41: 0 | F41: 0 | G41: 4 | H41: 0 | I41: 0 | J41: Serviço | K41: 3.2.4. | L41: SINAPI | M41: 96536 | N41: FABRICAÇÃO, MONTAGEM E DESMONTAGEM DE FÔRMA PARA VIGA BALDRAME, EM MADEIRA SERRADA, E=25 MM, 4 UTILIZAÇÕES. AF_06/2017 | O41: M2 | P41: 77.25 | R41: BDI 1 | S41: 0 | T41: 0 | U41: SEM VALOR | V41: =IF(OR($A41=0,$A41="S",$A41>CFF!$A$9),"",MAX(V$12:OFFSET(V41,-1,0))+1) ->  | W41: SINAPI-96536 | Y41: 54.37 | Z41: =ROUND(IF(ISNUMBER(R41),R41,IF(LEFT(R41,3)="BDI",HLOOKUP(R41,DADOS!$T$37:$X$38,2,FALSE),0)),15-11*$X$5) -> 0.2639
A42: S | B42: 0 | C42: 3 | D42: 2 | E42: 0 | F42: 0 | G42: 5 | H42: 0 | I42: 0 | J42: Serviço | K42: 3.2.5. | L42: COMP. | M42: 016 | N42: CONCRETAGEM DE BLOCOS DE VIGAS BALDRAMES, FCK 25 MPA, COM USO DE BOMBA ? LANÇAMENTO, ADENSAMENTO E ACABAMENTO | O42: M3 | P42: 7.73 | R42: BDI 1 | S42: 0 | T42: 0 | U42: SEM VALOR | V42: =IF(OR($A42=0,$A42="S",$A42>CFF!$A$9),"",MAX(V$12:OFFSET(V42,-1,0))+1) ->  | W42: COMP.-016 | Y42: 487.27 | Z42: =ROUND(IF(ISNUMBER(R42),R42,IF(LEFT(R42,3)="BDI",HLOOKUP(R42,DADOS!$T$37:$X$38,2,FALSE),0)),15-11*$X$5) -> 0.2639
A43: S | B43: 0 | C43: 3 | D43: 2 | E43: 0 | F43: 0 | G43: 6 | H43: 0 | I43: 0 | J43: Serviço | K43: 3.2.6. | L43: SINAPI | M43: 96543 | N43: ARMAÇÃO DE BLOCO, VIGA BALDRAME E SAPATA UTILIZANDO AÇO CA-60 DE 5 MM - MONTAGEM. AF_06/2017 | O43: KG | P43: 116.28 | R43: BDI 1 | S43: 0 | T43: 0 | U43: SEM VALOR | V43: =IF(OR($A43=0,$A43="S",$A43>CFF!$A$9),"",MAX(V$12:OFFSET(V43,-1,0))+1) ->  | W43: SINAPI-96543 | Y43: 13.18 | Z43: =ROUND(IF(ISNUMBER(R43),R43,IF(LEFT(R43,3)="BDI",HLOOKUP(R43,DADOS!$T$37:$X$38,2,FALSE),0)),15-11*$X$5) -> 0.2639
A44: S | B44: 0 | C44: 3 | D44: 2 | E44: 0 | F44: 0 | G44: 7 | H44: 0 | I44: 0 | J44: Serviço | K44: 3.2.7. | L44: SINAPI | M44: 96545 | N44: ARMAÇÃO DE BLOCO, VIGA BALDRAME OU SAPATA UTILIZANDO AÇO CA-50 DE 8 MM - MONTAGEM. AF_06/2017 | O44: KG | P44: 201.87 | R44: BDI 1 | S44: 0 | T44: 0 | U44: SEM VALOR | V44: =IF(OR($A44=0,$A44="S",$A44>CFF!$A$9),"",MAX(V$12:OFFSET(V44,-1,0))+1) ->  | W44: SINAPI-96545 | Y44: 10.95 | Z44: =ROUND(IF(ISNUMBER(R44),R44,IF(LEFT(R44,3)="BDI",HLOOKUP(R44,DADOS!$T$37:$X$38,2,FALSE),0)),15-11*$X$5) -> 0.2639
A45: S | B45: 0 | C45: 3 | D45: 2 | E45: 0 | F45: 0 | G45: 8 | H45: 0 | I45: 0 | J45: Serviço | K45: 3.2.8. | L45: SINAPI | M45: 96546 | N45: ARMAÇÃO DE BLOCO, VIGA BALDRAME OU SAPATA UTILIZANDO AÇO CA-50 DE 10 MM - MONTAGEM. AF_06/2017 | O45: KG | P45: 20.61 | R45: BDI 1 | S45: 0 | T45: 0 | U45: SEM VALOR | V45: =IF(OR($A45=0,$A45="S",$A45>CFF!$A$9),"",MAX(V$12:OFFSET(V45,-1,0))+1) ->  | W45: SINAPI-96546 | Y45: 8.95 | Z45: =ROUND(IF(ISNUMBER(R45),R45,IF(LEFT(R45,3)="BDI",HLOOKUP(R45,DADOS!$T$37:$X$38,2,FALSE),0)),15-11*$X$5) -> 0.2639
A46: S | B46: 0 | C46: 3 | D46: 2 | E46: 0 | F46: 0 | G46: 9 | H46: 0 | I46: 0 | J46: Serviço | K46: 3.2.9. | L46: SINAPI | M46: 93382 | N46: REATERRO MANUAL DE VALAS COM COMPACTAÇÃO MECANIZADA. AF_04/2016 | O46: M3 | P46: 9.01 | R46: BDI 1 | S46: 0 | T46: 0 | U46: SEM VALOR | V46: =IF(OR($A46=0,$A46="S",$A46>CFF!$A$9),"",MAX(V$12:OFFSET(V46,-1,0))+1) ->  | W46: SINAPI-93382 | Y46: 27.81 | Z46: =ROUND(IF(ISNUMBER(R46),R46,IF(LEFT(R46,3)="BDI",HLOOKUP(R46,DADOS!$T$37:$X$38,2,FALSE),0)),15-11*$X$5) -> 0.2639
A47: 1 | B47: 48 | C47: 4 | D47: 0 | E47: 0 | F47: 0 | G47: 0 | H47: 319 | I47: 48 | J47: Meta | K47: 4. | N47: SUPERESTRUTURA | P47: 0 | R47: BDI 1 | S47: 0 | T47: 0 | U47: SEM VALOR | V47: =IF(OR($A47=0,$A47="S",$A47>CFF!$A$9),"",MAX(V$12:OFFSET(V47,-1,0))+1) -> 6 | W47: FALSE | X47: X | Y47: 0 | Z47: =ROUND(IF(ISNUMBER(R47),R47,IF(LEFT(R47,3)="BDI",HLOOKUP(R47,DADOS!$T$37:$X$38,2,FALSE),0)),15-11*$X$5) -> 0.2639
A48: 2 | B48: 6 | C48: 4 | D48: 1 | E48: 0 | F48: 0 | G48: 0 | H48: 47 | I48: 6 | J48: Nível 2 | K48: 4.1. | N48: PILARES - TÉRREO | P48: 0 | R48: BDI 1 | S48: 0 | T48: 0 | U48: SEM VALOR | V48: =IF(OR($A48=0,$A48="S",$A48>CFF!$A$9),"",MAX(V$12:OFFSET(V48,-1,0))+1) -> 7 | W48: FALSE | X48: X | Y48: 0 | Z48: =ROUND(IF(ISNUMBER(R48),R48,IF(LEFT(R48,3)="BDI",HLOOKUP(R48,DADOS!$T$37:$X$38,2,FALSE),0)),15-11*$X$5) -> 0.2639
A49: S | B49: 0 | C49: 4 | D49: 1 | E49: 0 | F49: 0 | G49: 1 | H49: 0 | I49: 0 | J49: Serviço | K49: 4.1.1. | L49: SINAPI | M49: 92434 | N49: MONTAGEM E DESMONTAGEM DE FÔRMA DE PILARES RETANGULARES E ESTRUTURAS SIMILARES COM ÁREA MÉDIA DAS SEÇÕES MENOR OU IGUAL A 0,25 M², PÉ-DIREITO SIMPLES, EM CHAPA DE MADEIRA COMPENSADA PLASTIFICADA, 12 UTILIZAÇÕES. AF_12/2015 | O49: M2 | P49: 39.75 | R49: BDI 1 | S49: 0 | T49: 0 | U49: SEM VALOR | V49: =IF(OR($A49=0,$A49="S",$A49>CFF!$A$9),"",MAX(V$12:OFFSET(V49,-1,0))+1) ->  | W49: SINAPI-92434 | Y49: 48.13 | Z49: =ROUND(IF(ISNUMBER(R49),R49,IF(LEFT(R49,3)="BDI",HLOOKUP(R49,DADOS!$T$37:$X$38,2,FALSE),0)),15-11*$X$5) -> 0.2639
A50: S | B50: 0 | C50: 4 | D50: 1 | E50: 0 | F50: 0 | G50: 2 | H50: 0 | I50: 0 | J50: Serviço | K50: 4.1.2. | L50: SINAPI | M50: 92720 | N50: CONCRETAGEM DE PILARES, FCK = 25 MPA, COM USO DE BOMBA EM EDIFICAÇÃO COM SEÇÃO MÉDIA DE PILARES MENOR OU IGUAL A 0,25 M² - LANÇAMENTO, ADENSAMENTO E ACABAMENTO. AF_12/2015 | O50: M3 | P50: 2.58 | R50: BDI 1 | S50: 0 | T50: 0 | U50: SEM VALOR | V50: =IF(OR($A50=0,$A50="S",$A50>CFF!$A$9),"",MAX(V$12:OFFSET(V50,-1,0))+1) ->  | W50: SINAPI-92720 | Y50: 480.32 | Z50: =ROUND(IF(ISNUMBER(R50),R50,IF(LEFT(R50,3)="BDI",HLOOKUP(R50,DADOS!$T$37:$X$38,2,FALSE),0)),15-11*$X$5) -> 0.2639
A51: S | B51: 0 | C51: 4 | D51: 1 | E51: 0 | F51: 0 | G51: 3 | H51: 0 | I51: 0 | J51: Serviço | K51: 4.1.3. | L51: SINAPI | M51: 92775 | N51: ARMAÇÃO DE PILAR OU VIGA DE UMA ESTRUTURA CONVENCIONAL DE CONCRETO ARMADO EM UMA EDIFICAÇÃO TÉRREA OU SOBRADO UTILIZANDO AÇO CA-60 DE 5,0 MM - MONTAGEM. AF_12/2015 | O51: KG | P51: 75.96 | R51: BDI 1 | S51: 0 | T51: 0 | U51: SEM VALOR | V51: =IF(OR($A51=0,$A51="S",$A51>CFF!$A$9),"",MAX(V$12:OFFSET(V51,-1,0))+1) ->  | W51: SINAPI-92775 | Y51: 13.31 | Z51: =ROUND(IF(ISNUMBER(R51),R51,IF(LEFT(R51,3)="BDI",HLOOKUP(R51,DADOS!$T$37:$X$38,2,FALSE),0)),15-11*$X$5) -> 0.2639
A52: S | B52: 0 | C52: 4 | D52: 1 | E52: 0 | F52: 0 | G52: 4 | H52: 0 | I52: 0 | J52: Serviço | K52: 4.1.4. | L52: SINAPI | M52: 92778 | N52: ARMAÇÃO DE PILAR OU VIGA DE UMA ESTRUTURA CONVENCIONAL DE CONCRETO ARMADO EM UMA EDIFICAÇÃO TÉRREA OU SOBRADO UTILIZANDO AÇO CA-50 DE 10,0 MM - MONTAGEM. AF_12/2015 | O52: KG | P52: 225.36 | R52: BDI 1 | S52: 0 | T52: 0 | U52: SEM VALOR | V52: =IF(OR($A52=0,$A52="S",$A52>CFF!$A$9),"",MAX(V$12:OFFSET(V52,-1,0))+1) ->  | W52: SINAPI-92778 | Y52: 8.87 | Z52: =ROUND(IF(ISNUMBER(R52),R52,IF(LEFT(R52,3)="BDI",HLOOKUP(R52,DADOS!$T$37:$X$38,2,FALSE),0)),15-11*$X$5) -> 0.2639
A53: S | B53: 0 | C53: 4 | D53: 1 | E53: 0 | F53: 0 | G53: 5 | H53: 0 | I53: 0 | J53: Serviço | K53: 4.1.5. | L53: SINAPI | M53: 92779 | N53: ARMAÇÃO DE PILAR OU VIGA DE UMA ESTRUTURA CONVENCIONAL DE CONCRETO ARMADO EM UMA EDIFICAÇÃO TÉRREA OU SOBRADO UTILIZANDO AÇO CA-50 DE 12,5 MM - MONTAGEM. AF_12/2015 | O53: KG | P53: 18.63 | R53: BDI 1 | S53: 0 | T53: 0 | U53: SEM VALOR | V53: =IF(OR($A53=0,$A53="S",$A53>CFF!$A$9),"",MAX(V$12:OFFSET(V53,-1,0))+1) ->  | W53: SINAPI-92779 | Y53: 7.81 | Z53: =ROUND(IF(ISNUMBER(R53),R53,IF(LEFT(R53,3)="BDI",HLOOKUP(R53,DADOS!$T$37:$X$38,2,FALSE),0)),15-11*$X$5) -> 0.2639
A54: 2 | B54: 8 | C54: 4 | D54: 2 | E54: 0 | F54: 0 | G54: 0 | H54: 41 | I54: 8 | J54: Nível 2 | K54: 4.2. | L54: SINAPI | N54: VIGAS TÉRREO | P54: 0 | R54: BDI 1 | S54: 0 | T54: 0 | U54: SEM VALOR | V54: =IF(OR($A54=0,$A54="S",$A54>CFF!$A$9),"",MAX(V$12:OFFSET(V54,-1,0))+1) -> 8 | W54: FALSE | X54: X | Y54: 0 | Z54: =ROUND(IF(ISNUMBER(R54),R54,IF(LEFT(R54,3)="BDI",HLOOKUP(R54,DADOS!$T$37:$X$38,2,FALSE),0)),15-11*$X$5) -> 0.2639
A55: S | B55: 0 | C55: 4 | D55: 2 | E55: 0 | F55: 0 | G55: 1 | H55: 0 | I55: 0 | J55: Serviço | K55: 4.2.1. | L55: SINAPI | M55: 92479 | N55: MONTAGEM E DESMONTAGEM DE FÔRMA DE VIGA, ESCORAMENTO COM GARFO DE MADEIRA, PÉ-DIREITO SIMPLES, EM CHAPA DE MADEIRA PLASTIFICADA, 18 UTILIZAÇÕES. AF_12/2015 | O55: M2 | P55: 94.03 | R55: BDI 1 | S55: 0 | T55: 0 | U55: SEM VALOR | V55: =IF(OR($A55=0,$A55="S",$A55>CFF!$A$9),"",MAX(V$12:OFFSET(V55,-1,0))+1) ->  | W55: SINAPI-92479 | Y55: 42 | Z55: =ROUND(IF(ISNUMBER(R55),R55,IF(LEFT(R55,3)="BDI",HLOOKUP(R55,DADOS!$T$37:$X$38,2,FALSE),0)),15-11*$X$5) -> 0.2639
A56: S | B56: 0 | C56: 4 | D56: 2 | E56: 0 | F56: 0 | G56: 2 | H56: 0 | I56: 0 | J56: Serviço | K56: 4.2.2. | L56: COMP. | M56: 017 | N56: CONCRETAGEM DE VIGAS E LAJES, FCK=25 MPA - LANÇAMENTO, ADENSAMENTO E ACABAMENTO | O56: M3 | P56: 6.53 | R56: BDI 1 | S56: 0 | T56: 0 | U56: SEM VALOR | V56: =IF(OR($A56=0,$A56="S",$A56>CFF!$A$9),"",MAX(V$12:OFFSET(V56,-1,0))+1) ->  | W56: COMP.-017 | Y56: 471.95 | Z56: =ROUND(IF(ISNUMBER(R56),R56,IF(LEFT(R56,3)="BDI",HLOOKUP(R56,DADOS!$T$37:$X$38,2,FALSE),0)),15-11*$X$5) -> 0.2639
A57: S | B57: 0 | C57: 4 | D57: 2 | E57: 0 | F57: 0 | G57: 3 | H57: 0 | I57: 0 | J57: Serviço | K57: 4.2.3. | L57: SINAPI | M57: 92775 | N57: ARMAÇÃO DE PILAR OU VIGA DE UMA ESTRUTURA CONVENCIONAL DE CONCRETO ARMADO EM UMA EDIFICAÇÃO TÉRREA OU SOBRADO UTILIZANDO AÇO CA-60 DE 5,0 MM - MONTAGEM. AF_12/2015 | O57: KG | P57: 101.52 | R57: BDI 1 | S57: 0 | T57: 0 | U57: SEM VALOR | V57: =IF(OR($A57=0,$A57="S",$A57>CFF!$A$9),"",MAX(V$12:OFFSET(V57,-1,0))+1) ->  | W57: SINAPI-92775 | Y57: 13.31 | Z57: =ROUND(IF(ISNUMBER(R57),R57,IF(LEFT(R57,3)="BDI",HLOOKUP(R57,DADOS!$T$37:$X$38,2,FALSE),0)),15-11*$X$5) -> 0.2639
A58: S | B58: 0 | C58: 4 | D58: 2 | E58: 0 | F58: 0 | G58: 4 | H58: 0 | I58: 0 | J58: Serviço | K58: 4.2.4. | L58: SINAPI | M58: 92776 | N58: ARMAÇÃO DE PILAR OU VIGA DE UMA ESTRUTURA CONVENCIONAL DE CONCRETO ARMADO EM UMA EDIFICAÇÃO TÉRREA OU SOBRADO UTILIZANDO AÇO CA-50 DE 6,3 MM - MONTAGEM. AF_12/2015 | O58: KG | P58: 12.24 | R58: BDI 1 | S58: 0 | T58: 0 | U58: SEM VALOR | V58: =IF(OR($A58=0,$A58="S",$A58>CFF!$A$9),"",MAX(V$12:OFFSET(V58,-1,0))+1) ->  | W58: SINAPI-92776 | Y58: 11.5 | Z58: =ROUND(IF(ISNUMBER(R58),R58,IF(LEFT(R58,3)="BDI",HLOOKUP(R58,DADOS!$T$37:$X$38,2,FALSE),0)),15-11*$X$5) -> 0.2639
A59: S | B59: 0 | C59: 4 | D59: 2 | E59: 0 | F59: 0 | G59: 5 | H59: 0 | I59: 0 | J59: Serviço | K59: 4.2.5. | L59: SINAPI | M59: 92777 | N59: ARMAÇÃO DE PILAR OU VIGA DE UMA ESTRUTURA CONVENCIONAL DE CONCRETO ARMADO EM UMA EDIFICAÇÃO TÉRREA OU SOBRADO UTILIZANDO AÇO CA-50 DE 8,0 MM - MONTAGEM. AF_12/2015 | O59: KG | P59: 91.35 | R59: BDI 1 | S59: 0 | T59: 0 | U59: SEM VALOR | V59: =IF(OR($A59=0,$A59="S",$A59>CFF!$A$9),"",MAX(V$12:OFFSET(V59,-1,0))+1) ->  | W59: SINAPI-92777 | Y59: 10.93 | Z59: =ROUND(IF(ISNUMBER(R59),R59,IF(LEFT(R59,3)="BDI",HLOOKUP(R59,DADOS!$T$37:$X$38,2,FALSE),0)),15-11*$X$5) -> 0.2639
A60: S | B60: 0 | C60: 4 | D60: 2 | E60: 0 | F60: 0 | G60: 6 | H60: 0 | I60: 0 | J60: Serviço | K60: 4.2.6. | L60: SINAPI | M60: 92778 | N60: ARMAÇÃO DE PILAR OU VIGA DE UMA ESTRUTURA CONVENCIONAL DE CONCRETO ARMADO EM UMA EDIFICAÇÃO TÉRREA OU SOBRADO UTILIZANDO AÇO CA-50 DE 10,0 MM - MONTAGEM. AF_12/2015 | O60: KG | P60: 239.04 | R60: BDI 1 | S60: 0 | T60: 0 | U60: SEM VALOR | V60: =IF(OR($A60=0,$A60="S",$A60>CFF!$A$9),"",MAX(V$12:OFFSET(V60,-1,0))+1) ->  | W60: SINAPI-92778 | Y60: 8.87 | Z60: =ROUND(IF(ISNUMBER(R60),R60,IF(LEFT(R60,3)="BDI",HLOOKUP(R60,DADOS!$T$37:$X$38,2,FALSE),0)),15-11*$X$5) -> 0.2639
A61: S | B61: 0 | C61: 4 | D61: 2 | E61: 0 | F61: 0 | G61: 7 | H61: 0 | I61: 0 | J61: Serviço | K61: 4.2.7. | L61: SINAPI | M61: 92779 | N61: ARMAÇÃO DE PILAR OU VIGA DE UMA ESTRUTURA CONVENCIONAL DE CONCRETO ARMADO EM UMA EDIFICAÇÃO TÉRREA OU SOBRADO UTILIZANDO AÇO CA-50 DE 12,5 MM - MONTAGEM. AF_12/2015 | O61: KG | P61: 25.2 | R61: BDI 1 | S61: 0 | T61: 0 | U61: SEM VALOR | V61: =IF(OR($A61=0,$A61="S",$A61>CFF!$A$9),"",MAX(V$12:OFFSET(V61,-1,0))+1) ->  | W61: SINAPI-92779 | Y61: 7.81 | Z61: =ROUND(IF(ISNUMBER(R61),R61,IF(LEFT(R61,3)="BDI",HLOOKUP(R61,DADOS!$T$37:$X$38,2,FALSE),0)),15-11*$X$5) -> 0.2639
A62: 2 | B62: 2 | C62: 4 | D62: 3 | E62: 0 | F62: 0 | G62: 0 | H62: 33 | I62: 2 | J62: Nível 2 | K62: 4.3. | L62: SINAPI | N62: LAJES - TÉRREO | P62: 0 | R62: BDI 1 | S62: 0 | T62: 0 | U62: SEM VALOR | V62: =IF(OR($A62=0,$A62="S",$A62>CFF!$A$9),"",MAX(V$12:OFFSET(V62,-1,0))+1) -> 9 | W62: FALSE | X62: X | Y62: 0 | Z62: =ROUND(IF(ISNUMBER(R62),R62,IF(LEFT(R62,3)="BDI",HLOOKUP(R62,DADOS!$T$37:$X$38,2,FALSE),0)),15-11*$X$5) -> 0.2639
A63: S | B63: 0 | C63: 4 | D63: 3 | E63: 0 | F63: 0 | G63: 1 | H63: 0 | I63: 0 | J63: Serviço | K63: 4.3.1. | L63: COMP. | M63: 019 | N63: LAJE PRE-MOLDADA P/FORRO, SOBRECARGA 200 KG/M2, VAOS ATE 4,50M/ALTURA TOTAL=12CM, C/LAJOTAS E CAP.C/CONC. USINADO FCK=25MPA, 4CM,C/ESCORAMENTO (REAPR.3X) E FERRAGEM NEGATIVA, INCLUSO PROJETO E ART | O63: M2 | P63: 165.3 | R63: BDI 1 | S63: 0 | T63: 0 | U63: SEM VALOR | V63: =IF(OR($A63=0,$A63="S",$A63>CFF!$A$9),"",MAX(V$12:OFFSET(V63,-1,0))+1) ->  | W63: COMP.-019 | Y63: 90.03 | Z63: =ROUND(IF(ISNUMBER(R63),R63,IF(LEFT(R63,3)="BDI",HLOOKUP(R63,DADOS!$T$37:$X$38,2,FALSE),0)),15-11*$X$5) -> 0.2639
A64: 2 | B64: 6 | C64: 4 | D64: 4 | E64: 0 | F64: 0 | G64: 0 | H64: 31 | I64: 6 | J64: Nível 2 | K64: 4.4. | L64: SINAPI | N64: PILARES - PLATIBANDA/CAIXA D'ÁGUA | P64: 0 | R64: BDI 1 | S64: 0 | T64: 0 | U64: SEM VALOR | V64: =IF(OR($A64=0,$A64="S",$A64>CFF!$A$9),"",MAX(V$12:OFFSET(V64,-1,0))+1) -> 10 | W64: FALSE | X64: X | Y64: 0 | Z64: =ROUND(IF(ISNUMBER(R64),R64,IF(LEFT(R64,3)="BDI",HLOOKUP(R64,DADOS!$T$37:$X$38,2,FALSE),0)),15-11*$X$5) -> 0.2639
A65: S | B65: 0 | C65: 4 | D65: 4 | E65: 0 | F65: 0 | G65: 1 | H65: 0 | I65: 0 | J65: Serviço | K65: 4.4.1. | L65: SINAPI | M65: 92434 | N65: MONTAGEM E DESMONTAGEM DE FÔRMA DE PILARES RETANGULARES E ESTRUTURAS SIMILARES COM ÁREA MÉDIA DAS SEÇÕES MENOR OU IGUAL A 0,25 M², PÉ-DIREITO SIMPLES, EM CHAPA DE MADEIRA COMPENSADA PLASTIFICADA, 12 UTILIZAÇÕES. AF_12/2015 | O65: M2 | P65: 13.83 | R65: BDI 1 | S65: 0 | T65: 0 | U65: SEM VALOR | V65: =IF(OR($A65=0,$A65="S",$A65>CFF!$A$9),"",MAX(V$12:OFFSET(V65,-1,0))+1) ->  | W65: SINAPI-92434 | Y65: 48.13 | Z65: =ROUND(IF(ISNUMBER(R65),R65,IF(LEFT(R65,3)="BDI",HLOOKUP(R65,DADOS!$T$37:$X$38,2,FALSE),0)),15-11*$X$5) -> 0.2639
A66: S | B66: 0 | C66: 4 | D66: 4 | E66: 0 | F66: 0 | G66: 2 | H66: 0 | I66: 0 | J66: Serviço | K66: 4.4.2. | L66: SINAPI | M66: 92720 | N66: CONCRETAGEM DE PILARES, FCK = 25 MPA, COM USO DE BOMBA EM EDIFICAÇÃO COM SEÇÃO MÉDIA DE PILARES MENOR OU IGUAL A 0,25 M² - LANÇAMENTO, ADENSAMENTO E ACABAMENTO. AF_12/2015 | O66: M3 | P66: 0.87 | R66: BDI 1 | S66: 0 | T66: 0 | U66: SEM VALOR | V66: =IF(OR($A66=0,$A66="S",$A66>CFF!$A$9),"",MAX(V$12:OFFSET(V66,-1,0))+1) ->  | W66: SINAPI-92720 | Y66: 480.32 | Z66: =ROUND(IF(ISNUMBER(R66),R66,IF(LEFT(R66,3)="BDI",HLOOKUP(R66,DADOS!$T$37:$X$38,2,FALSE),0)),15-11*$X$5) -> 0.2639
A67: S | B67: 0 | C67: 4 | D67: 4 | E67: 0 | F67: 0 | G67: 3 | H67: 0 | I67: 0 | J67: Serviço | K67: 4.4.3. | L67: SINAPI | M67: 92775 | N67: ARMAÇÃO DE PILAR OU VIGA DE UMA ESTRUTURA CONVENCIONAL DE CONCRETO ARMADO EM UMA EDIFICAÇÃO TÉRREA OU SOBRADO UTILIZANDO AÇO CA-60 DE 5,0 MM - MONTAGEM. AF_12/2015 | O67: KG | P67: 27.18 | R67: BDI 1 | S67: 0 | T67: 0 | U67: SEM VALOR | V67: =IF(OR($A67=0,$A67="S",$A67>CFF!$A$9),"",MAX(V$12:OFFSET(V67,-1,0))+1) ->  | W67: SINAPI-92775 | Y67: 13.31 | Z67: =ROUND(IF(ISNUMBER(R67),R67,IF(LEFT(R67,3)="BDI",HLOOKUP(R67,DADOS!$T$37:$X$38,2,FALSE),0)),15-11*$X$5) -> 0.2639
A68: S | B68: 0 | C68: 4 | D68: 4 | E68: 0 | F68: 0 | G68: 4 | H68: 0 | I68: 0 | J68: Serviço | K68: 4.4.4. | L68: SINAPI | M68: 92778 | N68: ARMAÇÃO DE PILAR OU VIGA DE UMA ESTRUTURA CONVENCIONAL DE CONCRETO ARMADO EM UMA EDIFICAÇÃO TÉRREA OU SOBRADO UTILIZANDO AÇO CA-50 DE 10,0 MM - MONTAGEM. AF_12/2015 | O68: KG | P68: 86.58 | R68: BDI 1 | S68: 0 | T68: 0 | U68: SEM VALOR | V68: =IF(OR($A68=0,$A68="S",$A68>CFF!$A$9),"",MAX(V$12:OFFSET(V68,-1,0))+1) ->  | W68: SINAPI-92778 | Y68: 8.87 | Z68: =ROUND(IF(ISNUMBER(R68),R68,IF(LEFT(R68,3)="BDI",HLOOKUP(R68,DADOS!$T$37:$X$38,2,FALSE),0)),15-11*$X$5) -> 0.2639
A69: S | B69: 0 | C69: 4 | D69: 4 | E69: 0 | F69: 0 | G69: 5 | H69: 0 | I69: 0 | J69: Serviço | K69: 4.4.5. | L69: SINAPI | M69: 92779 | N69: ARMAÇÃO DE PILAR OU VIGA DE UMA ESTRUTURA CONVENCIONAL DE CONCRETO ARMADO EM UMA EDIFICAÇÃO TÉRREA OU SOBRADO UTILIZANDO AÇO CA-50 DE 12,5 MM - MONTAGEM. AF_12/2015 | O69: KG | P69: 8.01 | R69: BDI 1 | S69: 0 | T69: 0 | U69: SEM VALOR | V69: =IF(OR($A69=0,$A69="S",$A69>CFF!$A$9),"",MAX(V$12:OFFSET(V69,-1,0))+1) ->  | W69: SINAPI-92779 | Y69: 7.81 | Z69: =ROUND(IF(ISNUMBER(R69),R69,IF(LEFT(R69,3)="BDI",HLOOKUP(R69,DADOS!$T$37:$X$38,2,FALSE),0)),15-11*$X$5) -> 0.2639
A70: 2 | B70: 6 | C70: 4 | D70: 5 | E70: 0 | F70: 0 | G70: 0 | H70: 25 | I70: 6 | J70: Nível 2 | K70: 4.5. | N70: VIGAS - PLATIBANDA/CAIXA D'ÁGUA | P70: 0 | R70: BDI 1 | S70: 0 | T70: 0 | U70: SEM VALOR | V70: =IF(OR($A70=0,$A70="S",$A70>CFF!$A$9),"",MAX(V$12:OFFSET(V70,-1,0))+1) -> 11 | W70: FALSE | X70: X | Y70: 0 | Z70: =ROUND(IF(ISNUMBER(R70),R70,IF(LEFT(R70,3)="BDI",HLOOKUP(R70,DADOS!$T$37:$X$38,2,FALSE),0)),15-11*$X$5) -> 0.2639
A71: S | B71: 0 | C71: 4 | D71: 5 | E71: 0 | F71: 0 | G71: 1 | H71: 0 | I71: 0 | J71: Serviço | K71: 4.5.1. | L71: SINAPI | M71: 92479 | N71: MONTAGEM E DESMONTAGEM DE FÔRMA DE VIGA, ESCORAMENTO COM GARFO DE MADEIRA, PÉ-DIREITO SIMPLES, EM CHAPA DE MADEIRA PLASTIFICADA, 18 UTILIZAÇÕES. AF_12/2015 | O71: M2 | P71: 26.52 | R71: BDI 1 | S71: 0 | T71: 0 | U71: SEM VALOR | V71: =IF(OR($A71=0,$A71="S",$A71>CFF!$A$9),"",MAX(V$12:OFFSET(V71,-1,0))+1) ->  | W71: SINAPI-92479 | Y71: 42 | Z71: =ROUND(IF(ISNUMBER(R71),R71,IF(LEFT(R71,3)="BDI",HLOOKUP(R71,DADOS!$T$37:$X$38,2,FALSE),0)),15-11*$X$5) -> 0.2639
A72: S | B72: 0 | C72: 4 | D72: 5 | E72: 0 | F72: 0 | G72: 2 | H72: 0 | I72: 0 | J72: Serviço | K72: 4.5.2. | L72: COMP. | M72: 017 | N72: CONCRETAGEM DE VIGAS E LAJES, FCK=25 MPA - LANÇAMENTO, ADENSAMENTO E ACABAMENTO | O72: M3 | P72: 1.74 | R72: BDI 1 | S72: 0 | T72: 0 | U72: SEM VALOR | V72: =IF(OR($A72=0,$A72="S",$A72>CFF!$A$9),"",MAX(V$12:OFFSET(V72,-1,0))+1) ->  | W72: COMP.-017 | Y72: 471.95 | Z72: =ROUND(IF(ISNUMBER(R72),R72,IF(LEFT(R72,3)="BDI",HLOOKUP(R72,DADOS!$T$37:$X$38,2,FALSE),0)),15-11*$X$5) -> 0.2639
A73: S | B73: 0 | C73: 4 | D73: 5 | E73: 0 | F73: 0 | G73: 3 | H73: 0 | I73: 0 | J73: Serviço | K73: 4.5.3. | L73: SINAPI | M73: 92775 | N73: ARMAÇÃO DE PILAR OU VIGA DE UMA ESTRUTURA CONVENCIONAL DE CONCRETO ARMADO EM UMA EDIFICAÇÃO TÉRREA OU SOBRADO UTILIZANDO AÇO CA-60 DE 5,0 MM - MONTAGEM. AF_12/2015 | O73: KG | P73: 80.37 | R73: BDI 1 | S73: 0 | T73: 0 | U73: SEM VALOR | V73: =IF(OR($A73=0,$A73="S",$A73>CFF!$A$9),"",MAX(V$12:OFFSET(V73,-1,0))+1) ->  | W73: SINAPI-92775 | Y73: 13.31 | Z73: =ROUND(IF(ISNUMBER(R73),R73,IF(LEFT(R73,3)="BDI",HLOOKUP(R73,DADOS!$T$37:$X$38,2,FALSE),0)),15-11*$X$5) -> 0.2639
A74: S | B74: 0 | C74: 4 | D74: 5 | E74: 0 | F74: 0 | G74: 4 | H74: 0 | I74: 0 | J74: Serviço | K74: 4.5.4. | L74: SINAPI | M74: 92777 | N74: ARMAÇÃO DE PILAR OU VIGA DE UMA ESTRUTURA CONVENCIONAL DE CONCRETO ARMADO EM UMA EDIFICAÇÃO TÉRREA OU SOBRADO UTILIZANDO AÇO CA-50 DE 8,0 MM - MONTAGEM. AF_12/2015 | O74: KG | P74: 94.41 | R74: BDI 1 | S74: 0 | T74: 0 | U74: SEM VALOR | V74: =IF(OR($A74=0,$A74="S",$A74>CFF!$A$9),"",MAX(V$12:OFFSET(V74,-1,0))+1) ->  | W74: SINAPI-92777 | Y74: 10.93 | Z74: =ROUND(IF(ISNUMBER(R74),R74,IF(LEFT(R74,3)="BDI",HLOOKUP(R74,DADOS!$T$37:$X$38,2,FALSE),0)),15-11*$X$5) -> 0.2639
A75: S | B75: 0 | C75: 4 | D75: 5 | E75: 0 | F75: 0 | G75: 5 | H75: 0 | I75: 0 | J75: Serviço | K75: 4.5.5. | L75: SINAPI | M75: 92778 | N75: ARMAÇÃO DE PILAR OU VIGA DE UMA ESTRUTURA CONVENCIONAL DE CONCRETO ARMADO EM UMA EDIFICAÇÃO TÉRREA OU SOBRADO UTILIZANDO AÇO CA-50 DE 10,0 MM - MONTAGEM. AF_12/2015 | O75: KG | P75: 30.51 | R75: BDI 1 | S75: 0 | T75: 0 | U75: SEM VALOR | V75: =IF(OR($A75=0,$A75="S",$A75>CFF!$A$9),"",MAX(V$12:OFFSET(V75,-1,0))+1) ->  | W75: SINAPI-92778 | Y75: 8.87 | Z75: =ROUND(IF(ISNUMBER(R75),R75,IF(LEFT(R75,3)="BDI",HLOOKUP(R75,DADOS!$T$37:$X$38,2,FALSE),0)),15-11*$X$5) -> 0.2639
A76: 2 | B76: 2 | C76: 4 | D76: 6 | E76: 0 | F76: 0 | G76: 0 | H76: 19 | I76: 2 | J76: Nível 2 | K76: 4.6. | L76: SINAPI | N76: LAJE - CAIXA D'ÁGUA | P76: 0 | R76: BDI 1 | S76: 0 | T76: 0 | U76: SEM VALOR | V76: =IF(OR($A76=0,$A76="S",$A76>CFF!$A$9),"",MAX(V$12:OFFSET(V76,-1,0))+1) -> 12 | W76: FALSE | X76: X | Y76: 0 | Z76: =ROUND(IF(ISNUMBER(R76),R76,IF(LEFT(R76,3)="BDI",HLOOKUP(R76,DADOS!$T$37:$X$38,2,FALSE),0)),15-11*$X$5) -> 0.2639
A77: S | B77: 0 | C77: 4 | D77: 6 | E77: 0 | F77: 0 | G77: 1 | H77: =IF(OR($A77="S",$A77=0),0,MATCH(0,OFFSET($B77,1,$A77,ROW($A$366)-ROW($A77)),0)) -> 0 | I77: =IF(OR($A77="S",$A77=0),0,MATCH(OFFSET($B77,0,$A77)+1,OFFSET($B77,1,$A77,ROW($A$366)-ROW($A77)),0)) -> 0 | J77: Serviço | K77: 4.6.1. | L77: COMP. | M77: 020 | N77: LAJE PRE-MOLDADA P/PISO, SOBRECARGA 750 KG/M2, VAOS ATE 3,50M/ ALTURA TOTAL=12CM, C/LAJOTAS E CAP.C/CONC. USINADO FCK=25MPA, 4CM E FERRAGEM NEGATIVA, INCLUSO PROJETO E ART | O77: M2 | P77: 10.32 | R77: BDI 1 | S77: 0 | T77: 0 | U77: SEM VALOR | V77: =IF(OR($A77=0,$A77="S",$A77>CFF!$A$9),"",MAX(V$12:OFFSET(V77,-1,0))+1) ->  | W77: COMP.-020 | Y77: 135.11 | Z77: =ROUND(IF(ISNUMBER(R77),R77,IF(LEFT(R77,3)="BDI",HLOOKUP(R77,DADOS!$T$37:$X$38,2,FALSE),0)),15-11*$X$5) -> 0.2639
A78: 2 | B78: 5 | C78: 4 | D78: 7 | E78: 0 | F78: 0 | G78: 0 | H78: 17 | I78: 5 | J78: Nível 2 | K78: 4.7. | L78: SINAPI | N78: PILARES - COBERTURA | P78: 0 | R78: BDI 1 | S78: 0 | T78: 0 | U78: SEM VALOR | V78: =IF(OR($A78=0,$A78="S",$A78>CFF!$A$9),"",MAX(V$12:OFFSET(V78,-1,0))+1) -> 13 | W78: FALSE | X78: X | Y78: 0 | Z78: =ROUND(IF(ISNUMBER(R78),R78,IF(LEFT(R78,3)="BDI",HLOOKUP(R78,DADOS!$T$37:$X$38,2,FALSE),0)),15-11*$X$5) -> 0.2639
A79: S | B79: 0 | C79: 4 | D79: 7 | E79: 0 | F79: 0 | G79: 1 | H79: 0 | I79: 0 | J79: Serviço | K79: 4.7.1. | L79: SINAPI | M79: 92434 | N79: MONTAGEM E DESMONTAGEM DE FÔRMA DE PILARES RETANGULARES E ESTRUTURAS SIMILARES COM ÁREA MÉDIA DAS SEÇÕES MENOR OU IGUAL A 0,25 M², PÉ-DIREITO SIMPLES, EM CHAPA DE MADEIRA COMPENSADA PLASTIFICADA, 12 UTILIZAÇÕES. AF_12/2015 | O79: M2 | P79: 3.9 | R79: BDI 1 | S79: 0 | T79: 0 | U79: SEM VALOR | V79: =IF(OR($A79=0,$A79="S",$A79>CFF!$A$9),"",MAX(V$12:OFFSET(V79,-1,0))+1) ->  | W79: SINAPI-92434 | Y79: 48.13 | Z79: =ROUND(IF(ISNUMBER(R79),R79,IF(LEFT(R79,3)="BDI",HLOOKUP(R79,DADOS!$T$37:$X$38,2,FALSE),0)),15-11*$X$5) -> 0.2639
A80: S | B80: 0 | C80: 4 | D80: 7 | E80: 0 | F80: 0 | G80: 2 | H80: 0 | I80: 0 | J80: Serviço | K80: 4.7.2. | L80: SINAPI | M80: 92720 | N80: CONCRETAGEM DE PILARES, FCK = 25 MPA, COM USO DE BOMBA EM EDIFICAÇÃO COM SEÇÃO MÉDIA DE PILARES MENOR OU IGUAL A 0,25 M² - LANÇAMENTO, ADENSAMENTO E ACABAMENTO. AF_12/2015 | O80: M3 | P80: 0.25 | R80: BDI 1 | S80: 0 | T80: 0 | U80: SEM VALOR | V80: =IF(OR($A80=0,$A80="S",$A80>CFF!$A$9),"",MAX(V$12:OFFSET(V80,-1,0))+1) ->  | W80: SINAPI-92720 | Y80: 480.32 | Z80: =ROUND(IF(ISNUMBER(R80),R80,IF(LEFT(R80,3)="BDI",HLOOKUP(R80,DADOS!$T$37:$X$38,2,FALSE),0)),15-11*$X$5) -> 0.2639
A81: S | B81: 0 | C81: 4 | D81: 7 | E81: 0 | F81: 0 | G81: 3 | H81: 0 | I81: 0 | J81: Serviço | K81: 4.7.3. | L81: SINAPI | M81: 92775 | N81: ARMAÇÃO DE PILAR OU VIGA DE UMA ESTRUTURA CONVENCIONAL DE CONCRETO ARMADO EM UMA EDIFICAÇÃO TÉRREA OU SOBRADO UTILIZANDO AÇO CA-60 DE 5,0 MM - MONTAGEM. AF_12/2015 | O81: KG | P81: 6.93 | R81: BDI 1 | S81: 0 | T81: 0 | U81: SEM VALOR | V81: =IF(OR($A81=0,$A81="S",$A81>CFF!$A$9),"",MAX(V$12:OFFSET(V81,-1,0))+1) ->  | W81: SINAPI-92775 | Y81: 13.31 | Z81: =ROUND(IF(ISNUMBER(R81),R81,IF(LEFT(R81,3)="BDI",HLOOKUP(R81,DADOS!$T$37:$X$38,2,FALSE),0)),15-11*$X$5) -> 0.2639
A82: S | B82: 0 | C82: 4 | D82: 7 | E82: 0 | F82: 0 | G82: 4 | H82: 0 | I82: 0 | J82: Serviço | K82: 4.7.4. | L82: SINAPI | M82: 92778 | N82: ARMAÇÃO DE PILAR OU VIGA DE UMA ESTRUTURA CONVENCIONAL DE CONCRETO ARMADO EM UMA EDIFICAÇÃO TÉRREA OU SOBRADO UTILIZANDO AÇO CA-50 DE 10,0 MM - MONTAGEM. AF_12/2015 | O82: KG | P82: 16.29 | R82: BDI 1 | S82: 0 | T82: 0 | U82: SEM VALOR | V82: =IF(OR($A82=0,$A82="S",$A82>CFF!$A$9),"",MAX(V$12:OFFSET(V82,-1,0))+1) ->  | W82: SINAPI-92778 | Y82: 8.87 | Z82: =ROUND(IF(ISNUMBER(R82),R82,IF(LEFT(R82,3)="BDI",HLOOKUP(R82,DADOS!$T$37:$X$38,2,FALSE),0)),15-11*$X$5) -> 0.2639
A83: 2 | B83: 5 | C83: 4 | D83: 8 | E83: 0 | F83: 0 | G83: 0 | H83: 12 | I83: 5 | J83: Nível 2 | K83: 4.8. | L83: SINAPI | N83: VIGAS - COBERTURA | P83: 0 | R83: BDI 1 | S83: 0 | T83: 0 | U83: SEM VALOR | V83: =IF(OR($A83=0,$A83="S",$A83>CFF!$A$9),"",MAX(V$12:OFFSET(V83,-1,0))+1) -> 14 | W83: FALSE | X83: X | Y83: 0 | Z83: =ROUND(IF(ISNUMBER(R83),R83,IF(LEFT(R83,3)="BDI",HLOOKUP(R83,DADOS!$T$37:$X$38,2,FALSE),0)),15-11*$X$5) -> 0.2639
A84: S | B84: 0 | C84: 4 | D84: 8 | E84: 0 | F84: 0 | G84: 1 | H84: 0 | I84: 0 | J84: Serviço | K84: 4.8.1. | L84: SINAPI | M84: 92479 | N84: MONTAGEM E DESMONTAGEM DE FÔRMA DE VIGA, ESCORAMENTO COM GARFO DE MADEIRA, PÉ-DIREITO SIMPLES, EM CHAPA DE MADEIRA PLASTIFICADA, 18 UTILIZAÇÕES. AF_12/2015 | O84: M2 | P84: 5.23 | R84: BDI 1 | S84: 0 | T84: 0 | U84: SEM VALOR | V84: =IF(OR($A84=0,$A84="S",$A84>CFF!$A$9),"",MAX(V$12:OFFSET(V84,-1,0))+1) ->  | W84: SINAPI-92479 | Y84: 42 | Z84: =ROUND(IF(ISNUMBER(R84),R84,IF(LEFT(R84,3)="BDI",HLOOKUP(R84,DADOS!$T$37:$X$38,2,FALSE),0)),15-11*$X$5) -> 0.2639
A85: S | B85: 0 | C85: 4 | D85: 8 | E85: 0 | F85: 0 | G85: 2 | H85: 0 | I85: 0 | J85: Serviço | K85: 4.8.2. | L85: SINAPI | M85: 92726 | N85: CONCRETAGEM DE VIGAS E LAJES, FCK=20 MPA, PARA LAJES MACIÇAS OU NERVURADAS COM USO DE BOMBA EM EDIFICAÇÃO COM ÁREA MÉDIA DE LAJES MAIOR QUE 20 M² - LANÇAMENTO, ADENSAMENTO E ACABAMENTO. AF_12/2015 | O85: M3 | P85: 0.34 | R85: BDI 1 | S85: 0 | T85: 0 | U85: SEM VALOR | V85: =IF(OR($A85=0,$A85="S",$A85>CFF!$A$9),"",MAX(V$12:OFFSET(V85,-1,0))+1) ->  | W85: SINAPI-92726 | Y85: 455.57 | Z85: =ROUND(IF(ISNUMBER(R85),R85,IF(LEFT(R85,3)="BDI",HLOOKUP(R85,DADOS!$T$37:$X$38,2,FALSE),0)),15-11*$X$5) -> 0.2639
A86: S | B86: 0 | C86: 4 | D86: 8 | E86: 0 | F86: 0 | G86: 3 | H86: 0 | I86: 0 | J86: Serviço | K86: 4.8.3. | L86: SINAPI | M86: 92775 | N86: ARMAÇÃO DE PILAR OU VIGA DE UMA ESTRUTURA CONVENCIONAL DE CONCRETO ARMADO EM UMA EDIFICAÇÃO TÉRREA OU SOBRADO UTILIZANDO AÇO CA-60 DE 5,0 MM - MONTAGEM. AF_12/2015 | O86: KG | P86: 12.69 | R86: BDI 1 | S86: 0 | T86: 0 | U86: SEM VALOR | V86: =IF(OR($A86=0,$A86="S",$A86>CFF!$A$9),"",MAX(V$12:OFFSET(V86,-1,0))+1) ->  | W86: SINAPI-92775 | Y86: 13.31 | Z86: =ROUND(IF(ISNUMBER(R86),R86,IF(LEFT(R86,3)="BDI",HLOOKUP(R86,DADOS!$T$37:$X$38,2,FALSE),0)),15-11*$X$5) -> 0.2639
A87: S | B87: 0 | C87: 4 | D87: 8 | E87: 0 | F87: 0 | G87: 4 | H87: 0 | I87: 0 | J87: Serviço | K87: 4.8.4. | L87: SINAPI | M87: 92777 | N87: ARMAÇÃO DE PILAR OU VIGA DE UMA ESTRUTURA CONVENCIONAL DE CONCRETO ARMADO EM UMA EDIFICAÇÃO TÉRREA OU SOBRADO UTILIZANDO AÇO CA-50 DE 8,0 MM - MONTAGEM. AF_12/2015 | O87: KG | P87: 20.52 | R87: BDI 1 | S87: 0 | T87: 0 | U87: SEM VALOR | V87: =IF(OR($A87=0,$A87="S",$A87>CFF!$A$9),"",MAX(V$12:OFFSET(V87,-1,0))+1) ->  | W87: SINAPI-92777 | Y87: 10.93 | Z87: =ROUND(IF(ISNUMBER(R87),R87,IF(LEFT(R87,3)="BDI",HLOOKUP(R87,DADOS!$T$37:$X$38,2,FALSE),0)),15-11*$X$5) -> 0.2639
A88: 2 | B88: 7 | C88: 4 | D88: 9 | E88: 0 | F88: 0 | G88: 0 | H88: 7 | J88: Nível 2 | K88: 4.9. | N88: VERGAS/CONTRA-VERGAS | P88: 0 | R88: BDI 1 | S88: 0 | T88: 0 | U88: SEM VALOR | V88: =IF(OR($A88=0,$A88="S",$A88>CFF!$A$9),"",MAX(V$12:OFFSET(V88,-1,0))+1) -> 15 | W88: FALSE | X88: X | Y88: 0 | Z88: =ROUND(IF(ISNUMBER(R88),R88,IF(LEFT(R88,3)="BDI",HLOOKUP(R88,DADOS!$T$37:$X$38,2,FALSE),0)),15-11*$X$5) -> 0.2639
A89: S | B89: 0 | C89: 4 | D89: 9 | E89: 0 | F89: 0 | G89: 1 | H89: 0 | I89: 0 | J89: Serviço | K89: 4.9.1. | L89: SINAPI | M89: 93184 | N89: VERGA PRÉ-MOLDADA PARA PORTAS COM ATÉ 1,5 M DE VÃO. AF_03/2016 | O89: M | P89: 16 | R89: BDI 1 | S89: 0 | T89: 0 | U89: SEM VALOR | V89: =IF(OR($A89=0,$A89="S",$A89>CFF!$A$9),"",MAX(V$12:OFFSET(V89,-1,0))+1) ->  | W89: SINAPI-93184 | Y89: 21.89 | Z89: =ROUND(IF(ISNUMBER(R89),R89,IF(LEFT(R89,3)="BDI",HLOOKUP(R89,DADOS!$T$37:$X$38,2,FALSE),0)),15-11*$X$5) -> 0.2639
A90: S | B90: 0 | C90: 4 | D90: 9 | E90: 0 | F90: 0 | G90: 2 | H90: 0 | I90: 0 | J90: Serviço | K90: 4.9.2. | L90: SINAPI | M90: 93185 | N90: VERGA PRÉ-MOLDADA PARA PORTAS COM MAIS DE 1,5 M DE VÃO. AF_03/2016 | O90: M | P90: 5.3 | R90: BDI 1 | S90: 0 | T90: 0 | U90: SEM VALOR | V90: =IF(OR($A90=0,$A90="S",$A90>CFF!$A$9),"",MAX(V$12:OFFSET(V90,-1,0))+1) ->  | W90: SINAPI-93185 | Y90: 36.19 | Z90: =ROUND(IF(ISNUMBER(R90),R90,IF(LEFT(R90,3)="BDI",HLOOKUP(R90,DADOS!$T$37:$X$38,2,FALSE),0)),15-11*$X$5) -> 0.2639
A91: S | B91: 0 | C91: 4 | D91: 9 | E91: 0 | F91: 0 | G91: 3 | H91: 0 | I91: 0 | J91: Serviço | K91: 4.9.3. | L91: SINAPI | M91: 93182 | N91: VERGA PRÉ-MOLDADA PARA JANELAS COM ATÉ 1,5 M DE VÃO. AF_03/2016 | O91: M | P91: 13 | R91: BDI 1 | S91: 0 | T91: 0 | U91: SEM VALOR | V91: =IF(OR($A91=0,$A91="S",$A91>CFF!$A$9),"",MAX(V$12:OFFSET(V91,-1,0))+1) ->  | W91: SINAPI-93182 | Y91: 28.78 | Z91: =ROUND(IF(ISNUMBER(R91),R91,IF(LEFT(R91,3)="BDI",HLOOKUP(R91,DADOS!$T$37:$X$38,2,FALSE),0)),15-11*$X$5) -> 0.2639
A92: S | B92: 0 | C92: 4 | D92: 9 | E92: 0 | F92: 0 | G92: 4 | H92: 0 | I92: 0 | J92: Serviço | K92: 4.9.4. | L92: SINAPI | M92: 93183 | N92: VERGA PRÉ-MOLDADA PARA JANELAS COM MAIS DE 1,5 M DE VÃO. AF_03/2016 | O92: M | P92: 14.05 | R92: BDI 1 | S92: 0 | T92: 0 | U92: SEM VALOR | V92: =IF(OR($A92=0,$A92="S",$A92>CFF!$A$9),"",MAX(V$12:OFFSET(V92,-1,0))+1) ->  | W92: SINAPI-93183 | Y92: 36.77 | Z92: =ROUND(IF(ISNUMBER(R92),R92,IF(LEFT(R92,3)="BDI",HLOOKUP(R92,DADOS!$T$37:$X$38,2,FALSE),0)),15-11*$X$5) -> 0.2639
A93: S | B93: 0 | C93: 4 | D93: 9 | E93: 0 | F93: 0 | G93: 5 | H93: 0 | I93: 0 | J93: Serviço | K93: 4.9.5. | L93: SINAPI | M93: 93194 | N93: CONTRAVERGA PRÉ-MOLDADA PARA VÃOS DE ATÉ 1,5 M DE COMPRIMENTO. AF_03/2016 | O93: M | P93: 13 | R93: BDI 1 | S93: 0 | T93: 0 | U93: SEM VALOR | V93: =IF(OR($A93=0,$A93="S",$A93>CFF!$A$9),"",MAX(V$12:OFFSET(V93,-1,0))+1) ->  | W93: SINAPI-93194 | Y93: 28.31 | Z93: =ROUND(IF(ISNUMBER(R93),R93,IF(LEFT(R93,3)="BDI",HLOOKUP(R93,DADOS!$T$37:$X$38,2,FALSE),0)),15-11*$X$5) -> 0.2639
A94: =CHOOSE(1+LOG(1+2*(J94="Meta")+4*(J94="Nível 2")+8*(J94="Nível 3")+16*(J94="Nível 4")+32*(J94="Serviço"),2),0,1,2,3,4,"S") -> S | B94: =IF(OR(A94="S",A94=0),0,IF(ISERROR(I94),H94,SMALL(H94:I94,1))) -> 0 | C94: 4 | D94: 9 | E94: 0 | F94: 0 | G94: 6 | H94: 0 | I94: 0 | J94: Serviço | K94: =IF($A94=0,"-",CONCATENATE(C94&".",IF(AND($A$5>=2,$A94>=2),D94&".",""),IF(AND($A$5>=3,$A94>=3),E94&".",""),IF(AND($A$5>=4,$A94>=4),F94&".",""),IF($A94="S",G94&".",""))) -> 4.9.6. | L94: SINAPI | M94: 93195 | N94: CONTRAVERGA PRÉ-MOLDADA PARA VÃOS DE MAIS DE 1,5 M DE COMPRIMENTO. AF_03/2016 | O94: M | P94: 14.05 | R94: BDI 1 | S94: 0 | T94: 0 | U94: SEM VALOR | V94: =IF(OR($A94=0,$A94="S",$A94>CFF!$A$9),"",MAX(V$12:OFFSET(V94,-1,0))+1) ->  | W94: SINAPI-93195 | Y94: 33.95 | Z94: =ROUND(IF(ISNUMBER(R94),R94,IF(LEFT(R94,3)="BDI",HLOOKUP(R94,DADOS!$T$37:$X$38,2,FALSE),0)),15-11*$X$5) -> 0.2639
A95: 1 | B95: 3 | C95: 5 | D95: 0 | E95: 0 | F95: 0 | G95: 0 | H95: 271 | I95: 3 | J95: Meta | K95: 5. | N95: PAREDES E PAINÉIS | P95: 0 | R95: BDI 1 | S95: 0 | T95: 0 | U95: SEM VALOR | V95: =IF(OR($A95=0,$A95="S",$A95>CFF!$A$9),"",MAX(V$12:OFFSET(V95,-1,0))+1) -> 16 | W95: FALSE | X95: X | Y95: 0 | Z95: =ROUND(IF(ISNUMBER(R95),R95,IF(LEFT(R95,3)="BDI",HLOOKUP(R95,DADOS!$T$37:$X$38,2,FALSE),0)),15-11*$X$5) -> 0.2639
A96: 2 | B96: 2 | C96: 5 | D96: 1 | E96: 0 | F96: 0 | G96: 0 | H96: 2 | I96: 5 | J96: Nível 2 | K96: 5.1. | N96: ALVENARIA DE VEDAÇÃO | P96: 0 | R96: BDI 1 | S96: 0 | T96: 0 | U96: SEM VALOR | V96: =IF(OR($A96=0,$A96="S",$A96>CFF!$A$9),"",MAX(V$12:OFFSET(V96,-1,0))+1) -> 17 | W96: FALSE | X96: X | Y96: 0 | Z96: =ROUND(IF(ISNUMBER(R96),R96,IF(LEFT(R96,3)="BDI",HLOOKUP(R96,DADOS!$T$37:$X$38,2,FALSE),0)),15-11*$X$5) -> 0.2639
A97: S | B97: 0 | C97: 5 | D97: 1 | E97: 0 | F97: 0 | G97: 1 | H97: 0 | I97: 0 | J97: Serviço | K97: 5.1.1. | L97: SINAPI | M97: 87513 | N97: ALVENARIA DE VEDAÇÃO DE BLOCOS CERÂMICOS FURADOS NA HORIZONTAL DE 11,5X19X19CM (ESPESSURA 11,5CM) DE PAREDES COM ÁREA LÍQUIDA MENOR QUE 6M² COM VÃOS E ARGAMASSA DE ASSENTAMENTO COM PREPARO EM BETONEIRA. AF_06/2014 | O97: M2 | P97: 284.21 | R97: BDI 1 | S97: 0 | T97: 0 | U97: SEM VALOR | V97: =IF(OR($A97=0,$A97="S",$A97>CFF!$A$9),"",MAX(V$12:OFFSET(V97,-1,0))+1) ->  | W97: SINAPI-87513 | Y97: 82.84 | Z97: =ROUND(IF(ISNUMBER(R97),R97,IF(LEFT(R97,3)="BDI",HLOOKUP(R97,DADOS!$T$37:$X$38,2,FALSE),0)),15-11*$X$5) -> 0.2639
A98: 1 | B98: 19 | C98: 6 | D98: 0 | E98: 0 | F98: 0 | G98: 0 | H98: 268 | I98: 19 | J98: Meta | K98: 6. | N98: ESQUADRIAS | P98: 0 | R98: BDI 1 | S98: 0 | T98: 0 | U98: SEM VALOR | V98: =IF(OR($A98=0,$A98="S",$A98>CFF!$A$9),"",MAX(V$12:OFFSET(V98,-1,0))+1) -> 18 | W98: FALSE | X98: X | Y98: 0 | Z98: =ROUND(IF(ISNUMBER(R98),R98,IF(LEFT(R98,3)="BDI",HLOOKUP(R98,DADOS!$T$37:$X$38,2,FALSE),0)),15-11*$X$5) -> 0.2639
A99: 2 | B99: 2 | C99: 6 | D99: 1 | E99: 0 | F99: 0 | G99: 0 | H99: 18 | I99: 2 | J99: Nível 2 | K99: 6.1. | N99: PORTAS DE VIDRO | P99: 0 | R99: BDI 1 | S99: 0 | T99: 0 | U99: SEM VALOR | V99: =IF(OR($A99=0,$A99="S",$A99>CFF!$A$9),"",MAX(V$12:OFFSET(V99,-1,0))+1) -> 19 | W99: FALSE | X99: X | Y99: 0 | Z99: =ROUND(IF(ISNUMBER(R99),R99,IF(LEFT(R99,3)="BDI",HLOOKUP(R99,DADOS!$T$37:$X$38,2,FALSE),0)),15-11*$X$5) -> 0.2639
A100: S | B100: 0 | C100: 6 | D100: 1 | E100: 0 | F100: 0 | G100: 1 | H100: 0 | I100: 0 | J100: Serviço | K100: 6.1.1. | L100: SINAPI | M100: 68050 | N100: PORTA DE CORRER EM ALUMINIO, COM DUAS FOLHAS PARA VIDRO, INCLUSO VIDRO LISO INCOLOR, FECHADURA E PUXADOR, SEM GUARNICAO/ALIZAR/VISTA | O100: M2 | P100: 9.45 | R100: BDI 1 | S100: 0 | T100: 0 | U100: SEM VALOR | V100: =IF(OR($A100=0,$A100="S",$A100>CFF!$A$9),"",MAX(V$12:OFFSET(V100,-1,0))+1) ->  | W100: SINAPI-68050 | Y100: 624.57 | Z100: =ROUND(IF(ISNUMBER(R100),R100,IF(LEFT(R100,3)="BDI",HLOOKUP(R100,DADOS!$T$37:$X$38,2,FALSE),0)),15-11*$X$5) -> 0.2639
A101: 2 | B101: 8 | C101: 6 | D101: 2 | E101: 0 | F101: 0 | G101: 0 | H101: 16 | I101: 8 | J101: Nível 2 | K101: 6.2. | N101: PORTA DE MADEIRA | P101: 0 | R101: BDI 1 | S101: 0 | T101: 0 | U101: SEM VALOR | V101: =IF(OR($A101=0,$A101="S",$A101>CFF!$A$9),"",MAX(V$12:OFFSET(V101,-1,0))+1) -> 20 | W101: FALSE | X101: X | Y101: 0 | Z101: =ROUND(IF(ISNUMBER(R101),R101,IF(LEFT(R101,3)="BDI",HLOOKUP(R101,DADOS!$T$37:$X$38,2,FALSE),0)),15-11*$X$5) -> 0.2639
A102: S | B102: 0 | C102: 6 | D102: 2 | E102: 0 | F102: 0 | G102: 1 | H102: 0 | I102: 0 | J102: Serviço | K102: 6.2.1. | L102: SINAPI | M102: 90843 | N102: KIT DE PORTA DE MADEIRA PARA PINTURA, SEMI-OCA (LEVE OU MÉDIA), PADRÃO MÉDIO, 80X210CM, ESPESSURA DE 3,5CM, ITENS INCLUSOS: DOBRADIÇAS, MONTAGEM E INSTALAÇÃO DO BATENTE, FECHADURA COM EXECUÇÃO DO FURO - FORNECIMENTO E INSTALAÇÃO. AF_08/2015 | O102: UN | P102: 6 | R102: BDI 1 | S102: 0 | T102: 0 | U102: SEM VALOR | V102: =IF(OR($A102=0,$A102="S",$A102>CFF!$A$9),"",MAX(V$12:OFFSET(V102,-1,0))+1) ->  | W102: SINAPI-90843 | Y102: 1006.89 | Z102: =ROUND(IF(ISNUMBER(R102),R102,IF(LEFT(R102,3)="BDI",HLOOKUP(R102,DADOS!$T$37:$X$38,2,FALSE),0)),15-11*$X$5) -> 0.2639
A103: S | B103: 0 | C103: 6 | D103: 2 | E103: 0 | F103: 0 | G103: 2 | H103: 0 | I103: 0 | J103: Serviço | K103: 6.2.2. | L103: SINAPI | M103: 90841 | N103: KIT DE PORTA DE MADEIRA PARA PINTURA, SEMI-OCA (LEVE OU MÉDIA), PADRÃO MÉDIO, 60X210CM, ESPESSURA DE 3,5CM, ITENS INCLUSOS: DOBRADIÇAS, MONTAGEM E INSTALAÇÃO DO BATENTE, FECHADURA COM EXECUÇÃO DO FURO - FORNECIMENTO E INSTALAÇÃO. AF_08/2015 | O103: UN | P103: 2 | R103: BDI 1 | S103: 0 | T103: 0 | U103: SEM VALOR | V103: =IF(OR($A103=0,$A103="S",$A103>CFF!$A$9),"",MAX(V$12:OFFSET(V103,-1,0))+1) ->  | W103: SINAPI-90841 | Y103: 922.32 | Z103: =ROUND(IF(ISNUMBER(R103),R103,IF(LEFT(R103,3)="BDI",HLOOKUP(R103,DADOS!$T$37:$X$38,2,FALSE),0)),15-11*$X$5) -> 0.2639
A104: S | B104: 0 | C104: 6 | D104: 2 | E104: 0 | F104: 0 | G104: 3 | H104: 0 | I104: 0 | J104: Serviço | K104: 6.2.3. | L104: SINAPI | M104: 73910/8 | N104: PORTA DE MADEIRA COMPENSADA LISA PARA PINTURA, 120X210X3,5CM, 2 FOLHAS, INCLUSO ADUELA 2A, ALIZAR 2A E DOBRADICAS | O104: UN | P104: 2 | R104: BDI 1 | S104: 0 | T104: 0 | U104: SEM VALOR | V104: =IF(OR($A104=0,$A104="S",$A104>CFF!$A$9),"",MAX(V$12:OFFSET(V104,-1,0))+1) ->  | W104: SINAPI-73910/8 | Y104: 951.67 | Z104: =ROUND(IF(ISNUMBER(R104),R104,IF(LEFT(R104,3)="BDI",HLOOKUP(R104,DADOS!$T$37:$X$38,2,FALSE),0)),15-11*$X$5) -> 0.2639
A105: =CHOOSE(1+LOG(1+2*(J105="Meta")+4*(J105="Nível 2")+8*(J105="Nível 3")+16*(J105="Nível 4")+32*(J105="Serviço"),2),0,1,2,3,4,"S") -> S | B105: =IF(OR(A105="S",A105=0),0,IF(ISERROR(I105),H105,SMALL(H105:I105,1))) -> 0 | C105: =IF($A105=1,OFFSET(C105,-1,0)+1,OFFSET(C105,-1,0)) -> 6 | D105: =IF($A105=1,0,IF($A105=2,OFFSET(D105,-1,0)+1,OFFSET(D105,-1,0))) -> 2 | E105: =IF(AND($A105<=2,$A105<>0),0,IF($A105=3,OFFSET(E105,-1,0)+1,OFFSET(E105,-1,0))) -> 0 | F105: =IF(AND($A105<=3,$A105<>0),0,IF($A105=4,OFFSET(F105,-1,0)+1,OFFSET(F105,-1,0))) -> 0 | G105: =IF(AND($A105<=4,$A105<>0),0,IF($A105="S",OFFSET(G105,-1,0)+1,OFFSET(G105,-1,0))) -> 4 | H105: 0 | I105: 0 | J105: Serviço | K105: =IF($A105=0,"-",CONCATENATE(C105&".",IF(AND($A$5>=2,$A105>=2),D105&".",""),IF(AND($A$5>=3,$A105>=3),E105&".",""),IF(AND($A$5>=4,$A105>=4),F105&".",""),IF($A105="S",G105&".",""))) -> 6.2.4. | L105: SINAPI | M105: 90844 | N105: KIT DE PORTA DE MADEIRA PARA PINTURA, SEMI-OCA (LEVE OU MÉDIA), PADRÃO MÉDIO, 90X210CM, ESPESSURA DE 3,5CM, ITENS INCLUSOS: DOBRADIÇAS, MONTAGEM E INSTALAÇÃO DO BATENTE, FECHADURA COM EXECUÇÃO DO FURO - FORNECIMENTO E INSTALAÇÃO. AF_08/2015 | O105: UN | P105: 2 | R105: BDI 1 | S105: =IF($A105="S",IF($Q$10="Preço Unitário (R$)",PO.CustoUnitario,ROUND(PO.CustoUnitario*(1+$Z105),15-13*$X$6)),0) -> 0 | T105: =IF($A105="S",VTOTAL1,IF($A105=0,0,ROUND(SomaAgrup,15-13*$X$7))) -> 0 | U105: =IF($J105="","",IF($N105="","DESCRIÇÃO",IF(AND($J105="Serviço",$O105=""),"UNIDADE",IF($T105<=0,"SEM VALOR",IF(AND($Y105<>"",$Q105>$Y105),"ACIMA REF.",""))))) -> SEM VALOR | V105: =IF(OR($A105=0,$A105="S",$A105>CFF!$A$9),"",MAX(V$12:OFFSET(V105,-1,0))+1) ->  | W105: =IF(AND($J105="Serviço",$M105<>""),IF($L105="",$M105,CONCATENATE($L105,"-",$M105))) -> SINAPI-90844 | X105: =IF(AND(Fonte<>"",Código<>""),MATCH(Fonte&" "&IF(Fonte="sinapi",SUBSTITUTE(SUBSTITUTE(Código,"/00","/"),"/0","/"),Código),INDIRECT("'[Referência "&_xlnm.Database&".xls]Banco'!$a:$a"),0),"X") ->  | Y105: 1043.93 | Z105: =ROUND(IF(ISNUMBER(R105),R105,IF(LEFT(R105,3)="BDI",HLOOKUP(R105,DADOS!$T$37:$X$38,2,FALSE),0)),15-11*$X$5) -> 0.2639
A106: S | B106: 0 | C106: 6 | D106: 2 | E106: 0 | F106: 0 | G106: 5 | H106: 0 | I106: 0 | J106: Serviço | K106: 6.2.5. | L106: SINAPI | M106: 91306 | N106: FECHADURA DE EMBUTIR PARA PORTAS INTERNAS, COMPLETA, ACABAMENTO PADRÃO MÉDIO, COM EXECUÇÃO DE FURO - FORNECIMENTO E INSTALAÇÃO. AF_08/2015 | O106: UN | P106: 2 | R106: BDI 1 | S106: 0 | T106: 0 | U106: SEM VALOR | V106: =IF(OR($A106=0,$A106="S",$A106>CFF!$A$9),"",MAX(V$12:OFFSET(V106,-1,0))+1) ->  | W106: SINAPI-91306 | Y106: 100.95 | Z106: =ROUND(IF(ISNUMBER(R106),R106,IF(LEFT(R106,3)="BDI",HLOOKUP(R106,DADOS!$T$37:$X$38,2,FALSE),0)),15-11*$X$5) -> 0.2639
A107: S | B107: 0 | C107: 6 | D107: 2 | E107: 0 | F107: 0 | G107: 6 | H107: 0 | I107: 0 | J107: Serviço | K107: 6.2.6. | L107: SINAPI-I | M107: 12760 | N107: CHAPA ACO INOX AISI 304 NUMERO 4 (E = 6 MM), ACABAMENTO NUMERO 1 (LAMINADO A QUENTE, FOSCO) | O107: M2 | P107: 0.72 | R107: BDI 1 | S107: 0 | T107: 0 | U107: SEM VALOR | V107: =IF(OR($A107=0,$A107="S",$A107>CFF!$A$9),"",MAX(V$12:OFFSET(V107,-1,0))+1) ->  | W107: SINAPI-I-12760 | Y107: 1175.19 | Z107: =ROUND(IF(ISNUMBER(R107),R107,IF(LEFT(R107,3)="BDI",HLOOKUP(R107,DADOS!$T$37:$X$38,2,FALSE),0)),15-11*$X$5) -> 0.2639
A108: S | B108: 0 | C108: 6 | D108: 2 | E108: 0 | F108: 0 | G108: 7 | H108: 0 | I108: 0 | J108: Serviço | K108: 6.2.7. | L108: SINAPI-I | M108: 36204 | N108: BARRA DE APOIO RETA, EM ACO INOX POLIDO, COMPRIMENTO 60CM, DIAMETRO MINIMO 3 CM | O108: UN | P108: 2 | R108: BDI 1 | S108: 0 | T108: 0 | U108: SEM VALOR | V108: =IF(OR($A108=0,$A108="S",$A108>CFF!$A$9),"",MAX(V$12:OFFSET(V108,-1,0))+1) ->  | W108: SINAPI-I-36204 | Y108: 216.25 | Z108: =ROUND(IF(ISNUMBER(R108),R108,IF(LEFT(R108,3)="BDI",HLOOKUP(R108,DADOS!$T$37:$X$38,2,FALSE),0)),15-11*$X$5) -> 0.2639
A109: 2 | B109: 3 | C109: 6 | D109: 3 | E109: 0 | F109: 0 | G109: 0 | H109: 8 | I109: 3 | J109: Nível 2 | K109: 6.3. | N109: PORTAS METÁLICAS | P109: 0 | R109: BDI 1 | S109: 0 | T109: 0 | U109: SEM VALOR | V109: =IF(OR($A109=0,$A109="S",$A109>CFF!$A$9),"",MAX(V$12:OFFSET(V109,-1,0))+1) -> 21 | W109: FALSE | X109: X | Y109: 0 | Z109: =ROUND(IF(ISNUMBER(R109),R109,IF(LEFT(R109,3)="BDI",HLOOKUP(R109,DADOS!$T$37:$X$38,2,FALSE),0)),15-11*$X$5) -> 0.2639
A110: S | B110: 0 | C110: 6 | D110: 3 | E110: 0 | F110: 0 | G110: 1 | H110: 0 | I110: 0 | J110: Serviço | K110: 6.3.1. | L110: SINAPI | M110: 74100/1 | N110: PORTAO DE FERRO COM VARA 1/2", COM REQUADRO | O110: M2 | P110: 1.89 | R110: BDI 1 | S110: 0 | T110: 0 | U110: SEM VALOR | V110: =IF(OR($A110=0,$A110="S",$A110>CFF!$A$9),"",MAX(V$12:OFFSET(V110,-1,0))+1) ->  | W110: SINAPI-74100/1 | Y110: 912.69 | Z110: =ROUND(IF(ISNUMBER(R110),R110,IF(LEFT(R110,3)="BDI",HLOOKUP(R110,DADOS!$T$37:$X$38,2,FALSE),0)),15-11*$X$5) -> 0.2639
A111: S | B111: 0 | C111: 6 | D111: 3 | E111: 0 | F111: 0 | G111: 2 | H111: 0 | I111: 0 | J111: Serviço | K111: 6.3.2. | L111: SINAPI | M111: 73933/1 | N111: PORTA DE FERRO, DE ABRIR, TIPO GRADE COM CHAPA, 87X210CM, COM GUARNICOES | O111: M2 | P111: 0.83 | R111: BDI 1 | S111: 0 | T111: 0 | U111: SEM VALOR | V111: =IF(OR($A111=0,$A111="S",$A111>CFF!$A$9),"",MAX(V$12:OFFSET(V111,-1,0))+1) ->  | W111: SINAPI-73933/1 | Y111: 1049.05 | Z111: =ROUND(IF(ISNUMBER(R111),R111,IF(LEFT(R111,3)="BDI",HLOOKUP(R111,DADOS!$T$37:$X$38,2,FALSE),0)),15-11*$X$5) -> 0.2639
A112: 2 | B112: 2 | C112: 6 | D112: 4 | E112: 0 | F112: 0 | G112: 0 | H112: 5 | I112: 2 | J112: Nível 2 | K112: 6.4. | N112: PORTA EM ALUMÍNIO | P112: 0 | R112: BDI 1 | S112: 0 | T112: 0 | U112: SEM VALOR | V112: =IF(OR($A112=0,$A112="S",$A112>CFF!$A$9),"",MAX(V$12:OFFSET(V112,-1,0))+1) -> 22 | W112: FALSE | X112: X | Y112: 0 | Z112: =ROUND(IF(ISNUMBER(R112),R112,IF(LEFT(R112,3)="BDI",HLOOKUP(R112,DADOS!$T$37:$X$38,2,FALSE),0)),15-11*$X$5) -> 0.2639
A113: S | B113: 0 | C113: 6 | D113: 4 | E113: 0 | F113: 0 | G113: 1 | H113: 0 | I113: 0 | J113: Serviço | K113: 6.4.1. | L113: SINAPI | M113: 91341 | N113: PORTA EM ALUMÍNIO DE ABRIR TIPO VENEZIANA COM GUARNIÇÃO, FIXAÇÃO COM PARAFUSOS - FORNECIMENTO E INSTALAÇÃO. AF_08/2015 | O113: M2 | P113: 1.68 | R113: BDI 1 | S113: 0 | T113: 0 | U113: SEM VALOR | V113: =IF(OR($A113=0,$A113="S",$A113>CFF!$A$9),"",MAX(V$12:OFFSET(V113,-1,0))+1) ->  | W113: SINAPI-91341 | Y113: 814.91 | Z113: =ROUND(IF(ISNUMBER(R113),R113,IF(LEFT(R113,3)="BDI",HLOOKUP(R113,DADOS!$T$37:$X$38,2,FALSE),0)),15-11*$X$5) -> 0.2639
A114: 2 | B114: 3 | C114: 6 | D114: 5 | E114: 0 | F114: 0 | G114: 0 | H114: 3 | J114: Nível 2 | K114: 6.5. | N114: JANELAS EM ALUMÍNIO | P114: 0 | R114: BDI 1 | S114: 0 | T114: 0 | U114: SEM VALOR | V114: =IF(OR($A114=0,$A114="S",$A114>CFF!$A$9),"",MAX(V$12:OFFSET(V114,-1,0))+1) -> 23 | W114: FALSE | X114: X | Y114: 0 | Z114: =ROUND(IF(ISNUMBER(R114),R114,IF(LEFT(R114,3)="BDI",HLOOKUP(R114,DADOS!$T$37:$X$38,2,FALSE),0)),15-11*$X$5) -> 0.2639
A115: S | B115: 0 | C115: 6 | D115: 5 | E115: 0 | F115: 0 | G115: 1 | H115: 0 | I115: 0 | J115: Serviço | K115: 6.5.1. | L115: SINAPI | M115: 94581 | N115: JANELA DE ALUMÍNIO MAXIM-AR, FIXAÇÃO COM ARGAMASSA, COM VIDROS, PADRONIZADA. AF_07/2016 | O115: M2 | P115: 4 | R115: BDI 1 | S115: 0 | T115: 0 | U115: SEM VALOR | V115: =IF(OR($A115=0,$A115="S",$A115>CFF!$A$9),"",MAX(V$12:OFFSET(V115,-1,0))+1) ->  | W115: SINAPI-94581 | Y115: 1102.01 | Z115: =ROUND(IF(ISNUMBER(R115),R115,IF(LEFT(R115,3)="BDI",HLOOKUP(R115,DADOS!$T$37:$X$38,2,FALSE),0)),15-11*$X$5) -> 0.2639
A116: S | B116: 0 | C116: 6 | D116: 5 | E116: 0 | F116: 0 | G116: 2 | H116: 0 | I116: 0 | J116: Serviço | K116: 6.5.2. | L116: SINAPI | M116: 94582 | N116: JANELA DE ALUMÍNIO DE CORRER, 2 FOLHAS, FIXAÇÃO COM ARGAMASSA, COM VIDROS, PADRONIZADA. AF_07/2016 | O116: M2 | P116: 19.64 | R116: BDI 1 | S116: 0 | T116: 0 | U116: SEM VALOR | V116: =IF(OR($A116=0,$A116="S",$A116>CFF!$A$9),"",MAX(V$12:OFFSET(V116,-1,0))+1) ->  | W116: SINAPI-94582 | Y116: 704.64 | Z116: =ROUND(IF(ISNUMBER(R116),R116,IF(LEFT(R116,3)="BDI",HLOOKUP(R116,DADOS!$T$37:$X$38,2,FALSE),0)),15-11*$X$5) -> 0.2639
A117: 1 | B117: 12 | C117: 7 | D117: 0 | E117: 0 | F117: 0 | G117: 0 | H117: 249 | I117: 12 | J117: Meta | K117: 7. | N117: COBERTURA | P117: 0 | R117: BDI 1 | S117: 0 | T117: 0 | U117: SEM VALOR | V117: =IF(OR($A117=0,$A117="S",$A117>CFF!$A$9),"",MAX(V$12:OFFSET(V117,-1,0))+1) -> 24 | W117: FALSE | X117: X | Y117: 0 | Z117: =ROUND(IF(ISNUMBER(R117),R117,IF(LEFT(R117,3)="BDI",HLOOKUP(R117,DADOS!$T$37:$X$38,2,FALSE),0)),15-11*$X$5) -> 0.2639
A118: S | B118: 0 | C118: 7 | D118: 0 | E118: 0 | F118: 0 | G118: 1 | H118: 0 | I118: 0 | J118: Serviço | K118: 7.0.1. | L118: SINAPI | M118: 92543 | N118: TRAMA DE MADEIRA COMPOSTA POR TERÇAS PARA TELHADOS DE ATÉ 2 ÁGUAS PARA TELHA ONDULADA DE FIBROCIMENTO, METÁLICA, PLÁSTICA OU TERMOACÚSTICA, INCLUSO TRANSPORTE VERTICAL. AF_12/2015 | O118: M2 | P118: 112.13 | R118: BDI 1 | S118: 0 | T118: 0 | U118: SEM VALOR | V118: =IF(OR($A118=0,$A118="S",$A118>CFF!$A$9),"",MAX(V$12:OFFSET(V118,-1,0))+1) ->  | W118: SINAPI-92543 | Y118: 13.93 | Z118: =ROUND(IF(ISNUMBER(R118),R118,IF(LEFT(R118,3)="BDI",HLOOKUP(R118,DADOS!$T$37:$X$38,2,FALSE),0)),15-11*$X$5) -> 0.2639
A119: S | B119: 0 | C119: 7 | D119: 0 | E119: 0 | F119: 0 | G119: 2 | H119: 0 | I119: 0 | J119: Serviço | K119: 7.0.2. | L119: SINAPI | M119: 92580 | N119: TRAMA DE AÇO COMPOSTA POR TERÇAS PARA TELHADOS DE ATÉ 2 ÁGUAS PARA TELHA ONDULADA DE FIBROCIMENTO, METÁLICA, PLÁSTICA OU TERMOACÚSTICA, INCLUSO TRANSPORTE VERTICAL. AF_12/2015 | O119: M2 | P119: 8.47 | R119: BDI 1 | S119: 0 | T119: 0 | U119: SEM VALOR | V119: =IF(OR($A119=0,$A119="S",$A119>CFF!$A$9),"",MAX(V$12:OFFSET(V119,-1,0))+1) ->  | W119: SINAPI-92580 | Y119: 36.25 | Z119: =ROUND(IF(ISNUMBER(R119),R119,IF(LEFT(R119,3)="BDI",HLOOKUP(R119,DADOS!$T$37:$X$38,2,FALSE),0)),15-11*$X$5) -> 0.2639
A120: S | B120: 0 | C120: 7 | D120: 0 | E120: 0 | F120: 0 | G120: 3 | H120: 0 | I120: 0 | J120: Serviço | K120: 7.0.3. | L120: SINAPI | M120: 94213 | N120: TELHAMENTO COM TELHA DE AÇO/ALUMÍNIO E = 0,5 MM, COM ATÉ 2 ÁGUAS, INCLUSO IÇAMENTO. AF_06/2016 | O120: M2 | P120: 124.47 | R120: BDI 1 | S120: 0 | T120: 0 | U120: SEM VALOR | V120: =IF(OR($A120=0,$A120="S",$A120>CFF!$A$9),"",MAX(V$12:OFFSET(V120,-1,0))+1) ->  | W120: SINAPI-94213 | Y120: 49.32 | Z120: =ROUND(IF(ISNUMBER(R120),R120,IF(LEFT(R120,3)="BDI",HLOOKUP(R120,DADOS!$T$37:$X$38,2,FALSE),0)),15-11*$X$5) -> 0.2639
A121: S | B121: 0 | C121: 7 | D121: 0 | E121: 0 | F121: 0 | G121: 4 | H121: 0 | I121: 0 | J121: Serviço | K121: 7.0.4. | L121: SINAPI | M121: 75220 | N121: CUMEEIRA EM PERFIL ONDULADO DE ALUMÍNIO | O121: M | P121: 12.1 | R121: BDI 1 | S121: 0 | T121: 0 | U121: SEM VALOR | V121: =IF(OR($A121=0,$A121="S",$A121>CFF!$A$9),"",MAX(V$12:OFFSET(V121,-1,0))+1) ->  | W121: SINAPI-75220 | Y121: 41.39 | Z121: =ROUND(IF(ISNUMBER(R121),R121,IF(LEFT(R121,3)="BDI",HLOOKUP(R121,DADOS!$T$37:$X$38,2,FALSE),0)),15-11*$X$5) -> 0.2639
A122: S | B122: 0 | C122: 7 | D122: 0 | E122: 0 | F122: 0 | G122: 5 | H122: 0 | I122: 0 | J122: Serviço | K122: 7.0.5. | L122: SINAPI | M122: 94229 | N122: CALHA EM CHAPA DE AÇO GALVANIZADO NÚMERO 24, DESENVOLVIMENTO DE 100 CM, INCLUSO TRANSPORTE VERTICAL. AF_06/2016 | O122: M | P122: 27.2 | R122: BDI 1 | S122: 0 | T122: 0 | U122: SEM VALOR | V122: =IF(OR($A122=0,$A122="S",$A122>CFF!$A$9),"",MAX(V$12:OFFSET(V122,-1,0))+1) ->  | W122: SINAPI-94229 | Y122: 132.57 | Z122: =ROUND(IF(ISNUMBER(R122),R122,IF(LEFT(R122,3)="BDI",HLOOKUP(R122,DADOS!$T$37:$X$38,2,FALSE),0)),15-11*$X$5) -> 0.2639
A123: S | B123: 0 | C123: 7 | D123: 0 | E123: 0 | F123: 0 | G123: 6 | H123: 0 | I123: 0 | J123: Serviço | K123: 7.0.6. | L123: SINAPI | M123: 94228 | N123: CALHA EM CHAPA DE AÇO GALVANIZADO NÚMERO 24, DESENVOLVIMENTO DE 50 CM, INCLUSO TRANSPORTE VERTICAL. AF_06/2016 | O123: M | P123: 3.15 | R123: BDI 1 | S123: 0 | T123: 0 | U123: SEM VALOR | V123: =IF(OR($A123=0,$A123="S",$A123>CFF!$A$9),"",MAX(V$12:OFFSET(V123,-1,0))+1) ->  | W123: SINAPI-94228 | Y123: 68 | Z123: =ROUND(IF(ISNUMBER(R123),R123,IF(LEFT(R123,3)="BDI",HLOOKUP(R123,DADOS!$T$37:$X$38,2,FALSE),0)),15-11*$X$5) -> 0.2639
A124: S | B124: 0 | C124: 7 | D124: 0 | E124: 0 | F124: 0 | G124: 7 | H124: 0 | I124: 0 | J124: Serviço | K124: 7.0.7. | L124: COMP. | M124: 001 | N124: RUFO EM CHAPA DE AÇO GALVANIZADO NÚMERO 24, DESENVOLVIMENTO DE 100 CM, INCLUSO TRANSPORTE VERTICAL | O124: M | P124: 27.2 | R124: BDI 1 | S124: 0 | T124: 0 | U124: SEM VALOR | V124: =IF(OR($A124=0,$A124="S",$A124>CFF!$A$9),"",MAX(V$12:OFFSET(V124,-1,0))+1) ->  | W124: COMP.-001 | Y124: 100.71 | Z124: =ROUND(IF(ISNUMBER(R124),R124,IF(LEFT(R124,3)="BDI",HLOOKUP(R124,DADOS!$T$37:$X$38,2,FALSE),0)),15-11*$X$5) -> 0.2639
A125: S | B125: 0 | C125: 7 | D125: 0 | E125: 0 | F125: 0 | G125: 8 | H125: 0 | I125: 0 | J125: Serviço | K125: 7.0.8. | L125: COMP. | M125: 002 | N125: RUFO EM CHAPA DE AÇO GALVANIZADO NÚMERO 24, DESENVOLVIMENTO MÉDIO DE 50 CM, INCLUSO TRANSPORTE VERTICAL | O125: M | P125: 40.58 | R125: BDI 1 | S125: 0 | T125: 0 | U125: SEM VALOR | V125: =IF(OR($A125=0,$A125="S",$A125>CFF!$A$9),"",MAX(V$12:OFFSET(V125,-1,0))+1) ->  | W125: COMP.-002 | Y125: 50.68 | Z125: =ROUND(IF(ISNUMBER(R125),R125,IF(LEFT(R125,3)="BDI",HLOOKUP(R125,DADOS!$T$37:$X$38,2,FALSE),0)),15-11*$X$5) -> 0.2639
A126: S | B126: 0 | C126: 7 | D126: 0 | E126: 0 | F126: 0 | G126: 9 | H126: 0 | I126: 0 | J126: Serviço | K126: 7.0.9. | L126: SINAPI | M126: 71623 | N126: CHAPIM DE CONCRETO APARENTE COM ACABAMENTO DESEMPENADO, FORMA DE COMPENSADO PLASTIFICADO (MADEIRIT) DE 14 X 10 CM, FUNDIDO NO LOCAL. | O126: M | P126: 14.55 | R126: BDI 1 | S126: 0 | T126: 0 | U126: SEM VALOR | V126: =IF(OR($A126=0,$A126="S",$A126>CFF!$A$9),"",MAX(V$12:OFFSET(V126,-1,0))+1) ->  | W126: SINAPI-71623 | Y126: 32.2 | Z126: =ROUND(IF(ISNUMBER(R126),R126,IF(LEFT(R126,3)="BDI",HLOOKUP(R126,DADOS!$T$37:$X$38,2,FALSE),0)),15-11*$X$5) -> 0.2639
A127: S | B127: 0 | C127: 7 | D127: 0 | E127: 0 | F127: 0 | G127: 10 | H127: 0 | I127: 0 | J127: Serviço | K127: 7.0.10. | L127: SINAPI | M127: 73968/1 | N127: MANTA IMPERMEABILIZANTE A BASE DE ASFALTO - FORNECIMENTO E INSTALACAO | O127: M2 | P127: 0.62 | R127: BDI 1 | S127: 0 | T127: 0 | U127: SEM VALOR | V127: =IF(OR($A127=0,$A127="S",$A127>CFF!$A$9),"",MAX(V$12:OFFSET(V127,-1,0))+1) ->  | W127: SINAPI-73968/1 | Y127: 48.21 | Z127: =ROUND(IF(ISNUMBER(R127),R127,IF(LEFT(R127,3)="BDI",HLOOKUP(R127,DADOS!$T$37:$X$38,2,FALSE),0)),15-11*$X$5) -> 0.2639
A128: S | B128: 0 | C128: 7 | D128: 0 | E128: 0 | F128: 0 | G128: 11 | H128: 0 | I128: 0 | J128: Serviço | K128: 7.0.11. | L128: SINAPI | M128: 98560 | N128: IMPERMEABILIZAÇÃO DE PISO COM ARGAMASSA DE CIMENTO E AREIA, COM ADITIVO IMPERMEABILIZANTE, E = 2CM. AF_06/2018 | O128: M2 | P128: 8.16 | R128: BDI 1 | S128: 0 | T128: 0 | U128: SEM VALOR | V128: =IF(OR($A128=0,$A128="S",$A128>CFF!$A$9),"",MAX(V$12:OFFSET(V128,-1,0))+1) ->  | W128: SINAPI-98560 | Y128: 41.72 | Z128: =ROUND(IF(ISNUMBER(R128),R128,IF(LEFT(R128,3)="BDI",HLOOKUP(R128,DADOS!$T$37:$X$38,2,FALSE),0)),15-11*$X$5) -> 0.2639
A129: 1 | B129: 4 | C129: 8 | D129: 0 | E129: 0 | F129: 0 | G129: 0 | H129: 237 | I129: 4 | J129: Meta | K129: 8. | N129: IMPERMEABILIZAÇÃO | P129: 0 | R129: BDI 1 | S129: 0 | T129: 0 | U129: SEM VALOR | V129: =IF(OR($A129=0,$A129="S",$A129>CFF!$A$9),"",MAX(V$12:OFFSET(V129,-1,0))+1) -> 25 | W129: FALSE | X129: X | Y129: 0 | Z129: =ROUND(IF(ISNUMBER(R129),R129,IF(LEFT(R129,3)="BDI",HLOOKUP(R129,DADOS!$T$37:$X$38,2,FALSE),0)),15-11*$X$5) -> 0.2639
A130: S | B130: 0 | C130: 8 | D130: 0 | E130: 0 | F130: 0 | G130: 1 | H130: 0 | I130: 0 | J130: Serviço | K130: 8.0.1. | L130: SINAPI | M130: 74106/1 | N130: IMPERMEABILIZACAO DE ESTRUTURAS ENTERRADAS, COM TINTA ASFALTICA, DUAS DEMAOS. | O130: M2 | P130: 64.38 | R130: BDI 1 | S130: 0 | T130: 0 | U130: SEM VALOR | V130: =IF(OR($A130=0,$A130="S",$A130>CFF!$A$9),"",MAX(V$12:OFFSET(V130,-1,0))+1) ->  | W130: SINAPI-74106/1 | Y130: 10.93 | Z130: =ROUND(IF(ISNUMBER(R130),R130,IF(LEFT(R130,3)="BDI",HLOOKUP(R130,DADOS!$T$37:$X$38,2,FALSE),0)),15-11*$X$5) -> 0.2639
A131: S | B131: 0 | C131: 8 | D131: 0 | E131: 0 | F131: 0 | G131: 2 | H131: 0 | I131: 0 | J131: Serviço | K131: 8.0.2. | L131: SINAPI | M131: 98546 | N131: IMPERMEABILIZAÇÃO DE SUPERFÍCIE COM MANTA ASFÁLTICA, UMA CAMADA, INCLUSIVE APLICAÇÃO DE PRIMER ASFÁLTICO, E=3MM. AF_06/2018 | O131: M2 | P131: 28.62 | R131: BDI 1 | S131: 0 | T131: 0 | U131: SEM VALOR | V131: =IF(OR($A131=0,$A131="S",$A131>CFF!$A$9),"",MAX(V$12:OFFSET(V131,-1,0))+1) ->  | W131: SINAPI-98546 | Y131: 81.6 | Z131: =ROUND(IF(ISNUMBER(R131),R131,IF(LEFT(R131,3)="BDI",HLOOKUP(R131,DADOS!$T$37:$X$38,2,FALSE),0)),15-11*$X$5) -> 0.2639
A132: S | B132: 0 | C132: 8 | D132: 0 | E132: 0 | F132: 0 | G132: 3 | H132: 0 | I132: 0 | J132: Serviço | K132: 8.0.3. | L132: SINAPI | M132: 98565 | N132: PROTEÇÃO MECÂNICA DE SUPERFICIE HORIZONTAL COM ARGAMASSA DE CIMENTO E AREIA, TRAÇO 1:3, E=3CM. AF_06/2018 | O132: M2 | P132: 28.62 | R132: BDI 1 | S132: 0 | T132: 0 | U132: SEM VALOR | V132: =IF(OR($A132=0,$A132="S",$A132>CFF!$A$9),"",MAX(V$12:OFFSET(V132,-1,0))+1) ->  | W132: SINAPI-98565 | Y132: 42.69 | Z132: =ROUND(IF(ISNUMBER(R132),R132,IF(LEFT(R132,3)="BDI",HLOOKUP(R132,DADOS!$T$37:$X$38,2,FALSE),0)),15-11*$X$5) -> 0.2639
A133: 1 | B133: 8 | C133: 9 | D133: 0 | E133: 0 | F133: 0 | G133: 0 | H133: 233 | I133: 8 | J133: Meta | K133: 9. | N133: REVESTIMENTOS | P133: 0 | R133: BDI 1 | S133: 0 | T133: 0 | U133: SEM VALOR | V133: =IF(OR($A133=0,$A133="S",$A133>CFF!$A$9),"",MAX(V$12:OFFSET(V133,-1,0))+1) -> 26 | W133: FALSE | X133: X | Y133: 0 | Z133: =ROUND(IF(ISNUMBER(R133),R133,IF(LEFT(R133,3)="BDI",HLOOKUP(R133,DADOS!$T$37:$X$38,2,FALSE),0)),15-11*$X$5) -> 0.2639
A134: S | B134: 0 | C134: 9 | D134: 0 | E134: 0 | F134: 0 | G134: 1 | H134: 0 | I134: 0 | J134: Serviço | K134: 9.0.1. | L134: SINAPI | M134: 87878 | N134: CHAPISCO APLICADO EM ALVENARIAS E ESTRUTURAS DE CONCRETO INTERNAS, COM COLHER DE PEDREIRO. ARGAMASSA TRAÇO 1:3 COM PREPARO MANUAL. AF_06/2014 | O134: M2 | P134: 569.03 | R134: BDI 1 | S134: 0 | T134: 0 | U134: SEM VALOR | V134: =IF(OR($A134=0,$A134="S",$A134>CFF!$A$9),"",MAX(V$12:OFFSET(V134,-1,0))+1) ->  | W134: SINAPI-87878 | Y134: 3.96 | Z134: =ROUND(IF(ISNUMBER(R134),R134,IF(LEFT(R134,3)="BDI",HLOOKUP(R134,DADOS!$T$37:$X$38,2,FALSE),0)),15-11*$X$5) -> 0.2639
A135: S | B135: 0 | C135: 9 | D135: 0 | E135: 0 | F135: 0 | G135: 2 | H135: 0 | I135: 0 | J135: Serviço | K135: 9.0.2. | L135: SINAPI | M135: 87904 | N135: CHAPISCO APLICADO EM ALVENARIA (COM PRESENÇA DE VÃOS) E ESTRUTURAS DE CONCRETO DE FACHADA, COM COLHER DE PEDREIRO. ARGAMASSA TRAÇO 1:3 COM PREPARO MANUAL. AF_06/2014 | O135: M2 | P135: 303.8 | R135: BDI 1 | S135: 0 | T135: 0 | U135: SEM VALOR | V135: =IF(OR($A135=0,$A135="S",$A135>CFF!$A$9),"",MAX(V$12:OFFSET(V135,-1,0))+1) ->  | W135: SINAPI-87904 | Y135: 7.89 | Z135: =ROUND(IF(ISNUMBER(R135),R135,IF(LEFT(R135,3)="BDI",HLOOKUP(R135,DADOS!$T$37:$X$38,2,FALSE),0)),15-11*$X$5) -> 0.2639
A136: S | B136: 0 | C136: 9 | D136: 0 | E136: 0 | F136: 0 | G136: 3 | H136: 0 | I136: 0 | J136: Serviço | K136: 9.0.3. | L136: SINAPI | M136: 87549 | N136: EMBOÇO, PARA RECEBIMENTO DE CERÂMICA, EM ARGAMASSA TRAÇO 1:2:8, PREPARO MECÂNICO COM BETONEIRA 400L, APLICADO MANUALMENTE EM FACES INTERNAS DE PAREDES, PARA AMBIENTE COM ÁREA ENTRE 5M2 E 10M2, ESPESSURA DE 10MM, COM EXECUÇÃO DE TALISCAS. AF_06/2014 | O136: M2 | P136: 110.83 | R136: BDI 1 | S136: 0 | T136: 0 | U136: SEM VALOR | V136: =IF(OR($A136=0,$A136="S",$A136>CFF!$A$9),"",MAX(V$12:OFFSET(V136,-1,0))+1) ->  | W136: SINAPI-87549 | Y136: 19.08 | Z136: =ROUND(IF(ISNUMBER(R136),R136,IF(LEFT(R136,3)="BDI",HLOOKUP(R136,DADOS!$T$37:$X$38,2,FALSE),0)),15-11*$X$5) -> 0.2639
A137: S | B137: 0 | C137: 9 | D137: 0 | E137: 0 | F137: 0 | G137: 4 | H137: 0 | I137: 0 | J137: Serviço | K137: 9.0.4. | L137: SINAPI | M137: 87547 | N137: MASSA ÚNICA, PARA RECEBIMENTO DE PINTURA, EM ARGAMASSA TRAÇO 1:2:8, PREPARO MECÂNICO COM BETONEIRA 400L, APLICADA MANUALMENTE EM FACES INTERNAS DE PAREDES, ESPESSURA DE 10MM, COM EXECUÇÃO DE TALISCAS. AF_06/2014 | O137: M2 | P137: 458.2 | R137: BDI 1 | S137: 0 | T137: 0 | U137: SEM VALOR | V137: =IF(OR($A137=0,$A137="S",$A137>CFF!$A$9),"",MAX(V$12:OFFSET(V137,-1,0))+1) ->  | W137: SINAPI-87547 | Y137: 20.21 | Z137: =ROUND(IF(ISNUMBER(R137),R137,IF(LEFT(R137,3)="BDI",HLOOKUP(R137,DADOS!$T$37:$X$38,2,FALSE),0)),15-11*$X$5) -> 0.2639
A138: S | B138: 0 | C138: 9 | D138: 0 | E138: 0 | F138: 0 | G138: 5 | H138: 0 | I138: 0 | J138: Serviço | K138: 9.0.5. | L138: COMP. | M138: 045 | N138: EMBOÇO OU MASSA ÚNICA EM ARGAMASSA TRAÇO 1:2:8, PREPARO MANUAL, APLICADA MANUALMENTE EM PANOS DE FACHADA COM PRESENÇA DE VÃOS, ESPESSURA DE 15 MM | O138: M2 | P138: 303.8 | R138: BDI 1 | S138: 0 | T138: 0 | U138: SEM VALOR | V138: =IF(OR($A138=0,$A138="S",$A138>CFF!$A$9),"",MAX(V$12:OFFSET(V138,-1,0))+1) ->  | W138: COMP.-045 | Y138: 31.5 | Z138: =ROUND(IF(ISNUMBER(R138),R138,IF(LEFT(R138,3)="BDI",HLOOKUP(R138,DADOS!$T$37:$X$38,2,FALSE),0)),15-11*$X$5) -> 0.2639
A139: S | B139: 0 | C139: 9 | D139: 0 | E139: 0 | F139: 0 | G139: 6 | H139: 0 | I139: 0 | J139: Serviço | K139: 9.0.6. | L139: SINAPI | M139: 87543 | N139: MASSA ÚNICA, PARA RECEBIMENTO DE PINTURA OU CERÂMICA, ARGAMASSA INDUSTRIALIZADA, PREPARO MECÂNICO, APLICADO COM EQUIPAMENTO DE MISTURA E PROJEÇÃO DE 1,5 M3/H EM FACES INTERNAS DE PAREDES, ESPESSURA DE 5MM, SEM EXECUÇÃO DE TALISCAS. AF_06/2014 | O139: M2 | P139: 242.44 | R139: BDI 1 | S139: 0 | T139: 0 | U139: SEM VALOR | V139: =IF(OR($A139=0,$A139="S",$A139>CFF!$A$9),"",MAX(V$12:OFFSET(V139,-1,0))+1) ->  | W139: SINAPI-87543 | Y139: 15.63 | Z139: =ROUND(IF(ISNUMBER(R139),R139,IF(LEFT(R139,3)="BDI",HLOOKUP(R139,DADOS!$T$37:$X$38,2,FALSE),0)),15-11*$X$5) -> 0.2639
A140: S | B140: 0 | C140: 9 | D140: 0 | E140: 0 | F140: 0 | G140: 7 | H140: 0 | I140: 0 | J140: Serviço | K140: 9.0.7. | L140: COMP. | M140: 046 | N140: REVESTIMENTO CERÂMICO PARA PAREDES INTERNAS COM PLACAS TIPO ESMALTADA EXTRA DE DIMENSÕES 30X40 CM APLICADAS EM AMBIENTES DE ÁREA MENOR QUE 5 M² NA ALTURA INTEIRA DAS PAREDES | O140: M2 | P140: 110.83 | R140: BDI 1 | S140: 0 | T140: 0 | U140: SEM VALOR | V140: =IF(OR($A140=0,$A140="S",$A140>CFF!$A$9),"",MAX(V$12:OFFSET(V140,-1,0))+1) ->  | W140: COMP.-046 | Y140: 72.64 | Z140: =ROUND(IF(ISNUMBER(R140),R140,IF(LEFT(R140,3)="BDI",HLOOKUP(R140,DADOS!$T$37:$X$38,2,FALSE),0)),15-11*$X$5) -> 0.2639
A141: 1 | B141: 7 | C141: 10 | D141: 0 | E141: 0 | F141: 0 | G141: 0 | H141: =IF(OR($A141="S",$A141=0),0,MATCH(0,OFFSET($B141,1,$A141,ROW($A$366)-ROW($A141)),0)) -> 225 | I141: =IF(OR($A141="S",$A141=0),0,MATCH(OFFSET($B141,0,$A141)+1,OFFSET($B141,1,$A141,ROW($A$366)-ROW($A141)),0)) -> 7 | J141: Meta | K141: 10. | N141: PISOS | P141: 0 | R141: BDI 1 | S141: 0 | T141: 0 | U141: SEM VALOR | V141: =IF(OR($A141=0,$A141="S",$A141>CFF!$A$9),"",MAX(V$12:OFFSET(V141,-1,0))+1) -> 27 | W141: FALSE | X141: X | Y141: 0 | Z141: =ROUND(IF(ISNUMBER(R141),R141,IF(LEFT(R141,3)="BDI",HLOOKUP(R141,DADOS!$T$37:$X$38,2,FALSE),0)),15-11*$X$5) -> 0.2639
A142: 2 | B142: 6 | C142: 10 | D142: 1 | E142: 0 | F142: 0 | G142: 0 | H142: 6 | I142: 43 | J142: Nível 2 | K142: 10.1. | N142: PAVIMENTAÇÃO INTERNA | P142: 0 | R142: BDI 1 | S142: 0 | T142: 0 | U142: SEM VALOR | V142: =IF(OR($A142=0,$A142="S",$A142>CFF!$A$9),"",MAX(V$12:OFFSET(V142,-1,0))+1) -> 28 | W142: FALSE | X142: X | Y142: 0 | Z142: =ROUND(IF(ISNUMBER(R142),R142,IF(LEFT(R142,3)="BDI",HLOOKUP(R142,DADOS!$T$37:$X$38,2,FALSE),0)),15-11*$X$5) -> 0.2639
A143: S | B143: 0 | C143: 10 | D143: 1 | E143: 0 | F143: 0 | G143: 1 | H143: 0 | I143: 0 | J143: Serviço | K143: 10.1.1. | L143: COMP. | M143: 037 | N143: CONCRETAGEM DE LAJE SOBRE SOLO, FCK 25 MPA, ESPESSURA DE 7 CM, INCLUSO TELA SOLDADA NERVURADA Q-92 E BASE DE BRITA (5 CM) - LANÇAMENTO, ADENSAMENTO E ACABAMENTO | O143: M2 | P143: 150 | R143: BDI 1 | S143: 0 | T143: 0 | U143: SEM VALOR | V143: =IF(OR($A143=0,$A143="S",$A143>CFF!$A$9),"",MAX(V$12:OFFSET(V143,-1,0))+1) ->  | W143: COMP.-037 | Y143: 51.4 | Z143: =ROUND(IF(ISNUMBER(R143),R143,IF(LEFT(R143,3)="BDI",HLOOKUP(R143,DADOS!$T$37:$X$38,2,FALSE),0)),15-11*$X$5) -> 0.2639
A144: S | B144: 0 | C144: 10 | D144: 1 | E144: 0 | F144: 0 | G144: 2 | H144: 0 | I144: 0 | J144: Serviço | K144: 10.1.2. | L144: SINAPI | M144: 68053 | N144: FORNECIMENTO/INSTALACAO LONA PLASTICA PRETA, PARA IMPERMEABILIZACAO, ESPESSURA 150 MICRAS. | O144: M2 | P144: 148.3 | R144: BDI 1 | S144: 0 | T144: 0 | U144: SEM VALOR | V144: =IF(OR($A144=0,$A144="S",$A144>CFF!$A$9),"",MAX(V$12:OFFSET(V144,-1,0))+1) ->  | W144: SINAPI-68053 | Y144: 5.52 | Z144: =ROUND(IF(ISNUMBER(R144),R144,IF(LEFT(R144,3)="BDI",HLOOKUP(R144,DADOS!$T$37:$X$38,2,FALSE),0)),15-11*$X$5) -> 0.2639
A145: S | B145: 0 | C145: 10 | D145: 1 | E145: 0 | F145: 0 | G145: 3 | H145: 0 | I145: 0 | J145: Serviço | K145: 10.1.3. | L145: SINAPI | M145: 87622 | N145: CONTRAPISO EM ARGAMASSA TRAÇO 1:4 (CIMENTO E AREIA), PREPARO MANUAL, APLICADO EM ÁREAS SECAS SOBRE LAJE, ADERIDO, ESPESSURA 2CM. AF_06/2014 | O145: M2 | P145: 148.3 | R145: BDI 1 | S145: 0 | T145: 0 | U145: SEM VALOR | V145: =IF(OR($A145=0,$A145="S",$A145>CFF!$A$9),"",MAX(V$12:OFFSET(V145,-1,0))+1) ->  | W145: SINAPI-87622 | Y145: 34.04 | Z145: =ROUND(IF(ISNUMBER(R145),R145,IF(LEFT(R145,3)="BDI",HLOOKUP(R145,DADOS!$T$37:$X$38,2,FALSE),0)),15-11*$X$5) -> 0.2639
A146: S | B146: 0 | C146: 10 | D146: 1 | E146: 0 | F146: 0 | G146: 4 | H146: 0 | I146: 0 | J146: Serviço | K146: 10.1.4. | L146: SINAPI | M146: 87251 | N146: REVESTIMENTO CERÂMICO PARA PISO COM PLACAS TIPO ESMALTADA EXTRA DE DIMENSÕES 45X45 CM APLICADA EM AMBIENTES DE ÁREA MAIOR QUE 10 M2. AF_06/2014 | O146: M2 | P146: 146.82 | R146: BDI 1 | S146: 0 | T146: 0 | U146: SEM VALOR | V146: =IF(OR($A146=0,$A146="S",$A146>CFF!$A$9),"",MAX(V$12:OFFSET(V146,-1,0))+1) ->  | W146: SINAPI-87251 | Y146: 35.33 | Z146: =ROUND(IF(ISNUMBER(R146),R146,IF(LEFT(R146,3)="BDI",HLOOKUP(R146,DADOS!$T$37:$X$38,2,FALSE),0)),15-11*$X$5) -> 0.2639
A147: S | B147: 0 | C147: 10 | D147: 1 | E147: 0 | F147: 0 | G147: 5 | H147: 0 | I147: 0 | J147: Serviço | K147: 10.1.5. | L147: COMP. | M147: 027 | N147: PISO PODOTÁTIL INTERNO EM BORRACHA 25x25cm, E = 5 mm, ASSENTAMENTO COM COLA VINIL (FORNECIMENTO E ASSENTAMENTO) | O147: M2 | P147: 5.93 | R147: BDI 1 | S147: 0 | T147: 0 | U147: SEM VALOR | V147: =IF(OR($A147=0,$A147="S",$A147>CFF!$A$9),"",MAX(V$12:OFFSET(V147,-1,0))+1) ->  | W147: COMP.-027 | Y147: 182.05 | Z147: =ROUND(IF(ISNUMBER(R147),R147,IF(LEFT(R147,3)="BDI",HLOOKUP(R147,DADOS!$T$37:$X$38,2,FALSE),0)),15-11*$X$5) -> 0.2639
A148: 1 | B148: 7 | C148: 11 | D148: 0 | E148: 0 | F148: 0 | G148: 0 | H148: 218 | I148: 7 | J148: Meta | K148: 11. | N148: PAVIMENTAÇÃO EXTERNA | P148: 0 | R148: BDI 1 | S148: 0 | T148: 0 | U148: SEM VALOR | V148: =IF(OR($A148=0,$A148="S",$A148>CFF!$A$9),"",MAX(V$12:OFFSET(V148,-1,0))+1) -> 29 | W148: FALSE | X148: X | Y148: 0 | Z148: =ROUND(IF(ISNUMBER(R148),R148,IF(LEFT(R148,3)="BDI",HLOOKUP(R148,DADOS!$T$37:$X$38,2,FALSE),0)),15-11*$X$5) -> 0.2639
A149: S | B149: 0 | C149: 11 | D149: 0 | E149: 0 | F149: 0 | G149: 1 | H149: 0 | I149: 0 | J149: Serviço | K149: 11.0.1. | L149: SINAPI | M149: 92398 | N149: EXECUÇÃO DE PÁTIO/ESTACIONAMENTO EM PISO INTERTRAVADO, COM BLOCO RETANGULAR COR NATURAL DE 20 X 10 CM, ESPESSURA 8 CM. AF_12/2015 | O149: M2 | P149: 222.97 | R149: BDI 1 | S149: 0 | T149: 0 | U149: SEM VALOR | V149: =IF(OR($A149=0,$A149="S",$A149>CFF!$A$9),"",MAX(V$12:OFFSET(V149,-1,0))+1) ->  | W149: SINAPI-92398 | Y149: 57.36 | Z149: =ROUND(IF(ISNUMBER(R149),R149,IF(LEFT(R149,3)="BDI",HLOOKUP(R149,DADOS!$T$37:$X$38,2,FALSE),0)),15-11*$X$5) -> 0.2639
A150: S | B150: 0 | C150: 11 | D150: 0 | E150: 0 | F150: 0 | G150: 2 | H150: 0 | I150: 0 | J150: Serviço | K150: 11.0.2. | L150: SINAPI | M150: 94276 | N150: ASSENTAMENTO DE GUIA (MEIO-FIO) EM TRECHO CURVO, CONFECCIONADA EM CONCRETO PRÉ-FABRICADO, DIMENSÕES 100X15X13X20 CM (COMPRIMENTO X BASE INFERIOR X BASE SUPERIOR X ALTURA), PARA URBANIZAÇÃO INTERNA DE EMPREENDIMENTOS. AF_06/2016_P | O150: M | P150: 63.24 | R150: BDI 1 | S150: 0 | T150: 0 | U150: SEM VALOR | V150: =IF(OR($A150=0,$A150="S",$A150>CFF!$A$9),"",MAX(V$12:OFFSET(V150,-1,0))+1) ->  | W150: SINAPI-94276 | Y150: 45.41 | Z150: =ROUND(IF(ISNUMBER(R150),R150,IF(LEFT(R150,3)="BDI",HLOOKUP(R150,DADOS!$T$37:$X$38,2,FALSE),0)),15-11*$X$5) -> 0.2639
A151: S | B151: 0 | C151: 11 | D151: 0 | E151: 0 | F151: 0 | G151: 3 | H151: 0 | I151: 0 | J151: Serviço | K151: 11.0.3. | L151: COMP. | M151: 013 | N151: PISO PODOTÁTIL DE ALERTA/DIRECIONAL, 25 X 25 CM, ESPESSURA 25MM, ASSENTADO COM ARGAMASSA TRACO 1:3 (CIMENTO E AREIA) | O151: M² | P151: 12.41 | R151: BDI 1 | S151: 0 | T151: 0 | U151: SEM VALOR | V151: =IF(OR($A151=0,$A151="S",$A151>CFF!$A$9),"",MAX(V$12:OFFSET(V151,-1,0))+1) ->  | W151: COMP.-013 | Y151: 147.71 | Z151: =ROUND(IF(ISNUMBER(R151),R151,IF(LEFT(R151,3)="BDI",HLOOKUP(R151,DADOS!$T$37:$X$38,2,FALSE),0)),15-11*$X$5) -> 0.2639
A152: =CHOOSE(1+LOG(1+2*(J152="Meta")+4*(J152="Nível 2")+8*(J152="Nível 3")+16*(J152="Nível 4")+32*(J152="Serviço"),2),0,1,2,3,4,"S") -> S | B152: =IF(OR(A152="S",A152=0),0,IF(ISERROR(I152),H152,SMALL(H152:I152,1))) -> 0 | C152: =IF($A152=1,OFFSET(C152,-1,0)+1,OFFSET(C152,-1,0)) -> 11 | D152: =IF($A152=1,0,IF($A152=2,OFFSET(D152,-1,0)+1,OFFSET(D152,-1,0))) -> 0 | E152: =IF(AND($A152<=2,$A152<>0),0,IF($A152=3,OFFSET(E152,-1,0)+1,OFFSET(E152,-1,0))) -> 0 | F152: =IF(AND($A152<=3,$A152<>0),0,IF($A152=4,OFFSET(F152,-1,0)+1,OFFSET(F152,-1,0))) -> 0 | G152: =IF(AND($A152<=4,$A152<>0),0,IF($A152="S",OFFSET(G152,-1,0)+1,OFFSET(G152,-1,0))) -> 4 | H152: 0 | I152: 0 | J152: Serviço | K152: =IF($A152=0,"-",CONCATENATE(C152&".",IF(AND($A$5>=2,$A152>=2),D152&".",""),IF(AND($A$5>=3,$A152>=3),E152&".",""),IF(AND($A$5>=4,$A152>=4),F152&".",""),IF($A152="S",G152&".",""))) -> 11.0.4. | L152: COMP. | M152: 044 | N152: PISO PODOTÁTIL DE ALERTA, 40 X 40 CM, ESPESSURA 25MM, ASSENTADO COM ARGAMASSA TRACO 1:3 (CIMENTO E AREIA) | O152: M² | P152: 0.64 | R152: BDI 1 | S152: =IF($A152="S",IF($Q$10="Preço Unitário (R$)",PO.CustoUnitario,ROUND(PO.CustoUnitario*(1+$Z152),15-13*$X$6)),0) -> 0 | T152: =IF($A152="S",VTOTAL1,IF($A152=0,0,ROUND(SomaAgrup,15-13*$X$7))) -> 0 | U152: =IF($J152="","",IF($N152="","DESCRIÇÃO",IF(AND($J152="Serviço",$O152=""),"UNIDADE",IF($T152<=0,"SEM VALOR",IF(AND($Y152<>"",$Q152>$Y152),"ACIMA REF.",""))))) -> SEM VALOR | V152: =IF(OR($A152=0,$A152="S",$A152>CFF!$A$9),"",MAX(V$12:OFFSET(V152,-1,0))+1) ->  | W152: =IF(AND($J152="Serviço",$M152<>""),IF($L152="",$M152,CONCATENATE($L152,"-",$M152))) -> COMP.-044 | X152: =IF(AND(Fonte<>"",Código<>""),MATCH(Fonte&" "&IF(Fonte="sinapi",SUBSTITUTE(SUBSTITUTE(Código,"/00","/"),"/0","/"),Código),INDIRECT("'[Referência "&_xlnm.Database&".xls]Banco'!$a:$a"),0),"X") ->  | Y152: 147.71 | Z152: =ROUND(IF(ISNUMBER(R152),R152,IF(LEFT(R152,3)="BDI",HLOOKUP(R152,DADOS!$T$37:$X$38,2,FALSE),0)),15-11*$X$5) -> 0.2639
A153: S | B153: 0 | C153: 11 | D153: 0 | E153: 0 | F153: 0 | G153: 5 | H153: 0 | I153: 0 | J153: Serviço | K153: 11.0.5. | L153: SINAPI | M153: 98504 | N153: PLANTIO DE GRAMA EM PLACAS. AF_05/2018 | O153: M2 | P153: 65.34 | R153: BDI 1 | S153: 0 | T153: 0 | U153: SEM VALOR | V153: =IF(OR($A153=0,$A153="S",$A153>CFF!$A$9),"",MAX(V$12:OFFSET(V153,-1,0))+1) ->  | W153: SINAPI-98504 | Y153: 16.22 | Z153: =ROUND(IF(ISNUMBER(R153),R153,IF(LEFT(R153,3)="BDI",HLOOKUP(R153,DADOS!$T$37:$X$38,2,FALSE),0)),15-11*$X$5) -> 0.2639
A154: S | B154: 0 | C154: 11 | D154: 0 | E154: 0 | F154: 0 | G154: 6 | H154: 0 | I154: 0 | J154: Serviço | K154: 11.0.6. | L154: SINAPI | M154: 94993 | N154: EXECUÇÃO DE PASSEIO (CALÇADA) OU PISO DE CONCRETO COM CONCRETO MOLDADO IN LOCO, USINADO, ACABAMENTO CONVENCIONAL, ESPESSURA 6 CM, ARMADO. AF_07/2016 | O154: M2 | P154: 10.96 | R154: BDI 1 | S154: 0 | T154: 0 | U154: SEM VALOR | V154: =IF(OR($A154=0,$A154="S",$A154>CFF!$A$9),"",MAX(V$12:OFFSET(V154,-1,0))+1) ->  | W154: SINAPI-94993 | Y154: 63.38 | Z154: =ROUND(IF(ISNUMBER(R154),R154,IF(LEFT(R154,3)="BDI",HLOOKUP(R154,DADOS!$T$37:$X$38,2,FALSE),0)),15-11*$X$5) -> 0.2639
A155: 1 | B155: 4 | C155: 12 | D155: 0 | E155: 0 | F155: 0 | G155: 0 | H155: 211 | I155: 4 | J155: Meta | K155: 12. | N155: RODAPÉS, PEITORIS E SOLEIRAS | P155: 0 | R155: BDI 1 | S155: 0 | T155: 0 | U155: SEM VALOR | V155: =IF(OR($A155=0,$A155="S",$A155>CFF!$A$9),"",MAX(V$12:OFFSET(V155,-1,0))+1) -> 30 | W155: FALSE | X155: X | Y155: 0 | Z155: =ROUND(IF(ISNUMBER(R155),R155,IF(LEFT(R155,3)="BDI",HLOOKUP(R155,DADOS!$T$37:$X$38,2,FALSE),0)),15-11*$X$5) -> 0.2639
A156: S | B156: 0 | C156: 12 | D156: 0 | E156: 0 | F156: 0 | G156: 1 | H156: 0 | I156: 0 | J156: Serviço | K156: 12.0.1. | L156: COMP. | M156: 025 | N156: PEITORIL DE GRANITO CINZA ANDORINHA L= 19 cm E=2CM, ASSENTADO COM ARGAMASSA TRACO 1:3 (CIMENTO E AREIA MEDIA), COM PINGADEIRA | O156: M | P156: 21.45 | R156: BDI 1 | S156: 0 | T156: 0 | U156: SEM VALOR | V156: =IF(OR($A156=0,$A156="S",$A156>CFF!$A$9),"",MAX(V$12:OFFSET(V156,-1,0))+1) ->  | W156: COMP.-025 | Y156: 89.05 | Z156: =ROUND(IF(ISNUMBER(R156),R156,IF(LEFT(R156,3)="BDI",HLOOKUP(R156,DADOS!$T$37:$X$38,2,FALSE),0)),15-11*$X$5) -> 0.2639
A157: S | B157: 0 | C157: 12 | D157: 0 | E157: 0 | F157: 0 | G157: 2 | H157: 0 | I157: 0 | J157: Serviço | K157: 12.0.2. | L157: COMP. | M157: 024 | N157: SOLEIRA DE GRANITO CINZA ANDORINHA L= 15cm E=2CM, ASSENTADA SOBRE ARGAMASSA TRACO 1:4 (CIMENTO E AREIA) | O157: M | P157: 9.9 | R157: BDI 1 | S157: 0 | T157: 0 | U157: SEM VALOR | V157: =IF(OR($A157=0,$A157="S",$A157>CFF!$A$9),"",MAX(V$12:OFFSET(V157,-1,0))+1) ->  | W157: COMP.-024 | Y157: 103.84 | Z157: =ROUND(IF(ISNUMBER(R157),R157,IF(LEFT(R157,3)="BDI",HLOOKUP(R157,DADOS!$T$37:$X$38,2,FALSE),0)),15-11*$X$5) -> 0.2639
A158: S | B158: 0 | C158: 12 | D158: 0 | E158: 0 | F158: 0 | G158: 3 | H158: 0 | I158: 0 | J158: Serviço | K158: 12.0.3. | L158: SINAPI | M158: 88648 | N158: RODAPÉ CERÂMICO DE 7CM DE ALTURA COM PLACAS TIPO ESMALTADA EXTRA DE DIMENSÕES 35X35CM. AF_06/2014 | O158: M | P158: 101.85 | R158: BDI 1 | S158: 0 | T158: 0 | U158: SEM VALOR | V158: =IF(OR($A158=0,$A158="S",$A158>CFF!$A$9),"",MAX(V$12:OFFSET(V158,-1,0))+1) ->  | W158: SINAPI-88648 | Y158: 5.32 | Z158: =ROUND(IF(ISNUMBER(R158),R158,IF(LEFT(R158,3)="BDI",HLOOKUP(R158,DADOS!$T$37:$X$38,2,FALSE),0)),15-11*$X$5) -> 0.2639
A159: =CHOOSE(1+LOG(1+2*(J159="Meta")+4*(J159="Nível 2")+8*(J159="Nível 3")+16*(J159="Nível 4")+32*(J159="Serviço"),2),0,1,2,3,4,"S") -> 1 | B159: =IF(OR(A159="S",A159=0),0,IF(ISERROR(I159),H159,SMALL(H159:I159,1))) -> 8 | C159: 13 | D159: 0 | E159: 0 | F159: 0 | G159: 0 | H159: 207 | I159: 8 | J159: Meta | K159: =IF($A159=0,"-",CONCATENATE(C159&".",IF(AND($A$5>=2,$A159>=2),D159&".",""),IF(AND($A$5>=3,$A159>=3),E159&".",""),IF(AND($A$5>=4,$A159>=4),F159&".",""),IF($A159="S",G159&".",""))) -> 13. | N159: PINTURA | P159: 0 | R159: BDI 1 | S159: 0 | T159: 0 | U159: SEM VALOR | V159: =IF(OR($A159=0,$A159="S",$A159>CFF!$A$9),"",MAX(V$12:OFFSET(V159,-1,0))+1) -> 31 | W159: FALSE | X159: X | Y159: 0 | Z159: =ROUND(IF(ISNUMBER(R159),R159,IF(LEFT(R159,3)="BDI",HLOOKUP(R159,DADOS!$T$37:$X$38,2,FALSE),0)),15-11*$X$5) -> 0.2639
A160: S | B160: 0 | C160: 13 | D160: 0 | E160: 0 | F160: 0 | G160: 1 | H160: 0 | I160: 0 | J160: Serviço | K160: 13.0.1. | L160: COMP. | M160: 026 | N160: APLICAÇÃO MANUAL DE MASSA ACRÍLICA EM PAREDES INTERNAS E TETOS, DUAS DEMÃOS | O160: M2 | P160: 426.49 | R160: BDI 1 | S160: 0 | T160: 0 | U160: SEM VALOR | V160: =IF(OR($A160=0,$A160="S",$A160>CFF!$A$9),"",MAX(V$12:OFFSET(V160,-1,0))+1) ->  | W160: COMP.-026 | Y160: 21.23 | Z160: =ROUND(IF(ISNUMBER(R160),R160,IF(LEFT(R160,3)="BDI",HLOOKUP(R160,DADOS!$T$37:$X$38,2,FALSE),0)),15-11*$X$5) -> 0.2639
A161: S | B161: 0 | C161: 13 | D161: 0 | E161: 0 | F161: 0 | G161: 2 | H161: 0 | I161: 0 | J161: Serviço | K161: 13.0.2. | L161: SINAPI | M161: 88489 | N161: APLICAÇÃO MANUAL DE PINTURA COM TINTA LÁTEX ACRÍLICA EM PAREDES, DUAS DEMÃOS. AF_06/2014 | O161: M2 | P161: 278.22 | R161: BDI 1 | S161: 0 | T161: 0 | U161: SEM VALOR | V161: =IF(OR($A161=0,$A161="S",$A161>CFF!$A$9),"",MAX(V$12:OFFSET(V161,-1,0))+1) ->  | W161: SINAPI-88489 | Y161: 13.26 | Z161: =ROUND(IF(ISNUMBER(R161),R161,IF(LEFT(R161,3)="BDI",HLOOKUP(R161,DADOS!$T$37:$X$38,2,FALSE),0)),15-11*$X$5) -> 0.2639
A162: S | B162: 0 | C162: 13 | D162: 0 | E162: 0 | F162: 0 | G162: 3 | H162: 0 | I162: 0 | J162: Serviço | K162: 13.0.3. | L162: SINAPI | M162: 88488 | N162: APLICAÇÃO MANUAL DE PINTURA COM TINTA LÁTEX ACRÍLICA EM TETO, DUAS DEMÃOS. AF_06/2014 | O162: M2 | P162: 148.27 | R162: BDI 1 | S162: 0 | T162: 0 | U162: SEM VALOR | V162: =IF(OR($A162=0,$A162="S",$A162>CFF!$A$9),"",MAX(V$12:OFFSET(V162,-1,0))+1) ->  | W162: SINAPI-88488 | Y162: 14.83 | Z162: =ROUND(IF(ISNUMBER(R162),R162,IF(LEFT(R162,3)="BDI",HLOOKUP(R162,DADOS!$T$37:$X$38,2,FALSE),0)),15-11*$X$5) -> 0.2639
A163: S | B163: 0 | C163: 13 | D163: 0 | E163: 0 | F163: 0 | G163: 4 | H163: 0 | I163: 0 | J163: Serviço | K163: 13.0.4. | L163: SINAPI | M163: 88485 | N163: APLICAÇÃO DE FUNDO SELADOR ACRÍLICO EM PAREDES, UMA DEMÃO. AF_06/2014 | O163: M2 | P163: 242.44 | R163: BDI 1 | S163: 0 | T163: 0 | U163: SEM VALOR | V163: =IF(OR($A163=0,$A163="S",$A163>CFF!$A$9),"",MAX(V$12:OFFSET(V163,-1,0))+1) ->  | W163: SINAPI-88485 | Y163: 2.19 | Z163: =ROUND(IF(ISNUMBER(R163),R163,IF(LEFT(R163,3)="BDI",HLOOKUP(R163,DADOS!$T$37:$X$38,2,FALSE),0)),15-11*$X$5) -> 0.2639
A164: S | B164: 0 | C164: 13 | D164: 0 | E164: 0 | F164: 0 | G164: 5 | H164: 0 | I164: 0 | J164: Serviço | K164: 13.0.5. | L164: SINAPI | M164: 88489 | N164: APLICAÇÃO MANUAL DE PINTURA COM TINTA LÁTEX ACRÍLICA EM PAREDES, DUAS DEMÃOS. AF_06/2014 | O164: M2 | P164: 242.44 | R164: BDI 1 | S164: 0 | T164: 0 | U164: SEM VALOR | V164: =IF(OR($A164=0,$A164="S",$A164>CFF!$A$9),"",MAX(V$12:OFFSET(V164,-1,0))+1) ->  | W164: SINAPI-88489 | Y164: 13.26 | Z164: =ROUND(IF(ISNUMBER(R164),R164,IF(LEFT(R164,3)="BDI",HLOOKUP(R164,DADOS!$T$37:$X$38,2,FALSE),0)),15-11*$X$5) -> 0.2639
A165: =CHOOSE(1+LOG(1+2*(J165="Meta")+4*(J165="Nível 2")+8*(J165="Nível 3")+16*(J165="Nível 4")+32*(J165="Serviço"),2),0,1,2,3,4,"S") -> S | B165: =IF(OR(A165="S",A165=0),0,IF(ISERROR(I165),H165,SMALL(H165:I165,1))) -> 0 | C165: =IF($A165=1,OFFSET(C165,-1,0)+1,OFFSET(C165,-1,0)) -> 13 | D165: =IF($A165=1,0,IF($A165=2,OFFSET(D165,-1,0)+1,OFFSET(D165,-1,0))) -> 0 | E165: =IF(AND($A165<=2,$A165<>0),0,IF($A165=3,OFFSET(E165,-1,0)+1,OFFSET(E165,-1,0))) -> 0 | F165: =IF(AND($A165<=3,$A165<>0),0,IF($A165=4,OFFSET(F165,-1,0)+1,OFFSET(F165,-1,0))) -> 0 | G165: =IF(AND($A165<=4,$A165<>0),0,IF($A165="S",OFFSET(G165,-1,0)+1,OFFSET(G165,-1,0))) -> 6 | H165: 0 | I165: 0 | J165: Serviço | K165: =IF($A165=0,"-",CONCATENATE(C165&".",IF(AND($A$5>=2,$A165>=2),D165&".",""),IF(AND($A$5>=3,$A165>=3),E165&".",""),IF(AND($A$5>=4,$A165>=4),F165&".",""),IF($A165="S",G165&".",""))) -> 13.0.6. | L165: SINAPI | M165: 84657 | N165: FUNDO SINTETICO NIVELADOR BRANCO | O165: M2 | P165: 53.55 | R165: BDI 1 | S165: =IF($A165="S",IF($Q$10="Preço Unitário (R$)",PO.CustoUnitario,ROUND(PO.CustoUnitario*(1+$Z165),15-13*$X$6)),0) -> 0 | T165: =IF($A165="S",VTOTAL1,IF($A165=0,0,ROUND(SomaAgrup,15-13*$X$7))) -> 0 | U165: =IF($J165="","",IF($N165="","DESCRIÇÃO",IF(AND($J165="Serviço",$O165=""),"UNIDADE",IF($T165<=0,"SEM VALOR",IF(AND($Y165<>"",$Q165>$Y165),"ACIMA REF.",""))))) -> SEM VALOR | V165: =IF(OR($A165=0,$A165="S",$A165>CFF!$A$9),"",MAX(V$12:OFFSET(V165,-1,0))+1) ->  | W165: =IF(AND($J165="Serviço",$M165<>""),IF($L165="",$M165,CONCATENATE($L165,"-",$M165))) -> SINAPI-84657 | X165: =IF(AND(Fonte<>"",Código<>""),MATCH(Fonte&" "&IF(Fonte="sinapi",SUBSTITUTE(SUBSTITUTE(Código,"/00","/"),"/0","/"),Código),INDIRECT("'[Referência "&_xlnm.Database&".xls]Banco'!$a:$a"),0),"X") ->  | Y165: 11.16 | Z165: =ROUND(IF(ISNUMBER(R165),R165,IF(LEFT(R165,3)="BDI",HLOOKUP(R165,DADOS!$T$37:$X$38,2,FALSE),0)),15-11*$X$5) -> 0.2639
A166: S | B166: 0 | C166: 13 | D166: 0 | E166: 0 | F166: 0 | G166: 7 | H166: 0 | I166: 0 | J166: Serviço | K166: 13.0.7. | L166: SINAPI | M166: 74065/2 | N166: PINTURA ESMALTE ACETINADO PARA MADEIRA, DUAS DEMAOS, SOBRE FUNDO NIVELADOR BRANCO | O166: M2 | P166: 53.55 | R166: BDI 1 | S166: 0 | T166: 0 | U166: SEM VALOR | V166: =IF(OR($A166=0,$A166="S",$A166>CFF!$A$9),"",MAX(V$12:OFFSET(V166,-1,0))+1) ->  | W166: SINAPI-74065/2 | Y166: 25.72 | Z166: =ROUND(IF(ISNUMBER(R166),R166,IF(LEFT(R166,3)="BDI",HLOOKUP(R166,DADOS!$T$37:$X$38,2,FALSE),0)),15-11*$X$5) -> 0.2639
A167: 1 | B167: 29 | C167: 14 | D167: 0 | E167: 0 | F167: 0 | G167: 0 | H167: 199 | I167: 29 | J167: Meta | K167: 14. | N167: INSTALAÇÃO HIDRÁULICA | P167: 0 | R167: BDI 1 | S167: 0 | T167: 0 | U167: SEM VALOR | V167: =IF(OR($A167=0,$A167="S",$A167>CFF!$A$9),"",MAX(V$12:OFFSET(V167,-1,0))+1) -> 32 | W167: FALSE | X167: X | Y167: 0 | Z167: =ROUND(IF(ISNUMBER(R167),R167,IF(LEFT(R167,3)="BDI",HLOOKUP(R167,DADOS!$T$37:$X$38,2,FALSE),0)),15-11*$X$5) -> 0.2639
A168: 2 | B168: 17 | C168: 14 | D168: 1 | E168: 0 | F168: 0 | G168: 0 | H168: 28 | I168: 17 | J168: Nível 2 | K168: 14.1. | N168: TUBULAÇÕES E CONEXÕES | P168: 0 | R168: BDI 1 | S168: 0 | T168: 0 | U168: SEM VALOR | V168: =IF(OR($A168=0,$A168="S",$A168>CFF!$A$9),"",MAX(V$12:OFFSET(V168,-1,0))+1) -> 33 | W168: FALSE | X168: X | Y168: 0 | Z168: =ROUND(IF(ISNUMBER(R168),R168,IF(LEFT(R168,3)="BDI",HLOOKUP(R168,DADOS!$T$37:$X$38,2,FALSE),0)),15-11*$X$5) -> 0.2639
A169: S | B169: 0 | C169: 14 | D169: 1 | E169: 0 | F169: 0 | G169: 1 | H169: 0 | I169: 0 | J169: Serviço | K169: 14.1.1. | L169: SINAPI | M169: 89402 | N169: TUBO, PVC, SOLDÁVEL, DN 25MM, INSTALADO EM RAMAL DE DISTRIBUIÇÃO DE ÁGUA - FORNECIMENTO E INSTALAÇÃO. AF_12/2014 | O169: M | P169: 37.5 | R169: BDI 1 | S169: 0 | T169: 0 | U169: SEM VALOR | V169: =IF(OR($A169=0,$A169="S",$A169>CFF!$A$9),"",MAX(V$12:OFFSET(V169,-1,0))+1) ->  | W169: SINAPI-89402 | Y169: 8.05 | Z169: =ROUND(IF(ISNUMBER(R169),R169,IF(LEFT(R169,3)="BDI",HLOOKUP(R169,DADOS!$T$37:$X$38,2,FALSE),0)),15-11*$X$5) -> 0.2639
A170: S | B170: 0 | C170: 14 | D170: 1 | E170: 0 | F170: 0 | G170: 2 | H170: 0 | I170: 0 | J170: Serviço | K170: 14.1.2. | L170: SINAPI | M170: 89403 | N170: TUBO, PVC, SOLDÁVEL, DN 32MM, INSTALADO EM RAMAL DE DISTRIBUIÇÃO DE ÁGUA - FORNECIMENTO E INSTALAÇÃO. AF_12/2014 | O170: M | P170: 8.15 | R170: BDI 1 | S170: 0 | T170: 0 | U170: SEM VALOR | V170: =IF(OR($A170=0,$A170="S",$A170>CFF!$A$9),"",MAX(V$12:OFFSET(V170,-1,0))+1) ->  | W170: SINAPI-89403 | Y170: 13.09 | Z170: =ROUND(IF(ISNUMBER(R170),R170,IF(LEFT(R170,3)="BDI",HLOOKUP(R170,DADOS!$T$37:$X$38,2,FALSE),0)),15-11*$X$5) -> 0.2639
A171: S | B171: 0 | C171: 14 | D171: 1 | E171: 0 | F171: 0 | G171: 3 | H171: 0 | I171: 0 | J171: Serviço | K171: 14.1.3. | L171: SINAPI | M171: 89448 | N171: TUBO, PVC, SOLDÁVEL, DN 40MM, INSTALADO EM PRUMADA DE ÁGUA - FORNECIMENTO E INSTALAÇÃO. AF_12/2014 | O171: M | P171: 11.9 | R171: BDI 1 | S171: 0 | T171: 0 | U171: SEM VALOR | V171: =IF(OR($A171=0,$A171="S",$A171>CFF!$A$9),"",MAX(V$12:OFFSET(V171,-1,0))+1) ->  | W171: SINAPI-89448 | Y171: 12.49 | Z171: =ROUND(IF(ISNUMBER(R171),R171,IF(LEFT(R171,3)="BDI",HLOOKUP(R171,DADOS!$T$37:$X$38,2,FALSE),0)),15-11*$X$5) -> 0.2639
A172: S | B172: 0 | C172: 14 | D172: 1 | E172: 0 | F172: 0 | G172: 4 | H172: 0 | I172: 0 | J172: Serviço | K172: 14.1.4. | L172: SINAPI-I | M172: 829 | N172: BUCHA DE REDUCAO DE PVC, SOLDAVEL, CURTA, COM 32 X 25 MM, PARA AGUA FRIA PREDIAL | O172: UN | P172: 2 | R172: BDI 1 | S172: 0 | T172: 0 | U172: SEM VALOR | V172: =IF(OR($A172=0,$A172="S",$A172>CFF!$A$9),"",MAX(V$12:OFFSET(V172,-1,0))+1) ->  | W172: SINAPI-I-829 | Y172: 0.72 | Z172: =ROUND(IF(ISNUMBER(R172),R172,IF(LEFT(R172,3)="BDI",HLOOKUP(R172,DADOS!$T$37:$X$38,2,FALSE),0)),15-11*$X$5) -> 0.2639
A173: S | B173: 0 | C173: 14 | D173: 1 | E173: 0 | F173: 0 | G173: 5 | H173: 0 | I173: 0 | J173: Serviço | K173: 14.1.5. | L173: SINAPI | M173: 90375 | N173: BUCHA DE REDUÇÃO, PVC, SOLDÁVEL, DN 40MM X 32MM, INSTALADO EM RAMAL OU SUB-RAMAL DE ÁGUA - FORNECIMENTO E INSTALAÇÃO. AF_03/2015 | O173: UN | P173: 1 | R173: BDI 1 | S173: 0 | T173: 0 | U173: SEM VALOR | V173: =IF(OR($A173=0,$A173="S",$A173>CFF!$A$9),"",MAX(V$12:OFFSET(V173,-1,0))+1) ->  | W173: SINAPI-90375 | Y173: 7.2 | Z173: =ROUND(IF(ISNUMBER(R173),R173,IF(LEFT(R173,3)="BDI",HLOOKUP(R173,DADOS!$T$37:$X$38,2,FALSE),0)),15-11*$X$5) -> 0.2639
A174: S | B174: 0 | C174: 14 | D174: 1 | E174: 0 | F174: 0 | G174: 6 | H174: 0 | I174: 0 | J174: Serviço | K174: 14.1.6. | L174: SINAPI-I | M174: 834 | N174: BUCHA DE REDUCAO DE PVC, SOLDAVEL, LONGA, COM 40 X 25 MM, PARA AGUA FRIA PREDIAL | O174: UN | P174: 1 | R174: BDI 1 | S174: 0 | T174: 0 | U174: SEM VALOR | V174: =IF(OR($A174=0,$A174="S",$A174>CFF!$A$9),"",MAX(V$12:OFFSET(V174,-1,0))+1) ->  | W174: SINAPI-I-834 | Y174: 2.62 | Z174: =ROUND(IF(ISNUMBER(R174),R174,IF(LEFT(R174,3)="BDI",HLOOKUP(R174,DADOS!$T$37:$X$38,2,FALSE),0)),15-11*$X$5) -> 0.2639
A175: S | B175: 0 | C175: 14 | D175: 1 | E175: 0 | F175: 0 | G175: 7 | H175: 0 | I175: 0 | J175: Serviço | K175: 14.1.7. | L175: SINAPI | M175: 89362 | N175: JOELHO 90 GRAUS, PVC, SOLDÁVEL, DN 25MM, INSTALADO EM RAMAL OU SUB-RAMAL DE ÁGUA - FORNECIMENTO E INSTALAÇÃO. AF_12/2014 | O175: UN | P175: 15 | R175: BDI 1 | S175: 0 | T175: 0 | U175: SEM VALOR | V175: =IF(OR($A175=0,$A175="S",$A175>CFF!$A$9),"",MAX(V$12:OFFSET(V175,-1,0))+1) ->  | W175: SINAPI-89362 | Y175: 7.19 | Z175: =ROUND(IF(ISNUMBER(R175),R175,IF(LEFT(R175,3)="BDI",HLOOKUP(R175,DADOS!$T$37:$X$38,2,FALSE),0)),15-11*$X$5) -> 0.2639
A176: S | B176: 0 | C176: 14 | D176: 1 | E176: 0 | F176: 0 | G176: 8 | H176: 0 | I176: 0 | J176: Serviço | K176: 14.1.8. | L176: SINAPI | M176: 89367 | N176: JOELHO 90 GRAUS, PVC, SOLDÁVEL, DN 32MM, INSTALADO EM RAMAL OU SUB-RAMAL DE ÁGUA - FORNECIMENTO E INSTALAÇÃO. AF_12/2014 | O176: UN | P176: 7 | R176: BDI 1 | S176: 0 | T176: 0 | U176: SEM VALOR | V176: =IF(OR($A176=0,$A176="S",$A176>CFF!$A$9),"",MAX(V$12:OFFSET(V176,-1,0))+1) ->  | W176: SINAPI-89367 | Y176: 9.56 | Z176: =ROUND(IF(ISNUMBER(R176),R176,IF(LEFT(R176,3)="BDI",HLOOKUP(R176,DADOS!$T$37:$X$38,2,FALSE),0)),15-11*$X$5) -> 0.2639
A177: S | B177: 0 | C177: 14 | D177: 1 | E177: 0 | F177: 0 | G177: 9 | H177: 0 | I177: 0 | J177: Serviço | K177: 14.1.9. | L177: SINAPI | M177: 89497 | N177: JOELHO 90 GRAUS, PVC, SOLDÁVEL, DN 40MM, INSTALADO EM PRUMADA DE ÁGUA - FORNECIMENTO E INSTALAÇÃO. AF_12/2014 | O177: UN | P177: 3 | R177: BDI 1 | S177: 0 | T177: 0 | U177: SEM VALOR | V177: =IF(OR($A177=0,$A177="S",$A177>CFF!$A$9),"",MAX(V$12:OFFSET(V177,-1,0))+1) ->  | W177: SINAPI-89497 | Y177: 8.67 | Z177: =ROUND(IF(ISNUMBER(R177),R177,IF(LEFT(R177,3)="BDI",HLOOKUP(R177,DADOS!$T$37:$X$38,2,FALSE),0)),15-11*$X$5) -> 0.2639
A178: S | B178: 0 | C178: 14 | D178: 1 | E178: 0 | F178: 0 | G178: 10 | H178: 0 | I178: 0 | J178: Serviço | K178: 14.1.10. | L178: SINAPI | M178: 89363 | N178: JOELHO 45 GRAUS, PVC, SOLDÁVEL, DN 25MM, INSTALADO EM RAMAL OU SUB-RAMAL DE ÁGUA - FORNECIMENTO E INSTALAÇÃO. AF_12/2014 | O178: UN | P178: 2 | R178: BDI 1 | S178: 0 | T178: 0 | U178: SEM VALOR | V178: =IF(OR($A178=0,$A178="S",$A178>CFF!$A$9),"",MAX(V$12:OFFSET(V178,-1,0))+1) ->  | W178: SINAPI-89363 | Y178: 7.67 | Z178: =ROUND(IF(ISNUMBER(R178),R178,IF(LEFT(R178,3)="BDI",HLOOKUP(R178,DADOS!$T$37:$X$38,2,FALSE),0)),15-11*$X$5) -> 0.2639
A179: S | B179: 0 | C179: 14 | D179: 1 | E179: 0 | F179: 0 | G179: 11 | H179: 0 | I179: 0 | J179: Serviço | K179: 14.1.11. | L179: SINAPI-I | M179: 3538 | N179: JOELHO DE REDUCAO, PVC SOLDAVEL, 90 GRAUS, 32 MM X 25 MM, PARA AGUA FRIA PREDIAL | O179: UN | P179: 1 | R179: BDI 1 | S179: 0 | T179: 0 | U179: SEM VALOR | V179: =IF(OR($A179=0,$A179="S",$A179>CFF!$A$9),"",MAX(V$12:OFFSET(V179,-1,0))+1) ->  | W179: SINAPI-I-3538 | Y179: 2.55 | Z179: =ROUND(IF(ISNUMBER(R179),R179,IF(LEFT(R179,3)="BDI",HLOOKUP(R179,DADOS!$T$37:$X$38,2,FALSE),0)),15-11*$X$5) -> 0.2639
A180: S | B180: 0 | C180: 14 | D180: 1 | E180: 0 | F180: 0 | G180: 12 | H180: 0 | I180: 0 | J180: Serviço | K180: 14.1.12. | L180: SINAPI | M180: 89395 | N180: TE, PVC, SOLDÁVEL, DN 25MM, INSTALADO EM RAMAL OU SUB-RAMAL DE ÁGUA - FORNECIMENTO E INSTALAÇÃO. AF_12/2014 | O180: UN | P180: 7 | R180: BDI 1 | S180: 0 | T180: 0 | U180: SEM VALOR | V180: =IF(OR($A180=0,$A180="S",$A180>CFF!$A$9),"",MAX(V$12:OFFSET(V180,-1,0))+1) ->  | W180: SINAPI-89395 | Y180: 10 | Z180: =ROUND(IF(ISNUMBER(R180),R180,IF(LEFT(R180,3)="BDI",HLOOKUP(R180,DADOS!$T$37:$X$38,2,FALSE),0)),15-11*$X$5) -> 0.2639
A181: S | B181: 0 | C181: 14 | D181: 1 | E181: 0 | F181: 0 | G181: 13 | H181: 0 | I181: 0 | J181: Serviço | K181: 14.1.13. | L181: SINAPI | M181: 89398 | N181: TE, PVC, SOLDÁVEL, DN 32MM, INSTALADO EM RAMAL OU SUB-RAMAL DE ÁGUA - FORNECIMENTO E INSTALAÇÃO. AF_12/2014 | O181: UN | P181: 4 | R181: BDI 1 | S181: 0 | T181: 0 | U181: SEM VALOR | V181: =IF(OR($A181=0,$A181="S",$A181>CFF!$A$9),"",MAX(V$12:OFFSET(V181,-1,0))+1) ->  | W181: SINAPI-89398 | Y181: 13.41 | Z181: =ROUND(IF(ISNUMBER(R181),R181,IF(LEFT(R181,3)="BDI",HLOOKUP(R181,DADOS!$T$37:$X$38,2,FALSE),0)),15-11*$X$5) -> 0.2639
A182: S | B182: 0 | C182: 14 | D182: 1 | E182: 0 | F182: 0 | G182: 14 | H182: 0 | I182: 0 | J182: Serviço | K182: 14.1.14. | L182: SINAPI | M182: 89623 | N182: TE, PVC, SOLDÁVEL, DN 40MM, INSTALADO EM PRUMADA DE ÁGUA - FORNECIMENTO E INSTALAÇÃO. AF_12/2014 | O182: UN | P182: 2 | R182: BDI 1 | S182: 0 | T182: 0 | U182: SEM VALOR | V182: =IF(OR($A182=0,$A182="S",$A182>CFF!$A$9),"",MAX(V$12:OFFSET(V182,-1,0))+1) ->  | W182: SINAPI-89623 | Y182: 13.27 | Z182: =ROUND(IF(ISNUMBER(R182),R182,IF(LEFT(R182,3)="BDI",HLOOKUP(R182,DADOS!$T$37:$X$38,2,FALSE),0)),15-11*$X$5) -> 0.2639
A183: S | B183: 0 | C183: 14 | D183: 1 | E183: 0 | F183: 0 | G183: 15 | H183: 0 | I183: 0 | J183: Serviço | K183: 14.1.15. | L183: SINAPI-I | M183: 7128 | N183: TE DE REDUCAO, PVC, SOLDAVEL, 90 GRAUS, 40 MM X 32 MM, PARA AGUA FRIA PREDIAL | O183: UN | P183: 1 | R183: BDI 1 | S183: 0 | T183: 0 | U183: SEM VALOR | V183: =IF(OR($A183=0,$A183="S",$A183>CFF!$A$9),"",MAX(V$12:OFFSET(V183,-1,0))+1) ->  | W183: SINAPI-I-7128 | Y183: 6.52 | Z183: =ROUND(IF(ISNUMBER(R183),R183,IF(LEFT(R183,3)="BDI",HLOOKUP(R183,DADOS!$T$37:$X$38,2,FALSE),0)),15-11*$X$5) -> 0.2639
A184: S | B184: 0 | C184: 14 | D184: 1 | E184: 0 | F184: 0 | G184: 16 | H184: 0 | I184: 0 | J184: Serviço | K184: 14.1.16. | L184: SINAPI | M184: 89378 | N184: LUVA, PVC, SOLDÁVEL, DN 25MM, INSTALADO EM RAMAL OU SUB-RAMAL DE ÁGUA - FORNECIMENTO E INSTALAÇÃO. AF_12/2014 | O184: UN | P184: 3 | R184: BDI 1 | S184: 0 | T184: 0 | U184: SEM VALOR | V184: =IF(OR($A184=0,$A184="S",$A184>CFF!$A$9),"",MAX(V$12:OFFSET(V184,-1,0))+1) ->  | W184: SINAPI-89378 | Y184: 5.33 | Z184: =ROUND(IF(ISNUMBER(R184),R184,IF(LEFT(R184,3)="BDI",HLOOKUP(R184,DADOS!$T$37:$X$38,2,FALSE),0)),15-11*$X$5) -> 0.2639
A185: 2 | B185: 11 | C185: 14 | D185: 2 | E185: 0 | F185: 0 | G185: 0 | H185: 11 | I185: 51 | J185: Nível 2 | K185: 14.2. | N185: ACESSÓRIOS E COMPLEMENTOS | P185: 0 | R185: BDI 1 | S185: 0 | T185: 0 | U185: SEM VALOR | V185: =IF(OR($A185=0,$A185="S",$A185>CFF!$A$9),"",MAX(V$12:OFFSET(V185,-1,0))+1) -> 34 | W185: FALSE | X185: X | Y185: 0 | Z185: =ROUND(IF(ISNUMBER(R185),R185,IF(LEFT(R185,3)="BDI",HLOOKUP(R185,DADOS!$T$37:$X$38,2,FALSE),0)),15-11*$X$5) -> 0.2639
A186: S | B186: 0 | C186: 14 | D186: 2 | E186: 0 | F186: 0 | G186: 1 | H186: 0 | I186: 0 | J186: Serviço | K186: 14.2.1. | L186: SINAPI | M186: 94703 | N186: ADAPTADOR COM FLANGE E ANEL DE VEDAÇÃO, PVC, SOLDÁVEL, DN 25 MM X 3/4 , INSTALADO EM RESERVAÇÃO DE ÁGUA DE EDIFICAÇÃO QUE POSSUA RESERVATÓRIO DE FIBRA/FIBROCIMENTO FORNECIMENTO E INSTALAÇÃO. AF_06/2016 | O186: UN | P186: 2 | R186: BDI 1 | S186: 0 | T186: 0 | U186: SEM VALOR | V186: =IF(OR($A186=0,$A186="S",$A186>CFF!$A$9),"",MAX(V$12:OFFSET(V186,-1,0))+1) ->  | W186: SINAPI-94703 | Y186: 18.17 | Z186: =ROUND(IF(ISNUMBER(R186),R186,IF(LEFT(R186,3)="BDI",HLOOKUP(R186,DADOS!$T$37:$X$38,2,FALSE),0)),15-11*$X$5) -> 0.2639
A187: S | B187: 0 | C187: 14 | D187: 2 | E187: 0 | F187: 0 | G187: 2 | H187: 0 | I187: 0 | J187: Serviço | K187: 14.2.2. | L187: SINAPI | M187: 94704 | N187: ADAPTADOR COM FLANGE E ANEL DE VEDAÇÃO, PVC, SOLDÁVEL, DN 32 MM X 1 , INSTALADO EM RESERVAÇÃO DE ÁGUA DE EDIFICAÇÃO QUE POSSUA RESERVATÓRIO DE FIBRA/FIBROCIMENTO FORNECIMENTO E INSTALAÇÃO. AF_06/2016 | O187: UN | P187: 4 | R187: BDI 1 | S187: 0 | T187: 0 | U187: SEM VALOR | V187: =IF(OR($A187=0,$A187="S",$A187>CFF!$A$9),"",MAX(V$12:OFFSET(V187,-1,0))+1) ->  | W187: SINAPI-94704 | Y187: 21.18 | Z187: =ROUND(IF(ISNUMBER(R187),R187,IF(LEFT(R187,3)="BDI",HLOOKUP(R187,DADOS!$T$37:$X$38,2,FALSE),0)),15-11*$X$5) -> 0.2639
A188: S | B188: 0 | C188: 14 | D188: 2 | E188: 0 | F188: 0 | G188: 3 | H188: 0 | I188: 0 | J188: Serviço | K188: 14.2.3. | L188: SINAPI | M188: 94705 | N188: ADAPTADOR COM FLANGE E ANEL DE VEDAÇÃO, PVC, SOLDÁVEL, DN 40 MM X 1 1/4 , INSTALADO EM RESERVAÇÃO DE ÁGUA DE EDIFICAÇÃO QUE POSSUA RESERVATÓRIO DE FIBRA/FIBROCIMENTO FORNECIMENTO E INSTALAÇÃO. AF_06/2016 | O188: UN | P188: 2 | R188: BDI 1 | S188: 0 | T188: 0 | U188: SEM VALOR | V188: =IF(OR($A188=0,$A188="S",$A188>CFF!$A$9),"",MAX(V$12:OFFSET(V188,-1,0))+1) ->  | W188: SINAPI-94705 | Y188: 30.3 | Z188: =ROUND(IF(ISNUMBER(R188),R188,IF(LEFT(R188,3)="BDI",HLOOKUP(R188,DADOS!$T$37:$X$38,2,FALSE),0)),15-11*$X$5) -> 0.2639
A189: S | B189: 0 | C189: 14 | D189: 2 | E189: 0 | F189: 0 | G189: 4 | H189: 0 | I189: 0 | J189: Serviço | K189: 14.2.4. | L189: SINAPI | M189: 94656 | N189: ADAPTADOR CURTO COM BOLSA E ROSCA PARA REGISTRO, PVC, SOLDÁVEL, DN 25 MM X 3/4 , INSTALADO EM RESERVAÇÃO DE ÁGUA DE EDIFICAÇÃO QUE POSSUA RESERVATÓRIO DE FIBRA/FIBROCIMENTO FORNECIMENTO E INSTALAÇÃO. AF_06/2016 | O189: UN | P189: 10 | R189: BDI 1 | S189: 0 | T189: 0 | U189: SEM VALOR | V189: =IF(OR($A189=0,$A189="S",$A189>CFF!$A$9),"",MAX(V$12:OFFSET(V189,-1,0))+1) ->  | W189: SINAPI-94656 | Y189: 4.99 | Z189: =ROUND(IF(ISNUMBER(R189),R189,IF(LEFT(R189,3)="BDI",HLOOKUP(R189,DADOS!$T$37:$X$38,2,FALSE),0)),15-11*$X$5) -> 0.2639
A190: S | B190: 0 | C190: 14 | D190: 2 | E190: 0 | F190: 0 | G190: 5 | H190: 0 | I190: 0 | J190: Serviço | K190: 14.2.5. | L190: SINAPI | M190: 94796 | N190: TORNEIRA DE BÓIA REAL, ROSCÁVEL, 3/4", FORNECIDA E INSTALADA EM RESERVAÇÃO DE ÁGUA. AF_06/2016 | O190: UN | P190: 2 | R190: BDI 1 | S190: 0 | T190: 0 | U190: SEM VALOR | V190: =IF(OR($A190=0,$A190="S",$A190>CFF!$A$9),"",MAX(V$12:OFFSET(V190,-1,0))+1) ->  | W190: SINAPI-94796 | Y190: 79.11 | Z190: =ROUND(IF(ISNUMBER(R190),R190,IF(LEFT(R190,3)="BDI",HLOOKUP(R190,DADOS!$T$37:$X$38,2,FALSE),0)),15-11*$X$5) -> 0.2639
A191: S | B191: 0 | C191: 14 | D191: 2 | E191: 0 | F191: 0 | G191: 6 | H191: 0 | I191: 0 | J191: Serviço | K191: 14.2.6. | L191: SINAPI | M191: 90373 | N191: JOELHO 90 GRAUS COM BUCHA DE LATÃO, PVC, SOLDÁVEL, DN 25MM, X 1/2 INSTALADO EM RAMAL OU SUB-RAMAL DE ÁGUA - FORNECIMENTO E INSTALAÇÃO. AF_12/2014 | O191: UN | P191: 7 | R191: BDI 1 | S191: 0 | T191: 0 | U191: SEM VALOR | V191: =IF(OR($A191=0,$A191="S",$A191>CFF!$A$9),"",MAX(V$12:OFFSET(V191,-1,0))+1) ->  | W191: SINAPI-90373 | Y191: 11.3 | Z191: =ROUND(IF(ISNUMBER(R191),R191,IF(LEFT(R191,3)="BDI",HLOOKUP(R191,DADOS!$T$37:$X$38,2,FALSE),0)),15-11*$X$5) -> 0.2639
A192: S | B192: 0 | C192: 14 | D192: 2 | E192: 0 | F192: 0 | G192: 7 | H192: 0 | I192: 0 | J192: Serviço | K192: 14.2.7. | L192: SINAPI | M192: 89366 | N192: JOELHO 90 GRAUS COM BUCHA DE LATÃO, PVC, SOLDÁVEL, DN 25MM, X 3/4 INSTALADO EM RAMAL OU SUB-RAMAL DE ÁGUA - FORNECIMENTO E INSTALAÇÃO. AF_12/2014 | O192: UN | P192: 3 | R192: BDI 1 | S192: 0 | T192: 0 | U192: SEM VALOR | V192: =IF(OR($A192=0,$A192="S",$A192>CFF!$A$9),"",MAX(V$12:OFFSET(V192,-1,0))+1) ->  | W192: SINAPI-89366 | Y192: 12.21 | Z192: =ROUND(IF(ISNUMBER(R192),R192,IF(LEFT(R192,3)="BDI",HLOOKUP(R192,DADOS!$T$37:$X$38,2,FALSE),0)),15-11*$X$5) -> 0.2639
A193: S | B193: 0 | C193: 14 | D193: 2 | E193: 0 | F193: 0 | G193: 8 | H193: 0 | I193: 0 | J193: Serviço | K193: 14.2.8. | L193: SINAPI-I | M193: 11869 | N193: CAIXA D'AGUA FIBRA DE VIDRO PARA 1500 LITROS, COM TAMPA | O193: UN | P193: 2 | R193: BDI 1 | S193: 0 | T193: 0 | U193: SEM VALOR | V193: =IF(OR($A193=0,$A193="S",$A193>CFF!$A$9),"",MAX(V$12:OFFSET(V193,-1,0))+1) ->  | W193: SINAPI-I-11869 | Y193: 577.61 | Z193: =ROUND(IF(ISNUMBER(R193),R193,IF(LEFT(R193,3)="BDI",HLOOKUP(R193,DADOS!$T$37:$X$38,2,FALSE),0)),15-11*$X$5) -> 0.2639
A194: S | B194: 0 | C194: 14 | D194: 2 | E194: 0 | F194: 0 | G194: 9 | H194: 0 | I194: 0 | J194: Serviço | K194: 14.2.9. | L194: SINAPI | M194: 94490 | N194: REGISTRO DE ESFERA, PVC, SOLDÁVEL, DN 32 MM, INSTALADO EM RESERVAÇÃO DE ÁGUA DE EDIFICAÇÃO QUE POSSUA RESERVATÓRIO DE FIBRA/FIBROCIMENTO FORNECIMENTO E INSTALAÇÃO. AF_06/2016 | O194: UN | P194: 2 | R194: BDI 1 | S194: 0 | T194: 0 | U194: SEM VALOR | V194: =IF(OR($A194=0,$A194="S",$A194>CFF!$A$9),"",MAX(V$12:OFFSET(V194,-1,0))+1) ->  | W194: SINAPI-94490 | Y194: 50.42 | Z194: =ROUND(IF(ISNUMBER(R194),R194,IF(LEFT(R194,3)="BDI",HLOOKUP(R194,DADOS!$T$37:$X$38,2,FALSE),0)),15-11*$X$5) -> 0.2639
A195: S | B195: 0 | C195: 14 | D195: 2 | E195: 0 | F195: 0 | G195: 10 | H195: 0 | I195: 0 | J195: Serviço | K195: 14.2.10. | L195: SINAPI | M195: 94491 | N195: REGISTRO DE ESFERA, PVC, SOLDÁVEL, DN 40 MM, INSTALADO EM RESERVAÇÃO DE ÁGUA DE EDIFICAÇÃO QUE POSSUA RESERVATÓRIO DE FIBRA/FIBROCIMENTO FORNECIMENTO E INSTALAÇÃO. AF_06/2016 | O195: UN | P195: 2 | R195: BDI 1 | S195: 0 | T195: 0 | U195: SEM VALOR | V195: =IF(OR($A195=0,$A195="S",$A195>CFF!$A$9),"",MAX(V$12:OFFSET(V195,-1,0))+1) ->  | W195: SINAPI-94491 | Y195: 68.9 | Z195: =ROUND(IF(ISNUMBER(R195),R195,IF(LEFT(R195,3)="BDI",HLOOKUP(R195,DADOS!$T$37:$X$38,2,FALSE),0)),15-11*$X$5) -> 0.2639
A196: 1 | B196: 33 | C196: 15 | D196: 0 | E196: 0 | F196: 0 | G196: 0 | H196: 170 | I196: 33 | J196: Meta | K196: 15. | N196: INSTALAÇÃO SANITÁRIA E DRENAGEM PLUVIAL | P196: 0 | R196: BDI 1 | S196: 0 | T196: 0 | U196: SEM VALOR | V196: =IF(OR($A196=0,$A196="S",$A196>CFF!$A$9),"",MAX(V$12:OFFSET(V196,-1,0))+1) -> 35 | W196: FALSE | X196: X | Y196: 0 | Z196: =ROUND(IF(ISNUMBER(R196),R196,IF(LEFT(R196,3)="BDI",HLOOKUP(R196,DADOS!$T$37:$X$38,2,FALSE),0)),15-11*$X$5) -> 0.2639
A197: 2 | B197: 24 | C197: 15 | D197: 1 | E197: 0 | F197: 0 | G197: 0 | H197: 32 | I197: 24 | J197: Nível 2 | K197: 15.1. | N197: TUBULAÇÕES E CONEXÕES | P197: 0 | R197: BDI 1 | S197: 0 | T197: 0 | U197: SEM VALOR | V197: =IF(OR($A197=0,$A197="S",$A197>CFF!$A$9),"",MAX(V$12:OFFSET(V197,-1,0))+1) -> 36 | W197: FALSE | X197: X | Y197: 0 | Z197: =ROUND(IF(ISNUMBER(R197),R197,IF(LEFT(R197,3)="BDI",HLOOKUP(R197,DADOS!$T$37:$X$38,2,FALSE),0)),15-11*$X$5) -> 0.2639
A198: S | B198: 0 | C198: 15 | D198: 1 | E198: 0 | F198: 0 | G198: 1 | H198: 0 | I198: 0 | J198: Serviço | K198: 15.1.1. | L198: SINAPI | M198: 89714 | N198: TUBO PVC, SERIE NORMAL, ESGOTO PREDIAL, DN 100 MM, FORNECIDO E INSTALADO EM RAMAL DE DESCARGA OU RAMAL DE ESGOTO SANITÁRIO. AF_12/2014 | O198: M | P198: 69.5 | R198: BDI 1 | S198: 0 | T198: 0 | U198: SEM VALOR | V198: =IF(OR($A198=0,$A198="S",$A198>CFF!$A$9),"",MAX(V$12:OFFSET(V198,-1,0))+1) ->  | W198: SINAPI-89714 | Y198: 44.64 | Z198: =ROUND(IF(ISNUMBER(R198),R198,IF(LEFT(R198,3)="BDI",HLOOKUP(R198,DADOS!$T$37:$X$38,2,FALSE),0)),15-11*$X$5) -> 0.2639
A199: S | B199: 0 | C199: 15 | D199: 1 | E199: 0 | F199: 0 | G199: 2 | H199: 0 | I199: 0 | J199: Serviço | K199: 15.1.2. | L199: SINAPI | M199: 89849 | N199: TUBO PVC, SERIE NORMAL, ESGOTO PREDIAL, DN 150 MM, FORNECIDO E INSTALADO EM SUBCOLETOR AÉREO DE ESGOTO SANITÁRIO. AF_12/2014 | O199: M | P199: 18 | R199: BDI 1 | S199: 0 | T199: 0 | U199: SEM VALOR | V199: =IF(OR($A199=0,$A199="S",$A199>CFF!$A$9),"",MAX(V$12:OFFSET(V199,-1,0))+1) ->  | W199: SINAPI-89849 | Y199: 42.85 | Z199: =ROUND(IF(ISNUMBER(R199),R199,IF(LEFT(R199,3)="BDI",HLOOKUP(R199,DADOS!$T$37:$X$38,2,FALSE),0)),15-11*$X$5) -> 0.2639
A200: S | B200: 0 | C200: 15 | D200: 1 | E200: 0 | F200: 0 | G200: 3 | H200: 0 | I200: 0 | J200: Serviço | K200: 15.1.3. | L200: SINAPI | M200: 89711 | N200: TUBO PVC, SERIE NORMAL, ESGOTO PREDIAL, DN 40 MM, FORNECIDO E INSTALADO EM RAMAL DE DESCARGA OU RAMAL DE ESGOTO SANITÁRIO. AF_12/2014 | O200: M | P200: 6.7 | R200: BDI 1 | S200: 0 | T200: 0 | U200: SEM VALOR | V200: =IF(OR($A200=0,$A200="S",$A200>CFF!$A$9),"",MAX(V$12:OFFSET(V200,-1,0))+1) ->  | W200: SINAPI-89711 | Y200: 15.76 | Z200: =ROUND(IF(ISNUMBER(R200),R200,IF(LEFT(R200,3)="BDI",HLOOKUP(R200,DADOS!$T$37:$X$38,2,FALSE),0)),15-11*$X$5) -> 0.2639
A201: S | B201: 0 | C201: 15 | D201: 1 | E201: 0 | F201: 0 | G201: 4 | H201: 0 | I201: 0 | J201: Serviço | K201: 15.1.4. | L201: SINAPI | M201: 89712 | N201: TUBO PVC, SERIE NORMAL, ESGOTO PREDIAL, DN 50 MM, FORNECIDO E INSTALADO EM RAMAL DE DESCARGA OU RAMAL DE ESGOTO SANITÁRIO. AF_12/2014 | O201: M | P201: 17.66 | R201: BDI 1 | S201: 0 | T201: 0 | U201: SEM VALOR | V201: =IF(OR($A201=0,$A201="S",$A201>CFF!$A$9),"",MAX(V$12:OFFSET(V201,-1,0))+1) ->  | W201: SINAPI-89712 | Y201: 23.27 | Z201: =ROUND(IF(ISNUMBER(R201),R201,IF(LEFT(R201,3)="BDI",HLOOKUP(R201,DADOS!$T$37:$X$38,2,FALSE),0)),15-11*$X$5) -> 0.2639
... 172 more rows

Sheet PLQ (hidden)
E1: PLQ - | F1: PLANILHA DE LEVANTAMENTO DE QUANTIDADES
E7: =OFFSET(PO!$P$12,ROW($E7)-ROW(E$12),0) -> 0
E9: - | F9: Única
A10: Nível | B10: Item | C10: Descrição | D10: Unid. | E10: Quantidade | F10: =IF(OFFSET(F10,0,-1)="Quantidade",1,OFFSET(F10,0,-1)+1) -> 1 | G10: 2 | H10: 3 | I10: 4 | J10: 5 | K10: 6 | L10: 7 | M10: 8 | N10: 9 | O10: 10 | U10: =IF(OFFSET(U10,0,-1)="Quantidade",1,OFFSET(U10,0,-1)+1) -> 1
A11: =OFFSET(PO!J$12,ROW(A11)-ROW($A$12),0) -> Serviço | B11: =IF($A11=0,"",OFFSET(PO!K$12,ROW(B11)-ROW(B$12),0)) ->  | C11: =IF(OFFSET(PO!N$12,ROW(C11)-ROW(C$12),0)=0,"",OFFSET(PO!N$12,ROW(C11)-ROW(C$12),0)) ->  | D11: =IF(OFFSET(PO!O$12,ROW(D11)-ROW(D$12),0)=0,"",OFFSET(PO!O$12,ROW(D11)-ROW(D$12),0)) ->  | E11: =IF($A11<>"Serviço",0,ROUND(SUMIF($F$9:$P$9,"<>",$F11:$P11),15-13*PO!$X$3)) -> 0 | F11: =OFFSET(PO!$P$12,ROW($E11)-ROW(F$12),0) -> 0
A12: =PO!J12 -> CTEF | C12: =PO!N12 -> 0
A13: =OFFSET(PO!J$12,ROW(A13)-ROW($A$12),0) -> Meta | B13: =IF($A13=0,"",OFFSET(PO!K$12,ROW(B13)-ROW(B$12),0)) -> 1. | C13: =IF(OFFSET(PO!N$12,ROW(C13)-ROW(C$12),0)=0,"",OFFSET(PO!N$12,ROW(C13)-ROW(C$12),0)) -> SERVIÇOS PRELIMINARES | D13: =IF(OFFSET(PO!O$12,ROW(D13)-ROW(D$12),0)=0,"",OFFSET(PO!O$12,ROW(D13)-ROW(D$12),0)) ->  | E13: =IF($A13<>"Serviço",0,ROUND(SUMIF($F$9:$P$9,"<>",$F13:$P13),15-13*PO!$X$3)) -> 0 | F13: =OFFSET(PO!$P$12,ROW($E13)-ROW(F$12),0) -> 0
A14: =OFFSET(PO!J$12,ROW(A14)-ROW($A$12),0) -> Serviço | B14: =IF($A14=0,"",OFFSET(PO!K$12,ROW(B14)-ROW(B$12),0)) -> 1.0.1. | C14: =IF(OFFSET(PO!N$12,ROW(C14)-ROW(C$12),0)=0,"",OFFSET(PO!N$12,ROW(C14)-ROW(C$12),0)) -> PLACA DE OBRA EM CHAPA DE ACO GALVANIZADO | D14: =IF(OFFSET(PO!O$12,ROW(D14)-ROW(D$12),0)=0,"",OFFSET(PO!O$12,ROW(D14)-ROW(D$12),0)) -> M2 | E14: =IF($A14<>"Serviço",0,ROUND(SUMIF($F$9:$P$9,"<>",$F14:$P14),15-13*PO!$X$3)) -> 2.5 | F14: =OFFSET(PO!$P$12,ROW($E14)-ROW(F$12),0) -> 2.5
A15: =OFFSET(PO!J$12,ROW(A15)-ROW($A$12),0) -> Serviço | B15: =IF($A15=0,"",OFFSET(PO!K$12,ROW(B15)-ROW(B$12),0)) -> 1.0.2. | C15: =IF(OFFSET(PO!N$12,ROW(C15)-ROW(C$12),0)=0,"",OFFSET(PO!N$12,ROW(C15)-ROW(C$12),0)) -> ENTRADA DE ENERGIA ELETRICA TRIFASICA, CONFORME PADRÃO GED 13 - RGE - FORNECIMENTO E INSTALAÇÃO | D15: =IF(OFFSET(PO!O$12,ROW(D15)-ROW(D$12),0)=0,"",OFFSET(PO!O$12,ROW(D15)-ROW(D$12),0)) -> UN | E15: =IF($A15<>"Serviço",0,ROUND(SUMIF($F$9:$P$9,"<>",$F15:$P15),15-13*PO!$X$3)) -> 1 | F15: =OFFSET(PO!$P$12,ROW($E15)-ROW(F$12),0) -> 1
A16: =OFFSET(PO!J$12,ROW(A16)-ROW($A$12),0) -> Serviço | B16: =IF($A16=0,"",OFFSET(PO!K$12,ROW(B16)-ROW(B$12),0)) -> 1.0.3. | C16: =IF(OFFSET(PO!N$12,ROW(C16)-ROW(C$12),0)=0,"",OFFSET(PO!N$12,ROW(C16)-ROW(C$12),0)) -> EXECUÇÃO DE DEPÓSITO EM CANTEIRO DE OBRA EM CHAPA DE MADEIRA COMPENSADA, NÃO INCLUSO MOBILIÁRIO. AF_04/2016 | D16: =IF(OFFSET(PO!O$12,ROW(D16)-ROW(D$12),0)=0,"",OFFSET(PO!O$12,ROW(D16)-ROW(D$12),0)) -> M2 | E16: =IF($A16<>"Serviço",0,ROUND(SUMIF($F$9:$P$9,"<>",$F16:$P16),15-13*PO!$X$3)) -> 12 | F16: =OFFSET(PO!$P$12,ROW($E16)-ROW(F$12),0) -> 12
A17: =OFFSET(PO!J$12,ROW(A17)-ROW($A$12),0) -> Serviço | B17: =IF($A17=0,"",OFFSET(PO!K$12,ROW(B17)-ROW(B$12),0)) -> 1.0.4. | C17: =IF(OFFSET(PO!N$12,ROW(C17)-ROW(C$12),0)=0,"",OFFSET(PO!N$12,ROW(C17)-ROW(C$12),0)) -> TAPUME DE CHAPA DE MADEIRA COMPENSADA, E= 6MM, COM PINTURA A CAL E REAPROVEITAMENTO DE 2X | D17: =IF(OFFSET(PO!O$12,ROW(D17)-ROW(D$12),0)=0,"",OFFSET(PO!O$12,ROW(D17)-ROW(D$12),0)) -> M2 | E17: =IF($A17<>"Serviço",0,ROUND(SUMIF($F$9:$P$9,"<>",$F17:$P17),15-13*PO!$X$3)) -> 134.2 | F17: =OFFSET(PO!$P$12,ROW($E17)-ROW(F$12),0) -> 134.2
A18: =OFFSET(PO!J$12,ROW(A18)-ROW($A$12),0) -> Serviço | B18: =IF($A18=0,"",OFFSET(PO!K$12,ROW(B18)-ROW(B$12),0)) -> 1.0.5. | C18: =IF(OFFSET(PO!N$12,ROW(C18)-ROW(C$12),0)=0,"",OFFSET(PO!N$12,ROW(C18)-ROW(C$12),0)) -> LOCACAO CONVENCIONAL DE OBRA, ATRAVÉS DE GABARITO DE TABUAS CORRIDAS PONTALETADAS, COM REAPROVEITAMENTO DE 10 VEZES. | D18: =IF(OFFSET(PO!O$12,ROW(D18)-ROW(D$12),0)=0,"",OFFSET(PO!O$12,ROW(D18)-ROW(D$12),0)) -> M2 | E18: =IF($A18<>"Serviço",0,ROUND(SUMIF($F$9:$P$9,"<>",$F18:$P18),15-13*PO!$X$3)) -> 200 | F18: =OFFSET(PO!$P$12,ROW($E18)-ROW(F$12),0) -> 200
A19: =OFFSET(PO!J$12,ROW(A19)-ROW($A$12),0) -> Meta | B19: =IF($A19=0,"",OFFSET(PO!K$12,ROW(B19)-ROW(B$12),0)) -> 2. | C19: =IF(OFFSET(PO!N$12,ROW(C19)-ROW(C$12),0)=0,"",OFFSET(PO!N$12,ROW(C19)-ROW(C$12),0)) -> MOVIMENTO DE TERRA | D19: =IF(OFFSET(PO!O$12,ROW(D19)-ROW(D$12),0)=0,"",OFFSET(PO!O$12,ROW(D19)-ROW(D$12),0)) ->  | E19: =IF($A19<>"Serviço",0,ROUND(SUMIF($F$9:$P$9,"<>",$F19:$P19),15-13*PO!$X$3)) -> 0 | F19: =OFFSET(PO!$P$12,ROW($E19)-ROW(F$12),0) -> 0
A20: =OFFSET(PO!J$12,ROW(A20)-ROW($A$12),0) -> Serviço | B20: =IF($A20=0,"",OFFSET(PO!K$12,ROW(B20)-ROW(B$12),0)) -> 2.0.1. | C20: =IF(OFFSET(PO!N$12,ROW(C20)-ROW(C$12),0)=0,"",OFFSET(PO!N$12,ROW(C20)-ROW(C$12),0)) -> ESCAVAÇÃO MANUAL DE VALA COM PROFUNDIDADE MENOR OU IGUAL A 1,30 M. AF_03/2016 | D20: =IF(OFFSET(PO!O$12,ROW(D20)-ROW(D$12),0)=0,"",OFFSET(PO!O$12,ROW(D20)-ROW(D$12),0)) -> M3 | E20: =IF($A20<>"Serviço",0,ROUND(SUMIF($F$9:$P$9,"<>",$F20:$P20),15-13*PO!$X$3)) -> 15 | F20: =OFFSET(PO!$P$12,ROW($E20)-ROW(F$12),0) -> 15
A21: =OFFSET(PO!J$12,ROW(A21)-ROW($A$12),0) -> Serviço | B21: =IF($A21=0,"",OFFSET(PO!K$12,ROW(B21)-ROW(B$12),0)) -> 2.0.2. | C21: =IF(OFFSET(PO!N$12,ROW(C21)-ROW(C$12),0)=0,"",OFFSET(PO!N$12,ROW(C21)-ROW(C$12),0)) -> PREPARO DE FUNDO DE VALA COM LARGURA MENOR QUE 1,5 M, EM LOCAL COM NÍVEL BAIXO DE INTERFERÊNCIA. AF_06/2016 | D21: =IF(OFFSET(PO!O$12,ROW(D21)-ROW(D$12),0)=0,"",OFFSET(PO!O$12,ROW(D21)-ROW(D$12),0)) -> M2 | E21: =IF($A21<>"Serviço",0,ROUND(SUMIF($F$9:$P$9,"<>",$F21:$P21),15-13*PO!$X$3)) -> 30 | F21: =OFFSET(PO!$P$12,ROW($E21)-ROW(F$12),0) -> 30
A22: =OFFSET(PO!J$12,ROW(A22)-ROW($A$12),0) -> Serviço | B22: =IF($A22=0,"",OFFSET(PO!K$12,ROW(B22)-ROW(B$12),0)) -> 2.0.3. | C22: =IF(OFFSET(PO!N$12,ROW(C22)-ROW(C$12),0)=0,"",OFFSET(PO!N$12,ROW(C22)-ROW(C$12),0)) -> REATERRO MANUAL DE VALAS COM COMPACTAÇÃO MECANIZADA. AF_04/2016 | D22: =IF(OFFSET(PO!O$12,ROW(D22)-ROW(D$12),0)=0,"",OFFSET(PO!O$12,ROW(D22)-ROW(D$12),0)) -> M3 | E22: =IF($A22<>"Serviço",0,ROUND(SUMIF($F$9:$P$9,"<>",$F22:$P22),15-13*PO!$X$3)) -> 12.91 | F22: =OFFSET(PO!$P$12,ROW($E22)-ROW(F$12),0) -> 12.91
A23: =OFFSET(PO!J$12,ROW(A23)-ROW($A$12),0) -> Serviço | B23: =IF($A23=0,"",OFFSET(PO!K$12,ROW(B23)-ROW(B$12),0)) -> 2.0.4. | C23: =IF(OFFSET(PO!N$12,ROW(C23)-ROW(C$12),0)=0,"",OFFSET(PO!N$12,ROW(C23)-ROW(C$12),0)) -> REATERRO MANUAL DE VALAS COM COMPACTAÇÃO MECANIZADA. AF_04/2016 | D23: =IF(OFFSET(PO!O$12,ROW(D23)-ROW(D$12),0)=0,"",OFFSET(PO!O$12,ROW(D23)-ROW(D$12),0)) -> M3 | E23: =IF($A23<>"Serviço",0,ROUND(SUMIF($F$9:$P$9,"<>",$F23:$P23),15-13*PO!$X$3)) -> 33.06 | F23: =OFFSET(PO!$P$12,ROW($E23)-ROW(F$12),0) -> 33.06
A24: =OFFSET(PO!J$12,ROW(A24)-ROW($A$12),0) -> Meta | B24: =IF($A24=0,"",OFFSET(PO!K$12,ROW(B24)-ROW(B$12),0)) -> 3. | C24: =IF(OFFSET(PO!N$12,ROW(C24)-ROW(C$12),0)=0,"",OFFSET(PO!N$12,ROW(C24)-ROW(C$12),0)) -> INFRA-ESTRUTURA: FUNDAÇÕES | D24: =IF(OFFSET(PO!O$12,ROW(D24)-ROW(D$12),0)=0,"",OFFSET(PO!O$12,ROW(D24)-ROW(D$12),0)) ->  | E24: =IF($A24<>"Serviço",0,ROUND(SUMIF($F$9:$P$9,"<>",$F24:$P24),15-13*PO!$X$3)) -> 0 | F24: =OFFSET(PO!$P$12,ROW($E24)-ROW(F$12),0) -> 0
A25: =OFFSET(PO!J$12,ROW(A25)-ROW($A$12),0) -> Nível 2 | B25: =IF($A25=0,"",OFFSET(PO!K$12,ROW(B25)-ROW(B$12),0)) -> 3.1. | C25: =IF(OFFSET(PO!N$12,ROW(C25)-ROW(C$12),0)=0,"",OFFSET(PO!N$12,ROW(C25)-ROW(C$12),0)) -> SAPATAS E "PESCOÇO" DOS PILARES | D25: =IF(OFFSET(PO!O$12,ROW(D25)-ROW(D$12),0)=0,"",OFFSET(PO!O$12,ROW(D25)-ROW(D$12),0)) -> M3 | E25: =IF($A25<>"Serviço",0,ROUND(SUMIF($F$9:$P$9,"<>",$F25:$P25),15-13*PO!$X$3)) -> 0 | F25: =OFFSET(PO!$P$12,ROW($E25)-ROW(F$12),0) -> 0
A26: =OFFSET(PO!J$12,ROW(A26)-ROW($A$12),0) -> Serviço | B26: =IF($A26=0,"",OFFSET(PO!K$12,ROW(B26)-ROW(B$12),0)) -> 3.1.1. | C26: =IF(OFFSET(PO!N$12,ROW(C26)-ROW(C$12),0)=0,"",OFFSET(PO!N$12,ROW(C26)-ROW(C$12),0)) -> ESCAVAÇÃO MANUAL DE VALA COM PROFUNDIDADE MENOR OU IGUAL A 1,30 M. AF_03/2016 | D26: =IF(OFFSET(PO!O$12,ROW(D26)-ROW(D$12),0)=0,"",OFFSET(PO!O$12,ROW(D26)-ROW(D$12),0)) -> M3 | E26: =IF($A26<>"Serviço",0,ROUND(SUMIF($F$9:$P$9,"<>",$F26:$P26),15-13*PO!$X$3)) -> 24.26 | F26: =OFFSET(PO!$P$12,ROW($E26)-ROW(F$12),0) -> 24.26
A27: =OFFSET(PO!J$12,ROW(A27)-ROW($A$12),0) -> Serviço | B27: =IF($A27=0,"",OFFSET(PO!K$12,ROW(B27)-ROW(B$12),0)) -> 3.1.2. | C27: =IF(OFFSET(PO!N$12,ROW(C27)-ROW(C$12),0)=0,"",OFFSET(PO!N$12,ROW(C27)-ROW(C$12),0)) -> PREPARO DE FUNDO DE VALA COM LARGURA MENOR QUE 1,5 M, EM LOCAL COM NÍVEL ALTO DE INTERFERÊNCIA. AF_06/2016 | D27: =IF(OFFSET(PO!O$12,ROW(D27)-ROW(D$12),0)=0,"",OFFSET(PO!O$12,ROW(D27)-ROW(D$12),0)) -> M2 | E27: =IF($A27<>"Serviço",0,ROUND(SUMIF($F$9:$P$9,"<>",$F27:$P27),15-13*PO!$X$3)) -> 39.89 | F27: =OFFSET(PO!$P$12,ROW($E27)-ROW(F$12),0) -> 39.89
A28: =OFFSET(PO!J$12,ROW(A28)-ROW($A$12),0) -> Serviço | B28: =IF($A28=0,"",OFFSET(PO!K$12,ROW(B28)-ROW(B$12),0)) -> 3.1.3. | C28: =IF(OFFSET(PO!N$12,ROW(C28)-ROW(C$12),0)=0,"",OFFSET(PO!N$12,ROW(C28)-ROW(C$12),0)) -> LASTRO DE CONCRETO MAGRO, APLICADO EM BLOCOS DE COROAMENTO OU SAPATAS, ESPESSURA DE 3 CM. AF_08/2017 | D28: =IF(OFFSET(PO!O$12,ROW(D28)-ROW(D$12),0)=0,"",OFFSET(PO!O$12,ROW(D28)-ROW(D$12),0)) -> M2 | E28: =IF($A28<>"Serviço",0,ROUND(SUMIF($F$9:$P$9,"<>",$F28:$P28),15-13*PO!$X$3)) -> 39.89 | F28: =OFFSET(PO!$P$12,ROW($E28)-ROW(F$12),0) -> 39.89
A29: =OFFSET(PO!J$12,ROW(A29)-ROW($A$12),0) -> Serviço | B29: =IF($A29=0,"",OFFSET(PO!K$12,ROW(B29)-ROW(B$12),0)) -> 3.1.4. | C29: =IF(OFFSET(PO!N$12,ROW(C29)-ROW(C$12),0)=0,"",OFFSET(PO!N$12,ROW(C29)-ROW(C$12),0)) -> FABRICAÇÃO, MONTAGEM E DESMONTAGEM DE FÔRMA PARA SAPATA, EM MADEIRA SERRADA, E=25 MM, 4 UTILIZAÇÕES. AF_06/2017 | D29: =IF(OFFSET(PO!O$12,ROW(D29)-ROW(D$12),0)=0,"",OFFSET(PO!O$12,ROW(D29)-ROW(D$12),0)) -> M2 | E29: =IF($A29<>"Serviço",0,ROUND(SUMIF($F$9:$P$9,"<>",$F29:$P29),15-13*PO!$X$3)) -> 37.66 | F29: =OFFSET(PO!$P$12,ROW($E29)-ROW(F$12),0) -> 37.66
A30: =OFFSET(PO!J$12,ROW(A30)-ROW($A$12),0) -> Serviço | B30: =IF($A30=0,"",OFFSET(PO!K$12,ROW(B30)-ROW(B$12),0)) -> 3.1.5. | C30: =IF(OFFSET(PO!N$12,ROW(C30)-ROW(C$12),0)=0,"",OFFSET(PO!N$12,ROW(C30)-ROW(C$12),0)) -> CONCRETAGEM DE SAPATAS, FCK 25 MPA, COM USO DE BOMBA ? LANÇAMENTO, ADENSAMENTO E ACABAMENTO | D30: =IF(OFFSET(PO!O$12,ROW(D30)-ROW(D$12),0)=0,"",OFFSET(PO!O$12,ROW(D30)-ROW(D$12),0)) -> M3 | E30: =IF($A30<>"Serviço",0,ROUND(SUMIF($F$9:$P$9,"<>",$F30:$P30),15-13*PO!$X$3)) -> 13.53 | F30: =OFFSET(PO!$P$12,ROW($E30)-ROW(F$12),0) -> 13.53
A31: =OFFSET(PO!J$12,ROW(A31)-ROW($A$12),0) -> Serviço | B31: =IF($A31=0,"",OFFSET(PO!K$12,ROW(B31)-ROW(B$12),0)) -> 3.1.6. | C31: =IF(OFFSET(PO!N$12,ROW(C31)-ROW(C$12),0)=0,"",OFFSET(PO!N$12,ROW(C31)-ROW(C$12),0)) -> ARMAÇÃO DE BLOCO, VIGA BALDRAME E SAPATA UTILIZANDO AÇO CA-60 DE 5 MM - MONTAGEM. AF_06/2017 | D31: =IF(OFFSET(PO!O$12,ROW(D31)-ROW(D$12),0)=0,"",OFFSET(PO!O$12,ROW(D31)-ROW(D$12),0)) -> KG | E31: =IF($A31<>"Serviço",0,ROUND(SUMIF($F$9:$P$9,"<>",$F31:$P31),15-13*PO!$X$3)) -> 17.1 | F31: =OFFSET(PO!$P$12,ROW($E31)-ROW(F$12),0) -> 17.1
A32: =OFFSET(PO!J$12,ROW(A32)-ROW($A$12),0) -> Serviço | B32: =IF($A32=0,"",OFFSET(PO!K$12,ROW(B32)-ROW(B$12),0)) -> 3.1.7. | C32: =IF(OFFSET(PO!N$12,ROW(C32)-ROW(C$12),0)=0,"",OFFSET(PO!N$12,ROW(C32)-ROW(C$12),0)) -> ARMAÇÃO DE BLOCO, VIGA BALDRAME OU SAPATA UTILIZANDO AÇO CA-50 DE 6,3 MM - MONTAGEM. AF_06/2017 | D32: =IF(OFFSET(PO!O$12,ROW(D32)-ROW(D$12),0)=0,"",OFFSET(PO!O$12,ROW(D32)-ROW(D$12),0)) -> KG | E32: =IF($A32<>"Serviço",0,ROUND(SUMIF($F$9:$P$9,"<>",$F32:$P32),15-13*PO!$X$3)) -> 18.18 | F32: =OFFSET(PO!$P$12,ROW($E32)-ROW(F$12),0) -> 18.18
A33: =OFFSET(PO!J$12,ROW(A33)-ROW($A$12),0) -> Serviço | B33: =IF($A33=0,"",OFFSET(PO!K$12,ROW(B33)-ROW(B$12),0)) -> 3.1.8. | C33: =IF(OFFSET(PO!N$12,ROW(C33)-ROW(C$12),0)=0,"",OFFSET(PO!N$12,ROW(C33)-ROW(C$12),0)) -> ARMAÇÃO DE BLOCO, VIGA BALDRAME OU SAPATA UTILIZANDO AÇO CA-50 DE 8 MM - MONTAGEM. AF_06/2017 | D33: =IF(OFFSET(PO!O$12,ROW(D33)-ROW(D$12),0)=0,"",OFFSET(PO!O$12,ROW(D33)-ROW(D$12),0)) -> KG | E33: =IF($A33<>"Serviço",0,ROUND(SUMIF($F$9:$P$9,"<>",$F33:$P33),15-13*PO!$X$3)) -> 121.23 | F33: =OFFSET(PO!$P$12,ROW($E33)-ROW(F$12),0) -> 121.23
A34: =OFFSET(PO!J$12,ROW(A34)-ROW($A$12),0) -> Serviço | B34: =IF($A34=0,"",OFFSET(PO!K$12,ROW(B34)-ROW(B$12),0)) -> 3.1.9. | C34: =IF(OFFSET(PO!N$12,ROW(C34)-ROW(C$12),0)=0,"",OFFSET(PO!N$12,ROW(C34)-ROW(C$12),0)) -> ARMAÇÃO DE BLOCO, VIGA BALDRAME OU SAPATA UTILIZANDO AÇO CA-50 DE 10 MM - MONTAGEM. AF_06/2017 | D34: =IF(OFFSET(PO!O$12,ROW(D34)-ROW(D$12),0)=0,"",OFFSET(PO!O$12,ROW(D34)-ROW(D$12),0)) -> KG | E34: =IF($A34<>"Serviço",0,ROUND(SUMIF($F$9:$P$9,"<>",$F34:$P34),15-13*PO!$X$3)) -> 356.31 | F34: =OFFSET(PO!$P$12,ROW($E34)-ROW(F$12),0) -> 356.31
A35: =OFFSET(PO!J$12,ROW(A35)-ROW($A$12),0) -> Serviço | B35: =IF($A35=0,"",OFFSET(PO!K$12,ROW(B35)-ROW(B$12),0)) -> 3.1.10. | C35: =IF(OFFSET(PO!N$12,ROW(C35)-ROW(C$12),0)=0,"",OFFSET(PO!N$12,ROW(C35)-ROW(C$12),0)) -> ARMAÇÃO DE BLOCO, VIGA BALDRAME OU SAPATA UTILIZANDO AÇO CA-50 DE 12,5 MM - MONTAGEM. AF_06/2017 | D35: =IF(OFFSET(PO!O$12,ROW(D35)-ROW(D$12),0)=0,"",OFFSET(PO!O$12,ROW(D35)-ROW(D$12),0)) -> KG | E35: =IF($A35<>"Serviço",0,ROUND(SUMIF($F$9:$P$9,"<>",$F35:$P35),15-13*PO!$X$3)) -> 138.78 | F35: =OFFSET(PO!$P$12,ROW($E35)-ROW(F$12),0) -> 138.78
A36: =OFFSET(PO!J$12,ROW(A36)-ROW($A$12),0) -> Serviço | B36: =IF($A36=0,"",OFFSET(PO!K$12,ROW(B36)-ROW(B$12),0)) -> 3.1.11. | C36: =IF(OFFSET(PO!N$12,ROW(C36)-ROW(C$12),0)=0,"",OFFSET(PO!N$12,ROW(C36)-ROW(C$12),0)) -> REATERRO MANUAL DE VALAS COM COMPACTAÇÃO MECANIZADA. AF_04/2016 | D36: =IF(OFFSET(PO!O$12,ROW(D36)-ROW(D$12),0)=0,"",OFFSET(PO!O$12,ROW(D36)-ROW(D$12),0)) -> M3 | E36: =IF($A36<>"Serviço",0,ROUND(SUMIF($F$9:$P$9,"<>",$F36:$P36),15-13*PO!$X$3)) -> 10.73 | F36: =OFFSET(PO!$P$12,ROW($E36)-ROW(F$12),0) -> 10.73
A37: =OFFSET(PO!J$12,ROW(A37)-ROW($A$12),0) -> Nível 2 | B37: =IF($A37=0,"",OFFSET(PO!K$12,ROW(B37)-ROW(B$12),0)) -> 3.2. | C37: =IF(OFFSET(PO!N$12,ROW(C37)-ROW(C$12),0)=0,"",OFFSET(PO!N$12,ROW(C37)-ROW(C$12),0)) -> VIGAS BALDRAME | D37: =IF(OFFSET(PO!O$12,ROW(D37)-ROW(D$12),0)=0,"",OFFSET(PO!O$12,ROW(D37)-ROW(D$12),0)) ->  | E37: =IF($A37<>"Serviço",0,ROUND(SUMIF($F$9:$P$9,"<>",$F37:$P37),15-13*PO!$X$3)) -> 0 | F37: =OFFSET(PO!$P$12,ROW($E37)-ROW(F$12),0) -> 0
A38: =OFFSET(PO!J$12,ROW(A38)-ROW($A$12),0) -> Serviço | B38: =IF($A38=0,"",OFFSET(PO!K$12,ROW(B38)-ROW(B$12),0)) -> 3.2.1. | C38: =IF(OFFSET(PO!N$12,ROW(C38)-ROW(C$12),0)=0,"",OFFSET(PO!N$12,ROW(C38)-ROW(C$12),0)) -> ESCAVAÇÃO MANUAL DE VALA COM PROFUNDIDADE MENOR OU IGUAL A 1,30 M. AF_03/2016 | D38: =IF(OFFSET(PO!O$12,ROW(D38)-ROW(D$12),0)=0,"",OFFSET(PO!O$12,ROW(D38)-ROW(D$12),0)) -> M3 | E38: =IF($A38<>"Serviço",0,ROUND(SUMIF($F$9:$P$9,"<>",$F38:$P38),15-13*PO!$X$3)) -> 16.74 | F38: =OFFSET(PO!$P$12,ROW($E38)-ROW(F$12),0) -> 16.74
A39: =OFFSET(PO!J$12,ROW(A39)-ROW($A$12),0) -> Serviço | B39: =IF($A39=0,"",OFFSET(PO!K$12,ROW(B39)-ROW(B$12),0)) -> 3.2.2. | C39: =IF(OFFSET(PO!N$12,ROW(C39)-ROW(C$12),0)=0,"",OFFSET(PO!N$12,ROW(C39)-ROW(C$12),0)) -> PREPARO DE FUNDO DE VALA COM LARGURA MENOR QUE 1,5 M, EM LOCAL COM NÍVEL ALTO DE INTERFERÊNCIA. AF_06/2016 | D39: =IF(OFFSET(PO!O$12,ROW(D39)-ROW(D$12),0)=0,"",OFFSET(PO!O$12,ROW(D39)-ROW(D$12),0)) -> M2 | E39: =IF($A39<>"Serviço",0,ROUND(SUMIF($F$9:$P$9,"<>",$F39:$P39),15-13*PO!$X$3)) -> 25.75 | F39: =OFFSET(PO!$P$12,ROW($E39)-ROW(F$12),0) -> 25.75
A40: =OFFSET(PO!J$12,ROW(A40)-ROW($A$12),0) -> Serviço | B40: =IF($A40=0,"",OFFSET(PO!K$12,ROW(B40)-ROW(B$12),0)) -> 3.2.3. | C40: =IF(OFFSET(PO!N$12,ROW(C40)-ROW(C$12),0)=0,"",OFFSET(PO!N$12,ROW(C40)-ROW(C$12),0)) -> LASTRO DE CONCRETO MAGRO, APLICADO EM BLOCOS DE COROAMENTO OU SAPATAS, ESPESSURA DE 3 CM. AF_08/2017 | D40: =IF(OFFSET(PO!O$12,ROW(D40)-ROW(D$12),0)=0,"",OFFSET(PO!O$12,ROW(D40)-ROW(D$12),0)) -> M2 | E40: =IF($A40<>"Serviço",0,ROUND(SUMIF($F$9:$P$9,"<>",$F40:$P40),15-13*PO!$X$3)) -> 25.75 | F40: =OFFSET(PO!$P$12,ROW($E40)-ROW(F$12),0) -> 25.75
A41: =OFFSET(PO!J$12,ROW(A41)-ROW($A$12),0) -> Serviço | B41: =IF($A41=0,"",OFFSET(PO!K$12,ROW(B41)-ROW(B$12),0)) -> 3.2.4. | C41: =IF(OFFSET(PO!N$12,ROW(C41)-ROW(C$12),0)=0,"",OFFSET(PO!N$12,ROW(C41)-ROW(C$12),0)) -> FABRICAÇÃO, MONTAGEM E DESMONTAGEM DE FÔRMA PARA VIGA BALDRAME, EM MADEIRA SERRADA, E=25 MM, 4 UTILIZAÇÕES. AF_06/2017 | D41: =IF(OFFSET(PO!O$12,ROW(D41)-ROW(D$12),0)=0,"",OFFSET(PO!O$12,ROW(D41)-ROW(D$12),0)) -> M2 | E41: =IF($A41<>"Serviço",0,ROUND(SUMIF($F$9:$P$9,"<>",$F41:$P41),15-13*PO!$X$3)) -> 77.25 | F41: =OFFSET(PO!$P$12,ROW($E41)-ROW(F$12),0) -> 77.25
A42: =OFFSET(PO!J$12,ROW(A42)-ROW($A$12),0) -> Serviço | B42: =IF($A42=0,"",OFFSET(PO!K$12,ROW(B42)-ROW(B$12),0)) -> 3.2.5. | C42: =IF(OFFSET(PO!N$12,ROW(C42)-ROW(C$12),0)=0,"",OFFSET(PO!N$12,ROW(C42)-ROW(C$12),0)) -> CONCRETAGEM DE BLOCOS DE VIGAS BALDRAMES, FCK 25 MPA, COM USO DE BOMBA ? LANÇAMENTO, ADENSAMENTO E ACABAMENTO | D42: =IF(OFFSET(PO!O$12,ROW(D42)-ROW(D$12),0)=0,"",OFFSET(PO!O$12,ROW(D42)-ROW(D$12),0)) -> M3 | E42: =IF($A42<>"Serviço",0,ROUND(SUMIF($F$9:$P$9,"<>",$F42:$P42),15-13*PO!$X$3)) -> 7.73 | F42: =OFFSET(PO!$P$12,ROW($E42)-ROW(F$12),0) -> 7.73
A43: =OFFSET(PO!J$12,ROW(A43)-ROW($A$12),0) -> Serviço | B43: =IF($A43=0,"",OFFSET(PO!K$12,ROW(B43)-ROW(B$12),0)) -> 3.2.6. | C43: =IF(OFFSET(PO!N$12,ROW(C43)-ROW(C$12),0)=0,"",OFFSET(PO!N$12,ROW(C43)-ROW(C$12),0)) -> ARMAÇÃO DE BLOCO, VIGA BALDRAME E SAPATA UTILIZANDO AÇO CA-60 DE 5 MM - MONTAGEM. AF_06/2017 | D43: =IF(OFFSET(PO!O$12,ROW(D43)-ROW(D$12),0)=0,"",OFFSET(PO!O$12,ROW(D43)-ROW(D$12),0)) -> KG | E43: =IF($A43<>"Serviço",0,ROUND(SUMIF($F$9:$P$9,"<>",$F43:$P43),15-13*PO!$X$3)) -> 116.28 | F43: =OFFSET(PO!$P$12,ROW($E43)-ROW(F$12),0) -> 116.28
A44: =OFFSET(PO!J$12,ROW(A44)-ROW($A$12),0) -> Serviço | B44: =IF($A44=0,"",OFFSET(PO!K$12,ROW(B44)-ROW(B$12),0)) -> 3.2.7. | C44: =IF(OFFSET(PO!N$12,ROW(C44)-ROW(C$12),0)=0,"",OFFSET(PO!N$12,ROW(C44)-ROW(C$12),0)) -> ARMAÇÃO DE BLOCO, VIGA BALDRAME OU SAPATA UTILIZANDO AÇO CA-50 DE 8 MM - MONTAGEM. AF_06/2017 | D44: =IF(OFFSET(PO!O$12,ROW(D44)-ROW(D$12),0)=0,"",OFFSET(PO!O$12,ROW(D44)-ROW(D$12),0)) -> KG | E44: =IF($A44<>"Serviço",0,ROUND(SUMIF($F$9:$P$9,"<>",$F44:$P44),15-13*PO!$X$3)) -> 201.87 | F44: =OFFSET(PO!$P$12,ROW($E44)-ROW(F$12),0) -> 201.87
A45: =OFFSET(PO!J$12,ROW(A45)-ROW($A$12),0) -> Serviço | B45: =IF($A45=0,"",OFFSET(PO!K$12,ROW(B45)-ROW(B$12),0)) -> 3.2.8. | C45: =IF(OFFSET(PO!N$12,ROW(C45)-ROW(C$12),0)=0,"",OFFSET(PO!N$12,ROW(C45)-ROW(C$12),0)) -> ARMAÇÃO DE BLOCO, VIGA BALDRAME OU SAPATA UTILIZANDO AÇO CA-50 DE 10 MM - MONTAGEM. AF_06/2017 | D45: =IF(OFFSET(PO!O$12,ROW(D45)-ROW(D$12),0)=0,"",OFFSET(PO!O$12,ROW(D45)-ROW(D$12),0)) -> KG | E45: =IF($A45<>"Serviço",0,ROUND(SUMIF($F$9:$P$9,"<>",$F45:$P45),15-13*PO!$X$3)) -> 20.61 | F45: =OFFSET(PO!$P$12,ROW($E45)-ROW(F$12),0) -> 20.61
A46: =OFFSET(PO!J$12,ROW(A46)-ROW($A$12),0) -> Serviço | B46: =IF($A46=0,"",OFFSET(PO!K$12,ROW(B46)-ROW(B$12),0)) -> 3.2.9. | C46: =IF(OFFSET(PO!N$12,ROW(C46)-ROW(C$12),0)=0,"",OFFSET(PO!N$12,ROW(C46)-ROW(C$12),0)) -> REATERRO MANUAL DE VALAS COM COMPACTAÇÃO MECANIZADA. AF_04/2016 | D46: =IF(OFFSET(PO!O$12,ROW(D46)-ROW(D$12),0)=0,"",OFFSET(PO!O$12,ROW(D46)-ROW(D$12),0)) -> M3 | E46: =IF($A46<>"Serviço",0,ROUND(SUMIF($F$9:$P$9,"<>",$F46:$P46),15-13*PO!$X$3)) -> 9.01 | F46: =OFFSET(PO!$P$12,ROW($E46)-ROW(F$12),0) -> 9.01
A47: =OFFSET(PO!J$12,ROW(A47)-ROW($A$12),0) -> Meta | B47: =IF($A47=0,"",OFFSET(PO!K$12,ROW(B47)-ROW(B$12),0)) -> 4. | C47: =IF(OFFSET(PO!N$12,ROW(C47)-ROW(C$12),0)=0,"",OFFSET(PO!N$12,ROW(C47)-ROW(C$12),0)) -> SUPERESTRUTURA | D47: =IF(OFFSET(PO!O$12,ROW(D47)-ROW(D$12),0)=0,"",OFFSET(PO!O$12,ROW(D47)-ROW(D$12),0)) ->  | E47: =IF($A47<>"Serviço",0,ROUND(SUMIF($F$9:$P$9,"<>",$F47:$P47),15-13*PO!$X$3)) -> 0 | F47: =OFFSET(PO!$P$12,ROW($E47)-ROW(F$12),0) -> 0
A48: =OFFSET(PO!J$12,ROW(A48)-ROW($A$12),0) -> Nível 2 | B48: =IF($A48=0,"",OFFSET(PO!K$12,ROW(B48)-ROW(B$12),0)) -> 4.1. | C48: =IF(OFFSET(PO!N$12,ROW(C48)-ROW(C$12),0)=0,"",OFFSET(PO!N$12,ROW(C48)-ROW(C$12),0)) -> PILARES - TÉRREO | D48: =IF(OFFSET(PO!O$12,ROW(D48)-ROW(D$12),0)=0,"",OFFSET(PO!O$12,ROW(D48)-ROW(D$12),0)) ->  | E48: =IF($A48<>"Serviço",0,ROUND(SUMIF($F$9:$P$9,"<>",$F48:$P48),15-13*PO!$X$3)) -> 0 | F48: =OFFSET(PO!$P$12,ROW($E48)-ROW(F$12),0) -> 0
A49: =OFFSET(PO!J$12,ROW(A49)-ROW($A$12),0) -> Serviço | B49: =IF($A49=0,"",OFFSET(PO!K$12,ROW(B49)-ROW(B$12),0)) -> 4.1.1. | C49: =IF(OFFSET(PO!N$12,ROW(C49)-ROW(C$12),0)=0,"",OFFSET(PO!N$12,ROW(C49)-ROW(C$12),0)) -> MONTAGEM E DESMONTAGEM DE FÔRMA DE PILARES RETANGULARES E ESTRUTURAS SIMILARES COM ÁREA MÉDIA DAS SEÇÕES MENOR OU IGUAL A 0,25 M², PÉ-DIREITO SIMPLES, EM CHAPA DE MADEIRA COMPENSADA PLASTIFICADA, 12 UTILIZAÇÕES. AF_12/2015 | D49: =IF(OFFSET(PO!O$12,ROW(D49)-ROW(D$12),0)=0,"",OFFSET(PO!O$12,ROW(D49)-ROW(D$12),0)) -> M2 | E49: =IF($A49<>"Serviço",0,ROUND(SUMIF($F$9:$P$9,"<>",$F49:$P49),15-13*PO!$X$3)) -> 39.75 | F49: =OFFSET(PO!$P$12,ROW($E49)-ROW(F$12),0) -> 39.75
A50: =OFFSET(PO!J$12,ROW(A50)-ROW($A$12),0) -> Serviço | B50: =IF($A50=0,"",OFFSET(PO!K$12,ROW(B50)-ROW(B$12),0)) -> 4.1.2. | C50: =IF(OFFSET(PO!N$12,ROW(C50)-ROW(C$12),0)=0,"",OFFSET(PO!N$12,ROW(C50)-ROW(C$12),0)) -> CONCRETAGEM DE PILARES, FCK = 25 MPA, COM USO DE BOMBA EM EDIFICAÇÃO COM SEÇÃO MÉDIA DE PILARES MENOR OU IGUAL A 0,25 M² - LANÇAMENTO, ADENSAMENTO E ACABAMENTO. AF_12/2015 | D50: =IF(OFFSET(PO!O$12,ROW(D50)-ROW(D$12),0)=0,"",OFFSET(PO!O$12,ROW(D50)-ROW(D$12),0)) -> M3 | E50: =IF($A50<>"Serviço",0,ROUND(SUMIF($F$9:$P$9,"<>",$F50:$P50),15-13*PO!$X$3)) -> 2.58 | F50: =OFFSET(PO!$P$12,ROW($E50)-ROW(F$12),0) -> 2.58
A51: =OFFSET(PO!J$12,ROW(A51)-ROW($A$12),0) -> Serviço | B51: =IF($A51=0,"",OFFSET(PO!K$12,ROW(B51)-ROW(B$12),0)) -> 4.1.3. | C51: =IF(OFFSET(PO!N$12,ROW(C51)-ROW(C$12),0)=0,"",OFFSET(PO!N$12,ROW(C51)-ROW(C$12),0)) -> ARMAÇÃO DE PILAR OU VIGA DE UMA ESTRUTURA CONVENCIONAL DE CONCRETO ARMADO EM UMA EDIFICAÇÃO TÉRREA OU SOBRADO UTILIZANDO AÇO CA-60 DE 5,0 MM - MONTAGEM. AF_12/2015 | D51: =IF(OFFSET(PO!O$12,ROW(D51)-ROW(D$12),0)=0,"",OFFSET(PO!O$12,ROW(D51)-ROW(D$12),0)) -> KG | E51: =IF($A51<>"Serviço",0,ROUND(SUMIF($F$9:$P$9,"<>",$F51:$P51),15-13*PO!$X$3)) -> 75.96 | F51: =OFFSET(PO!$P$12,ROW($E51)-ROW(F$12),0) -> 75.96
A52: =OFFSET(PO!J$12,ROW(A52)-ROW($A$12),0) -> Serviço | B52: =IF($A52=0,"",OFFSET(PO!K$12,ROW(B52)-ROW(B$12),0)) -> 4.1.4. | C52: =IF(OFFSET(PO!N$12,ROW(C52)-ROW(C$12),0)=0,"",OFFSET(PO!N$12,ROW(C52)-ROW(C$12),0)) -> ARMAÇÃO DE PILAR OU VIGA DE UMA ESTRUTURA CONVENCIONAL DE CONCRETO ARMADO EM UMA EDIFICAÇÃO TÉRREA OU SOBRADO UTILIZANDO AÇO CA-50 DE 10,0 MM - MONTAGEM. AF_12/2015 | D52: =IF(OFFSET(PO!O$12,ROW(D52)-ROW(D$12),0)=0,"",OFFSET(PO!O$12,ROW(D52)-ROW(D$12),0)) -> KG | E52: =IF($A52<>"Serviço",0,ROUND(SUMIF($F$9:$P$9,"<>",$F52:$P52),15-13*PO!$X$3)) -> 225.36 | F52: =OFFSET(PO!$P$12,ROW($E52)-ROW(F$12),0) -> 225.36
A53: =OFFSET(PO!J$12,ROW(A53)-ROW($A$12),0) -> Serviço | B53: =IF($A53=0,"",OFFSET(PO!K$12,ROW(B53)-ROW(B$12),0)) -> 4.1.5. | C53: =IF(OFFSET(PO!N$12,ROW(C53)-ROW(C$12),0)=0,"",OFFSET(PO!N$12,ROW(C53)-ROW(C$12),0)) -> ARMAÇÃO DE PILAR OU VIGA DE UMA ESTRUTURA CONVENCIONAL DE CONCRETO ARMADO EM UMA EDIFICAÇÃO TÉRREA OU SOBRADO UTILIZANDO AÇO CA-50 DE 12,5 MM - MONTAGEM. AF_12/2015 | D53: =IF(OFFSET(PO!O$12,ROW(D53)-ROW(D$12),0)=0,"",OFFSET(PO!O$12,ROW(D53)-ROW(D$12),0)) -> KG | E53: =IF($A53<>"Serviço",0,ROUND(SUMIF($F$9:$P$9,"<>",$F53:$P53),15-13*PO!$X$3)) -> 18.63 | F53: =OFFSET(PO!$P$12,ROW($E53)-ROW(F$12),0) -> 18.63
A54: =OFFSET(PO!J$12,ROW(A54)-ROW($A$12),0) -> Nível 2 | B54: =IF($A54=0,"",OFFSET(PO!K$12,ROW(B54)-ROW(B$12),0)) -> 4.2. | C54: =IF(OFFSET(PO!N$12,ROW(C54)-ROW(C$12),0)=0,"",OFFSET(PO!N$12,ROW(C54)-ROW(C$12),0)) -> VIGAS TÉRREO | D54: =IF(OFFSET(PO!O$12,ROW(D54)-ROW(D$12),0)=0,"",OFFSET(PO!O$12,ROW(D54)-ROW(D$12),0)) ->  | E54: =IF($A54<>"Serviço",0,ROUND(SUMIF($F$9:$P$9,"<>",$F54:$P54),15-13*PO!$X$3)) -> 0 | F54: =OFFSET(PO!$P$12,ROW($E54)-ROW(F$12),0) -> 0
A55: =OFFSET(PO!J$12,ROW(A55)-ROW($A$12),0) -> Serviço | B55: =IF($A55=0,"",OFFSET(PO!K$12,ROW(B55)-ROW(B$12),0)) -> 4.2.1. | C55: =IF(OFFSET(PO!N$12,ROW(C55)-ROW(C$12),0)=0,"",OFFSET(PO!N$12,ROW(C55)-ROW(C$12),0)) -> MONTAGEM E DESMONTAGEM DE FÔRMA DE VIGA, ESCORAMENTO COM GARFO DE MADEIRA, PÉ-DIREITO SIMPLES, EM CHAPA DE MADEIRA PLASTIFICADA, 18 UTILIZAÇÕES. AF_12/2015 | D55: =IF(OFFSET(PO!O$12,ROW(D55)-ROW(D$12),0)=0,"",OFFSET(PO!O$12,ROW(D55)-ROW(D$12),0)) -> M2 | E55: =IF($A55<>"Serviço",0,ROUND(SUMIF($F$9:$P$9,"<>",$F55:$P55),15-13*PO!$X$3)) -> 94.03 | F55: =OFFSET(PO!$P$12,ROW($E55)-ROW(F$12),0) -> 94.03
A56: =OFFSET(PO!J$12,ROW(A56)-ROW($A$12),0) -> Serviço | B56: =IF($A56=0,"",OFFSET(PO!K$12,ROW(B56)-ROW(B$12),0)) -> 4.2.2. | C56: =IF(OFFSET(PO!N$12,ROW(C56)-ROW(C$12),0)=0,"",OFFSET(PO!N$12,ROW(C56)-ROW(C$12),0)) -> CONCRETAGEM DE VIGAS E LAJES, FCK=25 MPA - LANÇAMENTO, ADENSAMENTO E ACABAMENTO | D56: =IF(OFFSET(PO!O$12,ROW(D56)-ROW(D$12),0)=0,"",OFFSET(PO!O$12,ROW(D56)-ROW(D$12),0)) -> M3 | E56: =IF($A56<>"Serviço",0,ROUND(SUMIF($F$9:$P$9,"<>",$F56:$P56),15-13*PO!$X$3)) -> 6.53 | F56: =OFFSET(PO!$P$12,ROW($E56)-ROW(F$12),0) -> 6.53
A57: =OFFSET(PO!J$12,ROW(A57)-ROW($A$12),0) -> Serviço | B57: =IF($A57=0,"",OFFSET(PO!K$12,ROW(B57)-ROW(B$12),0)) -> 4.2.3. | C57: =IF(OFFSET(PO!N$12,ROW(C57)-ROW(C$12),0)=0,"",OFFSET(PO!N$12,ROW(C57)-ROW(C$12),0)) -> ARMAÇÃO DE PILAR OU VIGA DE UMA ESTRUTURA CONVENCIONAL DE CONCRETO ARMADO EM UMA EDIFICAÇÃO TÉRREA OU SOBRADO UTILIZANDO AÇO CA-60 DE 5,0 MM - MONTAGEM. AF_12/2015 | D57: =IF(OFFSET(PO!O$12,ROW(D57)-ROW(D$12),0)=0,"",OFFSET(PO!O$12,ROW(D57)-ROW(D$12),0)) -> KG | E57: =IF($A57<>"Serviço",0,ROUND(SUMIF($F$9:$P$9,"<>",$F57:$P57),15-13*PO!$X$3)) -> 101.52 | F57: =OFFSET(PO!$P$12,ROW($E57)-ROW(F$12),0) -> 101.52
A58: =OFFSET(PO!J$12,ROW(A58)-ROW($A$12),0) -> Serviço | B58: =IF($A58=0,"",OFFSET(PO!K$12,ROW(B58)-ROW(B$12),0)) -> 4.2.4. | C58: =IF(OFFSET(PO!N$12,ROW(C58)-ROW(C$12),0)=0,"",OFFSET(PO!N$12,ROW(C58)-ROW(C$12),0)) -> ARMAÇÃO DE PILAR OU VIGA DE UMA ESTRUTURA CONVENCIONAL DE CONCRETO ARMADO EM UMA EDIFICAÇÃO TÉRREA OU SOBRADO UTILIZANDO AÇO CA-50 DE 6,3 MM - MONTAGEM. AF_12/2015 | D58: =IF(OFFSET(PO!O$12,ROW(D58)-ROW(D$12),0)=0,"",OFFSET(PO!O$12,ROW(D58)-ROW(D$12),0)) -> KG | E58: =IF($A58<>"Serviço",0,ROUND(SUMIF($F$9:$P$9,"<>",$F58:$P58),15-13*PO!$X$3)) -> 12.24 | F58: =OFFSET(PO!$P$12,ROW($E58)-ROW(F$12),0) -> 12.24
A59: =OFFSET(PO!J$12,ROW(A59)-ROW($A$12),0) -> Serviço | B59: =IF($A59=0,"",OFFSET(PO!K$12,ROW(B59)-ROW(B$12),0)) -> 4.2.5. | C59: =IF(OFFSET(PO!N$12,ROW(C59)-ROW(C$12),0)=0,"",OFFSET(PO!N$12,ROW(C59)-ROW(C$12),0)) -> ARMAÇÃO DE PILAR OU VIGA DE UMA ESTRUTURA CONVENCIONAL DE CONCRETO ARMADO EM UMA EDIFICAÇÃO TÉRREA OU SOBRADO UTILIZANDO AÇO CA-50 DE 8,0 MM - MONTAGEM. AF_12/2015 | D59: =IF(OFFSET(PO!O$12,ROW(D59)-ROW(D$12),0)=0,"",OFFSET(PO!O$12,ROW(D59)-ROW(D$12),0)) -> KG | E59: =IF($A59<>"Serviço",0,ROUND(SUMIF($F$9:$P$9,"<>",$F59:$P59),15-13*PO!$X$3)) -> 91.35 | F59: =OFFSET(PO!$P$12,ROW($E59)-ROW(F$12),0) -> 91.35
A60: =OFFSET(PO!J$12,ROW(A60)-ROW($A$12),0) -> Serviço | B60: =IF($A60=0,"",OFFSET(PO!K$12,ROW(B60)-ROW(B$12),0)) -> 4.2.6. | C60: =IF(OFFSET(PO!N$12,ROW(C60)-ROW(C$12),0)=0,"",OFFSET(PO!N$12,ROW(C60)-ROW(C$12),0)) -> ARMAÇÃO DE PILAR OU VIGA DE UMA ESTRUTURA CONVENCIONAL DE CONCRETO ARMADO EM UMA EDIFICAÇÃO TÉRREA OU SOBRADO UTILIZANDO AÇO CA-50 DE 10,0 MM - MONTAGEM. AF_12/2015 | D60: =IF(OFFSET(PO!O$12,ROW(D60)-ROW(D$12),0)=0,"",OFFSET(PO!O$12,ROW(D60)-ROW(D$12),0)) -> KG | E60: =IF($A60<>"Serviço",0,ROUND(SUMIF($F$9:$P$9,"<>",$F60:$P60),15-13*PO!$X$3)) -> 239.04 | F60: =OFFSET(PO!$P$12,ROW($E60)-ROW(F$12),0) -> 239.04
A61: =OFFSET(PO!J$12,ROW(A61)-ROW($A$12),0) -> Serviço | B61: =IF($A61=0,"",OFFSET(PO!K$12,ROW(B61)-ROW(B$12),0)) -> 4.2.7. | C61: =IF(OFFSET(PO!N$12,ROW(C61)-ROW(C$12),0)=0,"",OFFSET(PO!N$12,ROW(C61)-ROW(C$12),0)) -> ARMAÇÃO DE PILAR OU VIGA DE UMA ESTRUTURA CONVENCIONAL DE CONCRETO ARMADO EM UMA EDIFICAÇÃO TÉRREA OU SOBRADO UTILIZANDO AÇO CA-50 DE 12,5 MM - MONTAGEM. AF_12/2015 | D61: =IF(OFFSET(PO!O$12,ROW(D61)-ROW(D$12),0)=0,"",OFFSET(PO!O$12,ROW(D61)-ROW(D$12),0)) -> KG | E61: =IF($A61<>"Serviço",0,ROUND(SUMIF($F$9:$P$9,"<>",$F61:$P61),15-13*PO!$X$3)) -> 25.2 | F61: =OFFSET(PO!$P$12,ROW($E61)-ROW(F$12),0) -> 25.2
A62: =OFFSET(PO!J$12,ROW(A62)-ROW($A$12),0) -> Nível 2 | B62: =IF($A62=0,"",OFFSET(PO!K$12,ROW(B62)-ROW(B$12),0)) -> 4.3. | C62: =IF(OFFSET(PO!N$12,ROW(C62)-ROW(C$12),0)=0,"",OFFSET(PO!N$12,ROW(C62)-ROW(C$12),0)) -> LAJES - TÉRREO | D62: =IF(OFFSET(PO!O$12,ROW(D62)-ROW(D$12),0)=0,"",OFFSET(PO!O$12,ROW(D62)-ROW(D$12),0)) ->  | E62: =IF($A62<>"Serviço",0,ROUND(SUMIF($F$9:$P$9,"<>",$F62:$P62),15-13*PO!$X$3)) -> 0 | F62: =OFFSET(PO!$P$12,ROW($E62)-ROW(F$12),0) -> 0
A63: =OFFSET(PO!J$12,ROW(A63)-ROW($A$12),0) -> Serviço | B63: =IF($A63=0,"",OFFSET(PO!K$12,ROW(B63)-ROW(B$12),0)) -> 4.3.1. | C63: =IF(OFFSET(PO!N$12,ROW(C63)-ROW(C$12),0)=0,"",OFFSET(PO!N$12,ROW(C63)-ROW(C$12),0)) -> LAJE PRE-MOLDADA P/FORRO, SOBRECARGA 200 KG/M2, VAOS ATE 4,50M/ALTURA TOTAL=12CM, C/LAJOTAS E CAP.C/CONC. USINADO FCK=25MPA, 4CM,C/ESCORAMENTO (REAPR.3X) E FERRAGEM NEGATIVA, INCLUSO PROJETO E ART | D63: =IF(OFFSET(PO!O$12,ROW(D63)-ROW(D$12),0)=0,"",OFFSET(PO!O$12,ROW(D63)-ROW(D$12),0)) -> M2 | E63: =IF($A63<>"Serviço",0,ROUND(SUMIF($F$9:$P$9,"<>",$F63:$P63),15-13*PO!$X$3)) -> 165.3 | F63: =OFFSET(PO!$P$12,ROW($E63)-ROW(F$12),0) -> 165.3
A64: =OFFSET(PO!J$12,ROW(A64)-ROW($A$12),0) -> Nível 2 | B64: =IF($A64=0,"",OFFSET(PO!K$12,ROW(B64)-ROW(B$12),0)) -> 4.4. | C64: =IF(OFFSET(PO!N$12,ROW(C64)-ROW(C$12),0)=0,"",OFFSET(PO!N$12,ROW(C64)-ROW(C$12),0)) -> PILARES - PLATIBANDA/CAIXA D'ÁGUA | D64: =IF(OFFSET(PO!O$12,ROW(D64)-ROW(D$12),0)=0,"",OFFSET(PO!O$12,ROW(D64)-ROW(D$12),0)) ->  | E64: =IF($A64<>"Serviço",0,ROUND(SUMIF($F$9:$P$9,"<>",$F64:$P64),15-13*PO!$X$3)) -> 0 | F64: =OFFSET(PO!$P$12,ROW($E64)-ROW(F$12),0) -> 0
A65: =OFFSET(PO!J$12,ROW(A65)-ROW($A$12),0) -> Serviço | B65: =IF($A65=0,"",OFFSET(PO!K$12,ROW(B65)-ROW(B$12),0)) -> 4.4.1. | C65: =IF(OFFSET(PO!N$12,ROW(C65)-ROW(C$12),0)=0,"",OFFSET(PO!N$12,ROW(C65)-ROW(C$12),0)) -> MONTAGEM E DESMONTAGEM DE FÔRMA DE PILARES RETANGULARES E ESTRUTURAS SIMILARES COM ÁREA MÉDIA DAS SEÇÕES MENOR OU IGUAL A 0,25 M², PÉ-DIREITO SIMPLES, EM CHAPA DE MADEIRA COMPENSADA PLASTIFICADA, 12 UTILIZAÇÕES. AF_12/2015 | D65: =IF(OFFSET(PO!O$12,ROW(D65)-ROW(D$12),0)=0,"",OFFSET(PO!O$12,ROW(D65)-ROW(D$12),0)) -> M2 | E65: =IF($A65<>"Serviço",0,ROUND(SUMIF($F$9:$P$9,"<>",$F65:$P65),15-13*PO!$X$3)) -> 13.83 | F65: =OFFSET(PO!$P$12,ROW($E65)-ROW(F$12),0) -> 13.83
A66: =OFFSET(PO!J$12,ROW(A66)-ROW($A$12),0) -> Serviço | B66: =IF($A66=0,"",OFFSET(PO!K$12,ROW(B66)-ROW(B$12),0)) -> 4.4.2. | C66: =IF(OFFSET(PO!N$12,ROW(C66)-ROW(C$12),0)=0,"",OFFSET(PO!N$12,ROW(C66)-ROW(C$12),0)) -> CONCRETAGEM DE PILARES, FCK = 25 MPA, COM USO DE BOMBA EM EDIFICAÇÃO COM SEÇÃO MÉDIA DE PILARES MENOR OU IGUAL A 0,25 M² - LANÇAMENTO, ADENSAMENTO E ACABAMENTO. AF_12/2015 | D66: =IF(OFFSET(PO!O$12,ROW(D66)-ROW(D$12),0)=0,"",OFFSET(PO!O$12,ROW(D66)-ROW(D$12),0)) -> M3 | E66: =IF($A66<>"Serviço",0,ROUND(SUMIF($F$9:$P$9,"<>",$F66:$P66),15-13*PO!$X$3)) -> 0.87 | F66: =OFFSET(PO!$P$12,ROW($E66)-ROW(F$12),0) -> 0.87
A67: =OFFSET(PO!J$12,ROW(A67)-ROW($A$12),0) -> Serviço | B67: =IF($A67=0,"",OFFSET(PO!K$12,ROW(B67)-ROW(B$12),0)) -> 4.4.3. | C67: =IF(OFFSET(PO!N$12,ROW(C67)-ROW(C$12),0)=0,"",OFFSET(PO!N$12,ROW(C67)-ROW(C$12),0)) -> ARMAÇÃO DE PILAR OU VIGA DE UMA ESTRUTURA CONVENCIONAL DE CONCRETO ARMADO EM UMA EDIFICAÇÃO TÉRREA OU SOBRADO UTILIZANDO AÇO CA-60 DE 5,0 MM - MONTAGEM. AF_12/2015 | D67: =IF(OFFSET(PO!O$12,ROW(D67)-ROW(D$12),0)=0,"",OFFSET(PO!O$12,ROW(D67)-ROW(D$12),0)) -> KG | E67: =IF($A67<>"Serviço",0,ROUND(SUMIF($F$9:$P$9,"<>",$F67:$P67),15-13*PO!$X$3)) -> 27.18 | F67: =OFFSET(PO!$P$12,ROW($E67)-ROW(F$12),0) -> 27.18
A68: =OFFSET(PO!J$12,ROW(A68)-ROW($A$12),0) -> Serviço | B68: =IF($A68=0,"",OFFSET(PO!K$12,ROW(B68)-ROW(B$12),0)) -> 4.4.4. | C68: =IF(OFFSET(PO!N$12,ROW(C68)-ROW(C$12),0)=0,"",OFFSET(PO!N$12,ROW(C68)-ROW(C$12),0)) -> ARMAÇÃO DE PILAR OU VIGA DE UMA ESTRUTURA CONVENCIONAL DE CONCRETO ARMADO EM UMA EDIFICAÇÃO TÉRREA OU SOBRADO UTILIZANDO AÇO CA-50 DE 10,0 MM - MONTAGEM. AF_12/2015 | D68: =IF(OFFSET(PO!O$12,ROW(D68)-ROW(D$12),0)=0,"",OFFSET(PO!O$12,ROW(D68)-ROW(D$12),0)) -> KG | E68: =IF($A68<>"Serviço",0,ROUND(SUMIF($F$9:$P$9,"<>",$F68:$P68),15-13*PO!$X$3)) -> 86.58 | F68: =OFFSET(PO!$P$12,ROW($E68)-ROW(F$12),0) -> 86.58
A69: =OFFSET(PO!J$12,ROW(A69)-ROW($A$12),0) -> Serviço | B69: =IF($A69=0,"",OFFSET(PO!K$12,ROW(B69)-ROW(B$12),0)) -> 4.4.5. | C69: =IF(OFFSET(PO!N$12,ROW(C69)-ROW(C$12),0)=0,"",OFFSET(PO!N$12,ROW(C69)-ROW(C$12),0)) -> ARMAÇÃO DE PILAR OU VIGA DE UMA ESTRUTURA CONVENCIONAL DE CONCRETO ARMADO EM UMA EDIFICAÇÃO TÉRREA OU SOBRADO UTILIZANDO AÇO CA-50 DE 12,5 MM - MONTAGEM. AF_12/2015 | D69: =IF(OFFSET(PO!O$12,ROW(D69)-ROW(D$12),0)=0,"",OFFSET(PO!O$12,ROW(D69)-ROW(D$12),0)) -> KG | E69: =IF($A69<>"Serviço",0,ROUND(SUMIF($F$9:$P$9,"<>",$F69:$P69),15-13*PO!$X$3)) -> 8.01 | F69: =OFFSET(PO!$P$12,ROW($E69)-ROW(F$12),0) -> 8.01
A70: =OFFSET(PO!J$12,ROW(A70)-ROW($A$12),0) -> Nível 2 | B70: =IF($A70=0,"",OFFSET(PO!K$12,ROW(B70)-ROW(B$12),0)) -> 4.5. | C70: =IF(OFFSET(PO!N$12,ROW(C70)-ROW(C$12),0)=0,"",OFFSET(PO!N$12,ROW(C70)-ROW(C$12),0)) -> VIGAS - PLATIBANDA/CAIXA D'ÁGUA | D70: =IF(OFFSET(PO!O$12,ROW(D70)-ROW(D$12),0)=0,"",OFFSET(PO!O$12,ROW(D70)-ROW(D$12),0)) ->  | E70: =IF($A70<>"Serviço",0,ROUND(SUMIF($F$9:$P$9,"<>",$F70:$P70),15-13*PO!$X$3)) -> 0 | F70: =OFFSET(PO!$P$12,ROW($E70)-ROW(F$12),0) -> 0
A71: =OFFSET(PO!J$12,ROW(A71)-ROW($A$12),0) -> Serviço | B71: =IF($A71=0,"",OFFSET(PO!K$12,ROW(B71)-ROW(B$12),0)) -> 4.5.1. | C71: =IF(OFFSET(PO!N$12,ROW(C71)-ROW(C$12),0)=0,"",OFFSET(PO!N$12,ROW(C71)-ROW(C$12),0)) -> MONTAGEM E DESMONTAGEM DE FÔRMA DE VIGA, ESCORAMENTO COM GARFO DE MADEIRA, PÉ-DIREITO SIMPLES, EM CHAPA DE MADEIRA PLASTIFICADA, 18 UTILIZAÇÕES. AF_12/2015 | D71: =IF(OFFSET(PO!O$12,ROW(D71)-ROW(D$12),0)=0,"",OFFSET(PO!O$12,ROW(D71)-ROW(D$12),0)) -> M2 | E71: =IF($A71<>"Serviço",0,ROUND(SUMIF($F$9:$P$9,"<>",$F71:$P71),15-13*PO!$X$3)) -> 26.52 | F71: =OFFSET(PO!$P$12,ROW($E71)-ROW(F$12),0) -> 26.52
A72: =OFFSET(PO!J$12,ROW(A72)-ROW($A$12),0) -> Serviço | B72: =IF($A72=0,"",OFFSET(PO!K$12,ROW(B72)-ROW(B$12),0)) -> 4.5.2. | C72: =IF(OFFSET(PO!N$12,ROW(C72)-ROW(C$12),0)=0,"",OFFSET(PO!N$12,ROW(C72)-ROW(C$12),0)) -> CONCRETAGEM DE VIGAS E LAJES, FCK=25 MPA - LANÇAMENTO, ADENSAMENTO E ACABAMENTO | D72: =IF(OFFSET(PO!O$12,ROW(D72)-ROW(D$12),0)=0,"",OFFSET(PO!O$12,ROW(D72)-ROW(D$12),0)) -> M3 | E72: =IF($A72<>"Serviço",0,ROUND(SUMIF($F$9:$P$9,"<>",$F72:$P72),15-13*PO!$X$3)) -> 1.74 | F72: =OFFSET(PO!$P$12,ROW($E72)-ROW(F$12),0) -> 1.74
A73: =OFFSET(PO!J$12,ROW(A73)-ROW($A$12),0) -> Serviço | B73: =IF($A73=0,"",OFFSET(PO!K$12,ROW(B73)-ROW(B$12),0)) -> 4.5.3. | C73: =IF(OFFSET(PO!N$12,ROW(C73)-ROW(C$12),0)=0,"",OFFSET(PO!N$12,ROW(C73)-ROW(C$12),0)) -> ARMAÇÃO DE PILAR OU VIGA DE UMA ESTRUTURA CONVENCIONAL DE CONCRETO ARMADO EM UMA EDIFICAÇÃO TÉRREA OU SOBRADO UTILIZANDO AÇO CA-60 DE 5,0 MM - MONTAGEM. AF_12/2015 | D73: =IF(OFFSET(PO!O$12,ROW(D73)-ROW(D$12),0)=0,"",OFFSET(PO!O$12,ROW(D73)-ROW(D$12),0)) -> KG | E73: =IF($A73<>"Serviço",0,ROUND(SUMIF($F$9:$P$9,"<>",$F73:$P73),15-13*PO!$X$3)) -> 80.37 | F73: =OFFSET(PO!$P$12,ROW($E73)-ROW(F$12),0) -> 80.37
A74: =OFFSET(PO!J$12,ROW(A74)-ROW($A$12),0) -> Serviço | B74: =IF($A74=0,"",OFFSET(PO!K$12,ROW(B74)-ROW(B$12),0)) -> 4.5.4. | C74: =IF(OFFSET(PO!N$12,ROW(C74)-ROW(C$12),0)=0,"",OFFSET(PO!N$12,ROW(C74)-ROW(C$12),0)) -> ARMAÇÃO DE PILAR OU VIGA DE UMA ESTRUTURA CONVENCIONAL DE CONCRETO ARMADO EM UMA EDIFICAÇÃO TÉRREA OU SOBRADO UTILIZANDO AÇO CA-50 DE 8,0 MM - MONTAGEM. AF_12/2015 | D74: =IF(OFFSET(PO!O$12,ROW(D74)-ROW(D$12),0)=0,"",OFFSET(PO!O$12,ROW(D74)-ROW(D$12),0)) -> KG | E74: =IF($A74<>"Serviço",0,ROUND(SUMIF($F$9:$P$9,"<>",$F74:$P74),15-13*PO!$X$3)) -> 94.41 | F74: =OFFSET(PO!$P$12,ROW($E74)-ROW(F$12),0) -> 94.41
A75: =OFFSET(PO!J$12,ROW(A75)-ROW($A$12),0) -> Serviço | B75: =IF($A75=0,"",OFFSET(PO!K$12,ROW(B75)-ROW(B$12),0)) -> 4.5.5. | C75: =IF(OFFSET(PO!N$12,ROW(C75)-ROW(C$12),0)=0,"",OFFSET(PO!N$12,ROW(C75)-ROW(C$12),0)) -> ARMAÇÃO DE PILAR OU VIGA DE UMA ESTRUTURA CONVENCIONAL DE CONCRETO ARMADO EM UMA EDIFICAÇÃO TÉRREA OU SOBRADO UTILIZANDO AÇO CA-50 DE 10,0 MM - MONTAGEM. AF_12/2015 | D75: =IF(OFFSET(PO!O$12,ROW(D75)-ROW(D$12),0)=0,"",OFFSET(PO!O$12,ROW(D75)-ROW(D$12),0)) -> KG | E75: =IF($A75<>"Serviço",0,ROUND(SUMIF($F$9:$P$9,"<>",$F75:$P75),15-13*PO!$X$3)) -> 30.51 | F75: =OFFSET(PO!$P$12,ROW($E75)-ROW(F$12),0) -> 30.51
A76: =OFFSET(PO!J$12,ROW(A76)-ROW($A$12),0) -> Nível 2 | B76: =IF($A76=0,"",OFFSET(PO!K$12,ROW(B76)-ROW(B$12),0)) -> 4.6. | C76: =IF(OFFSET(PO!N$12,ROW(C76)-ROW(C$12),0)=0,"",OFFSET(PO!N$12,ROW(C76)-ROW(C$12),0)) -> LAJE - CAIXA D'ÁGUA | D76: =IF(OFFSET(PO!O$12,ROW(D76)-ROW(D$12),0)=0,"",OFFSET(PO!O$12,ROW(D76)-ROW(D$12),0)) ->  | E76: =IF($A76<>"Serviço",0,ROUND(SUMIF($F$9:$P$9,"<>",$F76:$P76),15-13*PO!$X$3)) -> 0 | F76: =OFFSET(PO!$P$12,ROW($E76)-ROW(F$12),0) -> 0
A77: =OFFSET(PO!J$12,ROW(A77)-ROW($A$12),0) -> Serviço | B77: =IF($A77=0,"",OFFSET(PO!K$12,ROW(B77)-ROW(B$12),0)) -> 4.6.1. | C77: =IF(OFFSET(PO!N$12,ROW(C77)-ROW(C$12),0)=0,"",OFFSET(PO!N$12,ROW(C77)-ROW(C$12),0)) -> LAJE PRE-MOLDADA P/PISO, SOBRECARGA 750 KG/M2, VAOS ATE 3,50M/ ALTURA TOTAL=12CM, C/LAJOTAS E CAP.C/CONC. USINADO FCK=25MPA, 4CM E FERRAGEM NEGATIVA, INCLUSO PROJETO E ART | D77: =IF(OFFSET(PO!O$12,ROW(D77)-ROW(D$12),0)=0,"",OFFSET(PO!O$12,ROW(D77)-ROW(D$12),0)) -> M2 | E77: =IF($A77<>"Serviço",0,ROUND(SUMIF($F$9:$P$9,"<>",$F77:$P77),15-13*PO!$X$3)) -> 10.32 | F77: =OFFSET(PO!$P$12,ROW($E77)-ROW(F$12),0) -> 10.32
A78: =OFFSET(PO!J$12,ROW(A78)-ROW($A$12),0) -> Nível 2 | B78: =IF($A78=0,"",OFFSET(PO!K$12,ROW(B78)-ROW(B$12),0)) -> 4.7. | C78: =IF(OFFSET(PO!N$12,ROW(C78)-ROW(C$12),0)=0,"",OFFSET(PO!N$12,ROW(C78)-ROW(C$12),0)) -> PILARES - COBERTURA | D78: =IF(OFFSET(PO!O$12,ROW(D78)-ROW(D$12),0)=0,"",OFFSET(PO!O$12,ROW(D78)-ROW(D$12),0)) ->  | E78: =IF($A78<>"Serviço",0,ROUND(SUMIF($F$9:$P$9,"<>",$F78:$P78),15-13*PO!$X$3)) -> 0 | F78: =OFFSET(PO!$P$12,ROW($E78)-ROW(F$12),0) -> 0
A79: =OFFSET(PO!J$12,ROW(A79)-ROW($A$12),0) -> Serviço | B79: =IF($A79=0,"",OFFSET(PO!K$12,ROW(B79)-ROW(B$12),0)) -> 4.7.1. | C79: =IF(OFFSET(PO!N$12,ROW(C79)-ROW(C$12),0)=0,"",OFFSET(PO!N$12,ROW(C79)-ROW(C$12),0)) -> MONTAGEM E DESMONTAGEM DE FÔRMA DE PILARES RETANGULARES E ESTRUTURAS SIMILARES COM ÁREA MÉDIA DAS SEÇÕES MENOR OU IGUAL A 0,25 M², PÉ-DIREITO SIMPLES, EM CHAPA DE MADEIRA COMPENSADA PLASTIFICADA, 12 UTILIZAÇÕES. AF_12/2015 | D79: =IF(OFFSET(PO!O$12,ROW(D79)-ROW(D$12),0)=0,"",OFFSET(PO!O$12,ROW(D79)-ROW(D$12),0)) -> M2 | E79: =IF($A79<>"Serviço",0,ROUND(SUMIF($F$9:$P$9,"<>",$F79:$P79),15-13*PO!$X$3)) -> 3.9 | F79: =OFFSET(PO!$P$12,ROW($E79)-ROW(F$12),0) -> 3.9
A80: =OFFSET(PO!J$12,ROW(A80)-ROW($A$12),0) -> Serviço | B80: =IF($A80=0,"",OFFSET(PO!K$12,ROW(B80)-ROW(B$12),0)) -> 4.7.2. | C80: =IF(OFFSET(PO!N$12,ROW(C80)-ROW(C$12),0)=0,"",OFFSET(PO!N$12,ROW(C80)-ROW(C$12),0)) -> CONCRETAGEM DE PILARES, FCK = 25 MPA, COM USO DE BOMBA EM EDIFICAÇÃO COM SEÇÃO MÉDIA DE PILARES MENOR OU IGUAL A 0,25 M² - LANÇAMENTO, ADENSAMENTO E ACABAMENTO. AF_12/2015 | D80: =IF(OFFSET(PO!O$12,ROW(D80)-ROW(D$12),0)=0,"",OFFSET(PO!O$12,ROW(D80)-ROW(D$12),0)) -> M3 | E80: =IF($A80<>"Serviço",0,ROUND(SUMIF($F$9:$P$9,"<>",$F80:$P80),15-13*PO!$X$3)) -> 0.25 | F80: =OFFSET(PO!$P$12,ROW($E80)-ROW(F$12),0) -> 0.25
A81: =OFFSET(PO!J$12,ROW(A81)-ROW($A$12),0) -> Serviço | B81: =IF($A81=0,"",OFFSET(PO!K$12,ROW(B81)-ROW(B$12),0)) -> 4.7.3. | C81: =IF(OFFSET(PO!N$12,ROW(C81)-ROW(C$12),0)=0,"",OFFSET(PO!N$12,ROW(C81)-ROW(C$12),0)) -> ARMAÇÃO DE PILAR OU VIGA DE UMA ESTRUTURA CONVENCIONAL DE CONCRETO ARMADO EM UMA EDIFICAÇÃO TÉRREA OU SOBRADO UTILIZANDO AÇO CA-60 DE 5,0 MM - MONTAGEM. AF_12/2015 | D81: =IF(OFFSET(PO!O$12,ROW(D81)-ROW(D$12),0)=0,"",OFFSET(PO!O$12,ROW(D81)-ROW(D$12),0)) -> KG | E81: =IF($A81<>"Serviço",0,ROUND(SUMIF($F$9:$P$9,"<>",$F81:$P81),15-13*PO!$X$3)) -> 6.93 | F81: =OFFSET(PO!$P$12,ROW($E81)-ROW(F$12),0) -> 6.93
A82: =OFFSET(PO!J$12,ROW(A82)-ROW($A$12),0) -> Serviço | B82: =IF($A82=0,"",OFFSET(PO!K$12,ROW(B82)-ROW(B$12),0)) -> 4.7.4. | C82: =IF(OFFSET(PO!N$12,ROW(C82)-ROW(C$12),0)=0,"",OFFSET(PO!N$12,ROW(C82)-ROW(C$12),0)) -> ARMAÇÃO DE PILAR OU VIGA DE UMA ESTRUTURA CONVENCIONAL DE CONCRETO ARMADO EM UMA EDIFICAÇÃO TÉRREA OU SOBRADO UTILIZANDO AÇO CA-50 DE 10,0 MM - MONTAGEM. AF_12/2015 | D82: =IF(OFFSET(PO!O$12,ROW(D82)-ROW(D$12),0)=0,"",OFFSET(PO!O$12,ROW(D82)-ROW(D$12),0)) -> KG | E82: =IF($A82<>"Serviço",0,ROUND(SUMIF($F$9:$P$9,"<>",$F82:$P82),15-13*PO!$X$3)) -> 16.29 | F82: =OFFSET(PO!$P$12,ROW($E82)-ROW(F$12),0) -> 16.29
A83: =OFFSET(PO!J$12,ROW(A83)-ROW($A$12),0) -> Nível 2 | B83: =IF($A83=0,"",OFFSET(PO!K$12,ROW(B83)-ROW(B$12),0)) -> 4.8. | C83: =IF(OFFSET(PO!N$12,ROW(C83)-ROW(C$12),0)=0,"",OFFSET(PO!N$12,ROW(C83)-ROW(C$12),0)) -> VIGAS - COBERTURA | D83: =IF(OFFSET(PO!O$12,ROW(D83)-ROW(D$12),0)=0,"",OFFSET(PO!O$12,ROW(D83)-ROW(D$12),0)) ->  | E83: =IF($A83<>"Serviço",0,ROUND(SUMIF($F$9:$P$9,"<>",$F83:$P83),15-13*PO!$X$3)) -> 0 | F83: =OFFSET(PO!$P$12,ROW($E83)-ROW(F$12),0) -> 0
A84: =OFFSET(PO!J$12,ROW(A84)-ROW($A$12),0) -> Serviço | B84: =IF($A84=0,"",OFFSET(PO!K$12,ROW(B84)-ROW(B$12),0)) -> 4.8.1. | C84: =IF(OFFSET(PO!N$12,ROW(C84)-ROW(C$12),0)=0,"",OFFSET(PO!N$12,ROW(C84)-ROW(C$12),0)) -> MONTAGEM E DESMONTAGEM DE FÔRMA DE VIGA, ESCORAMENTO COM GARFO DE MADEIRA, PÉ-DIREITO SIMPLES, EM CHAPA DE MADEIRA PLASTIFICADA, 18 UTILIZAÇÕES. AF_12/2015 | D84: =IF(OFFSET(PO!O$12,ROW(D84)-ROW(D$12),0)=0,"",OFFSET(PO!O$12,ROW(D84)-ROW(D$12),0)) -> M2 | E84: =IF($A84<>"Serviço",0,ROUND(SUMIF($F$9:$P$9,"<>",$F84:$P84),15-13*PO!$X$3)) -> 5.23 | F84: =OFFSET(PO!$P$12,ROW($E84)-ROW(F$12),0) -> 5.23
A85: =OFFSET(PO!J$12,ROW(A85)-ROW($A$12),0) -> Serviço | B85: =IF($A85=0,"",OFFSET(PO!K$12,ROW(B85)-ROW(B$12),0)) -> 4.8.2. | C85: =IF(OFFSET(PO!N$12,ROW(C85)-ROW(C$12),0)=0,"",OFFSET(PO!N$12,ROW(C85)-ROW(C$12),0)) -> CONCRETAGEM DE VIGAS E LAJES, FCK=20 MPA, PARA LAJES MACIÇAS OU NERVURADAS COM USO DE BOMBA EM EDIFICAÇÃO COM ÁREA MÉDIA DE LAJES MAIOR QUE 20 M² - LANÇAMENTO, ADENSAMENTO E ACABAMENTO. AF_12/2015 | D85: =IF(OFFSET(PO!O$12,ROW(D85)-ROW(D$12),0)=0,"",OFFSET(PO!O$12,ROW(D85)-ROW(D$12),0)) -> M3 | E85: =IF($A85<>"Serviço",0,ROUND(SUMIF($F$9:$P$9,"<>",$F85:$P85),15-13*PO!$X$3)) -> 0.34 | F85: =OFFSET(PO!$P$12,ROW($E85)-ROW(F$12),0) -> 0.34
A86: =OFFSET(PO!J$12,ROW(A86)-ROW($A$12),0) -> Serviço | B86: =IF($A86=0,"",OFFSET(PO!K$12,ROW(B86)-ROW(B$12),0)) -> 4.8.3. | C86: =IF(OFFSET(PO!N$12,ROW(C86)-ROW(C$12),0)=0,"",OFFSET(PO!N$12,ROW(C86)-ROW(C$12),0)) -> ARMAÇÃO DE PILAR OU VIGA DE UMA ESTRUTURA CONVENCIONAL DE CONCRETO ARMADO EM UMA EDIFICAÇÃO TÉRREA OU SOBRADO UTILIZANDO AÇO CA-60 DE 5,0 MM - MONTAGEM. AF_12/2015 | D86: =IF(OFFSET(PO!O$12,ROW(D86)-ROW(D$12),0)=0,"",OFFSET(PO!O$12,ROW(D86)-ROW(D$12),0)) -> KG | E86: =IF($A86<>"Serviço",0,ROUND(SUMIF($F$9:$P$9,"<>",$F86:$P86),15-13*PO!$X$3)) -> 12.69 | F86: =OFFSET(PO!$P$12,ROW($E86)-ROW(F$12),0) -> 12.69
A87: =OFFSET(PO!J$12,ROW(A87)-ROW($A$12),0) -> Serviço | B87: =IF($A87=0,"",OFFSET(PO!K$12,ROW(B87)-ROW(B$12),0)) -> 4.8.4. | C87: =IF(OFFSET(PO!N$12,ROW(C87)-ROW(C$12),0)=0,"",OFFSET(PO!N$12,ROW(C87)-ROW(C$12),0)) -> ARMAÇÃO DE PILAR OU VIGA DE UMA ESTRUTURA CONVENCIONAL DE CONCRETO ARMADO EM UMA EDIFICAÇÃO TÉRREA OU SOBRADO UTILIZANDO AÇO CA-50 DE 8,0 MM - MONTAGEM. AF_12/2015 | D87: =IF(OFFSET(PO!O$12,ROW(D87)-ROW(D$12),0)=0,"",OFFSET(PO!O$12,ROW(D87)-ROW(D$12),0)) -> KG | E87: =IF($A87<>"Serviço",0,ROUND(SUMIF($F$9:$P$9,"<>",$F87:$P87),15-13*PO!$X$3)) -> 20.52 | F87: =OFFSET(PO!$P$12,ROW($E87)-ROW(F$12),0) -> 20.52
A88: =OFFSET(PO!J$12,ROW(A88)-ROW($A$12),0) -> Nível 2 | B88: =IF($A88=0,"",OFFSET(PO!K$12,ROW(B88)-ROW(B$12),0)) -> 4.9. | C88: =IF(OFFSET(PO!N$12,ROW(C88)-ROW(C$12),0)=0,"",OFFSET(PO!N$12,ROW(C88)-ROW(C$12),0)) -> VERGAS/CONTRA-VERGAS | D88: =IF(OFFSET(PO!O$12,ROW(D88)-ROW(D$12),0)=0,"",OFFSET(PO!O$12,ROW(D88)-ROW(D$12),0)) ->  | E88: =IF($A88<>"Serviço",0,ROUND(SUMIF($F$9:$P$9,"<>",$F88:$P88),15-13*PO!$X$3)) -> 0 | F88: =OFFSET(PO!$P$12,ROW($E88)-ROW(F$12),0) -> 0
A89: =OFFSET(PO!J$12,ROW(A89)-ROW($A$12),0) -> Serviço | B89: =IF($A89=0,"",OFFSET(PO!K$12,ROW(B89)-ROW(B$12),0)) -> 4.9.1. | C89: =IF(OFFSET(PO!N$12,ROW(C89)-ROW(C$12),0)=0,"",OFFSET(PO!N$12,ROW(C89)-ROW(C$12),0)) -> VERGA PRÉ-MOLDADA PARA PORTAS COM ATÉ 1,5 M DE VÃO. AF_03/2016 | D89: =IF(OFFSET(PO!O$12,ROW(D89)-ROW(D$12),0)=0,"",OFFSET(PO!O$12,ROW(D89)-ROW(D$12),0)) -> M | E89: =IF($A89<>"Serviço",0,ROUND(SUMIF($F$9:$P$9,"<>",$F89:$P89),15-13*PO!$X$3)) -> 16 | F89: =OFFSET(PO!$P$12,ROW($E89)-ROW(F$12),0) -> 16
A90: =OFFSET(PO!J$12,ROW(A90)-ROW($A$12),0) -> Serviço | B90: =IF($A90=0,"",OFFSET(PO!K$12,ROW(B90)-ROW(B$12),0)) -> 4.9.2. | C90: =IF(OFFSET(PO!N$12,ROW(C90)-ROW(C$12),0)=0,"",OFFSET(PO!N$12,ROW(C90)-ROW(C$12),0)) -> VERGA PRÉ-MOLDADA PARA PORTAS COM MAIS DE 1,5 M DE VÃO. AF_03/2016 | D90: =IF(OFFSET(PO!O$12,ROW(D90)-ROW(D$12),0)=0,"",OFFSET(PO!O$12,ROW(D90)-ROW(D$12),0)) -> M | E90: =IF($A90<>"Serviço",0,ROUND(SUMIF($F$9:$P$9,"<>",$F90:$P90),15-13*PO!$X$3)) -> 5.3 | F90: =OFFSET(PO!$P$12,ROW($E90)-ROW(F$12),0) -> 5.3
A91: =OFFSET(PO!J$12,ROW(A91)-ROW($A$12),0) -> Serviço | B91: =IF($A91=0,"",OFFSET(PO!K$12,ROW(B91)-ROW(B$12),0)) -> 4.9.3. | C91: =IF(OFFSET(PO!N$12,ROW(C91)-ROW(C$12),0)=0,"",OFFSET(PO!N$12,ROW(C91)-ROW(C$12),0)) -> VERGA PRÉ-MOLDADA PARA JANELAS COM ATÉ 1,5 M DE VÃO. AF_03/2016 | D91: =IF(OFFSET(PO!O$12,ROW(D91)-ROW(D$12),0)=0,"",OFFSET(PO!O$12,ROW(D91)-ROW(D$12),0)) -> M | E91: =IF($A91<>"Serviço",0,ROUND(SUMIF($F$9:$P$9,"<>",$F91:$P91),15-13*PO!$X$3)) -> 13 | F91: =OFFSET(PO!$P$12,ROW($E91)-ROW(F$12),0) -> 13
A92: =OFFSET(PO!J$12,ROW(A92)-ROW($A$12),0) -> Serviço | B92: =IF($A92=0,"",OFFSET(PO!K$12,ROW(B92)-ROW(B$12),0)) -> 4.9.4. | C92: =IF(OFFSET(PO!N$12,ROW(C92)-ROW(C$12),0)=0,"",OFFSET(PO!N$12,ROW(C92)-ROW(C$12),0)) -> VERGA PRÉ-MOLDADA PARA JANELAS COM MAIS DE 1,5 M DE VÃO. AF_03/2016 | D92: =IF(OFFSET(PO!O$12,ROW(D92)-ROW(D$12),0)=0,"",OFFSET(PO!O$12,ROW(D92)-ROW(D$12),0)) -> M | E92: =IF($A92<>"Serviço",0,ROUND(SUMIF($F$9:$P$9,"<>",$F92:$P92),15-13*PO!$X$3)) -> 14.05 | F92: =OFFSET(PO!$P$12,ROW($E92)-ROW(F$12),0) -> 14.05
A93: =OFFSET(PO!J$12,ROW(A93)-ROW($A$12),0) -> Serviço | B93: =IF($A93=0,"",OFFSET(PO!K$12,ROW(B93)-ROW(B$12),0)) -> 4.9.5. | C93: =IF(OFFSET(PO!N$12,ROW(C93)-ROW(C$12),0)=0,"",OFFSET(PO!N$12,ROW(C93)-ROW(C$12),0)) -> CONTRAVERGA PRÉ-MOLDADA PARA VÃOS DE ATÉ 1,5 M DE COMPRIMENTO. AF_03/2016 | D93: =IF(OFFSET(PO!O$12,ROW(D93)-ROW(D$12),0)=0,"",OFFSET(PO!O$12,ROW(D93)-ROW(D$12),0)) -> M | E93: =IF($A93<>"Serviço",0,ROUND(SUMIF($F$9:$P$9,"<>",$F93:$P93),15-13*PO!$X$3)) -> 13 | F93: =OFFSET(PO!$P$12,ROW($E93)-ROW(F$12),0) -> 13
A94: =OFFSET(PO!J$12,ROW(A94)-ROW($A$12),0) -> Serviço | B94: =IF($A94=0,"",OFFSET(PO!K$12,ROW(B94)-ROW(B$12),0)) -> 4.9.6. | C94: =IF(OFFSET(PO!N$12,ROW(C94)-ROW(C$12),0)=0,"",OFFSET(PO!N$12,ROW(C94)-ROW(C$12),0)) -> CONTRAVERGA PRÉ-MOLDADA PARA VÃOS DE MAIS DE 1,5 M DE COMPRIMENTO. AF_03/2016 | D94: =IF(OFFSET(PO!O$12,ROW(D94)-ROW(D$12),0)=0,"",OFFSET(PO!O$12,ROW(D94)-ROW(D$12),0)) -> M | E94: =IF($A94<>"Serviço",0,ROUND(SUMIF($F$9:$P$9,"<>",$F94:$P94),15-13*PO!$X$3)) -> 14.05 | F94: =OFFSET(PO!$P$12,ROW($E94)-ROW(F$12),0) -> 14.05
A95: =OFFSET(PO!J$12,ROW(A95)-ROW($A$12),0) -> Meta | B95: =IF($A95=0,"",OFFSET(PO!K$12,ROW(B95)-ROW(B$12),0)) -> 5. | C95: =IF(OFFSET(PO!N$12,ROW(C95)-ROW(C$12),0)=0,"",OFFSET(PO!N$12,ROW(C95)-ROW(C$12),0)) -> PAREDES E PAINÉIS | D95: =IF(OFFSET(PO!O$12,ROW(D95)-ROW(D$12),0)=0,"",OFFSET(PO!O$12,ROW(D95)-ROW(D$12),0)) ->  | E95: =IF($A95<>"Serviço",0,ROUND(SUMIF($F$9:$P$9,"<>",$F95:$P95),15-13*PO!$X$3)) -> 0 | F95: =OFFSET(PO!$P$12,ROW($E95)-ROW(F$12),0) -> 0
A96: =OFFSET(PO!J$12,ROW(A96)-ROW($A$12),0) -> Nível 2 | B96: =IF($A96=0,"",OFFSET(PO!K$12,ROW(B96)-ROW(B$12),0)) -> 5.1. | C96: =IF(OFFSET(PO!N$12,ROW(C96)-ROW(C$12),0)=0,"",OFFSET(PO!N$12,ROW(C96)-ROW(C$12),0)) -> ALVENARIA DE VEDAÇÃO | D96: =IF(OFFSET(PO!O$12,ROW(D96)-ROW(D$12),0)=0,"",OFFSET(PO!O$12,ROW(D96)-ROW(D$12),0)) ->  | E96: =IF($A96<>"Serviço",0,ROUND(SUMIF($F$9:$P$9,"<>",$F96:$P96),15-13*PO!$X$3)) -> 0 | F96: =OFFSET(PO!$P$12,ROW($E96)-ROW(F$12),0) -> 0
A97: =OFFSET(PO!J$12,ROW(A97)-ROW($A$12),0) -> Serviço | B97: =IF($A97=0,"",OFFSET(PO!K$12,ROW(B97)-ROW(B$12),0)) -> 5.1.1. | C97: =IF(OFFSET(PO!N$12,ROW(C97)-ROW(C$12),0)=0,"",OFFSET(PO!N$12,ROW(C97)-ROW(C$12),0)) -> ALVENARIA DE VEDAÇÃO DE BLOCOS CERÂMICOS FURADOS NA HORIZONTAL DE 11,5X19X19CM (ESPESSURA 11,5CM) DE PAREDES COM ÁREA LÍQUIDA MENOR QUE 6M² COM VÃOS E ARGAMASSA DE ASSENTAMENTO COM PREPARO EM BETONEIRA. AF_06/2014 | D97: =IF(OFFSET(PO!O$12,ROW(D97)-ROW(D$12),0)=0,"",OFFSET(PO!O$12,ROW(D97)-ROW(D$12),0)) -> M2 | E97: =IF($A97<>"Serviço",0,ROUND(SUMIF($F$9:$P$9,"<>",$F97:$P97),15-13*PO!$X$3)) -> 284.21 | F97: =OFFSET(PO!$P$12,ROW($E97)-ROW(F$12),0) -> 284.21
A98: =OFFSET(PO!J$12,ROW(A98)-ROW($A$12),0) -> Meta | B98: =IF($A98=0,"",OFFSET(PO!K$12,ROW(B98)-ROW(B$12),0)) -> 6. | C98: =IF(OFFSET(PO!N$12,ROW(C98)-ROW(C$12),0)=0,"",OFFSET(PO!N$12,ROW(C98)-ROW(C$12),0)) -> ESQUADRIAS | D98: =IF(OFFSET(PO!O$12,ROW(D98)-ROW(D$12),0)=0,"",OFFSET(PO!O$12,ROW(D98)-ROW(D$12),0)) ->  | E98: =IF($A98<>"Serviço",0,ROUND(SUMIF($F$9:$P$9,"<>",$F98:$P98),15-13*PO!$X$3)) -> 0 | F98: =OFFSET(PO!$P$12,ROW($E98)-ROW(F$12),0) -> 0
A99: =OFFSET(PO!J$12,ROW(A99)-ROW($A$12),0) -> Nível 2 | B99: =IF($A99=0,"",OFFSET(PO!K$12,ROW(B99)-ROW(B$12),0)) -> 6.1. | C99: =IF(OFFSET(PO!N$12,ROW(C99)-ROW(C$12),0)=0,"",OFFSET(PO!N$12,ROW(C99)-ROW(C$12),0)) -> PORTAS DE VIDRO | D99: =IF(OFFSET(PO!O$12,ROW(D99)-ROW(D$12),0)=0,"",OFFSET(PO!O$12,ROW(D99)-ROW(D$12),0)) ->  | E99: =IF($A99<>"Serviço",0,ROUND(SUMIF($F$9:$P$9,"<>",$F99:$P99),15-13*PO!$X$3)) -> 0 | F99: =OFFSET(PO!$P$12,ROW($E99)-ROW(F$12),0) -> 0
A100: =OFFSET(PO!J$12,ROW(A100)-ROW($A$12),0) -> Serviço | B100: =IF($A100=0,"",OFFSET(PO!K$12,ROW(B100)-ROW(B$12),0)) -> 6.1.1. | C100: =IF(OFFSET(PO!N$12,ROW(C100)-ROW(C$12),0)=0,"",OFFSET(PO!N$12,ROW(C100)-ROW(C$12),0)) -> PORTA DE CORRER EM ALUMINIO, COM DUAS FOLHAS PARA VIDRO, INCLUSO VIDRO LISO INCOLOR, FECHADURA E PUXADOR, SEM GUARNICAO/ALIZAR/VISTA | D100: =IF(OFFSET(PO!O$12,ROW(D100)-ROW(D$12),0)=0,"",OFFSET(PO!O$12,ROW(D100)-ROW(D$12),0)) -> M2 | E100: =IF($A100<>"Serviço",0,ROUND(SUMIF($F$9:$P$9,"<>",$F100:$P100),15-13*PO!$X$3)) -> 9.45 | F100: =OFFSET(PO!$P$12,ROW($E100)-ROW(F$12),0) -> 9.45
A101: =OFFSET(PO!J$12,ROW(A101)-ROW($A$12),0) -> Nível 2 | B101: =IF($A101=0,"",OFFSET(PO!K$12,ROW(B101)-ROW(B$12),0)) -> 6.2. | C101: =IF(OFFSET(PO!N$12,ROW(C101)-ROW(C$12),0)=0,"",OFFSET(PO!N$12,ROW(C101)-ROW(C$12),0)) -> PORTA DE MADEIRA | D101: =IF(OFFSET(PO!O$12,ROW(D101)-ROW(D$12),0)=0,"",OFFSET(PO!O$12,ROW(D101)-ROW(D$12),0)) ->  | E101: =IF($A101<>"Serviço",0,ROUND(SUMIF($F$9:$P$9,"<>",$F101:$P101),15-13*PO!$X$3)) -> 0 | F101: =OFFSET(PO!$P$12,ROW($E101)-ROW(F$12),0) -> 0
A102: =OFFSET(PO!J$12,ROW(A102)-ROW($A$12),0) -> Serviço | B102: =IF($A102=0,"",OFFSET(PO!K$12,ROW(B102)-ROW(B$12),0)) -> 6.2.1. | C102: =IF(OFFSET(PO!N$12,ROW(C102)-ROW(C$12),0)=0,"",OFFSET(PO!N$12,ROW(C102)-ROW(C$12),0)) -> KIT DE PORTA DE MADEIRA PARA PINTURA, SEMI-OCA (LEVE OU MÉDIA), PADRÃO MÉDIO, 80X210CM, ESPESSURA DE 3,5CM, ITENS INCLUSOS: DOBRADIÇAS, MONTAGEM E INSTALAÇÃO DO BATENTE, FECHADURA COM EXECUÇÃO DO FURO - FORNECIMENTO E INSTALAÇÃO. AF_08/2015 | D102: =IF(OFFSET(PO!O$12,ROW(D102)-ROW(D$12),0)=0,"",OFFSET(PO!O$12,ROW(D102)-ROW(D$12),0)) -> UN | E102: =IF($A102<>"Serviço",0,ROUND(SUMIF($F$9:$P$9,"<>",$F102:$P102),15-13*PO!$X$3)) -> 6 | F102: =OFFSET(PO!$P$12,ROW($E102)-ROW(F$12),0) -> 6
A103: =OFFSET(PO!J$12,ROW(A103)-ROW($A$12),0) -> Serviço | B103: =IF($A103=0,"",OFFSET(PO!K$12,ROW(B103)-ROW(B$12),0)) -> 6.2.2. | C103: =IF(OFFSET(PO!N$12,ROW(C103)-ROW(C$12),0)=0,"",OFFSET(PO!N$12,ROW(C103)-ROW(C$12),0)) -> KIT DE PORTA DE MADEIRA PARA PINTURA, SEMI-OCA (LEVE OU MÉDIA), PADRÃO MÉDIO, 60X210CM, ESPESSURA DE 3,5CM, ITENS INCLUSOS: DOBRADIÇAS, MONTAGEM E INSTALAÇÃO DO BATENTE, FECHADURA COM EXECUÇÃO DO FURO - FORNECIMENTO E INSTALAÇÃO. AF_08/2015 | D103: =IF(OFFSET(PO!O$12,ROW(D103)-ROW(D$12),0)=0,"",OFFSET(PO!O$12,ROW(D103)-ROW(D$12),0)) -> UN | E103: =IF($A103<>"Serviço",0,ROUND(SUMIF($F$9:$P$9,"<>",$F103:$P103),15-13*PO!$X$3)) -> 2 | F103: =OFFSET(PO!$P$12,ROW($E103)-ROW(F$12),0) -> 2
A104: =OFFSET(PO!J$12,ROW(A104)-ROW($A$12),0) -> Serviço | B104: =IF($A104=0,"",OFFSET(PO!K$12,ROW(B104)-ROW(B$12),0)) -> 6.2.3. | C104: =IF(OFFSET(PO!N$12,ROW(C104)-ROW(C$12),0)=0,"",OFFSET(PO!N$12,ROW(C104)-ROW(C$12),0)) -> PORTA DE MADEIRA COMPENSADA LISA PARA PINTURA, 120X210X3,5CM, 2 FOLHAS, INCLUSO ADUELA 2A, ALIZAR 2A E DOBRADICAS | D104: =IF(OFFSET(PO!O$12,ROW(D104)-ROW(D$12),0)=0,"",OFFSET(PO!O$12,ROW(D104)-ROW(D$12),0)) -> UN | E104: =IF($A104<>"Serviço",0,ROUND(SUMIF($F$9:$P$9,"<>",$F104:$P104),15-13*PO!$X$3)) -> 2 | F104: =OFFSET(PO!$P$12,ROW($E104)-ROW(F$12),0) -> 2
A105: =OFFSET(PO!J$12,ROW(A105)-ROW($A$12),0) -> Serviço | B105: =IF($A105=0,"",OFFSET(PO!K$12,ROW(B105)-ROW(B$12),0)) -> 6.2.4. | C105: =IF(OFFSET(PO!N$12,ROW(C105)-ROW(C$12),0)=0,"",OFFSET(PO!N$12,ROW(C105)-ROW(C$12),0)) -> KIT DE PORTA DE MADEIRA PARA PINTURA, SEMI-OCA (LEVE OU MÉDIA), PADRÃO MÉDIO, 90X210CM, ESPESSURA DE 3,5CM, ITENS INCLUSOS: DOBRADIÇAS, MONTAGEM E INSTALAÇÃO DO BATENTE, FECHADURA COM EXECUÇÃO DO FURO - FORNECIMENTO E INSTALAÇÃO. AF_08/2015 | D105: =IF(OFFSET(PO!O$12,ROW(D105)-ROW(D$12),0)=0,"",OFFSET(PO!O$12,ROW(D105)-ROW(D$12),0)) -> UN | E105: =IF($A105<>"Serviço",0,ROUND(SUMIF($F$9:$P$9,"<>",$F105:$P105),15-13*PO!$X$3)) -> 2 | F105: =OFFSET(PO!$P$12,ROW($E105)-ROW(F$12),0) -> 2
A106: =OFFSET(PO!J$12,ROW(A106)-ROW($A$12),0) -> Serviço | B106: =IF($A106=0,"",OFFSET(PO!K$12,ROW(B106)-ROW(B$12),0)) -> 6.2.5. | C106: =IF(OFFSET(PO!N$12,ROW(C106)-ROW(C$12),0)=0,"",OFFSET(PO!N$12,ROW(C106)-ROW(C$12),0)) -> FECHADURA DE EMBUTIR PARA PORTAS INTERNAS, COMPLETA, ACABAMENTO PADRÃO MÉDIO, COM EXECUÇÃO DE FURO - FORNECIMENTO E INSTALAÇÃO. AF_08/2015 | D106: =IF(OFFSET(PO!O$12,ROW(D106)-ROW(D$12),0)=0,"",OFFSET(PO!O$12,ROW(D106)-ROW(D$12),0)) -> UN | E106: =IF($A106<>"Serviço",0,ROUND(SUMIF($F$9:$P$9,"<>",$F106:$P106),15-13*PO!$X$3)) -> 2 | F106: =OFFSET(PO!$P$12,ROW($E106)-ROW(F$12),0) -> 2
A107: =OFFSET(PO!J$12,ROW(A107)-ROW($A$12),0) -> Serviço | B107: =IF($A107=0,"",OFFSET(PO!K$12,ROW(B107)-ROW(B$12),0)) -> 6.2.6. | C107: =IF(OFFSET(PO!N$12,ROW(C107)-ROW(C$12),0)=0,"",OFFSET(PO!N$12,ROW(C107)-ROW(C$12),0)) -> CHAPA ACO INOX AISI 304 NUMERO 4 (E = 6 MM), ACABAMENTO NUMERO 1 (LAMINADO A QUENTE, FOSCO) | D107: =IF(OFFSET(PO!O$12,ROW(D107)-ROW(D$12),0)=0,"",OFFSET(PO!O$12,ROW(D107)-ROW(D$12),0)) -> M2 | E107: =IF($A107<>"Serviço",0,ROUND(SUMIF($F$9:$P$9,"<>",$F107:$P107),15-13*PO!$X$3)) -> 0.72 | F107: =OFFSET(PO!$P$12,ROW($E107)-ROW(F$12),0) -> 0.72
A108: =OFFSET(PO!J$12,ROW(A108)-ROW($A$12),0) -> Serviço | B108: =IF($A108=0,"",OFFSET(PO!K$12,ROW(B108)-ROW(B$12),0)) -> 6.2.7. | C108: =IF(OFFSET(PO!N$12,ROW(C108)-ROW(C$12),0)=0,"",OFFSET(PO!N$12,ROW(C108)-ROW(C$12),0)) -> BARRA DE APOIO RETA, EM ACO INOX POLIDO, COMPRIMENTO 60CM, DIAMETRO MINIMO 3 CM | D108: =IF(OFFSET(PO!O$12,ROW(D108)-ROW(D$12),0)=0,"",OFFSET(PO!O$12,ROW(D108)-ROW(D$12),0)) -> UN | E108: =IF($A108<>"Serviço",0,ROUND(SUMIF($F$9:$P$9,"<>",$F108:$P108),15-13*PO!$X$3)) -> 2 | F108: =OFFSET(PO!$P$12,ROW($E108)-ROW(F$12),0) -> 2
A109: =OFFSET(PO!J$12,ROW(A109)-ROW($A$12),0) -> Nível 2 | B109: =IF($A109=0,"",OFFSET(PO!K$12,ROW(B109)-ROW(B$12),0)) -> 6.3. | C109: =IF(OFFSET(PO!N$12,ROW(C109)-ROW(C$12),0)=0,"",OFFSET(PO!N$12,ROW(C109)-ROW(C$12),0)) -> PORTAS METÁLICAS | D109: =IF(OFFSET(PO!O$12,ROW(D109)-ROW(D$12),0)=0,"",OFFSET(PO!O$12,ROW(D109)-ROW(D$12),0)) ->  | E109: =IF($A109<>"Serviço",0,ROUND(SUMIF($F$9:$P$9,"<>",$F109:$P109),15-13*PO!$X$3)) -> 0 | F109: =OFFSET(PO!$P$12,ROW($E109)-ROW(F$12),0) -> 0
A110: =OFFSET(PO!J$12,ROW(A110)-ROW($A$12),0) -> Serviço | B110: =IF($A110=0,"",OFFSET(PO!K$12,ROW(B110)-ROW(B$12),0)) -> 6.3.1. | C110: =IF(OFFSET(PO!N$12,ROW(C110)-ROW(C$12),0)=0,"",OFFSET(PO!N$12,ROW(C110)-ROW(C$12),0)) -> PORTAO DE FERRO COM VARA 1/2", COM REQUADRO | D110: =IF(OFFSET(PO!O$12,ROW(D110)-ROW(D$12),0)=0,"",OFFSET(PO!O$12,ROW(D110)-ROW(D$12),0)) -> M2 | E110: =IF($A110<>"Serviço",0,ROUND(SUMIF($F$9:$P$9,"<>",$F110:$P110),15-13*PO!$X$3)) -> 1.89 | F110: =OFFSET(PO!$P$12,ROW($E110)-ROW(F$12),0) -> 1.89
A111: =OFFSET(PO!J$12,ROW(A111)-ROW($A$12),0) -> Serviço | B111: =IF($A111=0,"",OFFSET(PO!K$12,ROW(B111)-ROW(B$12),0)) -> 6.3.2. | C111: =IF(OFFSET(PO!N$12,ROW(C111)-ROW(C$12),0)=0,"",OFFSET(PO!N$12,ROW(C111)-ROW(C$12),0)) -> PORTA DE FERRO, DE ABRIR, TIPO GRADE COM CHAPA, 87X210CM, COM GUARNICOES | D111: =IF(OFFSET(PO!O$12,ROW(D111)-ROW(D$12),0)=0,"",OFFSET(PO!O$12,ROW(D111)-ROW(D$12),0)) -> M2 | E111: =IF($A111<>"Serviço",0,ROUND(SUMIF($F$9:$P$9,"<>",$F111:$P111),15-13*PO!$X$3)) -> 0.83 | F111: =OFFSET(PO!$P$12,ROW($E111)-ROW(F$12),0) -> 0.83
A112: =OFFSET(PO!J$12,ROW(A112)-ROW($A$12),0) -> Nível 2 | B112: =IF($A112=0,"",OFFSET(PO!K$12,ROW(B112)-ROW(B$12),0)) -> 6.4. | C112: =IF(OFFSET(PO!N$12,ROW(C112)-ROW(C$12),0)=0,"",OFFSET(PO!N$12,ROW(C112)-ROW(C$12),0)) -> PORTA EM ALUMÍNIO | D112: =IF(OFFSET(PO!O$12,ROW(D112)-ROW(D$12),0)=0,"",OFFSET(PO!O$12,ROW(D112)-ROW(D$12),0)) ->  | E112: =IF($A112<>"Serviço",0,ROUND(SUMIF($F$9:$P$9,"<>",$F112:$P112),15-13*PO!$X$3)) -> 0 | F112: =OFFSET(PO!$P$12,ROW($E112)-ROW(F$12),0) -> 0
A113: =OFFSET(PO!J$12,ROW(A113)-ROW($A$12),0) -> Serviço | B113: =IF($A113=0,"",OFFSET(PO!K$12,ROW(B113)-ROW(B$12),0)) -> 6.4.1. | C113: =IF(OFFSET(PO!N$12,ROW(C113)-ROW(C$12),0)=0,"",OFFSET(PO!N$12,ROW(C113)-ROW(C$12),0)) -> PORTA EM ALUMÍNIO DE ABRIR TIPO VENEZIANA COM GUARNIÇÃO, FIXAÇÃO COM PARAFUSOS - FORNECIMENTO E INSTALAÇÃO. AF_08/2015 | D113: =IF(OFFSET(PO!O$12,ROW(D113)-ROW(D$12),0)=0,"",OFFSET(PO!O$12,ROW(D113)-ROW(D$12),0)) -> M2 | E113: =IF($A113<>"Serviço",0,ROUND(SUMIF($F$9:$P$9,"<>",$F113:$P113),15-13*PO!$X$3)) -> 1.68 | F113: =OFFSET(PO!$P$12,ROW($E113)-ROW(F$12),0) -> 1.68
A114: =OFFSET(PO!J$12,ROW(A114)-ROW($A$12),0) -> Nível 2 | B114: =IF($A114=0,"",OFFSET(PO!K$12,ROW(B114)-ROW(B$12),0)) -> 6.5. | C114: =IF(OFFSET(PO!N$12,ROW(C114)-ROW(C$12),0)=0,"",OFFSET(PO!N$12,ROW(C114)-ROW(C$12),0)) -> JANELAS EM ALUMÍNIO | D114: =IF(OFFSET(PO!O$12,ROW(D114)-ROW(D$12),0)=0,"",OFFSET(PO!O$12,ROW(D114)-ROW(D$12),0)) ->  | E114: =IF($A114<>"Serviço",0,ROUND(SUMIF($F$9:$P$9,"<>",$F114:$P114),15-13*PO!$X$3)) -> 0 | F114: =OFFSET(PO!$P$12,ROW($E114)-ROW(F$12),0) -> 0
A115: =OFFSET(PO!J$12,ROW(A115)-ROW($A$12),0) -> Serviço | B115: =IF($A115=0,"",OFFSET(PO!K$12,ROW(B115)-ROW(B$12),0)) -> 6.5.1. | C115: =IF(OFFSET(PO!N$12,ROW(C115)-ROW(C$12),0)=0,"",OFFSET(PO!N$12,ROW(C115)-ROW(C$12),0)) -> JANELA DE ALUMÍNIO MAXIM-AR, FIXAÇÃO COM ARGAMASSA, COM VIDROS, PADRONIZADA. AF_07/2016 | D115: =IF(OFFSET(PO!O$12,ROW(D115)-ROW(D$12),0)=0,"",OFFSET(PO!O$12,ROW(D115)-ROW(D$12),0)) -> M2 | E115: =IF($A115<>"Serviço",0,ROUND(SUMIF($F$9:$P$9,"<>",$F115:$P115),15-13*PO!$X$3)) -> 4 | F115: =OFFSET(PO!$P$12,ROW($E115)-ROW(F$12),0) -> 4
A116: =OFFSET(PO!J$12,ROW(A116)-ROW($A$12),0) -> Serviço | B116: =IF($A116=0,"",OFFSET(PO!K$12,ROW(B116)-ROW(B$12),0)) -> 6.5.2. | C116: =IF(OFFSET(PO!N$12,ROW(C116)-ROW(C$12),0)=0,"",OFFSET(PO!N$12,ROW(C116)-ROW(C$12),0)) -> JANELA DE ALUMÍNIO DE CORRER, 2 FOLHAS, FIXAÇÃO COM ARGAMASSA, COM VIDROS, PADRONIZADA. AF_07/2016 | D116: =IF(OFFSET(PO!O$12,ROW(D116)-ROW(D$12),0)=0,"",OFFSET(PO!O$12,ROW(D116)-ROW(D$12),0)) -> M2 | E116: =IF($A116<>"Serviço",0,ROUND(SUMIF($F$9:$P$9,"<>",$F116:$P116),15-13*PO!$X$3)) -> 19.64 | F116: =OFFSET(PO!$P$12,ROW($E116)-ROW(F$12),0) -> 19.64
A117: =OFFSET(PO!J$12,ROW(A117)-ROW($A$12),0) -> Meta | B117: =IF($A117=0,"",OFFSET(PO!K$12,ROW(B117)-ROW(B$12),0)) -> 7. | C117: =IF(OFFSET(PO!N$12,ROW(C117)-ROW(C$12),0)=0,"",OFFSET(PO!N$12,ROW(C117)-ROW(C$12),0)) -> COBERTURA | D117: =IF(OFFSET(PO!O$12,ROW(D117)-ROW(D$12),0)=0,"",OFFSET(PO!O$12,ROW(D117)-ROW(D$12),0)) ->  | E117: =IF($A117<>"Serviço",0,ROUND(SUMIF($F$9:$P$9,"<>",$F117:$P117),15-13*PO!$X$3)) -> 0 | F117: =OFFSET(PO!$P$12,ROW($E117)-ROW(F$12),0) -> 0
A118: =OFFSET(PO!J$12,ROW(A118)-ROW($A$12),0) -> Serviço | B118: =IF($A118=0,"",OFFSET(PO!K$12,ROW(B118)-ROW(B$12),0)) -> 7.0.1. | C118: =IF(OFFSET(PO!N$12,ROW(C118)-ROW(C$12),0)=0,"",OFFSET(PO!N$12,ROW(C118)-ROW(C$12),0)) -> TRAMA DE MADEIRA COMPOSTA POR TERÇAS PARA TELHADOS DE ATÉ 2 ÁGUAS PARA TELHA ONDULADA DE FIBROCIMENTO, METÁLICA, PLÁSTICA OU TERMOACÚSTICA, INCLUSO TRANSPORTE VERTICAL. AF_12/2015 | D118: =IF(OFFSET(PO!O$12,ROW(D118)-ROW(D$12),0)=0,"",OFFSET(PO!O$12,ROW(D118)-ROW(D$12),0)) -> M2 | E118: =IF($A118<>"Serviço",0,ROUND(SUMIF($F$9:$P$9,"<>",$F118:$P118),15-13*PO!$X$3)) -> 112.13 | F118: =OFFSET(PO!$P$12,ROW($E118)-ROW(F$12),0) -> 112.13
A119: =OFFSET(PO!J$12,ROW(A119)-ROW($A$12),0) -> Serviço | B119: =IF($A119=0,"",OFFSET(PO!K$12,ROW(B119)-ROW(B$12),0)) -> 7.0.2. | C119: =IF(OFFSET(PO!N$12,ROW(C119)-ROW(C$12),0)=0,"",OFFSET(PO!N$12,ROW(C119)-ROW(C$12),0)) -> TRAMA DE AÇO COMPOSTA POR TERÇAS PARA TELHADOS DE ATÉ 2 ÁGUAS PARA TELHA ONDULADA DE FIBROCIMENTO, METÁLICA, PLÁSTICA OU TERMOACÚSTICA, INCLUSO TRANSPORTE VERTICAL. AF_12/2015 | D119: =IF(OFFSET(PO!O$12,ROW(D119)-ROW(D$12),0)=0,"",OFFSET(PO!O$12,ROW(D119)-ROW(D$12),0)) -> M2 | E119: =IF($A119<>"Serviço",0,ROUND(SUMIF($F$9:$P$9,"<>",$F119:$P119),15-13*PO!$X$3)) -> 8.47 | F119: =OFFSET(PO!$P$12,ROW($E119)-ROW(F$12),0) -> 8.47
A120: =OFFSET(PO!J$12,ROW(A120)-ROW($A$12),0) -> Serviço | B120: =IF($A120=0,"",OFFSET(PO!K$12,ROW(B120)-ROW(B$12),0)) -> 7.0.3. | C120: =IF(OFFSET(PO!N$12,ROW(C120)-ROW(C$12),0)=0,"",OFFSET(PO!N$12,ROW(C120)-ROW(C$12),0)) -> TELHAMENTO COM TELHA DE AÇO/ALUMÍNIO E = 0,5 MM, COM ATÉ 2 ÁGUAS, INCLUSO IÇAMENTO. AF_06/2016 | D120: =IF(OFFSET(PO!O$12,ROW(D120)-ROW(D$12),0)=0,"",OFFSET(PO!O$12,ROW(D120)-ROW(D$12),0)) -> M2 | E120: =IF($A120<>"Serviço",0,ROUND(SUMIF($F$9:$P$9,"<>",$F120:$P120),15-13*PO!$X$3)) -> 124.47 | F120: =OFFSET(PO!$P$12,ROW($E120)-ROW(F$12),0) -> 124.47
A121: =OFFSET(PO!J$12,ROW(A121)-ROW($A$12),0) -> Serviço | B121: =IF($A121=0,"",OFFSET(PO!K$12,ROW(B121)-ROW(B$12),0)) -> 7.0.4. | C121: =IF(OFFSET(PO!N$12,ROW(C121)-ROW(C$12),0)=0,"",OFFSET(PO!N$12,ROW(C121)-ROW(C$12),0)) -> CUMEEIRA EM PERFIL ONDULADO DE ALUMÍNIO | D121: =IF(OFFSET(PO!O$12,ROW(D121)-ROW(D$12),0)=0,"",OFFSET(PO!O$12,ROW(D121)-ROW(D$12),0)) -> M | E121: =IF($A121<>"Serviço",0,ROUND(SUMIF($F$9:$P$9,"<>",$F121:$P121),15-13*PO!$X$3)) -> 12.1 | F121: =OFFSET(PO!$P$12,ROW($E121)-ROW(F$12),0) -> 12.1
A122: =OFFSET(PO!J$12,ROW(A122)-ROW($A$12),0) -> Serviço | B122: =IF($A122=0,"",OFFSET(PO!K$12,ROW(B122)-ROW(B$12),0)) -> 7.0.5. | C122: =IF(OFFSET(PO!N$12,ROW(C122)-ROW(C$12),0)=0,"",OFFSET(PO!N$12,ROW(C122)-ROW(C$12),0)) -> CALHA EM CHAPA DE AÇO GALVANIZADO NÚMERO 24, DESENVOLVIMENTO DE 100 CM, INCLUSO TRANSPORTE VERTICAL. AF_06/2016 | D122: =IF(OFFSET(PO!O$12,ROW(D122)-ROW(D$12),0)=0,"",OFFSET(PO!O$12,ROW(D122)-ROW(D$12),0)) -> M | E122: =IF($A122<>"Serviço",0,ROUND(SUMIF($F$9:$P$9,"<>",$F122:$P122),15-13*PO!$X$3)) -> 27.2 | F122: =OFFSET(PO!$P$12,ROW($E122)-ROW(F$12),0) -> 27.2
A123: =OFFSET(PO!J$12,ROW(A123)-ROW($A$12),0) -> Serviço | B123: =IF($A123=0,"",OFFSET(PO!K$12,ROW(B123)-ROW(B$12),0)) -> 7.0.6. | C123: =IF(OFFSET(PO!N$12,ROW(C123)-ROW(C$12),0)=0,"",OFFSET(PO!N$12,ROW(C123)-ROW(C$12),0)) -> CALHA EM CHAPA DE AÇO GALVANIZADO NÚMERO 24, DESENVOLVIMENTO DE 50 CM, INCLUSO TRANSPORTE VERTICAL. AF_06/2016 | D123: =IF(OFFSET(PO!O$12,ROW(D123)-ROW(D$12),0)=0,"",OFFSET(PO!O$12,ROW(D123)-ROW(D$12),0)) -> M | E123: =IF($A123<>"Serviço",0,ROUND(SUMIF($F$9:$P$9,"<>",$F123:$P123),15-13*PO!$X$3)) -> 3.15 | F123: =OFFSET(PO!$P$12,ROW($E123)-ROW(F$12),0) -> 3.15
A124: =OFFSET(PO!J$12,ROW(A124)-ROW($A$12),0) -> Serviço | B124: =IF($A124=0,"",OFFSET(PO!K$12,ROW(B124)-ROW(B$12),0)) -> 7.0.7. | C124: =IF(OFFSET(PO!N$12,ROW(C124)-ROW(C$12),0)=0,"",OFFSET(PO!N$12,ROW(C124)-ROW(C$12),0)) -> RUFO EM CHAPA DE AÇO GALVANIZADO NÚMERO 24, DESENVOLVIMENTO DE 100 CM, INCLUSO TRANSPORTE VERTICAL | D124: =IF(OFFSET(PO!O$12,ROW(D124)-ROW(D$12),0)=0,"",OFFSET(PO!O$12,ROW(D124)-ROW(D$12),0)) -> M | E124: =IF($A124<>"Serviço",0,ROUND(SUMIF($F$9:$P$9,"<>",$F124:$P124),15-13*PO!$X$3)) -> 27.2 | F124: =OFFSET(PO!$P$12,ROW($E124)-ROW(F$12),0) -> 27.2
A125: =OFFSET(PO!J$12,ROW(A125)-ROW($A$12),0) -> Serviço | B125: =IF($A125=0,"",OFFSET(PO!K$12,ROW(B125)-ROW(B$12),0)) -> 7.0.8. | C125: =IF(OFFSET(PO!N$12,ROW(C125)-ROW(C$12),0)=0,"",OFFSET(PO!N$12,ROW(C125)-ROW(C$12),0)) -> RUFO EM CHAPA DE AÇO GALVANIZADO NÚMERO 24, DESENVOLVIMENTO MÉDIO DE 50 CM, INCLUSO TRANSPORTE VERTICAL | D125: =IF(OFFSET(PO!O$12,ROW(D125)-ROW(D$12),0)=0,"",OFFSET(PO!O$12,ROW(D125)-ROW(D$12),0)) -> M | E125: =IF($A125<>"Serviço",0,ROUND(SUMIF($F$9:$P$9,"<>",$F125:$P125),15-13*PO!$X$3)) -> 40.58 | F125: =OFFSET(PO!$P$12,ROW($E125)-ROW(F$12),0) -> 40.58
A126: =OFFSET(PO!J$12,ROW(A126)-ROW($A$12),0) -> Serviço | B126: =IF($A126=0,"",OFFSET(PO!K$12,ROW(B126)-ROW(B$12),0)) -> 7.0.9. | C126: =IF(OFFSET(PO!N$12,ROW(C126)-ROW(C$12),0)=0,"",OFFSET(PO!N$12,ROW(C126)-ROW(C$12),0)) -> CHAPIM DE CONCRETO APARENTE COM ACABAMENTO DESEMPENADO, FORMA DE COMPENSADO PLASTIFICADO (MADEIRIT) DE 14 X 10 CM, FUNDIDO NO LOCAL. | D126: =IF(OFFSET(PO!O$12,ROW(D126)-ROW(D$12),0)=0,"",OFFSET(PO!O$12,ROW(D126)-ROW(D$12),0)) -> M | E126: =IF($A126<>"Serviço",0,ROUND(SUMIF($F$9:$P$9,"<>",$F126:$P126),15-13*PO!$X$3)) -> 14.55 | F126: =OFFSET(PO!$P$12,ROW($E126)-ROW(F$12),0) -> 14.55
A127: =OFFSET(PO!J$12,ROW(A127)-ROW($A$12),0) -> Serviço | B127: =IF($A127=0,"",OFFSET(PO!K$12,ROW(B127)-ROW(B$12),0)) -> 7.0.10. | C127: =IF(OFFSET(PO!N$12,ROW(C127)-ROW(C$12),0)=0,"",OFFSET(PO!N$12,ROW(C127)-ROW(C$12),0)) -> MANTA IMPERMEABILIZANTE A BASE DE ASFALTO - FORNECIMENTO E INSTALACAO | D127: =IF(OFFSET(PO!O$12,ROW(D127)-ROW(D$12),0)=0,"",OFFSET(PO!O$12,ROW(D127)-ROW(D$12),0)) -> M2 | E127: =IF($A127<>"Serviço",0,ROUND(SUMIF($F$9:$P$9,"<>",$F127:$P127),15-13*PO!$X$3)) -> 0.62 | F127: =OFFSET(PO!$P$12,ROW($E127)-ROW(F$12),0) -> 0.62
A128: =OFFSET(PO!J$12,ROW(A128)-ROW($A$12),0) -> Serviço | B128: =IF($A128=0,"",OFFSET(PO!K$12,ROW(B128)-ROW(B$12),0)) -> 7.0.11. | C128: =IF(OFFSET(PO!N$12,ROW(C128)-ROW(C$12),0)=0,"",OFFSET(PO!N$12,ROW(C128)-ROW(C$12),0)) -> IMPERMEABILIZAÇÃO DE PISO COM ARGAMASSA DE CIMENTO E AREIA, COM ADITIVO IMPERMEABILIZANTE, E = 2CM. AF_06/2018 | D128: =IF(OFFSET(PO!O$12,ROW(D128)-ROW(D$12),0)=0,"",OFFSET(PO!O$12,ROW(D128)-ROW(D$12),0)) -> M2 | E128: =IF($A128<>"Serviço",0,ROUND(SUMIF($F$9:$P$9,"<>",$F128:$P128),15-13*PO!$X$3)) -> 8.16 | F128: =OFFSET(PO!$P$12,ROW($E128)-ROW(F$12),0) -> 8.16
A129: =OFFSET(PO!J$12,ROW(A129)-ROW($A$12),0) -> Meta | B129: =IF($A129=0,"",OFFSET(PO!K$12,ROW(B129)-ROW(B$12),0)) -> 8. | C129: =IF(OFFSET(PO!N$12,ROW(C129)-ROW(C$12),0)=0,"",OFFSET(PO!N$12,ROW(C129)-ROW(C$12),0)) -> IMPERMEABILIZAÇÃO | D129: =IF(OFFSET(PO!O$12,ROW(D129)-ROW(D$12),0)=0,"",OFFSET(PO!O$12,ROW(D129)-ROW(D$12),0)) ->  | E129: =IF($A129<>"Serviço",0,ROUND(SUMIF($F$9:$P$9,"<>",$F129:$P129),15-13*PO!$X$3)) -> 0 | F129: =OFFSET(PO!$P$12,ROW($E129)-ROW(F$12),0) -> 0
A130: =OFFSET(PO!J$12,ROW(A130)-ROW($A$12),0) -> Serviço | B130: =IF($A130=0,"",OFFSET(PO!K$12,ROW(B130)-ROW(B$12),0)) -> 8.0.1. | C130: =IF(OFFSET(PO!N$12,ROW(C130)-ROW(C$12),0)=0,"",OFFSET(PO!N$12,ROW(C130)-ROW(C$12),0)) -> IMPERMEABILIZACAO DE ESTRUTURAS ENTERRADAS, COM TINTA ASFALTICA, DUAS DEMAOS. | D130: =IF(OFFSET(PO!O$12,ROW(D130)-ROW(D$12),0)=0,"",OFFSET(PO!O$12,ROW(D130)-ROW(D$12),0)) -> M2 | E130: =IF($A130<>"Serviço",0,ROUND(SUMIF($F$9:$P$9,"<>",$F130:$P130),15-13*PO!$X$3)) -> 64.38 | F130: =OFFSET(PO!$P$12,ROW($E130)-ROW(F$12),0) -> 64.38
A131: =OFFSET(PO!J$12,ROW(A131)-ROW($A$12),0) -> Serviço | B131: =IF($A131=0,"",OFFSET(PO!K$12,ROW(B131)-ROW(B$12),0)) -> 8.0.2. | C131: =IF(OFFSET(PO!N$12,ROW(C131)-ROW(C$12),0)=0,"",OFFSET(PO!N$12,ROW(C131)-ROW(C$12),0)) -> IMPERMEABILIZAÇÃO DE SUPERFÍCIE COM MANTA ASFÁLTICA, UMA CAMADA, INCLUSIVE APLICAÇÃO DE PRIMER ASFÁLTICO, E=3MM. AF_06/2018 | D131: =IF(OFFSET(PO!O$12,ROW(D131)-ROW(D$12),0)=0,"",OFFSET(PO!O$12,ROW(D131)-ROW(D$12),0)) -> M2 | E131: =IF($A131<>"Serviço",0,ROUND(SUMIF($F$9:$P$9,"<>",$F131:$P131),15-13*PO!$X$3)) -> 28.62 | F131: =OFFSET(PO!$P$12,ROW($E131)-ROW(F$12),0) -> 28.62
A132: =OFFSET(PO!J$12,ROW(A132)-ROW($A$12),0) -> Serviço | B132: =IF($A132=0,"",OFFSET(PO!K$12,ROW(B132)-ROW(B$12),0)) -> 8.0.3. | C132: =IF(OFFSET(PO!N$12,ROW(C132)-ROW(C$12),0)=0,"",OFFSET(PO!N$12,ROW(C132)-ROW(C$12),0)) -> PROTEÇÃO MECÂNICA DE SUPERFICIE HORIZONTAL COM ARGAMASSA DE CIMENTO E AREIA, TRAÇO 1:3, E=3CM. AF_06/2018 | D132: =IF(OFFSET(PO!O$12,ROW(D132)-ROW(D$12),0)=0,"",OFFSET(PO!O$12,ROW(D132)-ROW(D$12),0)) -> M2 | E132: =IF($A132<>"Serviço",0,ROUND(SUMIF($F$9:$P$9,"<>",$F132:$P132),15-13*PO!$X$3)) -> 28.62 | F132: =OFFSET(PO!$P$12,ROW($E132)-ROW(F$12),0) -> 28.62
A133: =OFFSET(PO!J$12,ROW(A133)-ROW($A$12),0) -> Meta | B133: =IF($A133=0,"",OFFSET(PO!K$12,ROW(B133)-ROW(B$12),0)) -> 9. | C133: =IF(OFFSET(PO!N$12,ROW(C133)-ROW(C$12),0)=0,"",OFFSET(PO!N$12,ROW(C133)-ROW(C$12),0)) -> REVESTIMENTOS | D133: =IF(OFFSET(PO!O$12,ROW(D133)-ROW(D$12),0)=0,"",OFFSET(PO!O$12,ROW(D133)-ROW(D$12),0)) ->  | E133: =IF($A133<>"Serviço",0,ROUND(SUMIF($F$9:$P$9,"<>",$F133:$P133),15-13*PO!$X$3)) -> 0 | F133: =OFFSET(PO!$P$12,ROW($E133)-ROW(F$12),0) -> 0
A134: =OFFSET(PO!J$12,ROW(A134)-ROW($A$12),0) -> Serviço | B134: =IF($A134=0,"",OFFSET(PO!K$12,ROW(B134)-ROW(B$12),0)) -> 9.0.1. | C134: =IF(OFFSET(PO!N$12,ROW(C134)-ROW(C$12),0)=0,"",OFFSET(PO!N$12,ROW(C134)-ROW(C$12),0)) -> CHAPISCO APLICADO EM ALVENARIAS E ESTRUTURAS DE CONCRETO INTERNAS, COM COLHER DE PEDREIRO. ARGAMASSA TRAÇO 1:3 COM PREPARO MANUAL. AF_06/2014 | D134: =IF(OFFSET(PO!O$12,ROW(D134)-ROW(D$12),0)=0,"",OFFSET(PO!O$12,ROW(D134)-ROW(D$12),0)) -> M2 | E134: =IF($A134<>"Serviço",0,ROUND(SUMIF($F$9:$P$9,"<>",$F134:$P134),15-13*PO!$X$3)) -> 569.03 | F134: =OFFSET(PO!$P$12,ROW($E134)-ROW(F$12),0) -> 569.03
A135: =OFFSET(PO!J$12,ROW(A135)-ROW($A$12),0) -> Serviço | B135: =IF($A135=0,"",OFFSET(PO!K$12,ROW(B135)-ROW(B$12),0)) -> 9.0.2. | C135: =IF(OFFSET(PO!N$12,ROW(C135)-ROW(C$12),0)=0,"",OFFSET(PO!N$12,ROW(C135)-ROW(C$12),0)) -> CHAPISCO APLICADO EM ALVENARIA (COM PRESENÇA DE VÃOS) E ESTRUTURAS DE CONCRETO DE FACHADA, COM COLHER DE PEDREIRO. ARGAMASSA TRAÇO 1:3 COM PREPARO MANUAL. AF_06/2014 | D135: =IF(OFFSET(PO!O$12,ROW(D135)-ROW(D$12),0)=0,"",OFFSET(PO!O$12,ROW(D135)-ROW(D$12),0)) -> M2 | E135: =IF($A135<>"Serviço",0,ROUND(SUMIF($F$9:$P$9,"<>",$F135:$P135),15-13*PO!$X$3)) -> 303.8 | F135: =OFFSET(PO!$P$12,ROW($E135)-ROW(F$12),0) -> 303.8
A136: =OFFSET(PO!J$12,ROW(A136)-ROW($A$12),0) -> Serviço | B136: =IF($A136=0,"",OFFSET(PO!K$12,ROW(B136)-ROW(B$12),0)) -> 9.0.3. | C136: =IF(OFFSET(PO!N$12,ROW(C136)-ROW(C$12),0)=0,"",OFFSET(PO!N$12,ROW(C136)-ROW(C$12),0)) -> EMBOÇO, PARA RECEBIMENTO DE CERÂMICA, EM ARGAMASSA TRAÇO 1:2:8, PREPARO MECÂNICO COM BETONEIRA 400L, APLICADO MANUALMENTE EM FACES INTERNAS DE PAREDES, PARA AMBIENTE COM ÁREA ENTRE 5M2 E 10M2, ESPESSURA DE 10MM, COM EXECUÇÃO DE TALISCAS. AF_06/2014 | D136: =IF(OFFSET(PO!O$12,ROW(D136)-ROW(D$12),0)=0,"",OFFSET(PO!O$12,ROW(D136)-ROW(D$12),0)) -> M2 | E136: =IF($A136<>"Serviço",0,ROUND(SUMIF($F$9:$P$9,"<>",$F136:$P136),15-13*PO!$X$3)) -> 110.83 | F136: =OFFSET(PO!$P$12,ROW($E136)-ROW(F$12),0) -> 110.83
A137: =OFFSET(PO!J$12,ROW(A137)-ROW($A$12),0) -> Serviço | B137: =IF($A137=0,"",OFFSET(PO!K$12,ROW(B137)-ROW(B$12),0)) -> 9.0.4. | C137: =IF(OFFSET(PO!N$12,ROW(C137)-ROW(C$12),0)=0,"",OFFSET(PO!N$12,ROW(C137)-ROW(C$12),0)) -> MASSA ÚNICA, PARA RECEBIMENTO DE PINTURA, EM ARGAMASSA TRAÇO 1:2:8, PREPARO MECÂNICO COM BETONEIRA 400L, APLICADA MANUALMENTE EM FACES INTERNAS DE PAREDES, ESPESSURA DE 10MM, COM EXECUÇÃO DE TALISCAS. AF_06/2014 | D137: =IF(OFFSET(PO!O$12,ROW(D137)-ROW(D$12),0)=0,"",OFFSET(PO!O$12,ROW(D137)-ROW(D$12),0)) -> M2 | E137: =IF($A137<>"Serviço",0,ROUND(SUMIF($F$9:$P$9,"<>",$F137:$P137),15-13*PO!$X$3)) -> 458.2 | F137: =OFFSET(PO!$P$12,ROW($E137)-ROW(F$12),0) -> 458.2
A138: =OFFSET(PO!J$12,ROW(A138)-ROW($A$12),0) -> Serviço | B138: =IF($A138=0,"",OFFSET(PO!K$12,ROW(B138)-ROW(B$12),0)) -> 9.0.5. | C138: =IF(OFFSET(PO!N$12,ROW(C138)-ROW(C$12),0)=0,"",OFFSET(PO!N$12,ROW(C138)-ROW(C$12),0)) -> EMBOÇO OU MASSA ÚNICA EM ARGAMASSA TRAÇO 1:2:8, PREPARO MANUAL, APLICADA MANUALMENTE EM PANOS DE FACHADA COM PRESENÇA DE VÃOS, ESPESSURA DE 15 MM | D138: =IF(OFFSET(PO!O$12,ROW(D138)-ROW(D$12),0)=0,"",OFFSET(PO!O$12,ROW(D138)-ROW(D$12),0)) -> M2 | E138: =IF($A138<>"Serviço",0,ROUND(SUMIF($F$9:$P$9,"<>",$F138:$P138),15-13*PO!$X$3)) -> 303.8 | F138: =OFFSET(PO!$P$12,ROW($E138)-ROW(F$12),0) -> 303.8
A139: =OFFSET(PO!J$12,ROW(A139)-ROW($A$12),0) -> Serviço | B139: =IF($A139=0,"",OFFSET(PO!K$12,ROW(B139)-ROW(B$12),0)) -> 9.0.6. | C139: =IF(OFFSET(PO!N$12,ROW(C139)-ROW(C$12),0)=0,"",OFFSET(PO!N$12,ROW(C139)-ROW(C$12),0)) -> MASSA ÚNICA, PARA RECEBIMENTO DE PINTURA OU CERÂMICA, ARGAMASSA INDUSTRIALIZADA, PREPARO MECÂNICO, APLICADO COM EQUIPAMENTO DE MISTURA E PROJEÇÃO DE 1,5 M3/H EM FACES INTERNAS DE PAREDES, ESPESSURA DE 5MM, SEM EXECUÇÃO DE TALISCAS. AF_06/2014 | D139: =IF(OFFSET(PO!O$12,ROW(D139)-ROW(D$12),0)=0,"",OFFSET(PO!O$12,ROW(D139)-ROW(D$12),0)) -> M2 | E139: =IF($A139<>"Serviço",0,ROUND(SUMIF($F$9:$P$9,"<>",$F139:$P139),15-13*PO!$X$3)) -> 242.44 | F139: =OFFSET(PO!$P$12,ROW($E139)-ROW(F$12),0) -> 242.44
A140: =OFFSET(PO!J$12,ROW(A140)-ROW($A$12),0) -> Serviço | B140: =IF($A140=0,"",OFFSET(PO!K$12,ROW(B140)-ROW(B$12),0)) -> 9.0.7. | C140: =IF(OFFSET(PO!N$12,ROW(C140)-ROW(C$12),0)=0,"",OFFSET(PO!N$12,ROW(C140)-ROW(C$12),0)) -> REVESTIMENTO CERÂMICO PARA PAREDES INTERNAS COM PLACAS TIPO ESMALTADA EXTRA DE DIMENSÕES 30X40 CM APLICADAS EM AMBIENTES DE ÁREA MENOR QUE 5 M² NA ALTURA INTEIRA DAS PAREDES | D140: =IF(OFFSET(PO!O$12,ROW(D140)-ROW(D$12),0)=0,"",OFFSET(PO!O$12,ROW(D140)-ROW(D$12),0)) -> M2 | E140: =IF($A140<>"Serviço",0,ROUND(SUMIF($F$9:$P$9,"<>",$F140:$P140),15-13*PO!$X$3)) -> 110.83 | F140: =OFFSET(PO!$P$12,ROW($E140)-ROW(F$12),0) -> 110.83
A141: =OFFSET(PO!J$12,ROW(A141)-ROW($A$12),0) -> Meta | B141: =IF($A141=0,"",OFFSET(PO!K$12,ROW(B141)-ROW(B$12),0)) -> 10. | C141: =IF(OFFSET(PO!N$12,ROW(C141)-ROW(C$12),0)=0,"",OFFSET(PO!N$12,ROW(C141)-ROW(C$12),0)) -> PISOS | D141: =IF(OFFSET(PO!O$12,ROW(D141)-ROW(D$12),0)=0,"",OFFSET(PO!O$12,ROW(D141)-ROW(D$12),0)) ->  | E141: =IF($A141<>"Serviço",0,ROUND(SUMIF($F$9:$P$9,"<>",$F141:$P141),15-13*PO!$X$3)) -> 0 | F141: =OFFSET(PO!$P$12,ROW($E141)-ROW(F$12),0) -> 0
A142: =OFFSET(PO!J$12,ROW(A142)-ROW($A$12),0) -> Nível 2 | B142: =IF($A142=0,"",OFFSET(PO!K$12,ROW(B142)-ROW(B$12),0)) -> 10.1. | C142: =IF(OFFSET(PO!N$12,ROW(C142)-ROW(C$12),0)=0,"",OFFSET(PO!N$12,ROW(C142)-ROW(C$12),0)) -> PAVIMENTAÇÃO INTERNA | D142: =IF(OFFSET(PO!O$12,ROW(D142)-ROW(D$12),0)=0,"",OFFSET(PO!O$12,ROW(D142)-ROW(D$12),0)) ->  | E142: =IF($A142<>"Serviço",0,ROUND(SUMIF($F$9:$P$9,"<>",$F142:$P142),15-13*PO!$X$3)) -> 0 | F142: =OFFSET(PO!$P$12,ROW($E142)-ROW(F$12),0) -> 0
A143: =OFFSET(PO!J$12,ROW(A143)-ROW($A$12),0) -> Serviço | B143: =IF($A143=0,"",OFFSET(PO!K$12,ROW(B143)-ROW(B$12),0)) -> 10.1.1. | C143: =IF(OFFSET(PO!N$12,ROW(C143)-ROW(C$12),0)=0,"",OFFSET(PO!N$12,ROW(C143)-ROW(C$12),0)) -> CONCRETAGEM DE LAJE SOBRE SOLO, FCK 25 MPA, ESPESSURA DE 7 CM, INCLUSO TELA SOLDADA NERVURADA Q-92 E BASE DE BRITA (5 CM) - LANÇAMENTO, ADENSAMENTO E ACABAMENTO | D143: =IF(OFFSET(PO!O$12,ROW(D143)-ROW(D$12),0)=0,"",OFFSET(PO!O$12,ROW(D143)-ROW(D$12),0)) -> M2 | E143: =IF($A143<>"Serviço",0,ROUND(SUMIF($F$9:$P$9,"<>",$F143:$P143),15-13*PO!$X$3)) -> 150 | F143: =OFFSET(PO!$P$12,ROW($E143)-ROW(F$12),0) -> 150
A144: =OFFSET(PO!J$12,ROW(A144)-ROW($A$12),0) -> Serviço | B144: =IF($A144=0,"",OFFSET(PO!K$12,ROW(B144)-ROW(B$12),0)) -> 10.1.2. | C144: =IF(OFFSET(PO!N$12,ROW(C144)-ROW(C$12),0)=0,"",OFFSET(PO!N$12,ROW(C144)-ROW(C$12),0)) -> FORNECIMENTO/INSTALACAO LONA PLASTICA PRETA, PARA IMPERMEABILIZACAO, ESPESSURA 150 MICRAS. | D144: =IF(OFFSET(PO!O$12,ROW(D144)-ROW(D$12),0)=0,"",OFFSET(PO!O$12,ROW(D144)-ROW(D$12),0)) -> M2 | E144: =IF($A144<>"Serviço",0,ROUND(SUMIF($F$9:$P$9,"<>",$F144:$P144),15-13*PO!$X$3)) -> 148.3 | F144: =OFFSET(PO!$P$12,ROW($E144)-ROW(F$12),0) -> 148.3
A145: =OFFSET(PO!J$12,ROW(A145)-ROW($A$12),0) -> Serviço | B145: =IF($A145=0,"",OFFSET(PO!K$12,ROW(B145)-ROW(B$12),0)) -> 10.1.3. | C145: =IF(OFFSET(PO!N$12,ROW(C145)-ROW(C$12),0)=0,"",OFFSET(PO!N$12,ROW(C145)-ROW(C$12),0)) -> CONTRAPISO EM ARGAMASSA TRAÇO 1:4 (CIMENTO E AREIA), PREPARO MANUAL, APLICADO EM ÁREAS SECAS SOBRE LAJE, ADERIDO, ESPESSURA 2CM. AF_06/2014 | D145: =IF(OFFSET(PO!O$12,ROW(D145)-ROW(D$12),0)=0,"",OFFSET(PO!O$12,ROW(D145)-ROW(D$12),0)) -> M2 | E145: =IF($A145<>"Serviço",0,ROUND(SUMIF($F$9:$P$9,"<>",$F145:$P145),15-13*PO!$X$3)) -> 148.3 | F145: =OFFSET(PO!$P$12,ROW($E145)-ROW(F$12),0) -> 148.3
A146: =OFFSET(PO!J$12,ROW(A146)-ROW($A$12),0) -> Serviço | B146: =IF($A146=0,"",OFFSET(PO!K$12,ROW(B146)-ROW(B$12),0)) -> 10.1.4. | C146: =IF(OFFSET(PO!N$12,ROW(C146)-ROW(C$12),0)=0,"",OFFSET(PO!N$12,ROW(C146)-ROW(C$12),0)) -> REVESTIMENTO CERÂMICO PARA PISO COM PLACAS TIPO ESMALTADA EXTRA DE DIMENSÕES 45X45 CM APLICADA EM AMBIENTES DE ÁREA MAIOR QUE 10 M2. AF_06/2014 | D146: =IF(OFFSET(PO!O$12,ROW(D146)-ROW(D$12),0)=0,"",OFFSET(PO!O$12,ROW(D146)-ROW(D$12),0)) -> M2 | E146: =IF($A146<>"Serviço",0,ROUND(SUMIF($F$9:$P$9,"<>",$F146:$P146),15-13*PO!$X$3)) -> 146.82 | F146: =OFFSET(PO!$P$12,ROW($E146)-ROW(F$12),0) -> 146.82
A147: =OFFSET(PO!J$12,ROW(A147)-ROW($A$12),0) -> Serviço | B147: =IF($A147=0,"",OFFSET(PO!K$12,ROW(B147)-ROW(B$12),0)) -> 10.1.5. | C147: =IF(OFFSET(PO!N$12,ROW(C147)-ROW(C$12),0)=0,"",OFFSET(PO!N$12,ROW(C147)-ROW(C$12),0)) -> PISO PODOTÁTIL INTERNO EM BORRACHA 25x25cm, E = 5 mm, ASSENTAMENTO COM COLA VINIL (FORNECIMENTO E ASSENTAMENTO) | D147: =IF(OFFSET(PO!O$12,ROW(D147)-ROW(D$12),0)=0,"",OFFSET(PO!O$12,ROW(D147)-ROW(D$12),0)) -> M2 | E147: =IF($A147<>"Serviço",0,ROUND(SUMIF($F$9:$P$9,"<>",$F147:$P147),15-13*PO!$X$3)) -> 5.93 | F147: =OFFSET(PO!$P$12,ROW($E147)-ROW(F$12),0) -> 5.93
A148: =OFFSET(PO!J$12,ROW(A148)-ROW($A$12),0) -> Meta | B148: =IF($A148=0,"",OFFSET(PO!K$12,ROW(B148)-ROW(B$12),0)) -> 11. | C148: =IF(OFFSET(PO!N$12,ROW(C148)-ROW(C$12),0)=0,"",OFFSET(PO!N$12,ROW(C148)-ROW(C$12),0)) -> PAVIMENTAÇÃO EXTERNA | D148: =IF(OFFSET(PO!O$12,ROW(D148)-ROW(D$12),0)=0,"",OFFSET(PO!O$12,ROW(D148)-ROW(D$12),0)) ->  | E148: =IF($A148<>"Serviço",0,ROUND(SUMIF($F$9:$P$9,"<>",$F148:$P148),15-13*PO!$X$3)) -> 0 | F148: =OFFSET(PO!$P$12,ROW($E148)-ROW(F$12),0) -> 0
A149: =OFFSET(PO!J$12,ROW(A149)-ROW($A$12),0) -> Serviço | B149: =IF($A149=0,"",OFFSET(PO!K$12,ROW(B149)-ROW(B$12),0)) -> 11.0.1. | C149: =IF(OFFSET(PO!N$12,ROW(C149)-ROW(C$12),0)=0,"",OFFSET(PO!N$12,ROW(C149)-ROW(C$12),0)) -> EXECUÇÃO DE PÁTIO/ESTACIONAMENTO EM PISO INTERTRAVADO, COM BLOCO RETANGULAR COR NATURAL DE 20 X 10 CM, ESPESSURA 8 CM. AF_12/2015 | D149: =IF(OFFSET(PO!O$12,ROW(D149)-ROW(D$12),0)=0,"",OFFSET(PO!O$12,ROW(D149)-ROW(D$12),0)) -> M2 | E149: =IF($A149<>"Serviço",0,ROUND(SUMIF($F$9:$P$9,"<>",$F149:$P149),15-13*PO!$X$3)) -> 222.97 | F149: =OFFSET(PO!$P$12,ROW($E149)-ROW(F$12),0) -> 222.97
A150: =OFFSET(PO!J$12,ROW(A150)-ROW($A$12),0) -> Serviço | B150: =IF($A150=0,"",OFFSET(PO!K$12,ROW(B150)-ROW(B$12),0)) -> 11.0.2. | C150: =IF(OFFSET(PO!N$12,ROW(C150)-ROW(C$12),0)=0,"",OFFSET(PO!N$12,ROW(C150)-ROW(C$12),0)) -> ASSENTAMENTO DE GUIA (MEIO-FIO) EM TRECHO CURVO, CONFECCIONADA EM CONCRETO PRÉ-FABRICADO, DIMENSÕES 100X15X13X20 CM (COMPRIMENTO X BASE INFERIOR X BASE SUPERIOR X ALTURA), PARA URBANIZAÇÃO INTERNA DE EMPREENDIMENTOS. AF_06/2016_P | D150: =IF(OFFSET(PO!O$12,ROW(D150)-ROW(D$12),0)=0,"",OFFSET(PO!O$12,ROW(D150)-ROW(D$12),0)) -> M | E150: =IF($A150<>"Serviço",0,ROUND(SUMIF($F$9:$P$9,"<>",$F150:$P150),15-13*PO!$X$3)) -> 63.24 | F150: =OFFSET(PO!$P$12,ROW($E150)-ROW(F$12),0) -> 63.24
A151: =OFFSET(PO!J$12,ROW(A151)-ROW($A$12),0) -> Serviço | B151: =IF($A151=0,"",OFFSET(PO!K$12,ROW(B151)-ROW(B$12),0)) -> 11.0.3. | C151: =IF(OFFSET(PO!N$12,ROW(C151)-ROW(C$12),0)=0,"",OFFSET(PO!N$12,ROW(C151)-ROW(C$12),0)) -> PISO PODOTÁTIL DE ALERTA/DIRECIONAL, 25 X 25 CM, ESPESSURA 25MM, ASSENTADO COM ARGAMASSA TRACO 1:3 (CIMENTO E AREIA) | D151: =IF(OFFSET(PO!O$12,ROW(D151)-ROW(D$12),0)=0,"",OFFSET(PO!O$12,ROW(D151)-ROW(D$12),0)) -> M² | E151: =IF($A151<>"Serviço",0,ROUND(SUMIF($F$9:$P$9,"<>",$F151:$P151),15-13*PO!$X$3)) -> 12.41 | F151: =OFFSET(PO!$P$12,ROW($E151)-ROW(F$12),0) -> 12.41
A152: =OFFSET(PO!J$12,ROW(A152)-ROW($A$12),0) -> Serviço | B152: =IF($A152=0,"",OFFSET(PO!K$12,ROW(B152)-ROW(B$12),0)) -> 11.0.4. | C152: =IF(OFFSET(PO!N$12,ROW(C152)-ROW(C$12),0)=0,"",OFFSET(PO!N$12,ROW(C152)-ROW(C$12),0)) -> PISO PODOTÁTIL DE ALERTA, 40 X 40 CM, ESPESSURA 25MM, ASSENTADO COM ARGAMASSA TRACO 1:3 (CIMENTO E AREIA) | D152: =IF(OFFSET(PO!O$12,ROW(D152)-ROW(D$12),0)=0,"",OFFSET(PO!O$12,ROW(D152)-ROW(D$12),0)) -> M² | E152: =IF($A152<>"Serviço",0,ROUND(SUMIF($F$9:$P$9,"<>",$F152:$P152),15-13*PO!$X$3)) -> 0.64 | F152: =OFFSET(PO!$P$12,ROW($E152)-ROW(F$12),0) -> 0.64
A153: =OFFSET(PO!J$12,ROW(A153)-ROW($A$12),0) -> Serviço | B153: =IF($A153=0,"",OFFSET(PO!K$12,ROW(B153)-ROW(B$12),0)) -> 11.0.5. | C153: =IF(OFFSET(PO!N$12,ROW(C153)-ROW(C$12),0)=0,"",OFFSET(PO!N$12,ROW(C153)-ROW(C$12),0)) -> PLANTIO DE GRAMA EM PLACAS. AF_05/2018 | D153: =IF(OFFSET(PO!O$12,ROW(D153)-ROW(D$12),0)=0,"",OFFSET(PO!O$12,ROW(D153)-ROW(D$12),0)) -> M2 | E153: =IF($A153<>"Serviço",0,ROUND(SUMIF($F$9:$P$9,"<>",$F153:$P153),15-13*PO!$X$3)) -> 65.34 | F153: =OFFSET(PO!$P$12,ROW($E153)-ROW(F$12),0) -> 65.34
A154: =OFFSET(PO!J$12,ROW(A154)-ROW($A$12),0) -> Serviço | B154: =IF($A154=0,"",OFFSET(PO!K$12,ROW(B154)-ROW(B$12),0)) -> 11.0.6. | C154: =IF(OFFSET(PO!N$12,ROW(C154)-ROW(C$12),0)=0,"",OFFSET(PO!N$12,ROW(C154)-ROW(C$12),0)) -> EXECUÇÃO DE PASSEIO (CALÇADA) OU PISO DE CONCRETO COM CONCRETO MOLDADO IN LOCO, USINADO, ACABAMENTO CONVENCIONAL, ESPESSURA 6 CM, ARMADO. AF_07/2016 | D154: =IF(OFFSET(PO!O$12,ROW(D154)-ROW(D$12),0)=0,"",OFFSET(PO!O$12,ROW(D154)-ROW(D$12),0)) -> M2 | E154: =IF($A154<>"Serviço",0,ROUND(SUMIF($F$9:$P$9,"<>",$F154:$P154),15-13*PO!$X$3)) -> 10.96 | F154: =OFFSET(PO!$P$12,ROW($E154)-ROW(F$12),0) -> 10.96
A155: =OFFSET(PO!J$12,ROW(A155)-ROW($A$12),0) -> Meta | B155: =IF($A155=0,"",OFFSET(PO!K$12,ROW(B155)-ROW(B$12),0)) -> 12. | C155: =IF(OFFSET(PO!N$12,ROW(C155)-ROW(C$12),0)=0,"",OFFSET(PO!N$12,ROW(C155)-ROW(C$12),0)) -> RODAPÉS, PEITORIS E SOLEIRAS | D155: =IF(OFFSET(PO!O$12,ROW(D155)-ROW(D$12),0)=0,"",OFFSET(PO!O$12,ROW(D155)-ROW(D$12),0)) ->  | E155: =IF($A155<>"Serviço",0,ROUND(SUMIF($F$9:$P$9,"<>",$F155:$P155),15-13*PO!$X$3)) -> 0 | F155: =OFFSET(PO!$P$12,ROW($E155)-ROW(F$12),0) -> 0
A156: =OFFSET(PO!J$12,ROW(A156)-ROW($A$12),0) -> Serviço | B156: =IF($A156=0,"",OFFSET(PO!K$12,ROW(B156)-ROW(B$12),0)) -> 12.0.1. | C156: =IF(OFFSET(PO!N$12,ROW(C156)-ROW(C$12),0)=0,"",OFFSET(PO!N$12,ROW(C156)-ROW(C$12),0)) -> PEITORIL DE GRANITO CINZA ANDORINHA L= 19 cm E=2CM, ASSENTADO COM ARGAMASSA TRACO 1:3 (CIMENTO E AREIA MEDIA), COM PINGADEIRA | D156: =IF(OFFSET(PO!O$12,ROW(D156)-ROW(D$12),0)=0,"",OFFSET(PO!O$12,ROW(D156)-ROW(D$12),0)) -> M | E156: =IF($A156<>"Serviço",0,ROUND(SUMIF($F$9:$P$9,"<>",$F156:$P156),15-13*PO!$X$3)) -> 21.45 | F156: =OFFSET(PO!$P$12,ROW($E156)-ROW(F$12),0) -> 21.45
A157: =OFFSET(PO!J$12,ROW(A157)-ROW($A$12),0) -> Serviço | B157: =IF($A157=0,"",OFFSET(PO!K$12,ROW(B157)-ROW(B$12),0)) -> 12.0.2. | C157: =IF(OFFSET(PO!N$12,ROW(C157)-ROW(C$12),0)=0,"",OFFSET(PO!N$12,ROW(C157)-ROW(C$12),0)) -> SOLEIRA DE GRANITO CINZA ANDORINHA L= 15cm E=2CM, ASSENTADA SOBRE ARGAMASSA TRACO 1:4 (CIMENTO E AREIA) | D157: =IF(OFFSET(PO!O$12,ROW(D157)-ROW(D$12),0)=0,"",OFFSET(PO!O$12,ROW(D157)-ROW(D$12),0)) -> M | E157: =IF($A157<>"Serviço",0,ROUND(SUMIF($F$9:$P$9,"<>",$F157:$P157),15-13*PO!$X$3)) -> 9.9 | F157: =OFFSET(PO!$P$12,ROW($E157)-ROW(F$12),0) -> 9.9
A158: =OFFSET(PO!J$12,ROW(A158)-ROW($A$12),0) -> Serviço | B158: =IF($A158=0,"",OFFSET(PO!K$12,ROW(B158)-ROW(B$12),0)) -> 12.0.3. | C158: =IF(OFFSET(PO!N$12,ROW(C158)-ROW(C$12),0)=0,"",OFFSET(PO!N$12,ROW(C158)-ROW(C$12),0)) -> RODAPÉ CERÂMICO DE 7CM DE ALTURA COM PLACAS TIPO ESMALTADA EXTRA DE DIMENSÕES 35X35CM. AF_06/2014 | D158: =IF(OFFSET(PO!O$12,ROW(D158)-ROW(D$12),0)=0,"",OFFSET(PO!O$12,ROW(D158)-ROW(D$12),0)) -> M | E158: =IF($A158<>"Serviço",0,ROUND(SUMIF($F$9:$P$9,"<>",$F158:$P158),15-13*PO!$X$3)) -> 101.85 | F158: =OFFSET(PO!$P$12,ROW($E158)-ROW(F$12),0) -> 101.85
A159: =OFFSET(PO!J$12,ROW(A159)-ROW($A$12),0) -> Meta | B159: =IF($A159=0,"",OFFSET(PO!K$12,ROW(B159)-ROW(B$12),0)) -> 13. | C159: =IF(OFFSET(PO!N$12,ROW(C159)-ROW(C$12),0)=0,"",OFFSET(PO!N$12,ROW(C159)-ROW(C$12),0)) -> PINTURA | D159: =IF(OFFSET(PO!O$12,ROW(D159)-ROW(D$12),0)=0,"",OFFSET(PO!O$12,ROW(D159)-ROW(D$12),0)) ->  | E159: =IF($A159<>"Serviço",0,ROUND(SUMIF($F$9:$P$9,"<>",$F159:$P159),15-13*PO!$X$3)) -> 0 | F159: =OFFSET(PO!$P$12,ROW($E159)-ROW(F$12),0) -> 0
A160: =OFFSET(PO!J$12,ROW(A160)-ROW($A$12),0) -> Serviço | B160: =IF($A160=0,"",OFFSET(PO!K$12,ROW(B160)-ROW(B$12),0)) -> 13.0.1. | C160: =IF(OFFSET(PO!N$12,ROW(C160)-ROW(C$12),0)=0,"",OFFSET(PO!N$12,ROW(C160)-ROW(C$12),0)) -> APLICAÇÃO MANUAL DE MASSA ACRÍLICA EM PAREDES INTERNAS E TETOS, DUAS DEMÃOS | D160: =IF(OFFSET(PO!O$12,ROW(D160)-ROW(D$12),0)=0,"",OFFSET(PO!O$12,ROW(D160)-ROW(D$12),0)) -> M2 | E160: =IF($A160<>"Serviço",0,ROUND(SUMIF($F$9:$P$9,"<>",$F160:$P160),15-13*PO!$X$3)) -> 426.49 | F160: =OFFSET(PO!$P$12,ROW($E160)-ROW(F$12),0) -> 426.49
A161: =OFFSET(PO!J$12,ROW(A161)-ROW($A$12),0) -> Serviço | B161: =IF($A161=0,"",OFFSET(PO!K$12,ROW(B161)-ROW(B$12),0)) -> 13.0.2. | C161: =IF(OFFSET(PO!N$12,ROW(C161)-ROW(C$12),0)=0,"",OFFSET(PO!N$12,ROW(C161)-ROW(C$12),0)) -> APLICAÇÃO MANUAL DE PINTURA COM TINTA LÁTEX ACRÍLICA EM PAREDES, DUAS DEMÃOS. AF_06/2014 | D161: =IF(OFFSET(PO!O$12,ROW(D161)-ROW(D$12),0)=0,"",OFFSET(PO!O$12,ROW(D161)-ROW(D$12),0)) -> M2 | E161: =IF($A161<>"Serviço",0,ROUND(SUMIF($F$9:$P$9,"<>",$F161:$P161),15-13*PO!$X$3)) -> 278.22 | F161: =OFFSET(PO!$P$12,ROW($E161)-ROW(F$12),0) -> 278.22
A162: =OFFSET(PO!J$12,ROW(A162)-ROW($A$12),0) -> Serviço | B162: =IF($A162=0,"",OFFSET(PO!K$12,ROW(B162)-ROW(B$12),0)) -> 13.0.3. | C162: =IF(OFFSET(PO!N$12,ROW(C162)-ROW(C$12),0)=0,"",OFFSET(PO!N$12,ROW(C162)-ROW(C$12),0)) -> APLICAÇÃO MANUAL DE PINTURA COM TINTA LÁTEX ACRÍLICA EM TETO, DUAS DEMÃOS. AF_06/2014 | D162: =IF(OFFSET(PO!O$12,ROW(D162)-ROW(D$12),0)=0,"",OFFSET(PO!O$12,ROW(D162)-ROW(D$12),0)) -> M2 | E162: =IF($A162<>"Serviço",0,ROUND(SUMIF($F$9:$P$9,"<>",$F162:$P162),15-13*PO!$X$3)) -> 148.27 | F162: =OFFSET(PO!$P$12,ROW($E162)-ROW(F$12),0) -> 148.27
A163: =OFFSET(PO!J$12,ROW(A163)-ROW($A$12),0) -> Serviço | B163: =IF($A163=0,"",OFFSET(PO!K$12,ROW(B163)-ROW(B$12),0)) -> 13.0.4. | C163: =IF(OFFSET(PO!N$12,ROW(C163)-ROW(C$12),0)=0,"",OFFSET(PO!N$12,ROW(C163)-ROW(C$12),0)) -> APLICAÇÃO DE FUNDO SELADOR ACRÍLICO EM PAREDES, UMA DEMÃO. AF_06/2014 | D163: =IF(OFFSET(PO!O$12,ROW(D163)-ROW(D$12),0)=0,"",OFFSET(PO!O$12,ROW(D163)-ROW(D$12),0)) -> M2 | E163: =IF($A163<>"Serviço",0,ROUND(SUMIF($F$9:$P$9,"<>",$F163:$P163),15-13*PO!$X$3)) -> 242.44 | F163: =OFFSET(PO!$P$12,ROW($E163)-ROW(F$12),0) -> 242.44
A164: =OFFSET(PO!J$12,ROW(A164)-ROW($A$12),0) -> Serviço | B164: =IF($A164=0,"",OFFSET(PO!K$12,ROW(B164)-ROW(B$12),0)) -> 13.0.5. | C164: =IF(OFFSET(PO!N$12,ROW(C164)-ROW(C$12),0)=0,"",OFFSET(PO!N$12,ROW(C164)-ROW(C$12),0)) -> APLICAÇÃO MANUAL DE PINTURA COM TINTA LÁTEX ACRÍLICA EM PAREDES, DUAS DEMÃOS. AF_06/2014 | D164: =IF(OFFSET(PO!O$12,ROW(D164)-ROW(D$12),0)=0,"",OFFSET(PO!O$12,ROW(D164)-ROW(D$12),0)) -> M2 | E164: =IF($A164<>"Serviço",0,ROUND(SUMIF($F$9:$P$9,"<>",$F164:$P164),15-13*PO!$X$3)) -> 242.44 | F164: =OFFSET(PO!$P$12,ROW($E164)-ROW(F$12),0) -> 242.44
A165: =OFFSET(PO!J$12,ROW(A165)-ROW($A$12),0) -> Serviço | B165: =IF($A165=0,"",OFFSET(PO!K$12,ROW(B165)-ROW(B$12),0)) -> 13.0.6. | C165: =IF(OFFSET(PO!N$12,ROW(C165)-ROW(C$12),0)=0,"",OFFSET(PO!N$12,ROW(C165)-ROW(C$12),0)) -> FUNDO SINTETICO NIVELADOR BRANCO | D165: =IF(OFFSET(PO!O$12,ROW(D165)-ROW(D$12),0)=0,"",OFFSET(PO!O$12,ROW(D165)-ROW(D$12),0)) -> M2 | E165: =IF($A165<>"Serviço",0,ROUND(SUMIF($F$9:$P$9,"<>",$F165:$P165),15-13*PO!$X$3)) -> 53.55 | F165: =OFFSET(PO!$P$12,ROW($E165)-ROW(F$12),0) -> 53.55
A166: =OFFSET(PO!J$12,ROW(A166)-ROW($A$12),0) -> Serviço | B166: =IF($A166=0,"",OFFSET(PO!K$12,ROW(B166)-ROW(B$12),0)) -> 13.0.7. | C166: =IF(OFFSET(PO!N$12,ROW(C166)-ROW(C$12),0)=0,"",OFFSET(PO!N$12,ROW(C166)-ROW(C$12),0)) -> PINTURA ESMALTE ACETINADO PARA MADEIRA, DUAS DEMAOS, SOBRE FUNDO NIVELADOR BRANCO | D166: =IF(OFFSET(PO!O$12,ROW(D166)-ROW(D$12),0)=0,"",OFFSET(PO!O$12,ROW(D166)-ROW(D$12),0)) -> M2 | E166: =IF($A166<>"Serviço",0,ROUND(SUMIF($F$9:$P$9,"<>",$F166:$P166),15-13*PO!$X$3)) -> 53.55 | F166: =OFFSET(PO!$P$12,ROW($E166)-ROW(F$12),0) -> 53.55
A167: =OFFSET(PO!J$12,ROW(A167)-ROW($A$12),0) -> Meta | B167: =IF($A167=0,"",OFFSET(PO!K$12,ROW(B167)-ROW(B$12),0)) -> 14. | C167: =IF(OFFSET(PO!N$12,ROW(C167)-ROW(C$12),0)=0,"",OFFSET(PO!N$12,ROW(C167)-ROW(C$12),0)) -> INSTALAÇÃO HIDRÁULICA | D167: =IF(OFFSET(PO!O$12,ROW(D167)-ROW(D$12),0)=0,"",OFFSET(PO!O$12,ROW(D167)-ROW(D$12),0)) ->  | E167: =IF($A167<>"Serviço",0,ROUND(SUMIF($F$9:$P$9,"<>",$F167:$P167),15-13*PO!$X$3)) -> 0 | F167: =OFFSET(PO!$P$12,ROW($E167)-ROW(F$12),0) -> 0
A168: =OFFSET(PO!J$12,ROW(A168)-ROW($A$12),0) -> Nível 2 | B168: =IF($A168=0,"",OFFSET(PO!K$12,ROW(B168)-ROW(B$12),0)) -> 14.1. | C168: =IF(OFFSET(PO!N$12,ROW(C168)-ROW(C$12),0)=0,"",OFFSET(PO!N$12,ROW(C168)-ROW(C$12),0)) -> TUBULAÇÕES E CONEXÕES | D168: =IF(OFFSET(PO!O$12,ROW(D168)-ROW(D$12),0)=0,"",OFFSET(PO!O$12,ROW(D168)-ROW(D$12),0)) ->  | E168: =IF($A168<>"Serviço",0,ROUND(SUMIF($F$9:$P$9,"<>",$F168:$P168),15-13*PO!$X$3)) -> 0 | F168: =OFFSET(PO!$P$12,ROW($E168)-ROW(F$12),0) -> 0
A169: =OFFSET(PO!J$12,ROW(A169)-ROW($A$12),0) -> Serviço | B169: =IF($A169=0,"",OFFSET(PO!K$12,ROW(B169)-ROW(B$12),0)) -> 14.1.1. | C169: =IF(OFFSET(PO!N$12,ROW(C169)-ROW(C$12),0)=0,"",OFFSET(PO!N$12,ROW(C169)-ROW(C$12),0)) -> TUBO, PVC, SOLDÁVEL, DN 25MM, INSTALADO EM RAMAL DE DISTRIBUIÇÃO DE ÁGUA - FORNECIMENTO E INSTALAÇÃO. AF_12/2014 | D169: =IF(OFFSET(PO!O$12,ROW(D169)-ROW(D$12),0)=0,"",OFFSET(PO!O$12,ROW(D169)-ROW(D$12),0)) -> M | E169: =IF($A169<>"Serviço",0,ROUND(SUMIF($F$9:$P$9,"<>",$F169:$P169),15-13*PO!$X$3)) -> 37.5 | F169: =OFFSET(PO!$P$12,ROW($E169)-ROW(F$12),0) -> 37.5
A170: =OFFSET(PO!J$12,ROW(A170)-ROW($A$12),0) -> Serviço | B170: =IF($A170=0,"",OFFSET(PO!K$12,ROW(B170)-ROW(B$12),0)) -> 14.1.2. | C170: =IF(OFFSET(PO!N$12,ROW(C170)-ROW(C$12),0)=0,"",OFFSET(PO!N$12,ROW(C170)-ROW(C$12),0)) -> TUBO, PVC, SOLDÁVEL, DN 32MM, INSTALADO EM RAMAL DE DISTRIBUIÇÃO DE ÁGUA - FORNECIMENTO E INSTALAÇÃO. AF_12/2014 | D170: =IF(OFFSET(PO!O$12,ROW(D170)-ROW(D$12),0)=0,"",OFFSET(PO!O$12,ROW(D170)-ROW(D$12),0)) -> M | E170: =IF($A170<>"Serviço",0,ROUND(SUMIF($F$9:$P$9,"<>",$F170:$P170),15-13*PO!$X$3)) -> 8.15 | F170: =OFFSET(PO!$P$12,ROW($E170)-ROW(F$12),0) -> 8.15
A171: =OFFSET(PO!J$12,ROW(A171)-ROW($A$12),0) -> Serviço | B171: =IF($A171=0,"",OFFSET(PO!K$12,ROW(B171)-ROW(B$12),0)) -> 14.1.3. | C171: =IF(OFFSET(PO!N$12,ROW(C171)-ROW(C$12),0)=0,"",OFFSET(PO!N$12,ROW(C171)-ROW(C$12),0)) -> TUBO, PVC, SOLDÁVEL, DN 40MM, INSTALADO EM PRUMADA DE ÁGUA - FORNECIMENTO E INSTALAÇÃO. AF_12/2014 | D171: =IF(OFFSET(PO!O$12,ROW(D171)-ROW(D$12),0)=0,"",OFFSET(PO!O$12,ROW(D171)-ROW(D$12),0)) -> M | E171: =IF($A171<>"Serviço",0,ROUND(SUMIF($F$9:$P$9,"<>",$F171:$P171),15-13*PO!$X$3)) -> 11.9 | F171: =OFFSET(PO!$P$12,ROW($E171)-ROW(F$12),0) -> 11.9
A172: =OFFSET(PO!J$12,ROW(A172)-ROW($A$12),0) -> Serviço | B172: =IF($A172=0,"",OFFSET(PO!K$12,ROW(B172)-ROW(B$12),0)) -> 14.1.4. | C172: =IF(OFFSET(PO!N$12,ROW(C172)-ROW(C$12),0)=0,"",OFFSET(PO!N$12,ROW(C172)-ROW(C$12),0)) -> BUCHA DE REDUCAO DE PVC, SOLDAVEL, CURTA, COM 32 X 25 MM, PARA AGUA FRIA PREDIAL | D172: =IF(OFFSET(PO!O$12,ROW(D172)-ROW(D$12),0)=0,"",OFFSET(PO!O$12,ROW(D172)-ROW(D$12),0)) -> UN | E172: =IF($A172<>"Serviço",0,ROUND(SUMIF($F$9:$P$9,"<>",$F172:$P172),15-13*PO!$X$3)) -> 2 | F172: =OFFSET(PO!$P$12,ROW($E172)-ROW(F$12),0) -> 2
A173: =OFFSET(PO!J$12,ROW(A173)-ROW($A$12),0) -> Serviço | B173: =IF($A173=0,"",OFFSET(PO!K$12,ROW(B173)-ROW(B$12),0)) -> 14.1.5. | C173: =IF(OFFSET(PO!N$12,ROW(C173)-ROW(C$12),0)=0,"",OFFSET(PO!N$12,ROW(C173)-ROW(C$12),0)) -> BUCHA DE REDUÇÃO, PVC, SOLDÁVEL, DN 40MM X 32MM, INSTALADO EM RAMAL OU SUB-RAMAL DE ÁGUA - FORNECIMENTO E INSTALAÇÃO. AF_03/2015 | D173: =IF(OFFSET(PO!O$12,ROW(D173)-ROW(D$12),0)=0,"",OFFSET(PO!O$12,ROW(D173)-ROW(D$12),0)) -> UN | E173: =IF($A173<>"Serviço",0,ROUND(SUMIF($F$9:$P$9,"<>",$F173:$P173),15-13*PO!$X$3)) -> 1 | F173: =OFFSET(PO!$P$12,ROW($E173)-ROW(F$12),0) -> 1
A174: =OFFSET(PO!J$12,ROW(A174)-ROW($A$12),0) -> Serviço | B174: =IF($A174=0,"",OFFSET(PO!K$12,ROW(B174)-ROW(B$12),0)) -> 14.1.6. | C174: =IF(OFFSET(PO!N$12,ROW(C174)-ROW(C$12),0)=0,"",OFFSET(PO!N$12,ROW(C174)-ROW(C$12),0)) -> BUCHA DE REDUCAO DE PVC, SOLDAVEL, LONGA, COM 40 X 25 MM, PARA AGUA FRIA PREDIAL | D174: =IF(OFFSET(PO!O$12,ROW(D174)-ROW(D$12),0)=0,"",OFFSET(PO!O$12,ROW(D174)-ROW(D$12),0)) -> UN | E174: =IF($A174<>"Serviço",0,ROUND(SUMIF($F$9:$P$9,"<>",$F174:$P174),15-13*PO!$X$3)) -> 1 | F174: =OFFSET(PO!$P$12,ROW($E174)-ROW(F$12),0) -> 1
A175: =OFFSET(PO!J$12,ROW(A175)-ROW($A$12),0) -> Serviço | B175: =IF($A175=0,"",OFFSET(PO!K$12,ROW(B175)-ROW(B$12),0)) -> 14.1.7. | C175: =IF(OFFSET(PO!N$12,ROW(C175)-ROW(C$12),0)=0,"",OFFSET(PO!N$12,ROW(C175)-ROW(C$12),0)) -> JOELHO 90 GRAUS, PVC, SOLDÁVEL, DN 25MM, INSTALADO EM RAMAL OU SUB-RAMAL DE ÁGUA - FORNECIMENTO E INSTALAÇÃO. AF_12/2014 | D175: =IF(OFFSET(PO!O$12,ROW(D175)-ROW(D$12),0)=0,"",OFFSET(PO!O$12,ROW(D175)-ROW(D$12),0)) -> UN | E175: =IF($A175<>"Serviço",0,ROUND(SUMIF($F$9:$P$9,"<>",$F175:$P175),15-13*PO!$X$3)) -> 15 | F175: =OFFSET(PO!$P$12,ROW($E175)-ROW(F$12),0) -> 15
A176: =OFFSET(PO!J$12,ROW(A176)-ROW($A$12),0) -> Serviço | B176: =IF($A176=0,"",OFFSET(PO!K$12,ROW(B176)-ROW(B$12),0)) -> 14.1.8. | C176: =IF(OFFSET(PO!N$12,ROW(C176)-ROW(C$12),0)=0,"",OFFSET(PO!N$12,ROW(C176)-ROW(C$12),0)) -> JOELHO 90 GRAUS, PVC, SOLDÁVEL, DN 32MM, INSTALADO EM RAMAL OU SUB-RAMAL DE ÁGUA - FORNECIMENTO E INSTALAÇÃO. AF_12/2014 | D176: =IF(OFFSET(PO!O$12,ROW(D176)-ROW(D$12),0)=0,"",OFFSET(PO!O$12,ROW(D176)-ROW(D$12),0)) -> UN | E176: =IF($A176<>"Serviço",0,ROUND(SUMIF($F$9:$P$9,"<>",$F176:$P176),15-13*PO!$X$3)) -> 7 | F176: =OFFSET(PO!$P$12,ROW($E176)-ROW(F$12),0) -> 7
A177: =OFFSET(PO!J$12,ROW(A177)-ROW($A$12),0) -> Serviço | B177: =IF($A177=0,"",OFFSET(PO!K$12,ROW(B177)-ROW(B$12),0)) -> 14.1.9. | C177: =IF(OFFSET(PO!N$12,ROW(C177)-ROW(C$12),0)=0,"",OFFSET(PO!N$12,ROW(C177)-ROW(C$12),0)) -> JOELHO 90 GRAUS, PVC, SOLDÁVEL, DN 40MM, INSTALADO EM PRUMADA DE ÁGUA - FORNECIMENTO E INSTALAÇÃO. AF_12/2014 | D177: =IF(OFFSET(PO!O$12,ROW(D177)-ROW(D$12),0)=0,"",OFFSET(PO!O$12,ROW(D177)-ROW(D$12),0)) -> UN | E177: =IF($A177<>"Serviço",0,ROUND(SUMIF($F$9:$P$9,"<>",$F177:$P177),15-13*PO!$X$3)) -> 3 | F177: =OFFSET(PO!$P$12,ROW($E177)-ROW(F$12),0) -> 3
A178: =OFFSET(PO!J$12,ROW(A178)-ROW($A$12),0) -> Serviço | B178: =IF($A178=0,"",OFFSET(PO!K$12,ROW(B178)-ROW(B$12),0)) -> 14.1.10. | C178: =IF(OFFSET(PO!N$12,ROW(C178)-ROW(C$12),0)=0,"",OFFSET(PO!N$12,ROW(C178)-ROW(C$12),0)) -> JOELHO 45 GRAUS, PVC, SOLDÁVEL, DN 25MM, INSTALADO EM RAMAL OU SUB-RAMAL DE ÁGUA - FORNECIMENTO E INSTALAÇÃO. AF_12/2014 | D178: =IF(OFFSET(PO!O$12,ROW(D178)-ROW(D$12),0)=0,"",OFFSET(PO!O$12,ROW(D178)-ROW(D$12),0)) -> UN | E178: =IF($A178<>"Serviço",0,ROUND(SUMIF($F$9:$P$9,"<>",$F178:$P178),15-13*PO!$X$3)) -> 2 | F178: =OFFSET(PO!$P$12,ROW($E178)-ROW(F$12),0) -> 2
A179: =OFFSET(PO!J$12,ROW(A179)-ROW($A$12),0) -> Serviço | B179: =IF($A179=0,"",OFFSET(PO!K$12,ROW(B179)-ROW(B$12),0)) -> 14.1.11. | C179: =IF(OFFSET(PO!N$12,ROW(C179)-ROW(C$12),0)=0,"",OFFSET(PO!N$12,ROW(C179)-ROW(C$12),0)) -> JOELHO DE REDUCAO, PVC SOLDAVEL, 90 GRAUS, 32 MM X 25 MM, PARA AGUA FRIA PREDIAL | D179: =IF(OFFSET(PO!O$12,ROW(D179)-ROW(D$12),0)=0,"",OFFSET(PO!O$12,ROW(D179)-ROW(D$12),0)) -> UN | E179: =IF($A179<>"Serviço",0,ROUND(SUMIF($F$9:$P$9,"<>",$F179:$P179),15-13*PO!$X$3)) -> 1 | F179: =OFFSET(PO!$P$12,ROW($E179)-ROW(F$12),0) -> 1
A180: =OFFSET(PO!J$12,ROW(A180)-ROW($A$12),0) -> Serviço | B180: =IF($A180=0,"",OFFSET(PO!K$12,ROW(B180)-ROW(B$12),0)) -> 14.1.12. | C180: =IF(OFFSET(PO!N$12,ROW(C180)-ROW(C$12),0)=0,"",OFFSET(PO!N$12,ROW(C180)-ROW(C$12),0)) -> TE, PVC, SOLDÁVEL, DN 25MM, INSTALADO EM RAMAL OU SUB-RAMAL DE ÁGUA - FORNECIMENTO E INSTALAÇÃO. AF_12/2014 | D180: =IF(OFFSET(PO!O$12,ROW(D180)-ROW(D$12),0)=0,"",OFFSET(PO!O$12,ROW(D180)-ROW(D$12),0)) -> UN | E180: =IF($A180<>"Serviço",0,ROUND(SUMIF($F$9:$P$9,"<>",$F180:$P180),15-13*PO!$X$3)) -> 7 | F180: =OFFSET(PO!$P$12,ROW($E180)-ROW(F$12),0) -> 7
A181: =OFFSET(PO!J$12,ROW(A181)-ROW($A$12),0) -> Serviço | B181: =IF($A181=0,"",OFFSET(PO!K$12,ROW(B181)-ROW(B$12),0)) -> 14.1.13. | C181: =IF(OFFSET(PO!N$12,ROW(C181)-ROW(C$12),0)=0,"",OFFSET(PO!N$12,ROW(C181)-ROW(C$12),0)) -> TE, PVC, SOLDÁVEL, DN 32MM, INSTALADO EM RAMAL OU SUB-RAMAL DE ÁGUA - FORNECIMENTO E INSTALAÇÃO. AF_12/2014 | D181: =IF(OFFSET(PO!O$12,ROW(D181)-ROW(D$12),0)=0,"",OFFSET(PO!O$12,ROW(D181)-ROW(D$12),0)) -> UN | E181: =IF($A181<>"Serviço",0,ROUND(SUMIF($F$9:$P$9,"<>",$F181:$P181),15-13*PO!$X$3)) -> 4 | F181: =OFFSET(PO!$P$12,ROW($E181)-ROW(F$12),0) -> 4
A182: =OFFSET(PO!J$12,ROW(A182)-ROW($A$12),0) -> Serviço | B182: =IF($A182=0,"",OFFSET(PO!K$12,ROW(B182)-ROW(B$12),0)) -> 14.1.14. | C182: =IF(OFFSET(PO!N$12,ROW(C182)-ROW(C$12),0)=0,"",OFFSET(PO!N$12,ROW(C182)-ROW(C$12),0)) -> TE, PVC, SOLDÁVEL, DN 40MM, INSTALADO EM PRUMADA DE ÁGUA - FORNECIMENTO E INSTALAÇÃO. AF_12/2014 | D182: =IF(OFFSET(PO!O$12,ROW(D182)-ROW(D$12),0)=0,"",OFFSET(PO!O$12,ROW(D182)-ROW(D$12),0)) -> UN | E182: =IF($A182<>"Serviço",0,ROUND(SUMIF($F$9:$P$9,"<>",$F182:$P182),15-13*PO!$X$3)) -> 2 | F182: =OFFSET(PO!$P$12,ROW($E182)-ROW(F$12),0) -> 2
A183: =OFFSET(PO!J$12,ROW(A183)-ROW($A$12),0) -> Serviço | B183: =IF($A183=0,"",OFFSET(PO!K$12,ROW(B183)-ROW(B$12),0)) -> 14.1.15. | C183: =IF(OFFSET(PO!N$12,ROW(C183)-ROW(C$12),0)=0,"",OFFSET(PO!N$12,ROW(C183)-ROW(C$12),0)) -> TE DE REDUCAO, PVC, SOLDAVEL, 90 GRAUS, 40 MM X 32 MM, PARA AGUA FRIA PREDIAL | D183: =IF(OFFSET(PO!O$12,ROW(D183)-ROW(D$12),0)=0,"",OFFSET(PO!O$12,ROW(D183)-ROW(D$12),0)) -> UN | E183: =IF($A183<>"Serviço",0,ROUND(SUMIF($F$9:$P$9,"<>",$F183:$P183),15-13*PO!$X$3)) -> 1 | F183: =OFFSET(PO!$P$12,ROW($E183)-ROW(F$12),0) -> 1
A184: =OFFSET(PO!J$12,ROW(A184)-ROW($A$12),0) -> Serviço | B184: =IF($A184=0,"",OFFSET(PO!K$12,ROW(B184)-ROW(B$12),0)) -> 14.1.16. | C184: =IF(OFFSET(PO!N$12,ROW(C184)-ROW(C$12),0)=0,"",OFFSET(PO!N$12,ROW(C184)-ROW(C$12),0)) -> LUVA, PVC, SOLDÁVEL, DN 25MM, INSTALADO EM RAMAL OU SUB-RAMAL DE ÁGUA - FORNECIMENTO E INSTALAÇÃO. AF_12/2014 | D184: =IF(OFFSET(PO!O$12,ROW(D184)-ROW(D$12),0)=0,"",OFFSET(PO!O$12,ROW(D184)-ROW(D$12),0)) -> UN | E184: =IF($A184<>"Serviço",0,ROUND(SUMIF($F$9:$P$9,"<>",$F184:$P184),15-13*PO!$X$3)) -> 3 | F184: =OFFSET(PO!$P$12,ROW($E184)-ROW(F$12),0) -> 3
A185: =OFFSET(PO!J$12,ROW(A185)-ROW($A$12),0) -> Nível 2 | B185: =IF($A185=0,"",OFFSET(PO!K$12,ROW(B185)-ROW(B$12),0)) -> 14.2. | C185: =IF(OFFSET(PO!N$12,ROW(C185)-ROW(C$12),0)=0,"",OFFSET(PO!N$12,ROW(C185)-ROW(C$12),0)) -> ACESSÓRIOS E COMPLEMENTOS | D185: =IF(OFFSET(PO!O$12,ROW(D185)-ROW(D$12),0)=0,"",OFFSET(PO!O$12,ROW(D185)-ROW(D$12),0)) ->  | E185: =IF($A185<>"Serviço",0,ROUND(SUMIF($F$9:$P$9,"<>",$F185:$P185),15-13*PO!$X$3)) -> 0 | F185: =OFFSET(PO!$P$12,ROW($E185)-ROW(F$12),0) -> 0
A186: =OFFSET(PO!J$12,ROW(A186)-ROW($A$12),0) -> Serviço | B186: =IF($A186=0,"",OFFSET(PO!K$12,ROW(B186)-ROW(B$12),0)) -> 14.2.1. | C186: =IF(OFFSET(PO!N$12,ROW(C186)-ROW(C$12),0)=0,"",OFFSET(PO!N$12,ROW(C186)-ROW(C$12),0)) -> ADAPTADOR COM FLANGE E ANEL DE VEDAÇÃO, PVC, SOLDÁVEL, DN 25 MM X 3/4 , INSTALADO EM RESERVAÇÃO DE ÁGUA DE EDIFICAÇÃO QUE POSSUA RESERVATÓRIO DE FIBRA/FIBROCIMENTO FORNECIMENTO E INSTALAÇÃO. AF_06/2016 | D186: =IF(OFFSET(PO!O$12,ROW(D186)-ROW(D$12),0)=0,"",OFFSET(PO!O$12,ROW(D186)-ROW(D$12),0)) -> UN | E186: =IF($A186<>"Serviço",0,ROUND(SUMIF($F$9:$P$9,"<>",$F186:$P186),15-13*PO!$X$3)) -> 2 | F186: =OFFSET(PO!$P$12,ROW($E186)-ROW(F$12),0) -> 2
A187: =OFFSET(PO!J$12,ROW(A187)-ROW($A$12),0) -> Serviço | B187: =IF($A187=0,"",OFFSET(PO!K$12,ROW(B187)-ROW(B$12),0)) -> 14.2.2. | C187: =IF(OFFSET(PO!N$12,ROW(C187)-ROW(C$12),0)=0,"",OFFSET(PO!N$12,ROW(C187)-ROW(C$12),0)) -> ADAPTADOR COM FLANGE E ANEL DE VEDAÇÃO, PVC, SOLDÁVEL, DN 32 MM X 1 , INSTALADO EM RESERVAÇÃO DE ÁGUA DE EDIFICAÇÃO QUE POSSUA RESERVATÓRIO DE FIBRA/FIBROCIMENTO FORNECIMENTO E INSTALAÇÃO. AF_06/2016 | D187: =IF(OFFSET(PO!O$12,ROW(D187)-ROW(D$12),0)=0,"",OFFSET(PO!O$12,ROW(D187)-ROW(D$12),0)) -> UN | E187: =IF($A187<>"Serviço",0,ROUND(SUMIF($F$9:$P$9,"<>",$F187:$P187),15-13*PO!$X$3)) -> 4 | F187: =OFFSET(PO!$P$12,ROW($E187)-ROW(F$12),0) -> 4
A188: =OFFSET(PO!J$12,ROW(A188)-ROW($A$12),0) -> Serviço | B188: =IF($A188=0,"",OFFSET(PO!K$12,ROW(B188)-ROW(B$12),0)) -> 14.2.3. | C188: =IF(OFFSET(PO!N$12,ROW(C188)-ROW(C$12),0)=0,"",OFFSET(PO!N$12,ROW(C188)-ROW(C$12),0)) -> ADAPTADOR COM FLANGE E ANEL DE VEDAÇÃO, PVC, SOLDÁVEL, DN 40 MM X 1 1/4 , INSTALADO EM RESERVAÇÃO DE ÁGUA DE EDIFICAÇÃO QUE POSSUA RESERVATÓRIO DE FIBRA/FIBROCIMENTO FORNECIMENTO E INSTALAÇÃO. AF_06/2016 | D188: =IF(OFFSET(PO!O$12,ROW(D188)-ROW(D$12),0)=0,"",OFFSET(PO!O$12,ROW(D188)-ROW(D$12),0)) -> UN | E188: =IF($A188<>"Serviço",0,ROUND(SUMIF($F$9:$P$9,"<>",$F188:$P188),15-13*PO!$X$3)) -> 2 | F188: =OFFSET(PO!$P$12,ROW($E188)-ROW(F$12),0) -> 2
A189: =OFFSET(PO!J$12,ROW(A189)-ROW($A$12),0) -> Serviço | B189: =IF($A189=0,"",OFFSET(PO!K$12,ROW(B189)-ROW(B$12),0)) -> 14.2.4. | C189: =IF(OFFSET(PO!N$12,ROW(C189)-ROW(C$12),0)=0,"",OFFSET(PO!N$12,ROW(C189)-ROW(C$12),0)) -> ADAPTADOR CURTO COM BOLSA E ROSCA PARA REGISTRO, PVC, SOLDÁVEL, DN 25 MM X 3/4 , INSTALADO EM RESERVAÇÃO DE ÁGUA DE EDIFICAÇÃO QUE POSSUA RESERVATÓRIO DE FIBRA/FIBROCIMENTO FORNECIMENTO E INSTALAÇÃO. AF_06/2016 | D189: =IF(OFFSET(PO!O$12,ROW(D189)-ROW(D$12),0)=0,"",OFFSET(PO!O$12,ROW(D189)-ROW(D$12),0)) -> UN | E189: =IF($A189<>"Serviço",0,ROUND(SUMIF($F$9:$P$9,"<>",$F189:$P189),15-13*PO!$X$3)) -> 10 | F189: =OFFSET(PO!$P$12,ROW($E189)-ROW(F$12),0) -> 10
A190: =OFFSET(PO!J$12,ROW(A190)-ROW($A$12),0) -> Serviço | B190: =IF($A190=0,"",OFFSET(PO!K$12,ROW(B190)-ROW(B$12),0)) -> 14.2.5. | C190: =IF(OFFSET(PO!N$12,ROW(C190)-ROW(C$12),0)=0,"",OFFSET(PO!N$12,ROW(C190)-ROW(C$12),0)) -> TORNEIRA DE BÓIA REAL, ROSCÁVEL, 3/4", FORNECIDA E INSTALADA EM RESERVAÇÃO DE ÁGUA. AF_06/2016 | D190: =IF(OFFSET(PO!O$12,ROW(D190)-ROW(D$12),0)=0,"",OFFSET(PO!O$12,ROW(D190)-ROW(D$12),0)) -> UN | E190: =IF($A190<>"Serviço",0,ROUND(SUMIF($F$9:$P$9,"<>",$F190:$P190),15-13*PO!$X$3)) -> 2 | F190: =OFFSET(PO!$P$12,ROW($E190)-ROW(F$12),0) -> 2
A191: =OFFSET(PO!J$12,ROW(A191)-ROW($A$12),0) -> Serviço | B191: =IF($A191=0,"",OFFSET(PO!K$12,ROW(B191)-ROW(B$12),0)) -> 14.2.6. | C191: =IF(OFFSET(PO!N$12,ROW(C191)-ROW(C$12),0)=0,"",OFFSET(PO!N$12,ROW(C191)-ROW(C$12),0)) -> JOELHO 90 GRAUS COM BUCHA DE LATÃO, PVC, SOLDÁVEL, DN 25MM, X 1/2 INSTALADO EM RAMAL OU SUB-RAMAL DE ÁGUA - FORNECIMENTO E INSTALAÇÃO. AF_12/2014 | D191: =IF(OFFSET(PO!O$12,ROW(D191)-ROW(D$12),0)=0,"",OFFSET(PO!O$12,ROW(D191)-ROW(D$12),0)) -> UN | E191: =IF($A191<>"Serviço",0,ROUND(SUMIF($F$9:$P$9,"<>",$F191:$P191),15-13*PO!$X$3)) -> 7 | F191: =OFFSET(PO!$P$12,ROW($E191)-ROW(F$12),0) -> 7
A192: =OFFSET(PO!J$12,ROW(A192)-ROW($A$12),0) -> Serviço | B192: =IF($A192=0,"",OFFSET(PO!K$12,ROW(B192)-ROW(B$12),0)) -> 14.2.7. | C192: =IF(OFFSET(PO!N$12,ROW(C192)-ROW(C$12),0)=0,"",OFFSET(PO!N$12,ROW(C192)-ROW(C$12),0)) -> JOELHO 90 GRAUS COM BUCHA DE LATÃO, PVC, SOLDÁVEL, DN 25MM, X 3/4 INSTALADO EM RAMAL OU SUB-RAMAL DE ÁGUA - FORNECIMENTO E INSTALAÇÃO. AF_12/2014 | D192: =IF(OFFSET(PO!O$12,ROW(D192)-ROW(D$12),0)=0,"",OFFSET(PO!O$12,ROW(D192)-ROW(D$12),0)) -> UN | E192: =IF($A192<>"Serviço",0,ROUND(SUMIF($F$9:$P$9,"<>",$F192:$P192),15-13*PO!$X$3)) -> 3 | F192: =OFFSET(PO!$P$12,ROW($E192)-ROW(F$12),0) -> 3
A193: =OFFSET(PO!J$12,ROW(A193)-ROW($A$12),0) -> Serviço | B193: =IF($A193=0,"",OFFSET(PO!K$12,ROW(B193)-ROW(B$12),0)) -> 14.2.8. | C193: =IF(OFFSET(PO!N$12,ROW(C193)-ROW(C$12),0)=0,"",OFFSET(PO!N$12,ROW(C193)-ROW(C$12),0)) -> CAIXA D'AGUA FIBRA DE VIDRO PARA 1500 LITROS, COM TAMPA | D193: =IF(OFFSET(PO!O$12,ROW(D193)-ROW(D$12),0)=0,"",OFFSET(PO!O$12,ROW(D193)-ROW(D$12),0)) -> UN | E193: =IF($A193<>"Serviço",0,ROUND(SUMIF($F$9:$P$9,"<>",$F193:$P193),15-13*PO!$X$3)) -> 2 | F193: =OFFSET(PO!$P$12,ROW($E193)-ROW(F$12),0) -> 2
A194: =OFFSET(PO!J$12,ROW(A194)-ROW($A$12),0) -> Serviço | B194: =IF($A194=0,"",OFFSET(PO!K$12,ROW(B194)-ROW(B$12),0)) -> 14.2.9. | C194: =IF(OFFSET(PO!N$12,ROW(C194)-ROW(C$12),0)=0,"",OFFSET(PO!N$12,ROW(C194)-ROW(C$12),0)) -> REGISTRO DE ESFERA, PVC, SOLDÁVEL, DN 32 MM, INSTALADO EM RESERVAÇÃO DE ÁGUA DE EDIFICAÇÃO QUE POSSUA RESERVATÓRIO DE FIBRA/FIBROCIMENTO FORNECIMENTO E INSTALAÇÃO. AF_06/2016 | D194: =IF(OFFSET(PO!O$12,ROW(D194)-ROW(D$12),0)=0,"",OFFSET(PO!O$12,ROW(D194)-ROW(D$12),0)) -> UN | E194: =IF($A194<>"Serviço",0,ROUND(SUMIF($F$9:$P$9,"<>",$F194:$P194),15-13*PO!$X$3)) -> 2 | F194: =OFFSET(PO!$P$12,ROW($E194)-ROW(F$12),0) -> 2
A195: =OFFSET(PO!J$12,ROW(A195)-ROW($A$12),0) -> Serviço | B195: =IF($A195=0,"",OFFSET(PO!K$12,ROW(B195)-ROW(B$12),0)) -> 14.2.10. | C195: =IF(OFFSET(PO!N$12,ROW(C195)-ROW(C$12),0)=0,"",OFFSET(PO!N$12,ROW(C195)-ROW(C$12),0)) -> REGISTRO DE ESFERA, PVC, SOLDÁVEL, DN 40 MM, INSTALADO EM RESERVAÇÃO DE ÁGUA DE EDIFICAÇÃO QUE POSSUA RESERVATÓRIO DE FIBRA/FIBROCIMENTO FORNECIMENTO E INSTALAÇÃO. AF_06/2016 | D195: =IF(OFFSET(PO!O$12,ROW(D195)-ROW(D$12),0)=0,"",OFFSET(PO!O$12,ROW(D195)-ROW(D$12),0)) -> UN | E195: =IF($A195<>"Serviço",0,ROUND(SUMIF($F$9:$P$9,"<>",$F195:$P195),15-13*PO!$X$3)) -> 2 | F195: =OFFSET(PO!$P$12,ROW($E195)-ROW(F$12),0) -> 2
A196: =OFFSET(PO!J$12,ROW(A196)-ROW($A$12),0) -> Meta | B196: =IF($A196=0,"",OFFSET(PO!K$12,ROW(B196)-ROW(B$12),0)) -> 15. | C196: =IF(OFFSET(PO!N$12,ROW(C196)-ROW(C$12),0)=0,"",OFFSET(PO!N$12,ROW(C196)-ROW(C$12),0)) -> INSTALAÇÃO SANITÁRIA E DRENAGEM PLUVIAL | D196: =IF(OFFSET(PO!O$12,ROW(D196)-ROW(D$12),0)=0,"",OFFSET(PO!O$12,ROW(D196)-ROW(D$12),0)) ->  | E196: =IF($A196<>"Serviço",0,ROUND(SUMIF($F$9:$P$9,"<>",$F196:$P196),15-13*PO!$X$3)) -> 0 | F196: =OFFSET(PO!$P$12,ROW($E196)-ROW(F$12),0) -> 0
A197: =OFFSET(PO!J$12,ROW(A197)-ROW($A$12),0) -> Nível 2 | B197: =IF($A197=0,"",OFFSET(PO!K$12,ROW(B197)-ROW(B$12),0)) -> 15.1. | C197: =IF(OFFSET(PO!N$12,ROW(C197)-ROW(C$12),0)=0,"",OFFSET(PO!N$12,ROW(C197)-ROW(C$12),0)) -> TUBULAÇÕES E CONEXÕES | D197: =IF(OFFSET(PO!O$12,ROW(D197)-ROW(D$12),0)=0,"",OFFSET(PO!O$12,ROW(D197)-ROW(D$12),0)) ->  | E197: =IF($A197<>"Serviço",0,ROUND(SUMIF($F$9:$P$9,"<>",$F197:$P197),15-13*PO!$X$3)) -> 0 | F197: =OFFSET(PO!$P$12,ROW($E197)-ROW(F$12),0) -> 0
A198: =OFFSET(PO!J$12,ROW(A198)-ROW($A$12),0) -> Serviço | B198: =IF($A198=0,"",OFFSET(PO!K$12,ROW(B198)-ROW(B$12),0)) -> 15.1.1. | C198: =IF(OFFSET(PO!N$12,ROW(C198)-ROW(C$12),0)=0,"",OFFSET(PO!N$12,ROW(C198)-ROW(C$12),0)) -> TUBO PVC, SERIE NORMAL, ESGOTO PREDIAL, DN 100 MM, FORNECIDO E INSTALADO EM RAMAL DE DESCARGA OU RAMAL DE ESGOTO SANITÁRIO. AF_12/2014 | D198: =IF(OFFSET(PO!O$12,ROW(D198)-ROW(D$12),0)=0,"",OFFSET(PO!O$12,ROW(D198)-ROW(D$12),0)) -> M | E198: =IF($A198<>"Serviço",0,ROUND(SUMIF($F$9:$P$9,"<>",$F198:$P198),15-13*PO!$X$3)) -> 69.5 | F198: =OFFSET(PO!$P$12,ROW($E198)-ROW(F$12),0) -> 69.5
A199: =OFFSET(PO!J$12,ROW(A199)-ROW($A$12),0) -> Serviço | B199: =IF($A199=0,"",OFFSET(PO!K$12,ROW(B199)-ROW(B$12),0)) -> 15.1.2. | C199: =IF(OFFSET(PO!N$12,ROW(C199)-ROW(C$12),0)=0,"",OFFSET(PO!N$12,ROW(C199)-ROW(C$12),0)) -> TUBO PVC, SERIE NORMAL, ESGOTO PREDIAL, DN 150 MM, FORNECIDO E INSTALADO EM SUBCOLETOR AÉREO DE ESGOTO SANITÁRIO. AF_12/2014 | D199: =IF(OFFSET(PO!O$12,ROW(D199)-ROW(D$12),0)=0,"",OFFSET(PO!O$12,ROW(D199)-ROW(D$12),0)) -> M | E199: =IF($A199<>"Serviço",0,ROUND(SUMIF($F$9:$P$9,"<>",$F199:$P199),15-13*PO!$X$3)) -> 18 | F199: =OFFSET(PO!$P$12,ROW($E199)-ROW(F$12),0) -> 18
A200: =OFFSET(PO!J$12,ROW(A200)-ROW($A$12),0) -> Serviço | B200: =IF($A200=0,"",OFFSET(PO!K$12,ROW(B200)-ROW(B$12),0)) -> 15.1.3. | C200: =IF(OFFSET(PO!N$12,ROW(C200)-ROW(C$12),0)=0,"",OFFSET(PO!N$12,ROW(C200)-ROW(C$12),0)) -> TUBO PVC, SERIE NORMAL, ESGOTO PREDIAL, DN 40 MM, FORNECIDO E INSTALADO EM RAMAL DE DESCARGA OU RAMAL DE ESGOTO SANITÁRIO. AF_12/2014 | D200: =IF(OFFSET(PO!O$12,ROW(D200)-ROW(D$12),0)=0,"",OFFSET(PO!O$12,ROW(D200)-ROW(D$12),0)) -> M | E200: =IF($A200<>"Serviço",0,ROUND(SUMIF($F$9:$P$9,"<>",$F200:$P200),15-13*PO!$X$3)) -> 6.7 | F200: =OFFSET(PO!$P$12,ROW($E200)-ROW(F$12),0) -> 6.7
A201: =OFFSET(PO!J$12,ROW(A201)-ROW($A$12),0) -> Serviço | B201: =IF($A201=0,"",OFFSET(PO!K$12,ROW(B201)-ROW(B$12),0)) -> 15.1.4. | C201: =IF(OFFSET(PO!N$12,ROW(C201)-ROW(C$12),0)=0,"",OFFSET(PO!N$12,ROW(C201)-ROW(C$12),0)) -> TUBO PVC, SERIE NORMAL, ESGOTO PREDIAL, DN 50 MM, FORNECIDO E INSTALADO EM RAMAL DE DESCARGA OU RAMAL DE ESGOTO SANITÁRIO. AF_12/2014 | D201: =IF(OFFSET(PO!O$12,ROW(D201)-ROW(D$12),0)=0,"",OFFSET(PO!O$12,ROW(D201)-ROW(D$12),0)) -> M | E201: =IF($A201<>"Serviço",0,ROUND(SUMIF($F$9:$P$9,"<>",$F201:$P201),15-13*PO!$X$3)) -> 17.66 | F201: =OFFSET(PO!$P$12,ROW($E201)-ROW(F$12),0) -> 17.66
A202: =OFFSET(PO!J$12,ROW(A202)-ROW($A$12),0) -> Serviço | B202: =IF($A202=0,"",OFFSET(PO!K$12,ROW(B202)-ROW(B$12),0)) -> 15.1.5. | C202: =IF(OFFSET(PO!N$12,ROW(C202)-ROW(C$12),0)=0,"",OFFSET(PO!N$12,ROW(C202)-ROW(C$12),0)) -> TUBO PVC, SÉRIE R, ÁGUA PLUVIAL, DN 75 MM, FORNECIDO E INSTALADO EM RAMAL DE ENCAMINHAMENTO. AF_12/2014 | D202: =IF(OFFSET(PO!O$12,ROW(D202)-ROW(D$12),0)=0,"",OFFSET(PO!O$12,ROW(D202)-ROW(D$12),0)) -> M | E202: =IF($A202<>"Serviço",0,ROUND(SUMIF($F$9:$P$9,"<>",$F202:$P202),15-13*PO!$X$3)) -> 46.8 | F202: =OFFSET(PO!$P$12,ROW($E202)-ROW(F$12),0) -> 46.8
A203: =OFFSET(PO!J$12,ROW(A203)-ROW($A$12),0) -> Serviço | B203: =IF($A203=0,"",OFFSET(PO!K$12,ROW(B203)-ROW(B$12),0)) -> 15.1.6. | C203: =IF(OFFSET(PO!N$12,ROW(C203)-ROW(C$12),0)=0,"",OFFSET(PO!N$12,ROW(C203)-ROW(C$12),0)) -> TUBO DE PVC PARA REDE COLETORA DE ESGOTO DE PAREDE MACIÇA, DN 200 MM, JUNTA ELÁSTICA, INSTALADO EM LOCAL COM NÍVEL BAIXO DE INTERFERÊNCIAS - FORNECIMENTO E ASSENTAMENTO. AF_06/2015 | D203: =IF(OFFSET(PO!O$12,ROW(D203)-ROW(D$12),0)=0,"",OFFSET(PO!O$12,ROW(D203)-ROW(D$12),0)) -> M | E203: =IF($A203<>"Serviço",0,ROUND(SUMIF($F$9:$P$9,"<>",$F203:$P203),15-13*PO!$X$3)) -> 12.2 | F203: =OFFSET(PO!$P$12,ROW($E203)-ROW(F$12),0) -> 12.2
A204: =OFFSET(PO!J$12,ROW(A204)-ROW($A$12),0) -> Serviço | B204: =IF($A204=0,"",OFFSET(PO!K$12,ROW(B204)-ROW(B$12),0)) -> 15.1.7. | C204: =IF(OFFSET(PO!N$12,ROW(C204)-ROW(C$12),0)=0,"",OFFSET(PO!N$12,ROW(C204)-ROW(C$12),0)) -> TUBO CONCRETO SIMPLES DN 300 MM PARA DRENAGEM - FORNECIMENTO E INSTALACAO INCLUSIVE ESCAVACAO MANUAL 1M3/M | D204: =IF(OFFSET(PO!O$12,ROW(D204)-ROW(D$12),0)=0,"",OFFSET(PO!O$12,ROW(D204)-ROW(D$12),0)) -> M | E204: =IF($A204<>"Serviço",0,ROUND(SUMIF($F$9:$P$9,"<>",$F204:$P204),15-13*PO!$X$3)) -> 12 | F204: =OFFSET(PO!$P$12,ROW($E204)-ROW(F$12),0) -> 12
A205: =OFFSET(PO!J$12,ROW(A205)-ROW($A$12),0) -> Serviço | B205: =IF($A205=0,"",OFFSET(PO!K$12,ROW(B205)-ROW(B$12),0)) -> 15.1.8. | C205: =IF(OFFSET(PO!N$12,ROW(C205)-ROW(C$12),0)=0,"",OFFSET(PO!N$12,ROW(C205)-ROW(C$12),0)) -> CURVA PVC LONGA 45 GRAUS, 100 MM, PARA ESGOTO PREDIAL | D205: =IF(OFFSET(PO!O$12,ROW(D205)-ROW(D$12),0)=0,"",OFFSET(PO!O$12,ROW(D205)-ROW(D$12),0)) -> UN | E205: =IF($A205<>"Serviço",0,ROUND(SUMIF($F$9:$P$9,"<>",$F205:$P205),15-13*PO!$X$3)) -> 2 | F205: =OFFSET(PO!$P$12,ROW($E205)-ROW(F$12),0) -> 2
A206: =OFFSET(PO!J$12,ROW(A206)-ROW($A$12),0) -> Serviço | B206: =IF($A206=0,"",OFFSET(PO!K$12,ROW(B206)-ROW(B$12),0)) -> 15.1.9. | C206: =IF(OFFSET(PO!N$12,ROW(C206)-ROW(C$12),0)=0,"",OFFSET(PO!N$12,ROW(C206)-ROW(C$12),0)) -> CURVA CURTA 90 GRAUS, PVC, SERIE NORMAL, ESGOTO PREDIAL, DN 100 MM, JUNTA ELÁSTICA, FORNECIDO E INSTALADO EM RAMAL DE DESCARGA OU RAMAL DE ESGOTO SANITÁRIO. AF_12/2014 | D206: =IF(OFFSET(PO!O$12,ROW(D206)-ROW(D$12),0)=0,"",OFFSET(PO!O$12,ROW(D206)-ROW(D$12),0)) -> UN | E206: =IF($A206<>"Serviço",0,ROUND(SUMIF($F$9:$P$9,"<>",$F206:$P206),15-13*PO!$X$3)) -> 8 | F206: =OFFSET(PO!$P$12,ROW($E206)-ROW(F$12),0) -> 8
... 163 more rows

Sheet CFF
O1: CFF - | P1: CRONOGRAMA FÍSICO-FINANCEIRO
P2: =CHOOSE(1+LOG(1+2*(TipoOrçamento="BASE")+4*(TipoOrçamento="LICITADO")+8*(TipoOrçamento="REPROGRAMADOAC")+16*(TipoOrçamento="REPROGRAMADONPL"),2),"nada","Cronograma Base para Licitação","Cronograma Licitado","Cronograma Licitado Reprogramado","Cronograma Base para Licitação - Reprogramado") -> Cronograma Licitado
A8: Nível Máx Crono | L8: =IF(MAX($A$14:$A$22)<>MAX(PO!$V$12:$V$366),"ERRO: CRONOGRAMA DESATUALIZADO",IF(OR(COUNTIF($O$16:$X$16,">1")>0,OFFSET($X$17,0,-1)<>$N$14),"ERRO: CRONOGRAMA NÃO FECHA EM 100%","")) -> ERRO: CRONOGRAMA DESATUALIZADO | N8: =IF(TipoOrçamento="REPROGRAMADOAC","Qtde de Medições realizadas","") -> 
A9: 2 | N9: 1 | O9: =IF(AND(TipoOrçamento="REPROGRAMADOAC",$N$9>0),$N$9-1,0) -> 0 | P9: =OFFSET(P9,0,-1)+1 -> 1 | Q9: 2 | R9: 3 | S9: 4 | T9: 5 | U9: 6 | V9: 7 | W9: 8 | AC9: =OFFSET(AC9,0,-1)+1 -> 1
A10: Lista Crono | B10: Último Nível | C10: Nível | D10: Altura | E10: N1 | F10: N2 | G10: N3 | H10: N4 | I10: Czero | J10: Cnível | K10: VTOTAL SOMA | L10: Item | M10: Descrição das Metas / Macrosserviços | N10: Valores Totais (R$) | O10: =IF(TipoOrçamento="REPROGRAMADOAC","Reinício de Obra","Início de Obra")&CHAR(10)&TEXT(DADOS!A48,"dd/mm/aa") -> Início de Obra 01/09/18 | P10: =IF(AND(TipoOrçamento="REPROGRAMADOAC",$N$9>0,N10="Valores Totais (R$)"),"Parcela "&$N$9&" Executado","Parcela "&P$9&CHAR(10)&TEXT(DATE(YEAR(DADOS!$A$48),MONTH(DADOS!$A$48)+P$9-IF(AND(TipoOrçamento="REPROGRAMADOAC",$N$9>0),$N$9,0),1),"mmm/aa")) -> Parcela 1 out/18 | Q10: =IF(AND(TipoOrçamento="REPROGRAMADOAC",$N$9>0,O10="Valores Totais (R$)"),"Parcela "&$N$9&" Executado","Parcela "&Q$9&CHAR(10)&TEXT(DATE(YEAR(DADOS!$A$48),MONTH(DADOS!$A$48)+Q$9-IF(AND(TipoOrçamento="REPROGRAMADOAC",$N$9>0),$N$9,0),1),"mmm/aa")) -> Parcela 2 nov/18 | R10: =IF(AND(TipoOrçamento="REPROGRAMADOAC",$N$9>0,P10="Valores Totais (R$)"),"Parcela "&$N$9&" Executado","Parcela "&R$9&CHAR(10)&TEXT(DATE(YEAR(DADOS!$A$48),MONTH(DADOS!$A$48)+R$9-IF(AND(TipoOrçamento="REPROGRAMADOAC",$N$9>0),$N$9,0),1),"mmm/aa")) -> Parcela 3 dez/18 | S10: =IF(AND(TipoOrçamento="REPROGRAMADOAC",$N$9>0,Q10="Valores Totais (R$)"),"Parcela "&$N$9&" Executado","Parcela "&S$9&CHAR(10)&TEXT(DATE(YEAR(DADOS!$A$48),MONTH(DADOS!$A$48)+S$9-IF(AND(TipoOrçamento="REPROGRAMADOAC",$N$9>0),$N$9,0),1),"mmm/aa")) -> Parcela 4 jan/19 | T10: =IF(AND(TipoOrçamento="REPROGRAMADOAC",$N$9>0,R10="Valores Totais (R$)"),"Parcela "&$N$9&" Executado","Parcela "&T$9&CHAR(10)&TEXT(DATE(YEAR(DADOS!$A$48),MONTH(DADOS!$A$48)+T$9-IF(AND(TipoOrçamento="REPROGRAMADOAC",$N$9>0),$N$9,0),1),"mmm/aa")) -> Parcela 5 fev/19 | U10: =IF(AND(TipoOrçamento="REPROGRAMADOAC",$N$9>0,S10="Valores Totais (R$)"),"Parcela "&$N$9&" Executado","Parcela "&U$9&CHAR(10)&TEXT(DATE(YEAR(DADOS!$A$48),MONTH(DADOS!$A$48)+U$9-IF(AND(TipoOrçamento="REPROGRAMADOAC",$N$9>0),$N$9,0),1),"mmm/aa")) -> Parcela 6 mar/19 | V10: =IF(AND(TipoOrçamento="REPROGRAMADOAC",$N$9>0,T10="Valores Totais (R$)"),"Parcela "&$N$9&" Executado","Parcela "&V$9&CHAR(10)&TEXT(DATE(YEAR(DADOS!$A$48),MONTH(DADOS!$A$48)+V$9-IF(AND(TipoOrçamento="REPROGRAMADOAC",$N$9>0),$N$9,0),1),"mmm/aa")) -> Parcela 7 abr/19 | W10: =IF(AND(TipoOrçamento="REPROGRAMADOAC",$N$9>0,U10="Valores Totais (R$)"),"Parcela "&$N$9&" Executado","Parcela "&W$9&CHAR(10)&TEXT(DATE(YEAR(DADOS!$A$48),MONTH(DADOS!$A$48)+W$9-IF(AND(TipoOrçamento="REPROGRAMADOAC",$N$9>0),$N$9,0),1),"mmm/aa")) -> Parcela 8 mai/19 | AC10: =IF(AND(TipoOrçamento="REPROGRAMADOAC",$N$9>0,AA10="Valores Totais (R$)"),"Parcela "&$N$9&" Executado","Parcela "&AC$9&CHAR(10)&TEXT(DATE(YEAR(DADOS!$A$48),MONTH(DADOS!$A$48)+AC$9-IF(AND(TipoOrçamento="REPROGRAMADOAC",$N$9>0),$N$9,0),1),"mmm/aa")) -> Parcela 1 out/18
L11: =INDEX(PO!K$12:K$366,MATCH($A13,PO!$V$12:$V$366,0)) ->  | M11: =INDEX(PO!N$12:N$366,MATCH($A13,PO!$V$12:$V$366,0)) ->  | N11: =IF(ROUND(K13,2)=0,K13,ROUND(K13,2)) ->  | O11: Parcela (%) | P11: =IF($B13,0,P12-IF(ISNUMBER(O12),O12,0)) ->  | Q11: =IF($B13,0,Q12-IF(ISNUMBER(P12),P12,0)) ->  | AC11: =IF($B13,0,AC12-IF(ISNUMBER(AB12),AB12,0)) -> 
O12: Acumulado (%) | P12: =MIN(IF($B13,P11+IF(ISNUMBER(O12),O12,0),P13/$N11),1) ->  | Q12: =MIN(IF($B13,Q11+IF(ISNUMBER(P12),P12,0),Q13/$N11),1) ->  | AC12: =MIN(IF($B13,AC11+IF(ISNUMBER(AB12),AB12,0),AC13/$N11),1) -> 
A13: =OFFSET(A13,-CFF.NumLinha,0)+1 ->  | B13: =$C13>=OFFSET($C13,CFF.NumLinha,0) ->  | C13: =INDEX(PO!A$12:A$366,MATCH($A13,PO!$V$12:$V$366,0)) ->  | D13: =IF(ISERROR(J13),I13,SMALL(I13:J13,1))-1 ->  | E13: =IF($C13=1,OFFSET(E13,-CFF.NumLinha,0)+1,OFFSET(E13,-CFF.NumLinha,0)) ->  | F13: =IF($C13=1,0,IF($C13=2,OFFSET(F13,-CFF.NumLinha,0)+1,OFFSET(F13,-CFF.NumLinha,0))) ->  | G13: =IF(AND($C13<=2,$C13<>0),0,IF($C13=3,OFFSET(G13,-CFF.NumLinha,0)+1,OFFSET(G13,-CFF.NumLinha,0))) ->  | H13: =IF(AND($C13<=3,$C13<>0),0,IF($C13=4,OFFSET(H13,-CFF.NumLinha,0)+1,OFFSET(H13,-CFF.NumLinha,0))) ->  | I13: =MATCH(0,OFFSET($D13,1,$C13,ROW($A$21)-ROW($A13)),0) ->  | J13: =MATCH(OFFSET($D13,0,$C13)+1,OFFSET($D13,1,$C13,ROW($A$21)-ROW($A13)),0) ->  | K13: =ROUND(INDEX(PO!T$12:T$366,MATCH($A13,PO!$V$12:$V$366,0)),2)+10^-12 ->  | O13: Acumulado (R$) | P13: =IF($B13,ROUND(P12*$N11,2),ROUND(SUMIF(OFFSET($B13,1,0,$D13),TRUE,OFFSET(P13,1,0,$D13))/SUMIF(OFFSET($B13,1,0,$D13),TRUE,OFFSET($K13,1,0,$D13))*$N11,2)) ->  | Q13: =IF($B13,ROUND(Q12*$N11,2),ROUND(SUMIF(OFFSET($B13,1,0,$D13),TRUE,OFFSET(Q13,1,0,$D13))/SUMIF(OFFSET($B13,1,0,$D13),TRUE,OFFSET($K13,1,0,$D13))*$N11,2)) ->  | AC13: =IF($B13,ROUND(AC12*$N11,2),ROUND(SUMIF(OFFSET($B13,1,0,$D13),TRUE,OFFSET(AC13,1,0,$D13))/SUMIF(OFFSET($B13,1,0,$D13),TRUE,OFFSET($K13,1,0,$D13))*$N11,2)) -> 
L14: CRONOGRAMA GLOBAL DO LOTE | N14: =IF(PO!$T$12=0,10^-12,PO!$T$12) -> 1e-12 | O14: Parcela (%) | P14: =ROUND(P15/$N14,4) -> 0 | Q14: =ROUND(Q15/$N14,4) -> 0 | R14: 0 | S14: 0 | T14: 0 | U14: 0 | V14: 0 | W14: 0 | AC14: =ROUND(AC15/$N14,4) -> 0
O15: Parcela (R$) | P15: =P17-IF(ISNUMBER(O17),O17,0) -> 0 | Q15: =Q17-IF(ISNUMBER(P17),P17,0) -> 0 | R15: 0 | S15: 0 | T15: 0 | U15: 0 | V15: 0 | W15: 0 | AC15: =AC17-IF(ISNUMBER(AB17),AB17,0) -> 0
O16: Acumulado (%) | P16: =ROUND(P17/$N14,4) -> 0 | Q16: =ROUND(Q17/$N14,4) -> 0 | R16: 0 | S16: 0 | T16: 0 | U16: 0 | V16: 0 | W16: 0 | AC16: =ROUND(AC17/$N14,4) -> 0
A17: 0 | D17: =ROW(D$21)-ROW(D18) -> 3 | O17: Acumulado (R$) | P17: =SUMIF(OFFSET($C17,1,0):$C$21,1,OFFSET(P17,1,0):P$21) -> 0 | Q17: =SUMIF(OFFSET($C17,1,0):$C$21,1,OFFSET(Q17,1,0):Q$21) -> 0 | R17: =SUMIF(OFFSET($C17,1,0):$C$21,1,OFFSET(R17,1,0):R$21) -> 0 | S17: =SUMIF(OFFSET($C17,1,0):$C$21,1,OFFSET(S17,1,0):S$21) -> 0 | T17: =SUMIF(OFFSET($C17,1,0):$C$21,1,OFFSET(T17,1,0):T$21) -> 0 | U17: =SUMIF(OFFSET($C17,1,0):$C$21,1,OFFSET(U17,1,0):U$21) -> 0 | V17: =SUMIF(OFFSET($C17,1,0):$C$21,1,OFFSET(V17,1,0):V$21) -> 0 | W17: =SUMIF(OFFSET($C17,1,0):$C$21,1,OFFSET(W17,1,0):W$21) -> 0 | AC17: =SUMIF(OFFSET($C17,1,0):$C$21,1,OFFSET(AC17,1,0):AC$21) -> 0
L18: =INDEX(PO!K$12:K$366,MATCH($A20,PO!$V$12:$V$366,0)) -> 1. | M18: =INDEX(PO!N$12:N$366,MATCH($A20,PO!$V$12:$V$366,0)) -> SERVIÇOS PRELIMINARES | N18: =IF(ROUND(K20,2)=0,K20,ROUND(K20,2)) -> 1e-12 | O18: Parcela (%) | P18: =IF($B20,0,P19-IF(ISNUMBER(O19),O19,0)) -> 0 | Q18: 0 | R18: 0 | S18: 0 | T18: 0 | U18: 0 | V18: 0 | W18: 0 | AC18: =IF($B20,0,AC19-IF(ISNUMBER(AB19),AB19,0)) -> 0
O19: Acumulado (%) | P19: =MIN(IF($B20,P18+IF(ISNUMBER(O19),O19,0),P20/$N18),1) -> 0 | Q19: 0 | R19: 0 | S19: 0 | T19: 0 | U19: 0 | V19: 0 | W19: 0 | AC19: =MIN(IF($B20,AC18+IF(ISNUMBER(AB19),AB19,0),AC20/$N18),1) -> 0
A20: =OFFSET(A20,-CFF.NumLinha,0)+1 -> 1 | B20: =$C20>=OFFSET($C20,CFF.NumLinha,0) -> TRUE | C20: =INDEX(PO!A$12:A$366,MATCH($A20,PO!$V$12:$V$366,0)) -> 1 | D20: =IF(ISERROR(J20),I20,SMALL(I20:J20,1))-1 -> 0 | E20: =IF($C20=1,OFFSET(E20,-CFF.NumLinha,0)+1,OFFSET(E20,-CFF.NumLinha,0)) -> 1 | F20: =IF($C20=1,0,IF($C20=2,OFFSET(F20,-CFF.NumLinha,0)+1,OFFSET(F20,-CFF.NumLinha,0))) -> 0 | G20: =IF(AND($C20<=2,$C20<>0),0,IF($C20=3,OFFSET(G20,-CFF.NumLinha,0)+1,OFFSET(G20,-CFF.NumLinha,0))) -> 0 | H20: =IF(AND($C20<=3,$C20<>0),0,IF($C20=4,OFFSET(H20,-CFF.NumLinha,0)+1,OFFSET(H20,-CFF.NumLinha,0))) -> 0 | I20: =MATCH(0,OFFSET($D20,1,$C20,ROW($A$21)-ROW($A20)),0) -> 1 | J20: =MATCH(OFFSET($D20,0,$C20)+1,OFFSET($D20,1,$C20,ROW($A$21)-ROW($A20)),0) ->  | K20: =ROUND(INDEX(PO!T$12:T$366,MATCH($A20,PO!$V$12:$V$366,0)),2)+10^-12 -> 1e-12 | O20: Acumulado (R$) | P20: =IF($B20,ROUND(P19*$N18,2),ROUND(SUMIF(OFFSET($B20,1,0,$D20),TRUE,OFFSET(P20,1,0,$D20))/SUMIF(OFFSET($B20,1,0,$D20),TRUE,OFFSET($K20,1,0,$D20))*$N18,2)) -> 0 | Q20: 0 | R20: 0 | S20: 0 | T20: 0 | U20: 0 | V20: 0 | W20: 0 | AC20: =IF($B20,ROUND(AC19*$N18,2),ROUND(SUMIF(OFFSET($B20,1,0,$D20),TRUE,OFFSET(AC20,1,0,$D20))/SUMIF(OFFSET($B20,1,0,$D20),TRUE,OFFSET($K20,1,0,$D20))*$N18,2)) -> 0
C21: -1 | E21: 0 | F21: 0 | G21: 0 | H21: 0
L23: =DADOS!I32 -> 0
L24: Local
L26: =PO!K380 -> 2018-10-30
L27: Data
